Workbook

Sheet Title
B2: UffdAu 3.0
B3: User-Friendly Feed Formulation, Data from Australia
H4: 15 January 2024
B8: Gene Pesti, The University of Georgia, Athens GA USA
B9: Rashed Alhotan, The University of Georgia, Athens GA USA
B10: Dmitry Vedenov, The University of Georgia, Athens GA USA
B11: Evan Thomson, The University of New England, Armidale NSW Australia
B32: WELCOME TO UFFDAu 3.0
B34: WINDOWS-BASED USER-FRIENDLY
B35: FEED FORMULATION WORKBOOK
B40: THE UFFDAu WORKBOOK CONSISTS OF
B41: A SERIES OF LINKED SPREADSHEETS
B43: TITLE
C44: INGREDIENTS
D45: NUTRIENTS
E46: SENSITIVITY REPORT
F47: FORMULATE
G48: FEED SPECIFICATION
H49: MIXING SHEET
I50: GRAPHS
J51: COEFFICIENTS
B58: UFFDAu AND EXCEL ARE A POWERFUL TEAM
B60: BUT YOU ONLY NEED TO KNOW HOW TO :
C62: POINT
D63: CLICK
E64: COPY
F65: PASTE
G66: TYPE NUMBERS
H67: TYPE LETTERS

Sheet Introduction
B2: UFFDAu is capable of solving simple linear programming problems. In addition, there are examples of how to keep nutrients in specific ratios. Examples of ratios that can be specified are for 1) mineral balance, essential amino acid balance and 2) digestible lysine to the true protein to assure adequate non-essential amino acids.
B4: There are three key spreadsheets, called Ingredients, Nutrients and Formulate. Several other spreadsheets help students to use the results and better understand where some of the input data comes from.
B6: The feed ingredient data that is used in the example problems comes mainly from a recent Australian Feed Composition Database. The nutrient requirement data is simplified interpretations of various recent breeder recommendations.
B8: Because UFFDAu runs in Excel, it is fully customizable for any ingredients or nutrient restrictions for any species that users would like to study. This version uses metric units including energy in kJ/kg any units for weights, but any units users would rather use can be easily substituted.
B10: On the top of the Ingredients Spreadsheet is a box for ingredient composition data to be used in the current problem that is to be formulated. Beneath the Active Ingredient Composition Matrix box are many more ingredients that can be copied into the Active Ingredient Compositon Matrix Box when needed.
B12: On the upper left of the Nutrients Spreadsheet is a box containing the Current Specification. That is where the nutrient requirements are found for the current problem to be solved. Many more feed restrictions can be stored to the right of the Current Specificiation. There are two versions of each feed that can be coppied into the Current Specification cells. One has amino acid requirements as g/kg of diet. The other (found beneath) has the amino acids as a proportion of digestible lysine content. This way of specifiying amino acids is used when keeping the amino acids in balance is thought necessary.
B14: The Formulate Spreadsheet is where the Solver routine of Excel is invoked (by clicking on the <Formulate Now> button) to find the least-cost solution. If parametric cost ranging is important, the <Get Sensitivity Report> can be chosen to open a new spreadsheet from which shadow prices can be calculated. Changes should not normally be made to the Formulate spreadsheet as they will be permanent and break the links to the other spreadsheets.
B16: The Feed Spec Spreadsheet is another presentation of the formulation results to print or store your solutions. Column P contains the ingredient and nutrient levels of the last feed formulated for copying to other columns to be stored.
B18: The Mixing Sheet Spreadsheet calculates how much of each ingredient is needed for a specified batch size of the last formulation result.
B20: The Graphs Spreadsheet presents how each nutrient compares to the requirement specified for it.
B22: The Enzymes Spreadsheet is used to demonstrate how responses to enzymes can be added to linear feed formulation models. A linear approximation of enzyme kinetics is used to determine how much of each nutrient is liberated by different enzyme levels.
B24: The Coefficients Spreadsheet can be used to update amino acid concentration and digestibility values separately. Results are automatically transferred to the Ingredients spreadsheet.
B26: The Digestibility Spreadsheet calculates protein digestibility from amino acid digestibility values. It also contains calculations for Non-Starch Polysaccharide digestibility values.
B28: The N to TP Factors Spreadsheet shows how measured amino acid nitrogen to protein conversion factors are used to calculate the true protein content of feed ingredients. Factors for choline and betaine in feed ingredients are included since they are metabolically converted to sarcosine and then glycine.
B29: The AMEn Calc Spreadsheet shows how crude Apparent Metabolizable Energy values are calculated based on the Weende Method of feed ingredient evaluation. AMEn values are calculated based on Crude Protein, Crude Fat, Crude Fibre, etc.
B31: The Composition Charts Spreadsheet shows the relationship between the 19th Century Weende Method (Proximate Analysis) and modern chemical concepts and techniques, labeled the Armidale Method. The spreadsheet shows an example comparing the two methods.
B33: The Weende v Armidale Spreadsheet compares analyzed values for 12 example Australian feed ingredients for 19th versus 21st Century analytical techniques.
B35: The ME Calc Spreadsheet shows how Metabolizable Energy (ME) values are calculated based on metabolic fuel values of ingredient compositions.
B37: The NE Calc Spreadsheet shows how Net Energy (NE) values are calculated based on ATP generated by the feed ingredient components.
B39: The Ingredient Energy Spreadsheet shows a comparison of AMEn, ME and NE values for the 12 example Australian feed ingredients.
B41: The Energy Needs Spreadsheet shows a comparison of AMEn, ME and NE values for 22 example feeds formulated with the 12 example Australian feed ingredients.

Sheet Ingredients
B1: UffdAu 3.0 | C1: Cost | D1: Min. | E1: Max. | F1: Weight | G1: Dry Matter | H1: AMEn | I1: Metabolisable Energy | J1: Net Energy | K1: Crude Protein | L1: True Protein | M1: Lipids | N1: Crude Fibre | O1: Calcium | P1: Total Phosphorous | Q1: Available Phosphorous | R1: Ca:aP | S1: Na | T1: Cl | U1: Choline | V1: Betaine | W1: dLYS | X1: dMET | Y1: dTSAA | Z1: dTHR | AA1: dTRP | AB1: dARG | AC1: dVAL | AD1: TP:dLYS | AE1: Total NSP | AF1: Soluble NSP | AG1: Insoluble NSP | AH1: Lignin | AI1: 18:2 | AJ1: Nutrient | AK1: Nutrient | AL1: Nutrient | AM1: Nutrient | AN1: Nutrient
B2: Instructions | R2: 2 | AD2: =(1/(5.58+1*0.7))*100 -> 15.92356688
C3: ACTIVE INGREDIENT COMPOSITION MATRIX | O3: ACTIVE INGREDIENT COMPOSITION MATRIX | Z3: ACTIVE INGREDIENT COMPOSITION MATRIX
B4: Wheat | C4: 380 | D4: 0 | E4: 100 | F4: 1 | G4: 904 | H4: 13.29 | I4: 14.89397442 | J4: 9.249509484 | K4: 100.8638 | L4: =(K4/6.25)*5.636 -> 90.95494029 | M4: 18.08 | N4: 19.888 | O4: 0.5424 | P4: 2.6216 | Q4: 0.6328 | R4: =Q4-(1/R$2*O4) -> 0.3616 | S4: 0.1808 | T4: 0.7232 | U4: 889 | V4: 3060 | W4: 2.455866667 | X4: 1.386133333 | Y4: 3.148933333 | Z4: 2.546266667 | AA4: 0.8437333333 | AB4: 4.3844 | AC4: 3.902266667 | AD4: =W4-(1/AD$2*L4) -> -3.256103583 | AE4: 104.7124973 | AF4: 20.28686832 | AG4: 85.1218326 | AH4: 9.8648 | AI4: 8.136
B5: Soybean Meal (local) | C5: 875 | D5: 0 | E5: 100 | F5: 1 | G5: 885 | H5: 10.45 | I5: 13.44141474 | J5: 6.086238655 | K5: 404.3565 | L5: =(K5/6.25)*5.636 -> 364.6325174 | M5: 17.235375 | N5: 28.651875 | O5: 2.2125 | P5: 6.195 | Q5: 2.2125 | R5: =Q5-(1/R$2*O5) -> 1.10625 | S5: 0.177 | T5: 0.7965 | U5: 3360 | W5: 22.9215 | X5: 5.0445 | Y5: 9.8235 | Z5: 13.3635 | AA5: 4.956 | AB5: 27.612 | AC5: 17.346 | AD5: =W5-(1/AD$2*L5) -> 0.02257790477 | AE5: 150.5480238 | AF5: 29.52656644 | AG5: 120.9953136 | AH5: 0.5379 | AI5: 4.425
B6: Meat and Bone Meal | C6: 800 | D6: 0 | E6: 2 | F6: 1 | G6: 940 | H6: 9.0690825 | I6: 14.20255458 | J6: 6.073347295 | K6: 460.083 | L6: =(K6/6.25)*5.636 -> 414.8844461 | M6: 83.5425 | N6: 0 | O6: 113.74 | P6: 35.908 | Q6: 44.932 | R6: -11.938 | S6: 6.204 | T6: 5.64 | U6: 1751 | W6: 16.46566667 | X6: 4.997666667 | Y6: 6.959916667 | Z6: 10.2695 | AA6: 1.9035 | AB6: 25.91266667 | AC6: 14.429 | AD6: -9.589076547 | AI6: 32.9
B7: Mixed Recycled Vegetable Oil | C7: 1240 | D7: 0 | E7: 100 | F7: 1 | G7: 985 | H7: 36.6 | I7: 38.93 | J7: 25.55 | M7: 98.5 | AI7: 150
B8: Salt | C8: 117 | D8: 0.4 | E8: 0.4 | F8: 1 | G8: 990 | S8: 393 | T8: 607
B9: Vitamin Premix | C9: 7200 | D9: 0.05 | E9: 0.05 | F9: 1 | G9: 990
B10: Trace Mineral Premix | C10: 2120 | D10: 0.075 | E10: 0.075 | F10: 1 | G10: 990
B11: Limestone, Fine | C11: 104 | D11: 0 | E11: 100 | F11: 1 | G11: 990 | O11: 380 | R11: -190
B12: Dicalcium Phosphate | C12: 1920 | D12: 0 | E12: 100 | F12: 1 | G12: 990 | O12: 230 | P12: 175 | Q12: 175 | R12: 60
B13: DL-Methionine | C13: 9600 | D13: 0 | E13: 100 | F13: 1 | G13: 998 | H13: 21.00368 | K13: 581 | L13: 523.92 | X13: 980 | Y13: 980 | AD13: -32.902176
B14: L-LysineHCl | C14: 5400 | D14: 0 | E14: 100 | F14: 1 | G14: 985 | H14: 17.23808 | K14: 934 | L14: 842.24 | T14: 194 | W14: 780 | AD14: 727.107328
B15: L-Threonine | C15: 7400 | D15: 0 | E15: 100 | F15: 1 | G15: 998 | H15: 14.60216 | K15: 724 | L15: 652.87 | Z15: 985 | AD15: -41.000236
B16: L-Tryptophan | C16: 30000 | D16: 0 | E16: 100 | F16: 1 | G16: 990 | H16: 23.89064 | K16: 840 | L16: 757.48 | AA16: 980 | AD16: -47.569744
B29: Phytase 3000 | C29: 5 | D29: 0.05 | E29: 0 | F29: 1 | G29: 998 | H29: 0 | I29: 347.7635468 | J29: 0 | K29: 0.571773399 | L29: 0 | M29: 0 | N29: 0 | O29: 0.2584729064 | P29: 0 | Q29: 0.2349753695 | R29: 0.1057389163 | S29: 0.04699507389 | T29: 0 | U29: 0 | V29: 0 | W29: 0.02349753695 | X29: 0 | Y29: 0.05169458128 | Z29: 0.04542857143 | AA29: 0.02663054187 | AB29: 0.01723152709 | AC29: 0.03133004926 | AD29: 0 | AE29: 0 | AF29: 0 | AG29: 0 | AH29: 0 | AI29: 0 | AJ29: 0 | AK29: 0 | AL29: 0 | AM29: 0 | AN29: 0
C30: STORAGE INGREDIENT COMPOSITION MATRIX | O30: STORAGE INGREDIENT COMPOSITION MATRIX | Z30: STORAGE INGREDIENT COMPOSITION MATRIX
B31: Wheat | C31: 380 | D31: 0 | E31: 100 | F31: 1 | G31: 904 | H31: 13.28597775 | I31: 14.89397442 | J31: 9.249509484 | K31: 100.8638 | L31: =(K31/6.25)*5.636 -> 90.95494029 | M31: 18.08 | N31: 19.888 | O31: 0.5424 | P31: 2.6216 | Q31: 0.6328 | R31: 0.3616 | S31: 0.1808 | T31: 0.7232 | U31: 889 | V31: 3060 | W31: 2.455866667 | X31: 1.386133333 | Y31: 3.148933333 | Z31: 2.546266667 | AA31: 0.8437333333 | AB31: 4.3844 | AC31: 3.902266667 | AD31: =W31-(1/AD$2*L31) -> -3.256103583 | AE31: 104.7124973 | AF31: 20.28686832 | AG31: 85.1218326 | AH31: 9.8648 | AI31: 8.136
B32: Sorghum | C32: 304 | D32: 0 | E32: 100 | F32: 1 | G32: 888 | H32: 12.24717176 | I32: 14.99380042 | J32: 9.450852058 | K32: 86.1582 | L32: =(K32/6.25)*5.636 -> 77.69401843 | M32: 31.8348 | N32: 19.5804 | O32: 0.5328 | P32: 2.5752 | Q32: 0.6216 | R32: 0.3552 | S32: 0.1776 | T32: 0.7104 | U32: 660 | W32: 1.3912 | X32: 1.0952 | Y32: 2.294 | Z32: 1.9832 | AA32: 0.888 | AB32: 1.7168 | AC32: 3.256 | AD32: -3.487984358 | AE32: 53.94368354 | AF32: 5.425409233 | AG32: 49.48032876 | AH32: 9.7317 | AI32: 10.656
B33: Barley | C33: 400 | D33: 0 | E33: 100 | F33: 1 | G33: 905 | H33: 11.830578 | I33: 14.23747945 | J33: 8.43533531 | K33: 84.49683333 | L33: 76.19586443 | M33: 23.0775 | N33: 52.0375 | O33: 0.362 | P33: 2.4435 | Q33: 0.6335 | R33: 0.4525 | S33: 0.13575 | T33: 0.9955 | U33: 1038 | W33: 2.4435 | X33: 1.146333333 | Y33: 2.684833333 | Z33: 1.991 | AA33: 0.8446666667 | AB33: 3.439 | AC33: 3.288166667 | AD33: -2.341600286 | AE33: 154.3594745 | AF33: 41.7200294 | AG33: 112.6365039 | AH33: 9.8142 | AI33: 7.6925
B34: Corn | C34: 352 | D34: 0 | E34: 100 | F34: 1 | G34: 900 | H34: 14.078041 | I34: 15.2704541 | J34: 9.571501783 | K34: 77.175 | L34: 69.593328 | M34: 35.73 | N34: 18.81 | O34: 0.54 | P34: 2.61 | Q34: 0.63 | R34: 0.36 | S34: 0.18 | T34: 0.72 | U34: 530 | W34: 1.935 | X34: 1.35 | Y34: 2.97 | Z34: 2.34 | AA34: 0.45 | AB34: 3.285 | AC34: 3.42 | AD34: -2.435460998 | AE34: 70.3217452 | AF34: 8.669617979 | AG34: 61.62908188 | AH34: 1.2425 | AI34: 16.2
B35: Soybean Meal (Brazil) | C35: 890 | D35: 0 | E35: 100 | F35: 1 | G35: 885 | H35: 10.71071255 | I35: 13.5475357 | J35: 6.097228861 | K35: 417.830625 | L35: 376.7829444 | M35: 17.235375 | N35: 31.970625 | O35: 2.2125 | P35: 6.195 | Q35: 2.2125 | R35: 1.10625 | S35: 0.177 | T35: 0.7965 | U35: 3360 | W35: 22.855125 | X35: 4.91175 | Y35: 9.934125 | Z35: 13.6843125 | AA35: 5.0776875 | AB35: 28.5744375 | AC35: 16.837125 | AD35: -0.8068439083 | AE35: 150.5480238 | AF35: 29.52656644 | AG35: 120.9953136 | AH35: 0.5379 | AI35: 4.425
B36: Soybean Meal (local) | C36: 875 | D36: 0 | E36: 100 | F36: 1 | G36: 885 | H36: 10.45389275 | I36: 13.44141474 | J36: 6.086238655 | K36: 404.3565 | L36: 364.6325174 | M36: 17.235375 | N36: 28.651875 | O36: 2.2125 | P36: 6.195 | Q36: 2.2125 | R36: 1.10625 | S36: 0.177 | T36: 0.7965 | U36: 3360 | W36: 22.9215 | X36: 5.0445 | Y36: 9.8235 | Z36: 13.3635 | AA36: 4.956 | AB36: 27.612 | AC36: 17.346 | AD36: 0.02257790477 | AE36: 150.5480238 | AF36: 29.52656644 | AG36: 120.9953136 | AH36: 0.5379 | AI36: 4.425
B37: Canola Meal (Solvent Extracted) | C37: 444 | D37: 0 | E37: 100 | F37: 1 | G37: 925 | H37: 8.9 | I37: 12.08174367 | J37: 5.891094598 | K37: 338.3823437 | L37: 305.1396623 | M37: 26.524375 | N37: 109.136125 | O37: 5.55 | P37: 8.51 | Q37: 5.735 | R37: 2.96 | S37: 0.37 | T37: 0.6475 | U37: 6450 | W37: 14.36178125 | X37: 5.2516875 | Y37: 10.4363125 | Z37: 10.64328125 | AA37: 3.51846875 | AB37: 17.1194375 | AC37: 13.11996875 | AD37: -4.800989542 | AE37: 111.9 | AF37: 10.8 | AG37: 101.1 | AH37: 88.0857 | AI37: 3.06175
B38: Canola Meal (Cold Pressed) | C38: 450 | D38: 0 | E38: 100 | F38: 1 | G38: 896 | H38: 10.37037903 | I38: 14.06795505 | J38: 7.758347419 | K38: 327.8762667 | L38: 295.6657022 | M38: 112.2688 | N38: 93.4976 | O38: 5.376 | P38: 8.78976 | Q38: 3.51232 | R38: 0.82432 | S38: 0.3584 | T38: 0.6272 | U38: 6450 | W38: 13.8208 | X38: 4.7936 | Y38: 9.7216 | Z38: 9.4304 | AA38: 3.2928 | AB38: 15.3216 | AC38: 11.6032 | AD38: -4.7470061 | AE38: 154.8 | AF38: 14.9 | AG38: 139.9 | AH38: 89.4825 | AI38: 2.24
B39: Lupins | C39: 1000 | D39: 0 | E39: 100 | F39: 1 | G39: 910 | H39: 7.99261695 | I39: 14.89253382 | J39: 7.488251761 | K39: 291.1545 | L39: 262.5514819 | M39: 58.058 | N39: 107.562 | O39: 2.093 | P39: 5.733 | Q39: 2.639 | R39: 1.5925 | S39: 0.091 | T39: 0.364 | U39: 700 | W39: 13.104 | X39: 1.5925 | Y39: 5.1415 | Z39: 8.2355 | AA39: 2.002 | AB39: 29.8935 | AC39: 9.7825 | AD39: -3.384233065 | AE39: 273.1680341 | AF39: 25.27991343 | AG39: 247.8885064 | AH39: 10.818 | AI39: 11.83
B40: Peas | C40: 1000 | D40: 0 | E40: 100 | F40: 1 | G40: 913 | H40: 11.59208358 | I40: 14.34014481 | J40: 8.139791166 | K40: 198.3949 | L40: 178.904585 | M40: 17.6209 | N40: 52.691969 | O40: 1.3695 | P40: 3.1955 | Q40: 1.6434 | R40: 0.95865 | S40: 1.4608 | T40: 0.7304 | U40: 700 | W40: 11.5038 | X40: 1.23255 | Y40: 3.14985 | Z40: 5.2954 | AA40: 1.2782 | AB40: 16.84485 | AC40: 6.80185 | AD40: 0.2685920605 | AE40: 110.4369192 | AF40: 24.01822297 | AG40: 80.0340808 | AH40: 3.568 | AI40: 9.13
B41: Meat Meal | C41: 900 | D41: 0 | E41: 100 | F41: 1 | G41: 940 | H41: 10.757325 | I41: 15.24213225 | J41: 6.789498614 | K41: 481.844 | L41: 434.5076454 | M41: 108.194 | N41: 0 | O41: 78.208 | P41: 50.008 | Q41: 32.336 | R41: -6.768 | S41: 6.204 | T41: 5.64 | U41: 1751 | W41: 15.886 | X41: 4.512 | Y41: 7.536082153 | Z41: 9.588 | AA41: 1.692 | AB41: 25.286 | AC41: 13.536 | AD41: -11.40108013 | AI41: 32.9
B42: Meat and Bone Meal | C42: 800 | D42: 0 | E42: 100 | F42: 1 | G42: 940 | H42: 9.0690825 | I42: 14.20255458 | J42: 6.073347295 | K42: 460.083 | L42: 414.8844461 | M42: 83.5425 | N42: 0 | O42: 113.74 | P42: 35.908 | Q42: 44.932 | R42: -11.938 | S42: 6.204 | T42: 5.64 | U42: 1751 | W42: 16.46566667 | X42: 4.997666667 | Y42: 6.959916667 | Z42: 10.2695 | AA42: 1.9035 | AB42: 25.91266667 | AC42: 14.429 | AD42: -9.589076547 | AI42: 32.9
B43: Tallow | C43: 1080 | D43: 0 | E43: 100 | F43: 1 | G43: 985 | H43: 29.3 | I43: 38.93 | J43: 25.55 | M43: 98.5 | AI43: 30
B44: Mixed Recycled Vgetable Oil | C44: 1240 | D44: 0 | E44: 100 | F44: 1 | G44: 985 | H44: 36.6 | I44: 38.93 | J44: 25.55 | M44: 98.5 | AI44: 150
B45: Soybean Oil | C45: 1300 | D45: 0 | E45: 100 | F45: 1 | G45: 985 | M45: 98 | AI45: 531
B46: Salt | C46: 100 | D46: 0.4 | E46: 0.4 | F46: 1 | G46: 990 | S46: 39.3 | T46: 60.7
B47: Vitamin Premix | C47: 7200 | D47: 0 | E47: 100 | F47: 1 | G47: 990
B48: Trace Mineral Premix | C48: 2120 | D48: 0 | E48: 100 | F48: 1 | G48: 990
B49: Limestone, Fine | C49: 320 | D49: 0 | E49: 100 | F49: 1 | G49: 990 | O49: 380
B50: Limestone, Coarse | C50: 320 | D50: 0 | E50: 100 | F50: 1 | G50: 990 | O50: 380
B51: Dicalcium Phosphate | C51: 1920 | D51: 0 | E51: 100 | F51: 1 | G51: 990 | O51: 230 | P51: 175
B52: Mono-Dicalcium Phosphate | C52: 1400 | D52: 0 | E52: 100 | F52: 1 | G52: 990 | O52: 190 | P52: 210
B53: Dicalcium Phosphate | C53: 1920 | D53: 0 | E53: 100 | F53: 1 | G53: 990 | O53: 230 | P53: 175
B54: DL-Methionine | C54: 9600 | D54: 0 | E54: 100 | F54: 1 | G54: 998 | H54: 21.00368 | X54: 980 | Y54: 980
B55: Methionine Hydroxy Analogue Powder | C55: 7800 | D55: 0 | E55: 100 | F55: 1 | G55: 998 | H55: 16.77784 | X55: 672 | Y55: 672
B56: L-LysineHCl | C56: 5400 | D56: 0 | E56: 100 | F56: 1 | G56: 985 | H56: 17.23808 | T56: 194 | W56: 780
B57: L-Threonine | C57: 7400 | D57: 0 | E57: 100 | F57: 1 | G57: 998 | H57: 14.60216 | Z57: 985
B58: L-Tryptophan | C58: 30000 | D58: 0 | E58: 100 | F58: 1 | G58: 990 | H58: 23.89064 | AA58: 980
B59: L-Arginine | C59: 11000 | D59: 0 | E59: 100 | F59: 1 | G59: 993 | T59: 12.1 | AB59: 993
B60: L-Valine | C60: 12000 | D60: 0 | E60: 100 | F60: 1 | G60: 980 | H60: 22.00784 | AC60: 980
B61: Phytase | C61: 14000 | D61: 0 | E61: 100 | F61: 1 | G61: 990
B62: Xylanase | C62: 14400 | D62: 0 | E62: 100 | F62: 1 | G62: 990
G63: 0
G64: 0
G65: 0
G66: 0
G67: 0
G68: 0
G69: 0
G70: 0
G71: 0
G72: 0
B73: BAKERY MEAL [CR] | C73: 175 | D73: 0 | E73: 100 | F73: 1 | G73: 910 | H73: 14.756968 | K73: 100 | L73: 90.176 | M73: 115 | N73: 30 | O73: 1 | P73: 2.5 | Q73: 1.8 | R73: 13 | S73: 11.4 | T73: 12.5 | U73: 12.3 | W73: =Coefficients!B3*Coefficients!J3/100 -> 1.7718 | X73: =Coefficients!C3*Coefficients!K3/100 -> 1.3344 | Y73: =Coefficients!D3*Coefficients!L3/100 -> 2.50976 | Z73: =Coefficients!E3*Coefficients!M3/100 -> 1.93228 | AA73: =Coefficients!F3*Coefficients!N3/100 -> 0.75573 | AB73: =Coefficients!G3*Coefficients!O3/100 -> 3.2184 | AC73: =Coefficients!H3*Coefficients!P3/100 -> 3.0664 | AD73: =W73-(1/AD$2*L73) -> -3.8912528
B74: BARLEY (>10% CP) [CR] | C74: 209 | D74: 0 | E74: 100 | F74: 1 | G74: 890 | H74: 11.506 | K74: 115 | L74: 103.7024 | M74: 19 | N74: 50 | O74: 0.8 | P74: 4.2 | Q74: 1.5 | R74: 11 | S74: 0.3 | T74: 1.4 | U74: 10.27 | W74: =Coefficients!B4*Coefficients!J4/100 -> 4.18912 | X74: =Coefficients!C4*Coefficients!K4/100 -> 1.41714 | Y74: =Coefficients!D4*Coefficients!L4/100 -> 3.46838 | Z74: =Coefficients!E4*Coefficients!M4/100 -> 2.7702 | AA74: =Coefficients!F4*Coefficients!N4/100 -> 0 | AB74: =Coefficients!G4*Coefficients!O4/100 -> 4.2145 | AC74: =Coefficients!H4*Coefficients!P4/100 -> 5.03812 | AD74: -2.32339072
B75: BLOOD MEAL (Flash Ring) [CR] | C75: 950 | D75: 0 | E75: 100 | F75: 1 | G75: 930 | H75: 14.30928 | K75: 889 | L75: 801.66464 | M75: 10 | N75: 6 | O75: 0.6 | P75: 0.9 | Q75: 0.027 | R75: -2.73 | S75: 3.3 | T75: 2.7 | U75: 2.8 | W75: =Coefficients!B5*Coefficients!J5/100 -> 78.3048 | X75: =Coefficients!C5*Coefficients!K5/100 -> 6.86775 | Y75: =Coefficients!D5*Coefficients!L5/100 -> 13.77516 | Z75: =Coefficients!E5*Coefficients!M5/100 -> 34.6749 | AA75: =Coefficients!F5*Coefficients!N5/100 -> 11.5466 | AB75: =Coefficients!G5*Coefficients!O5/100 -> 33.9568 | AC75: =Coefficients!H5*Coefficients!P5/100 -> 77.2452 | AD75: 27.96026061
B76: BLOOD MEAL (Vat) [CR] | C76: 950 | D76: 0 | E76: 100 | F76: 1 | G76: 890 | H76: 13.47248 | K76: 800 | L76: 721.408 | M76: 10 | N76: 10 | O76: 2.8 | P76: 2.2 | Q76: 2.2 | R76: 8 | S76: 3.1 | T76: 2.8 | U76: 9.9 | W76: =Coefficients!B6*Coefficients!J6/100 -> 40.1028 | X76: =Coefficients!C6*Coefficients!K6/100 -> 6.743 | Y76: =Coefficients!D6*Coefficients!L6/100 -> 12.0216 | Z76: =Coefficients!E6*Coefficients!M6/100 -> 22.5492 | AA76: =Coefficients!F6*Coefficients!N6/100 -> 6.68 | AB76: =Coefficients!G6*Coefficients!O6/100 -> 15.6322 | AC76: =Coefficients!H6*Coefficients!P6/100 -> 28.9692 | AD76: -5.2016224
B77: BREWERS GRAINS [CR] | C77: 56 | D77: 0 | E77: 100 | F77: 1 | G77: 930 | H77: 9.39308 | K77: 279 | L77: 251.59104 | M77: 74 | N77: 117 | O77: 3 | P77: 6.6 | Q77: 2 | R77: 5 | S77: 2.6 | T77: 1.2 | U77: 21.1 | W77: =Coefficients!B7*Coefficients!J7/100 -> 5.5674 | X77: =Coefficients!C7*Coefficients!K7/100 -> 4.6572 | Y77: =Coefficients!D7*Coefficients!L7/100 -> 11.4165 | Z77: =Coefficients!E7*Coefficients!M7/100 -> 7.253 | AA77: =Coefficients!F7*Coefficients!N7/100 -> 0 | AB77: =Coefficients!G7*Coefficients!O7/100 -> 8.2121 | AC77: =Coefficients!H7*Coefficients!P7/100 -> 13.20228 | AD77: -10.23251731
B78: CAMELINA MEAL [CR] | C78: 120 | D78: 0 | E78: 100 | F78: 1 | G78: 900 | H78: 13.924352 | K78: 339 | L78: 305.69664 | M78: 120 | N78: 124 | O78: 3.3 | P78: 9.4 | Q78: 0 | R78: -16.5 | S78: 1 | T78: 0 | U78: 0 | W78: =Coefficients!B8*Coefficients!J8/100 -> 14.07714 | X78: =Coefficients!C8*Coefficients!K8/100 -> 5.77121 | Y78: =Coefficients!D8*Coefficients!L8/100 -> 11.4427 | Z78: =Coefficients!E8*Coefficients!M8/100 -> 11.0383 | AA78: =Coefficients!F8*Coefficients!N8/100 -> 3.83166 | AB78: =Coefficients!G8*Coefficients!O8/100 -> 24.98694 | AC78: =Coefficients!H8*Coefficients!P8/100 -> 14.37891 | AD78: -5.120608992
B79: CANOLA MEAL [CR] | C79: 222 | D79: 0 | E79: 100 | F79: 1 | G79: 910 | H79: 8.82824 | K79: 380 | L79: 342.6688 | M79: 38 | N79: 111 | O79: 6.8 | P79: 11.7 | Q79: 3 | R79: -4 | S79: 0 | T79: 0 | U79: 67 | W79: =Coefficients!B9*Coefficients!J9/100 -> 15.9176 | X79: =Coefficients!C9*Coefficients!K9/100 -> 6.83683 | Y79: =Coefficients!D9*Coefficients!L9/100 -> 14.0244 | Z79: =Coefficients!E9*Coefficients!M9/100 -> 11.6625 | AA79: =Coefficients!F9*Coefficients!N9/100 -> 3.8226 | AB79: =Coefficients!G9*Coefficients!O9/100 -> 20.3458 | AC79: =Coefficients!H9*Coefficients!P9/100 -> 16.1311 | AD79: -5.60200064
B80: CASEIN [CR] | C80: 1000 | D80: 0 | E80: 100 | F80: 1 | G80: 900 | H80: 17.23808 | K80: 800 | L80: 721.408 | M80: 5 | N80: 2 | O80: 6 | P80: 10 | Q80: 10 | R80: 70 | S80: 0.1 | T80: 0 | U80: 2.09 | W80: =Coefficients!B10*Coefficients!J10/100 -> 64.953 | X80: =Coefficients!C10*Coefficients!K10/100 -> 25.3287 | Y80: =Coefficients!D10*Coefficients!L10/100 -> 27.861 | Z80: =Coefficients!E10*Coefficients!M10/100 -> 35.2488 | AA80: =Coefficients!F10*Coefficients!N10/100 -> 9.114 | AB80: =Coefficients!G10*Coefficients!O10/100 -> 32.521 | AC80: =Coefficients!H10*Coefficients!P10/100 -> 63.7296 | AD80: 19.6485776
B81: CORN [CR] | C81: 176 | D81: 0 | E81: 100 | F81: 1 | G81: 860 | H81: 14.112632 | K81: 75 | L81: 67.632 | M81: 35 | N81: 19 | O81: 0.1 | P81: 2.3 | Q81: 0.9 | R81: 8.5 | S81: 0.2 | T81: 0.4 | U81: 11 | W81: =Coefficients!B11*Coefficients!J11/100 -> 1.98408 | X81: =Coefficients!C11*Coefficients!K11/100 -> 1.65744 | Y81: =Coefficients!D11*Coefficients!L11/100 -> 3.15144 | Z81: =Coefficients!E11*Coefficients!M11/100 -> 2.43455 | AA81: =Coefficients!F11*Coefficients!N11/100 -> 0.56952 | AB81: =Coefficients!G11*Coefficients!O11/100 -> 3.6392 | AC81: =Coefficients!H11*Coefficients!P11/100 -> 3.70734 | AD81: -2.2632096
B82: Corn DDGS [CR] | C82: 227 | D82: 0 | E82: 100 | F82: 1 | G82: 920 | H82: 11.7152 | K82: 270 | L82: 243.4752 | M82: 90 | N82: 85 | O82: 1.4 | P82: 8.9 | Q82: 5.5 | R82: 48 | S82: 2 | T82: 1.7 | U82: 34 | W82: =Coefficients!B12*Coefficients!J12/100 -> 5.6 | X82: =Coefficients!C12*Coefficients!K12/100 -> 4.3707 | Y82: =Coefficients!D12*Coefficients!L12/100 -> 9.0626 | Z82: =Coefficients!E12*Coefficients!M12/100 -> 6.61664 | AA82: =Coefficients!F12*Coefficients!N12/100 -> 1.5246 | AB82: =Coefficients!G12*Coefficients!O12/100 -> 8.7439 | AC82: =Coefficients!H12*Coefficients!P12/100 -> 10.64532 | AD82: -9.69024256
B83: CORN GLUTEN FEED [CR] | C83: 130 | D83: 0 | E83: 100 | F83: 1 | G83: 880 | H83: 7.322 | K83: 210 | L83: 189.3696 | M83: 20 | N83: 100 | O83: 2 | P83: 9 | Q83: 2.2 | R83: 12 | S83: 1.5 | T83: 2.2 | U83: 24.2 | W83: =Coefficients!B13*Coefficients!J13/100 -> 4.2138 | X83: =Coefficients!C13*Coefficients!K13/100 -> 4.196 | Y83: =Coefficients!D13*Coefficients!L13/100 -> 8.0124 | Z83: =Coefficients!E13*Coefficients!M13/100 -> 6.768 | AA83: =Coefficients!F13*Coefficients!N13/100 -> 0 | AB83: =Coefficients!G13*Coefficients!O13/100 -> 8.81 | AC83: =Coefficients!H13*Coefficients!P13/100 -> 8.49992 | AD83: -7.67861088
B84: CORN GLUTEN MEAL [CR] | C84: 630 | D84: 0 | E84: 100 | F84: 1 | G84: 900 | H84: 15.64816 | K84: 600 | L84: 541.056 | M84: 20 | N84: 25 | O84: 0.2 | P84: 5 | Q84: 1.8 | R84: 17 | S84: 0.3 | T84: 0.5 | U84: 22 | W84: =Coefficients!B14*Coefficients!J14/100 -> 8.813 | X84: =Coefficients!C14*Coefficients!K14/100 -> 18.2039 | Y84: =Coefficients!D14*Coefficients!L14/100 -> 26.5959 | Z84: =Coefficients!E14*Coefficients!M14/100 -> 18.26 | AA84: =Coefficients!F14*Coefficients!N14/100 -> 2.5455 | AB84: =Coefficients!G14*Coefficients!O14/100 -> 17.955 | AC84: =Coefficients!H14*Coefficients!P14/100 -> 25.4205 | AD84: -25.1653168
B85: COTTONSEED MEAL [CR] | C85: 300 | D85: 0 | E85: 100 | F85: 1 | G85: 900 | H85: 8.40984 | K85: 410 | L85: 369.7216 | M85: 21 | N85: 113 | O85: 1.6 | P85: 10 | Q85: 3.2 | R85: 24 | S85: 0.4 | T85: 0.4 | U85: 27.06 | W85: =Coefficients!B15*Coefficients!J15/100 -> 10.6777 | X85: =Coefficients!C15*Coefficients!K15/100 -> 3.66639 | Y85: =Coefficients!D15*Coefficients!L15/100 -> 8.0682 | Z85: =Coefficients!E15*Coefficients!M15/100 -> 8.99944 | AA85: =Coefficients!F15*Coefficients!N15/100 -> 4.17352 | AB85: =Coefficients!G15*Coefficients!O15/100 -> 39.74514 | AC85: =Coefficients!H15*Coefficients!P15/100 -> 13.88478 | AD85: -12.54081648
B86: FEATHER MEAL [CR] | C86: 580 | D86: 0 | E86: 100 | F86: 1 | G86: 930 | H86: 12.04992 | K86: 850 | L86: 766.496 | M86: 40 | N86: 15 | O86: 2 | P86: 7 | Q86: 7 | R86: 60 | S86: 7 | T86: 2.8 | U86: 8.8 | W86: =Coefficients!B16*Coefficients!J16/100 -> 13.45005 | X86: =Coefficients!C16*Coefficients!K16/100 -> 4.83015 | Y86: =Coefficients!D16*Coefficients!L16/100 -> 29.2857 | Z86: =Coefficients!E16*Coefficients!M16/100 -> 27.9452 | AA86: =Coefficients!F16*Coefficients!N16/100 -> 4.0925 | AB86: =Coefficients!G16*Coefficients!O16/100 -> 47.9435 | AC86: =Coefficients!H16*Coefficients!P16/100 -> 47.311 | AD86: -34.6858988
B87: FISH MEAL, Menhaden [CR] | C87: 1125 | D87: 0 | E87: 100 | F87: 1 | G87: 920 | H87: 12.3428 | K87: 620 | L87: 559.0912 | M87: 92 | N87: 10 | O87: 48 | P87: 30 | Q87: 30 | R87: 60 | S87: 6.8 | T87: 8 | U87: 30.8 | W87: =Coefficients!B17*Coefficients!J17/100 -> 42.3987 | X87: =Coefficients!C17*Coefficients!K17/100 -> 15.7862 | Y87: =Coefficients!D17*Coefficients!L17/100 -> 19.5976 | Z87: =Coefficients!E17*Coefficients!M17/100 -> 25.07725 | AA87: =Coefficients!F17*Coefficients!N17/100 -> 4.417 | AB87: =Coefficients!G17*Coefficients!O17/100 -> 33.78805 | AC87: =Coefficients!H17*Coefficients!P17/100 -> 25.8636 | AD87: 7.28777264
B88: MEAT & BONE MEAL (High Quality) [CR] | C88: 450 | D88: 0 | E88: 100 | F88: 1 | G88: 920 | H88: 10.58552 | K88: 500 | L88: 450.88 | M88: 85 | N88: 28 | O88: 92 | P88: 47 | Q88: 47 | R88: 10 | S88: 8 | T88: 7.5 | U88: 20 | W88: =Coefficients!B18*Coefficients!J18/100 -> 21.6996 | X88: =Coefficients!C18*Coefficients!K18/100 -> 5.87322 | Y88: =Coefficients!D18*Coefficients!L18/100 -> 8.091 | Z88: =Coefficients!E18*Coefficients!M18/100 -> 13.9689 | AA88: =Coefficients!F18*Coefficients!N18/100 -> 2.05582 | AB88: =Coefficients!G18*Coefficients!O18/100 -> 28.88035 | AC88: =Coefficients!H18*Coefficients!P18/100 -> 19.09125 | AD88: -6.615664
B89: MEAT & BONE MEAL (Low Quality) [CR] | C89: 400 | D89: 0 | E89: 100 | F89: 1 | G89: 920 | H89: 9.937 | K89: 450 | L89: 405.792 | M89: 85 | N89: 25 | O89: 110 | P89: 59 | Q89: 59 | R89: 40 | S89: 6 | T89: 7 | U89: 19.8 | W89: =Coefficients!B19*Coefficients!J19/100 -> 16.929 | X89: =Coefficients!C19*Coefficients!K19/100 -> 4.29936 | Y89: =Coefficients!D19*Coefficients!L19/100 -> 5.98267 | Z89: =Coefficients!E19*Coefficients!M19/100 -> 12.23394 | AA89: =Coefficients!F19*Coefficients!N19/100 -> 1.43406 | AB89: =Coefficients!G19*Coefficients!O19/100 -> 22.14 | AC89: =Coefficients!H19*Coefficients!P19/100 -> 18.9576 | AD89: -8.5547376
B90: OAT GROATS [CR] | C90: 210 | D90: 0 | E90: 100 | F90: 1 | G90: 920 | H90: 13.8072 | K90: 160 | L90: 144.2816 | M90: 60 | N90: 26 | O90: 0.7 | P90: 4.5 | Q90: 1.7 | R90: 13.5 | S90: 0.5 | T90: 0 | U90: 12.32 | W90: =Coefficients!B20*Coefficients!J20/100 -> 3.5892 | X90: =Coefficients!C20*Coefficients!K20/100 -> 1.7914 | Y90: =Coefficients!D20*Coefficients!L20/100 -> 3.94772 | Z90: =Coefficients!E20*Coefficients!M20/100 -> 4.159 | AA90: =Coefficients!F20*Coefficients!N20/100 -> 0 | AB90: =Coefficients!G20*Coefficients!O20/100 -> 8.2701 | AC90: =Coefficients!H20*Coefficients!P20/100 -> 5.7122 | AD90: -5.47168448
B91: OATS [CR] | C91: 262 | D91: 0 | E91: 100 | F91: 1 | G91: 900 | H91: 10.6692 | K91: 105 | L91: 94.6848 | M91: 40 | N91: 105 | O91: 1 | P91: 3.5 | Q91: 1.4 | R91: 9 | S91: 0.7 | T91: 1.2 | U91: 10.7 | W91: =Coefficients!B21*Coefficients!J21/100 -> 3.4664 | X91: =Coefficients!C21*Coefficients!K21/100 -> 1.7184 | Y91: =Coefficients!D21*Coefficients!L21/100 -> 3.46204 | Z91: =Coefficients!E21*Coefficients!M21/100 -> 2.3254 | AA91: =Coefficients!F21*Coefficients!N21/100 -> 1.404 | AB91: =Coefficients!G21*Coefficients!O21/100 -> 7.4528 | AC91: =Coefficients!H21*Coefficients!P21/100 -> 5.36424 | AD91: -2.47980544
B92: PEANUT MEAL [CR] | C92: 400 | D92: 0 | E92: 100 | F92: 1 | G92: 900 | H92: 11.200568 | K92: 470 | L92: 423.8272 | M92: 25 | N92: 84 | O92: 0.8 | P92: 5.7 | Q92: 1.8 | R92: 14 | S92: 0.7 | T92: 0.3 | U92: 19.48 | W92: =Coefficients!B22*Coefficients!J22/100 -> 11.82104 | X92: =Coefficients!C22*Coefficients!K22/100 -> 4.267 | Y92: =Coefficients!D22*Coefficients!L22/100 -> 8.9188 | Z92: =Coefficients!E22*Coefficients!M22/100 -> 9.31392 | AA92: =Coefficients!F22*Coefficients!N22/100 -> 3.38352 | AB92: =Coefficients!G22*Coefficients!O22/100 -> 42.4354 | AC92: =Coefficients!H22*Coefficients!P22/100 -> 15.9732 | AD92: -14.79530816
B93: POULTRY BY-PROD, feed grade [CR] | C93: 400 | D93: 0 | E93: 100 | F93: 1 | G93: 940 | H93: 12.71936 | K93: 530 | L93: 477.9328 | M93: 140 | N93: 25 | O93: 50 | P93: 27 | Q93: 27 | R93: 20 | S93: 3 | T93: 5.5 | U93: 59.8 | W93: =Coefficients!B23*Coefficients!J23/100 -> 17.199 | X93: =Coefficients!C23*Coefficients!K23/100 -> 7.53298 | Y93: =Coefficients!D23*Coefficients!L23/100 -> 13.07544 | Z93: =Coefficients!E23*Coefficients!M23/100 -> 14.47788 | AA93: =Coefficients!F23*Coefficients!N23/100 -> 3.865 | AB93: =Coefficients!G23*Coefficients!O23/100 -> 30.191 | AC93: =Coefficients!H23*Coefficients!P23/100 -> 18.91032 | AD93: -12.81517984
B94: RAPESEED MEAL [CR] | C94: 222 | D94: 0 | E94: 100 | F94: 1 | G94: 920 | H94: 7.40568 | K94: 360 | L94: 324.6336 | M94: 26 | N94: 132 | O94: 6.6 | P94: 9.3 | Q94: 3 | R94: -3 | S94: 0.9 | T94: 0 | U94: 67 | W94: =Coefficients!B24*Coefficients!J24/100 -> 16.7798 | X94: =Coefficients!C24*Coefficients!K24/100 -> 6.25713 | Y94: =Coefficients!D24*Coefficients!L24/100 -> 9.88812 | Z94: =Coefficients!E24*Coefficients!M24/100 -> 12.6176 | AA94: =Coefficients!F24*Coefficients!N24/100 -> 3.69702 | AB94: =Coefficients!G24*Coefficients!O24/100 -> 17.42772 | AC94: =Coefficients!H24*Coefficients!P24/100 -> 15.14789 | AD94: -3.60719008
B95: RICE (Rough) [CR] | C95: 300 | D95: 0 | E95: 100 | F95: 1 | G95: 890 | H95: 12.30096 | K95: 73 | L95: 65.82848 | M95: 17 | N95: 100 | O95: 0.4 | P95: 2.6 | Q95: 0.9 | R95: 7 | S95: 0.4 | T95: 0.6 | U95: 10.14 | W95: =Coefficients!B25*Coefficients!J25/100 -> 1.9116 | X95: =Coefficients!C25*Coefficients!K25/100 -> 1.25412 | Y95: =Coefficients!D25*Coefficients!L25/100 -> 1.92104 | Z95: =Coefficients!E25*Coefficients!M25/100 -> 2.20482 | AA95: =Coefficients!F25*Coefficients!N25/100 -> 1.0896 | AB95: =Coefficients!G25*Coefficients!O25/100 -> 5.44924 | AC95: =Coefficients!H25*Coefficients!P25/100 -> 4.00936 | AD95: -2.222428544
B96: SOYBEAN MEAL (44% CP) [CR] | C96: 435 | D96: 0 | E96: 100 | F96: 1 | G96: 900 | H96: 9.37216 | K96: 440 | L96: 396.7744 | M96: 5 | N96: 70 | O96: 2.5 | P96: 6 | Q96: 2 | R96: 7.5 | S96: 0.4 | T96: 0.2 | U96: 27.43 | W96: =Coefficients!B26*Coefficients!J26/100 -> 24.0705 | X96: =Coefficients!C26*Coefficients!K26/100 -> 5.80775 | Y96: =Coefficients!D26*Coefficients!L26/100 -> 14.49221 | Z96: =Coefficients!E26*Coefficients!M26/100 -> 14.0216 | AA96: =Coefficients!F26*Coefficients!N26/100 -> 5.07 | AB96: =Coefficients!G26*Coefficients!O26/100 -> 30.6068 | AC96: =Coefficients!H26*Coefficients!P26/100 -> 20.7648 | AD96: -0.84693232
B97: SOYBEAN MEAL (48% CP) [CR] | C97: 445 | D97: 0 | E97: 100 | F97: 1 | G97: 880 | H97: 10.284272 | K97: 478 | L97: 431.04128 | M97: 10 | N97: 30 | O97: 3.1 | P97: 6.7 | Q97: 2.1 | R97: 5.5 | S97: 0.4 | T97: 0.2 | U97: 28.5 | W97: =Coefficients!B27*Coefficients!J27/100 -> 27.4216 | X97: =Coefficients!C27*Coefficients!K27/100 -> 6.4547 | Y97: =Coefficients!D27*Coefficients!L27/100 -> 12.40518 | Z97: =Coefficients!E27*Coefficients!M27/100 -> 17.696 | AA97: =Coefficients!F27*Coefficients!N27/100 -> 6.1999 | AB97: =Coefficients!G27*Coefficients!O27/100 -> 33.4188 | AC97: =Coefficients!H27*Coefficients!P27/100 -> 24.5403 | AD97: 0.352207616
B98: SOYBEANS (Full Fat) [CR] | C98: 400 | D98: 0 | E98: 100 | F98: 1 | G98: 900 | H98: 14.0164 | K98: 380 | L98: 342.6688 | M98: 180 | N98: 50 | O98: 2.5 | P98: 5.9 | Q98: 2 | R98: 7.5 | S98: 0.4 | T98: 0.3 | U98: 24.2 | W98: =Coefficients!B28*Coefficients!J28/100 -> 21.0816 | X98: =Coefficients!C28*Coefficients!K28/100 -> 4.65426 | Y98: =Coefficients!D28*Coefficients!L28/100 -> 8.88241 | Z98: =Coefficients!E28*Coefficients!M28/100 -> 14.22642 | AA98: =Coefficients!F28*Coefficients!N28/100 -> 4.55364 | AB98: =Coefficients!G28*Coefficients!O28/100 -> 25.1636 | AC98: =Coefficients!H28*Coefficients!P28/100 -> 17.23868 | AD98: -0.43800064
B99: SESAMESEED MEAL [CR] | C99: 250 | D99: 0 | E99: 100 | F99: 1 | G99: 930 | H99: 9.24664 | K99: 438 | L99: 394.97088 | M99: 86 | N99: 97 | O99: 19.9 | P99: 13.7 | Q99: 2.6 | R99: -73.5 | S99: 0 | T99: 0 | U99: 0 | W99: =Coefficients!B29*Coefficients!J29/100 -> 11.05 | X99: =Coefficients!C29*Coefficients!K29/100 -> 4.992 | Y99: =Coefficients!D29*Coefficients!L29/100 -> 7.4464 | Z99: =Coefficients!E29*Coefficients!M29/100 -> 1.353 | AA99: =Coefficients!F29*Coefficients!N29/100 -> 0 | AB99: =Coefficients!G29*Coefficients!O29/100 -> 23.52 | AC99: =Coefficients!H29*Coefficients!P29/100 -> 8.9411 | AD99: -13.75417126
B100: SORGHUM [CR] | C100: 152 | D100: 0 | E100: 100 | F100: 1 | G100: 890 | H100: 13.84904 | K100: 110 | L100: 99.1936 | M100: 28 | N100: 20 | O100: 0.4 | P100: 2.9 | Q100: 1 | R100: 8 | S100: 0.3 | T100: 0.9 | U100: 6.78 | W100: =Coefficients!B30*Coefficients!J30/100 -> 1.96911 | X100: =Coefficients!C30*Coefficients!K30/100 -> 0.8487 | Y100: =Coefficients!D30*Coefficients!L30/100 -> 2.4012 | Z100: =Coefficients!E30*Coefficients!M30/100 -> 2.06793 | AA100: =Coefficients!F30*Coefficients!N30/100 -> 0.71217 | AB100: =Coefficients!G30*Coefficients!O30/100 -> 3.2044 | AC100: =Coefficients!H30*Coefficients!P30/100 -> 4.36561 | AD100: -4.26024808
B101: SUNFLOWER MEAL [CR] | C101: 210 | D101: 0 | E101: 100 | F101: 1 | G101: 930 | H101: 7.36384 | K101: 420 | L101: 378.7392 | M101: 23 | N101: 210 | O101: 4 | P101: 10 | Q101: 2.5 | R101: 5 | S101: 2 | T101: 0.1 | U101: 29 | W101: =Coefficients!B31*Coefficients!J31/100 -> 13.6629 | X101: =Coefficients!C31*Coefficients!K31/100 -> 13.6725 | Y101: =Coefficients!D31*Coefficients!L31/100 -> 18.92 | Z101: =Coefficients!E31*Coefficients!M31/100 -> 12.558 | AA101: =Coefficients!F31*Coefficients!N31/100 -> 0 | AB101: =Coefficients!G31*Coefficients!O31/100 -> 32.5745 | AC101: =Coefficients!H31*Coefficients!P31/100 -> 19.7225 | AD101: -10.12192176
B102: TRITICALE [CR] | C102: 263 | D102: 0 | E102: 100 | F102: 1 | G102: 900 | H102: 13.1796 | K102: 125 | L102: 112.72 | M102: 15 | N102: 0 | O102: 0.5 | P102: 3 | Q102: 1 | R102: 7.5 | S102: 0 | T102: 0.7 | U102: 4.6 | W102: =Coefficients!B32*Coefficients!J32/100 -> 3.56967 | X102: =Coefficients!C32*Coefficients!K32/100 -> 2.34598 | Y102: =Coefficients!D32*Coefficients!L32/100 -> 4.36904 | Z102: =Coefficients!E32*Coefficients!M32/100 -> 3.21048 | AA102: =Coefficients!F32*Coefficients!N32/100 -> 1.2502 | AB102: =Coefficients!G32*Coefficients!O32/100 -> 4.16544 | AC102: =Coefficients!H32*Coefficients!P32/100 -> 4.50942 | AD102: -3.509146
B103: WHEAT, hard, grain [CR] | C103: 190 | D103: 0 | E103: 100 | F103: 1 | G103: 880 | H103: 13.26328 | K103: 135 | L103: 121.7376 | M103: 19 | N103: 30 | O103: 0.5 | P103: 4.1 | Q103: 1.2 | R103: 9.5 | S103: 0.6 | T103: 0.7 | U103: 7.78 | W103: =Coefficients!B33*Coefficients!J33/100 -> 3.2704 | X103: =Coefficients!C33*Coefficients!K33/100 -> 2.1985 | Y103: =Coefficients!D33*Coefficients!L33/100 -> 4.8444 | Z103: =Coefficients!E33*Coefficients!M33/100 -> 2.90815 | AA103: =Coefficients!F33*Coefficients!N33/100 -> 1.59048 | AB103: =Coefficients!G33*Coefficients!O33/100 -> 5.2458 | AC103: =Coefficients!H33*Coefficients!P33/100 -> 5.9616 | AD103: -4.37472128
B104: WHEAT BRAN [CR] | C104: 175 | D104: 0 | E104: 100 | F104: 1 | G104: 890 | H104: 5.4392 | K104: 148 | L104: 133.46048 | M104: 40 | N104: 100 | O104: 1.4 | P104: 11.7 | Q104: 3.8 | R104: 31 | S104: 0.6 | T104: 1.4 | U104: 9.8 | W104: =Coefficients!B34*Coefficients!J34/100 -> 4.4964 | X104: =Coefficients!C34*Coefficients!K34/100 -> 1.5658 | Y104: =Coefficients!D34*Coefficients!L34/100 -> 3.8015 | Z104: =Coefficients!E34*Coefficients!M34/100 -> 3.5688 | AA104: =Coefficients!F34*Coefficients!N34/100 -> 2.4687 | AB104: =Coefficients!G34*Coefficients!O34/100 -> 9.03401 | AC104: =Coefficients!H34*Coefficients!P34/100 -> 5.3326 | AD104: -3.884918144
B105: WHEAT MIDDLINGS [CR] | C105: 145 | D105: 0 | E105: 100 | F105: 1 | G105: 890 | H105: 8.74456 | K105: 150 | L105: 135.264 | M105: 36 | N105: 85 | O105: 1.5 | P105: 9.1 | Q105: 2.8 | R105: 20.5 | S105: 0.6 | T105: 0.7 | U105: 11 | W105: =Coefficients!B35*Coefficients!J35/100 -> 5.5587 | X105: =Coefficients!C35*Coefficients!K35/100 -> 0.95832 | Y105: =Coefficients!D35*Coefficients!L35/100 -> 2.5172 | Z105: =Coefficients!E35*Coefficients!M35/100 -> 3.8935 | AA105: =Coefficients!F35*Coefficients!N35/100 -> 1.6784 | AB105: =Coefficients!G35*Coefficients!O35/100 -> 8.651 | AC105: =Coefficients!H35*Coefficients!P35/100 -> 6.3592 | AD105: -2.9358792
B106: WHEAT SHORTS [CR] | C106: 160 | D106: 0 | E106: 100 | F106: 1 | G106: 890 | H106: 10.58552 | K106: 160 | L106: 144.2816 | M106: 42 | N106: 60 | O106: 1.1 | P106: 7.6 | Q106: 2.1 | R106: 15.5 | S106: 0.7 | T106: 0.8 | U106: 9.3 | W106: =Coefficients!B36*Coefficients!J36/100 -> 6.33984 | X106: =Coefficients!C36*Coefficients!K36/100 -> 1.44126 | Y106: =Coefficients!D36*Coefficients!L36/100 -> 3.20522 | Z106: =Coefficients!E36*Coefficients!M36/100 -> 3.9385 | AA106: =Coefficients!F36*Coefficients!N36/100 -> 1.94879 | AB106: =Coefficients!G36*Coefficients!O36/100 -> 8.2783 | AC106: =Coefficients!H36*Coefficients!P36/100 -> 6.29706 | AD106: -2.72104448
K108: 0 | L108: 0 | M108: 0 | N108: 0 | O108: 0 | P108: 0 | Q108: 0 | S108: 0 | T108: 0 | U108: 0
A109: 38 | B109: BARLEY [SID] | C109: 209 | D109: 0 | E109: 100 | F109: 1 | G109: 890 | H109: 11.506 | K109: 115 | L109: 103.7024 | M109: 19 | N109: 50 | O109: 0.8 | P109: 4.2 | Q109: 1.5 | R109: 11 | S109: 0.3 | T109: 1.4 | U109: 10.27 | W109: =Coefficients!B38*Coefficients!J38/100 -> 4.664 | X109: =Coefficients!C38*Coefficients!K38/100 -> 1.584 | Y109: =Coefficients!D38*Coefficients!L38/100 -> 3.827 | Z109: =Coefficients!E38*Coefficients!M38/100 -> 3.06 | AA109: =Coefficients!F38*Coefficients!N38/100 -> 1.445 | AB109: =Coefficients!G38*Coefficients!O38/100 -> 4.25 | AC109: =Coefficients!H38*Coefficients!P38/100 -> 5.27 | AD109: =W109-(1/AD$2*L109) -> -1.84851072
A110: =A109+1 -> 39 | B110: BLOOD MEAL CP <80% [SID] | C110: 950 | D110: 0 | E110: 100 | F110: 1 | G110: 890 | H110: 13.47248 | K110: 800 | L110: 721.408 | M110: 10 | N110: 10 | O110: 2.8 | P110: 2.2 | Q110: 2.2 | R110: 8 | S110: 3.1 | T110: 2.8 | U110: 9.9 | W110: =Coefficients!B39*Coefficients!J39/100 -> 59.34 | X110: =Coefficients!C39*Coefficients!K39/100 -> 9.1 | Y110: =Coefficients!D39*Coefficients!L39/100 -> 19.92 | Z110: =Coefficients!E39*Coefficients!M39/100 -> 33.44 | AA110: =Coefficients!F39*Coefficients!N39/100 -> 8.5 | AB110: =Coefficients!G39*Coefficients!O39/100 -> 20.445 | AC110: =Coefficients!H39*Coefficients!P39/100 -> 45.76 | AD110: 14.0355776
A111: =A110+1 -> 40 | B111: BLOOD MEAL CP >80% [SID] | C111: 950 | D111: 0 | E111: 100 | F111: 1 | G111: 930 | H111: 14.30928 | K111: 889 | L111: 801.66464 | M111: 10 | N111: 6 | O111: 0.6 | P111: 0.9 | Q111: 0.9 | R111: 6 | S111: 3.3 | T111: 2.7 | U111: 2.8 | W111: =Coefficients!B40*Coefficients!J40/100 -> 76.11 | X111: =Coefficients!C40*Coefficients!K40/100 -> 6.825 | Y111: =Coefficients!D40*Coefficients!L40/100 -> 13.363 | Z111: =Coefficients!E40*Coefficients!M40/100 -> 34.32 | AA111: =Coefficients!F40*Coefficients!N40/100 -> 11.05 | AB111: =Coefficients!G40*Coefficients!O40/100 -> 33.06 | AC111: =Coefficients!H40*Coefficients!P40/100 -> 75.68 | AD111: 25.76546061
A112: 41 | B112: BREWERS GRAINS. DRIED [SID] | C112: 56 | D112: 0 | E112: 100 | F112: 1 | G112: 930 | H112: 9.39308 | K112: 279 | L112: 251.59104 | M112: 74 | N112: 117 | O112: 3 | P112: 6.6 | Q112: 2 | R112: 5 | S112: 2.6 | T112: 1.2 | U112: 21.1 | W112: =Coefficients!B41*Coefficients!J41/100 -> 5.58 | X112: =Coefficients!C41*Coefficients!K41/100 -> 4.62 | Y112: =Coefficients!D41*Coefficients!L41/100 -> 11.4 | Z112: =Coefficients!E41*Coefficients!M41/100 -> 6.3 | AA112: =Coefficients!F41*Coefficients!N41/100 -> 2.68 | AB112: =Coefficients!G41*Coefficients!O41/100 -> 8.19 | AC112: =Coefficients!H41*Coefficients!P41/100 -> 13.182 | AD112: -10.21991731
A113: 42 | B113: CASEIN [SID] | C113: 1000 | D113: 0 | E113: 100 | F113: 1 | G113: 900 | H113: 17.23808 | K113: 800 | L113: 721.408 | M113: 5 | N113: 2 | O113: 6 | P113: 10 | Q113: 10 | R113: 70 | S113: 0.1 | T113: 0 | U113: 2.09 | W113: =Coefficients!B42*Coefficients!J42/100 -> 67.9 | X113: =Coefficients!C42*Coefficients!K42/100 -> 26.73 | Y113: =Coefficients!D42*Coefficients!L42/100 -> 28.5 | Z113: =Coefficients!E42*Coefficients!M42/100 -> 37.24 | AA113: =Coefficients!F42*Coefficients!N42/100 -> 9.5 | AB113: =Coefficients!G42*Coefficients!O42/100 -> 32.98 | AC113: =Coefficients!H42*Coefficients!P42/100 -> 66.64 | AD113: 22.5955776
A114: 43 | B114: CORN [SID] | C114: 176 | D114: 0 | E114: 100 | F114: 1 | G114: 860 | H114: 14.112632 | K114: 75 | L114: 67.632 | M114: 35 | N114: 19 | O114: 0.1 | P114: 2.3 | Q114: 0.9 | R114: 8.5 | S114: 0.2 | T114: 0.4 | U114: 11 | W114: =Coefficients!B43*Coefficients!J43/100 -> 2.208 | X114: =Coefficients!C43*Coefficients!K43/100 -> 1.692 | Y114: =Coefficients!D43*Coefficients!L43/100 -> 3.24 | Z114: =Coefficients!E43*Coefficients!M43/100 -> 2.465 | AA114: =Coefficients!F43*Coefficients!N43/100 -> 0.567 | AB114: =Coefficients!G43*Coefficients!O43/100 -> 3.72 | AC114: =Coefficients!H43*Coefficients!P43/100 -> 3.864 | AD114: -2.0392896
A115: 44 | B115: Corn DDGS [SID] | C115: 227 | D115: 0 | E115: 100 | F115: 1 | G115: 920 | H115: 11.7152 | K115: 270 | L115: 243.4752 | M115: 90 | N115: 85 | O115: 1.4 | P115: 8.9 | Q115: 5.5 | R115: 48 | S115: 2 | T115: 1.7 | U115: 34 | W115: =Coefficients!B44*Coefficients!J44/100 -> 6 | X115: =Coefficients!C44*Coefficients!K44/100 -> 4.386 | Y115: =Coefficients!D44*Coefficients!L44/100 -> 9.266 | Z115: =Coefficients!E44*Coefficients!M44/100 -> 6.624 | AA115: =Coefficients!F44*Coefficients!N44/100 -> 1.6 | AB115: =Coefficients!G44*Coefficients!O44/100 -> 8.03 | AC115: =Coefficients!H44*Coefficients!P44/100 -> 10.773 | AD115: -9.29024256
A116: 45 | B116: CORN GLUTEN FEED [SID] | C116: 130 | D116: 0 | E116: 100 | F116: 1 | G116: 880 | H116: 7.322 | K116: 210 | L116: 189.3696 | M116: 20 | N116: 100 | O116: 2 | P116: 9 | Q116: 2.2 | R116: 12 | S116: 1.5 | T116: 2.2 | U116: 24.2 | W116: =Coefficients!B45*Coefficients!J45/100 -> 4.32 | X116: =Coefficients!C45*Coefficients!K45/100 -> 4.25 | Y116: =Coefficients!D45*Coefficients!L45/100 -> 8.25 | Z116: =Coefficients!E45*Coefficients!M45/100 -> 6.84 | AA116: =Coefficients!F45*Coefficients!N45/100 -> 0.86 | AB116: =Coefficients!G45*Coefficients!O45/100 -> 8.8 | AC116: =Coefficients!H45*Coefficients!P45/100 -> 8.736 | AD116: -7.57241088
A117: 46 | B117: CORN GLUTEN MEAL. CP 60% [SID] | C117: 630 | D117: 0 | E117: 100 | F117: 1 | G117: 900 | H117: 15.64816 | K117: 600 | L117: 541.056 | M117: 20 | N117: 25 | O117: 0.2 | P117: 5 | Q117: 1.8 | R117: 17 | S117: 0.3 | T117: 0.5 | U117: 22 | W117: =Coefficients!B46*Coefficients!J46/100 -> 7.6 | X117: =Coefficients!C46*Coefficients!K46/100 -> 16.72 | Y117: =Coefficients!D46*Coefficients!L46/100 -> 24.07 | Z117: =Coefficients!E46*Coefficients!M46/100 -> 15.8 | AA117: =Coefficients!F46*Coefficients!N46/100 -> 1.98 | AB117: =Coefficients!G46*Coefficients!O46/100 -> 16.34 | AC117: =Coefficients!H46*Coefficients!P46/100 -> 22.95 | AD117: -26.3783168
A118: 47 | B118: COTTONSEED MEAL | C118: 300 | D118: 0 | E118: 100 | F118: 1 | G118: 900 | H118: 8.40984 | K118: 410 | L118: 369.7216 | M118: 21 | N118: 113 | O118: 1.6 | P118: 10 | Q118: 3.2 | R118: 24 | S118: 0.4 | T118: 0.4 | U118: 27.06 | W118: =Coefficients!B47*Coefficients!J47/100 -> 11.05 | X118: =Coefficients!C47*Coefficients!K47/100 -> 3.672 | Y118: =Coefficients!D47*Coefficients!L47/100 -> 8.249 | Z118: =Coefficients!E47*Coefficients!M47/100 -> 9.112 | AA118: =Coefficients!F47*Coefficients!N47/100 -> 4.16 | AB118: =Coefficients!G47*Coefficients!O47/100 -> 41.008 | AC118: =Coefficients!H47*Coefficients!P47/100 -> 13.468 | AD118: -12.16851648
A119: 48 | B119: FEATHER MEAL [SID] | C119: 580 | D119: 0 | E119: 100 | F119: 1 | G119: 930 | H119: 12.04992 | K119: 850 | L119: 766.496 | M119: 40 | N119: 15 | O119: 2 | P119: 7 | Q119: 7 | R119: 60 | S119: 7 | T119: 2.8 | U119: 8.8 | W119: =Coefficients!B48*Coefficients!J48/100 -> 11.685 | X119: =Coefficients!C48*Coefficients!K48/100 -> 3.965 | Y119: =Coefficients!D48*Coefficients!L48/100 -> 23.715 | Z119: =Coefficients!E48*Coefficients!M48/100 -> 20.14 | AA119: =Coefficients!F48*Coefficients!N48/100 -> 2.3 | AB119: =Coefficients!G48*Coefficients!O48/100 -> 39.1 | AC119: =Coefficients!H48*Coefficients!P48/100 -> 38.525 | AD119: -36.4509488
A120: 49 | B120: FISH MEAL, Menhaden [SID] | C120: 1125 | D120: 0 | E120: 100 | F120: 1 | G120: 920 | H120: 12.3428 | K120: 620 | L120: 559.0912 | M120: 92 | N120: 10 | O120: 48 | P120: 30 | Q120: 30 | R120: 60 | S120: 6.8 | T120: 8 | U120: 30.8 | W120: =Coefficients!B49*Coefficients!J49/100 -> 40.42 | X120: =Coefficients!C49*Coefficients!K49/100 -> 14.62 | Y120: =Coefficients!D49*Coefficients!L49/100 -> 18.04 | Z120: =Coefficients!E49*Coefficients!M49/100 -> 22 | AA120: =Coefficients!F49*Coefficients!N49/100 -> 3.9 | AB120: =Coefficients!G49*Coefficients!O49/100 -> 29.93 | AC120: =Coefficients!H49*Coefficients!P49/100 -> 23.24 | AD120: 5.30907264
A121: 50 | B121: MEAT & BONE MEAL. CP<45% [SID] | C121: 400 | D121: 0 | E121: 100 | F121: 1 | G121: 920 | H121: 9.937 | K121: 450 | L121: 405.792 | M121: 85 | N121: 25 | O121: 110 | P121: 59 | Q121: 59 | R121: 40 | S121: 6 | T121: 7 | U121: 19.8 | W121: =Coefficients!B50*Coefficients!J50/100 -> 15.18 | X121: =Coefficients!C50*Coefficients!K50/100 -> 3.816 | Y121: =Coefficients!D50*Coefficients!L50/100 -> 4.898 | Z121: =Coefficients!E50*Coefficients!M50/100 -> 9.796 | AA121: =Coefficients!F50*Coefficients!N50/100 -> 0.954 | AB121: =Coefficients!G50*Coefficients!O50/100 -> 20.79 | AC121: =Coefficients!H50*Coefficients!P50/100 -> 16.8 | AD121: -10.3037376
A122: 51 | B122: MEAT & BONE MEAL. CP>50% [SID] | C122: 450 | D122: 0 | E122: 100 | F122: 1 | G122: 920 | H122: 10.58552 | K122: 500 | L122: 450.88 | M122: 85 | N122: 28 | O122: 92 | P122: 47 | Q122: 47 | R122: 10 | S122: 8 | T122: 7.5 | U122: 20 | W122: =Coefficients!B51*Coefficients!J51/100 -> 17.94 | X122: =Coefficients!C51*Coefficients!K51/100 -> 4.824 | Y122: =Coefficients!D51*Coefficients!L51/100 -> 6.2 | Z122: =Coefficients!E51*Coefficients!M51/100 -> 10.54 | AA122: =Coefficients!F51*Coefficients!N51/100 -> 1.378 | AB122: =Coefficients!G51*Coefficients!O51/100 -> 25.795 | AC122: =Coefficients!H51*Coefficients!P51/100 -> 15.75 | AD122: -10.375264
A123: 52 | B123: MEAT MEAL [SID] | C123: 400 | D123: 0 | E123: 100 | F123: 1 | G123: 920 | H123: 8.368 | K123: 544 | L123: 490.55744 | M123: 71 | N123: 87 | O123: 82.7 | P123: 41 | Q123: 41 | R123: -3.5 | S123: 11.5 | T123: 9.1 | U123: 20.77 | W123: =Coefficients!B52*Coefficients!J52/100 -> 25.2 | X123: =Coefficients!C52*Coefficients!K52/100 -> 6.375 | Y123: =Coefficients!D52*Coefficients!L52/100 -> 10.152 | Z123: =Coefficients!E52*Coefficients!M52/100 -> 13.92 | AA123: =Coefficients!F52*Coefficients!N52/100 -> 2.844 | AB123: =Coefficients!G52*Coefficients!O52/100 -> 31.45 | AC123: =Coefficients!H52*Coefficients!P52/100 -> 19.32 | AD123: -5.607007232
A124: 53 | B124: OATS [SID] | C124: 262 | D124: 0 | E124: 100 | F124: 1 | G124: 900 | H124: 10.6692 | K124: 105 | L124: 94.6848 | M124: 40 | N124: 105 | O124: 1 | P124: 3.5 | Q124: 1.4 | R124: 9 | S124: 0.7 | T124: 1.2 | U124: 10.7 | W124: =Coefficients!B53*Coefficients!J53/100 -> 3.48 | X124: =Coefficients!C53*Coefficients!K53/100 -> 1.74 | Y124: =Coefficients!D53*Coefficients!L53/100 -> 3.485 | Z124: =Coefficients!E53*Coefficients!M53/100 -> 2.352 | AA124: =Coefficients!F53*Coefficients!N53/100 -> 1.44 | AB124: =Coefficients!G53*Coefficients!O53/100 -> 7.52 | AC124: =Coefficients!H53*Coefficients!P53/100 -> 5.456 | AD124: -2.46620544
A125: 54 | B125: PEANUT MEAL [SID] | C125: 200 | D125: 0 | E125: 100 | F125: 1 | G125: 900 | H125: 11.200568 | K125: 470 | L125: 423.8272 | M125: 25 | N125: 84 | O125: 0.8 | P125: 5.7 | Q125: 1.8 | R125: 14 | S125: 0.7 | T125: 0.3 | U125: 19.48 | W125: =Coefficients!B54*Coefficients!J54/100 -> 11.552 | X125: =Coefficients!C54*Coefficients!K54/100 -> 4.3 | Y125: =Coefficients!D54*Coefficients!L54/100 -> 9.02 | Z125: =Coefficients!E54*Coefficients!M54/100 -> 9.52 | AA125: =Coefficients!F54*Coefficients!N54/100 -> 4.35 | AB125: =Coefficients!G54*Coefficients!O54/100 -> 43.316 | AC125: =Coefficients!H54*Coefficients!P54/100 -> 16.02 | AD125: -15.06434816
A126: 55 | B126: POULTRY BY-PRODUCT MEAL [SID] | C126: 400 | D126: 0 | E126: 100 | F126: 1 | G126: 930 | H126: 11.76065916 | K126: 550 | L126: 495.968 | M126: 85 | N126: 30 | O126: 85 | P126: 42.5 | Q126: 36 | R126: -65 | S126: 4.7 | T126: 5.4 | U126: 59.52 | W126: =Coefficients!B55*Coefficients!J55/100 -> 19.776 | X126: =Coefficients!C55*Coefficients!K55/100 -> 6.225 | Y126: =Coefficients!D55*Coefficients!L55/100 -> 0 | Z126: =Coefficients!E55*Coefficients!M55/100 -> 12.5356 | AA126: =Coefficients!F55*Coefficients!N55/100 -> 3.0576 | AB126: =Coefficients!G55*Coefficients!O55/100 -> 26.544 | AC126: =Coefficients!H55*Coefficients!P55/100 -> 18.3122 | AD126: -11.3707904
A127: 56 | B127: RAPESEED MEAL [SID] | C127: 222 | D127: 0 | E127: 100 | F127: 1 | G127: 920 | H127: 7.40568 | K127: 360 | L127: 324.6336 | M127: 26 | N127: 132 | O127: 6.6 | P127: 9.3 | Q127: 3 | R127: -3 | S127: 0.9 | T127: 0 | U127: 67 | W127: =Coefficients!B56*Coefficients!J56/100 -> 16.96 | X127: =Coefficients!C56*Coefficients!K56/100 -> 5.628 | Y127: =Coefficients!D56*Coefficients!L56/100 -> 9.68 | Z127: =Coefficients!E56*Coefficients!M56/100 -> 11.68 | AA127: =Coefficients!F56*Coefficients!N56/100 -> 3.68 | AB127: =Coefficients!G56*Coefficients!O56/100 -> 17.748 | AC127: =Coefficients!H56*Coefficients!P56/100 -> 14.299 | AD127: -3.42699008
A128: 57 | B128: RICE [SID] | C128: 300 | D128: 0 | E128: 100 | F128: 1 | G128: 890 | H128: 12.30096 | K128: 73 | L128: 65.82848 | M128: 17 | N128: 100 | O128: 0.4 | P128: 2.6 | Q128: 0.9 | R128: 7 | S128: 0.4 | T128: 0.6 | U128: 10.14 | W128: =Coefficients!B57*Coefficients!J57/100 -> 1.92 | X128: =Coefficients!C57*Coefficients!K57/100 -> 1.218 | Y128: =Coefficients!D57*Coefficients!L57/100 -> 1.892 | Z128: =Coefficients!E57*Coefficients!M57/100 -> 2.187 | AA128: =Coefficients!F57*Coefficients!N57/100 -> 1.032 | AB128: =Coefficients!G57*Coefficients!O57/100 -> 5.369 | AC128: =Coefficients!H57*Coefficients!P57/100 -> 3.91 | AD128: -2.214028544
A129: 58 | B129: RICE BRAN [SID] | C129: 125 | D129: 0 | E129: 100 | F129: 1 | G129: 910 | H129: 8.7864 | K129: 129 | L129: 116.32704 | M129: 130 | N129: 114 | O129: 0.7 | P129: 15 | Q129: 2.1 | R129: 17.5 | S129: 0.7 | T129: 0.7 | U129: 11.35 | W129: =Coefficients!B58*Coefficients!J58/100 -> 4.366 | X129: =Coefficients!C58*Coefficients!K58/100 -> 1.54 | Y129: =Coefficients!D58*Coefficients!L58/100 -> 2.16 | Z129: =Coefficients!E58*Coefficients!M58/100 -> 3.312 | AA129: =Coefficients!F58*Coefficients!N58/100 -> 1.185 | AB129: =Coefficients!G58*Coefficients!O58/100 -> 7.654 | AC129: =Coefficients!H58*Coefficients!P58/100 -> 5.625 | AD129: -2.939338112
A130: 59 | B130: SOYBEAN MEAL (44% CP) [SID] | C130: 435 | D130: 0 | E130: 100 | F130: 1 | G130: 900 | H130: 9.37216 | K130: 440 | L130: 396.7744 | M130: 5 | N130: 70 | O130: 2.5 | P130: 6 | Q130: 2 | R130: 7.5 | S130: 0.4 | T130: 0.2 | U130: 27.43 | W130: =Coefficients!B59*Coefficients!J59/100 -> 24.3 | X130: =Coefficients!C59*Coefficients!K59/100 -> 5.915 | Y130: =Coefficients!D59*Coefficients!L59/100 -> 11.352 | Z130: =Coefficients!E59*Coefficients!M59/100 -> 14.45 | AA130: =Coefficients!F59*Coefficients!N59/100 -> 5.34 | AB130: =Coefficients!G59*Coefficients!O59/100 -> 31.62 | AC130: =Coefficients!H59*Coefficients!P59/100 -> 21.12 | AD130: -0.61743232
A131: 60 | B131: SOYBEAN MEAL (48% CP) [SID] | C131: 445 | D131: 0 | E131: 100 | F131: 1 | G131: 880 | H131: 10.284272 | K131: 478 | L131: 431.04128 | M131: 10 | N131: 30 | O131: 3.1 | P131: 6.7 | Q131: 2.1 | R131: 5.5 | S131: 0.4 | T131: 0.2 | U131: 28.5 | W131: =Coefficients!B60*Coefficients!J60/100 -> 27.18 | X131: =Coefficients!C60*Coefficients!K60/100 -> 6.37 | Y131: =Coefficients!D60*Coefficients!L60/100 -> 12.126 | Z131: =Coefficients!E60*Coefficients!M60/100 -> 17 | AA131: =Coefficients!F60*Coefficients!N60/100 -> 6.23 | AB131: =Coefficients!G60*Coefficients!O60/100 -> 33.48 | AC131: =Coefficients!H60*Coefficients!P60/100 -> 23.76 | AD131: 0.110607616
A132: 61 | B132: SOYBEANS (Full Fat) [SID] | C132: 400 | D132: 0 | E132: 100 | F132: 1 | G132: 900 | H132: 14.0164 | K132: 380 | L132: 342.6688 | M132: 180 | N132: 50 | O132: 2.5 | P132: 5.9 | Q132: 2 | R132: 7.5 | S132: 0.4 | T132: 0.3 | U132: 24.2 | W132: =Coefficients!B61*Coefficients!J61/100 -> 20.88 | X132: =Coefficients!C61*Coefficients!K61/100 -> 5.632 | Y132: =Coefficients!D61*Coefficients!L61/100 -> 10.79 | Z132: =Coefficients!E61*Coefficients!M61/100 -> 15.416 | AA132: =Coefficients!F61*Coefficients!N61/100 -> 5.332 | AB132: =Coefficients!G61*Coefficients!O61/100 -> 25.2 | AC132: =Coefficients!H61*Coefficients!P61/100 -> 17.17 | AD132: -0.63960064
A133: 62 | B133: SUNFLOWER MEAL [SID] | C133: 210 | D133: 0 | E133: 100 | F133: 1 | G133: 930 | H133: 7.36384 | K133: 420 | L133: 378.7392 | M133: 23 | N133: 210 | O133: 4 | P133: 10 | Q133: 2.5 | R133: 5 | S133: 2 | T133: 0.1 | U133: 29 | W133: =Coefficients!B62*Coefficients!J62/100 -> 14.79 | X133: =Coefficients!C62*Coefficients!K62/100 -> 13.8 | Y133: =Coefficients!D62*Coefficients!L62/100 -> 19.14 | Z133: =Coefficients!E62*Coefficients!M62/100 -> 12.3 | AA133: =Coefficients!F62*Coefficients!N62/100 -> 4.35 | AB133: =Coefficients!G62*Coefficients!O62/100 -> 32.55 | AC133: =Coefficients!H62*Coefficients!P62/100 -> 20.01 | AD133: -8.99482176
A134: 63 | B134: TRITICALE [SID] | C134: 263 | D134: 0 | E134: 100 | F134: 1 | G134: 900 | H134: 13.1796 | K134: 125 | L134: 112.72 | M134: 15 | N134: 0 | O134: 0.5 | P134: 3 | Q134: 1 | R134: 7.5 | S134: 0 | T134: 0.7 | U134: 4.6 | W134: =Coefficients!B63*Coefficients!J63/100 -> 3.315 | X134: =Coefficients!C63*Coefficients!K63/100 -> 1.98 | Y134: =Coefficients!D63*Coefficients!L63/100 -> 4.576 | Z134: =Coefficients!E63*Coefficients!M63/100 -> 3.132 | AA134: =Coefficients!F63*Coefficients!N63/100 -> 1.204 | AB134: =Coefficients!G63*Coefficients!O63/100 -> 3.984 | AC134: =Coefficients!H63*Coefficients!P63/100 -> 4.437 | AD134: -3.763816
A135: 64 | B135: WHEAT [SID] | C135: 190 | D135: 0 | E135: 100 | F135: 1 | G135: 880 | H135: 13.26328 | K135: 135 | L135: 121.7376 | M135: 19 | N135: 30 | O135: 0.5 | P135: 4.1 | Q135: 1.2 | R135: 9.5 | S135: 0.6 | T135: 0.7 | U135: 7.78 | W135: =Coefficients!B64*Coefficients!J64/100 -> 3.44 | X135: =Coefficients!C64*Coefficients!K64/100 -> 2.275 | Y135: =Coefficients!D64*Coefficients!L64/100 -> 5.005 | Z135: =Coefficients!E64*Coefficients!M64/100 -> 3.045 | AA135: =Coefficients!F64*Coefficients!N64/100 -> 1.548 | AB135: =Coefficients!G64*Coefficients!O64/100 -> 5.1 | AC135: =Coefficients!H64*Coefficients!P64/100 -> 6.21 | AD135: -4.20512128
A136: 65 | B136: WHEAT BRAN [SID] | C136: 175 | D136: 0 | E136: 100 | F136: 1 | G136: 890 | H136: 5.4392 | K136: 148 | L136: 133.46048 | M136: 40 | N136: 100 | O136: 1.4 | P136: 11.7 | Q136: 3.8 | R136: 31 | S136: 0.6 | T136: 1.4 | U136: 9.8 | W136: =Coefficients!B65*Coefficients!J65/100 -> 4.38 | X136: =Coefficients!C65*Coefficients!K65/100 -> 1.6 | Y136: =Coefficients!D65*Coefficients!L65/100 -> 3.8 | Z136: =Coefficients!E65*Coefficients!M65/100 -> 3.552 | AA136: =Coefficients!F65*Coefficients!N65/100 -> 2.46 | AB136: =Coefficients!G65*Coefficients!O65/100 -> 8.774 | AC136: =Coefficients!H65*Coefficients!P65/100 -> 5.39 | AD136: -4.001318144
A137: 66 | B137: WHEAT MIDDLINGS [SID] | C137: 145 | D137: 0 | E137: 100 | F137: 1 | G137: 890 | H137: 8.74456 | K137: 150 | L137: 135.264 | M137: 36 | N137: 85 | O137: 1.5 | P137: 9.1 | Q137: 2.8 | R137: 20.5 | S137: 0.6 | T137: 0.7 | U137: 11 | W137: =Coefficients!B66*Coefficients!J66/100 -> 5.6 | X137: =Coefficients!C66*Coefficients!K66/100 -> 0.996 | Y137: =Coefficients!D66*Coefficients!L66/100 -> 2.418 | Z137: =Coefficients!E66*Coefficients!M66/100 -> 3.65 | AA137: =Coefficients!F66*Coefficients!N66/100 -> 1.58 | AB137: =Coefficients!G66*Coefficients!O66/100 -> 8 | AC137: =Coefficients!H66*Coefficients!P66/100 -> 6.16 | AD137: -2.8945792
G138: 0 | H138: 0
A139: =A137+1 -> 67 | G139: 0 | H139: 0 | K139: 0 | L139: 0 | M139: 0 | N139: 0 | O139: 0 | P139: 0 | Q139: 0 | R139: 0 | S139: 0 | T139: 0 | U139: 0
A140: =A139+1 -> 68 | B140: BIOLYS® | C140: 2500 | D140: 0 | E140: 100 | F140: 1 | G140: 950 | H140: 15.874096 | K140: 750 | L140: 676.32 | M140: 0 | N140: 0 | O140: 0 | P140: 0 | Q140: 0 | R140: 0 | S140: 0 | T140: 0 | U140: 0 | W140: 50.7 | X140: 0.1 | Y140: 0.2 | Z140: 0.3 | AA140: 0.1 | AB140: 0.6 | AC140: 0.4 | AD140: =W140-(1/AD$2*L140) -> 8.227104
A141: =A140+1 -> 69 | B141: DL-METHIONINE | C141: 4800 | D141: 0 | E141: 100 | F141: 1 | G141: 997 | H141: 21.00368 | K141: 581 | L141: 523.92256 | M141: 0 | N141: 0 | O141: 0 | P141: 0 | Q141: 0 | R141: 0 | S141: 0 | T141: 0 | U141: 0 | W141: 0 | X141: 99 | Y141: 99 | Z141: 0 | AA141: 0 | AB141: 0 | AC141: 0 | AD141: -32.90233677
A142: 70 | B142: METHIONINE MHA | C142: 3900 | D142: 0 | E142: 100 | F142: 1 | G142: 990 | H142: 16.794576 | K142: 493 | L142: 444.56768 | M142: 0 | N142: 0 | O142: 0 | P142: 0 | Q142: 0 | R142: 0 | S142: 0 | T142: 0 | U142: 0 | W142: 0 | X142: 86.24 | Y142: 86.24 | Z142: 0 | AA142: 0 | AB142: 0 | AC142: 0 | AD142: -27.9188503
A143: 71 | B143: L-LYSINE HCL | C143: 2700 | D143: 0 | E143: 100 | F143: 1 | G143: 985 | H143: 17.23808 | K143: 934 | L143: 842.24384 | M143: 0 | N143: 0 | O143: 0 | P143: 0 | Q143: 0 | R143: 0 | S143: 0 | T143: 0 | U143: 0 | W143: 78 | X143: 0 | Y143: 0 | Z143: 0 | AA143: 0 | AB143: 0 | AC143: 0 | AD143: 25.10708685
A144: 72 | B144: L-THREONINE | C144: 3700 | D144: 0 | E144: 100 | F144: 1 | G144: 995 | H144: 14.60216 | K144: 724 | L144: 652.87424 | M144: 0 | N144: 0 | O144: 0 | P144: 0 | Q144: 0 | R144: 0 | S144: 0 | T144: 0 | U144: 0 | W144: 0 | X144: 0 | Y144: 0 | Z144: 98.5 | AA144: 0 | AB144: 0 | AC144: 0 | AD144: -41.00050227
A145: 73 | B145: L-TRYPTOPHAN | C145: 16300 | D145: 0 | E145: 100 | F145: 1 | G145: 990 | H145: 23.89064 | K145: 840 | L145: 757.4784 | M145: 0 | N145: 0 | O145: 0 | P145: 0 | Q145: 0 | R145: 0 | S145: 0 | T145: 0 | U145: 0 | W145: 0 | X145: 0 | Y145: 0 | Z145: 0 | AA145: 98 | AB145: 0 | AC145: 0 | AD145: -47.56964352
A146: 74 | B146: L-VALINE | C146: 7000 | D146: 0 | E146: 100 | F146: 1 | G146: 997 | H146: 22.00784 | K146: 721.3 | L146: 650.439488 | M146: 0 | N146: 0 | O146: 0 | P146: 0 | Q146: 0 | R146: 0 | S146: 0 | T146: 0 | U146: 0 | W146: 0 | X146: 0 | Y146: 0 | Z146: 0 | AA146: 0 | AB146: 0 | AC146: 96.5 | AD146: -40.84759985
A147: 75 | B147: FAT, ANIMAL | C147: 540 | D147: 0 | E147: 100 | F147: 1 | G147: 990 | H147: 33.13728 | K147: 0 | L147: 0 | M147: 980 | N147: 0 | O147: 0 | P147: 0 | Q147: 0 | R147: 0 | S147: 0 | T147: 0 | U147: 0 | W147: 0 | X147: 0 | Y147: 0 | Z147: 0 | AA147: 0 | AB147: 0 | AC147: 0 | AD147: 0
A148: 76 | B148: FAT, YELLOW GREASE | C148: 520 | D148: 0 | E148: 100 | F148: 1 | G148: 990 | H148: 34.518 | K148: 0 | L148: 0 | M148: 980 | N148: 0 | O148: 0 | P148: 0 | Q148: 0 | R148: 0 | S148: 0 | T148: 0 | U148: 0 | W148: 0 | X148: 0 | Y148: 0 | Z148: 0 | AA148: 0 | AB148: 0 | AC148: 0 | AD148: 0
A149: 77 | B149: FAT, VEGETABLE | C149: 650 | D149: 0 | E149: 100 | F149: 1 | G149: 990 | H149: 36.8192 | K149: 0 | L149: 0 | M149: 990 | N149: 0 | O149: 0 | P149: 0 | Q149: 0 | R149: 0 | S149: 0 | T149: 0 | U149: 0 | W149: 0 | X149: 0 | Y149: 0 | Z149: 0 | AA149: 0 | AB149: 0 | AC149: 0 | AD149: 0
A150: 78 | B150: DICAL. PHOS. | C150: 960 | D150: 0 | E150: 100 | F150: 1 | G150: 1000 | H150: 0 | K150: 0 | L150: 0 | M150: 0 | N150: 0 | O150: 220 | P150: 185 | Q150: 185 | R150: 750 | S150: 0.6 | T150: 0.13 | U150: 0 | W150: 0 | X150: 0 | Y150: 0 | Z150: 0 | AA150: 0 | AB150: 0 | AC150: 0 | AD150: 0
A151: 79 | B151: LIMESTONE | C151: 160 | D151: 0 | E151: 100 | F151: 1 | G151: 1000 | H151: 0 | K151: 0 | L151: 0 | M151: 0 | N151: 0 | O151: 380 | P151: 0 | Q151: 0 | R151: -1900 | S151: 0.5 | T151: 0.3 | U151: 0 | W151: 0 | X151: 0 | Y151: 0 | Z151: 0 | AA151: 0 | AB151: 0 | AC151: 0 | AD151: 0
A152: 80 | B152: OYSTER SHELLS | C152: 261 | D152: 0 | E152: 100 | F152: 1 | G152: 1000 | H152: 0 | K152: 0 | L152: 0 | M152: 0 | N152: 0 | O152: 380 | P152: 1 | Q152: 1 | R152: -1890 | S152: 2 | T152: 0.1 | U152: 0 | W152: 0 | X152: 0 | Y152: 0 | Z152: 0 | AA152: 0 | AB152: 0 | AC152: 0 | AD152: 0
A153: 81 | B153: DEFLUOR. PHOS. | C153: 860 | D153: 0 | E153: 100 | F153: 1 | G153: 1000 | H153: 0 | K153: 0 | L153: 0 | M153: 0 | N153: 0 | O153: 330 | P153: 180 | Q153: 180 | R153: 150 | S153: 49 | T153: 0 | U153: 0 | W153: 0 | X153: 0 | Y153: 0 | Z153: 0 | AA153: 0 | AB153: 0 | AC153: 0 | AD153: 0
A154: 82 | B154: ROCK PHOSPHATE | C154: 700 | D154: 0 | E154: 100 | F154: 1 | G154: 1000 | H154: 0 | K154: 0 | L154: 0 | M154: 0 | N154: 0 | O154: 360 | P154: 140 | Q154: 140 | R154: -400 | S154: 3 | T154: 0 | U154: 0 | W154: 0 | X154: 0 | Y154: 0 | Z154: 0 | AA154: 0 | AB154: 0 | AC154: 0 | AD154: 0
A155: 83 | B155: SOFT ROCK PHOS. | C155: 700 | D155: 0 | E155: 100 | F155: 1 | G155: 1000 | H155: 0 | K155: 0 | L155: 0 | M155: 0 | N155: 0 | O155: 175 | P155: 95 | Q155: 95 | R155: 75 | S155: 1.5 | T155: 0.07 | U155: 0 | W155: 0 | X155: 0 | Y155: 0 | Z155: 0 | AA155: 0 | AB155: 0 | AC155: 0 | AD155: 0
A156: 84 | B156: COMMON SALT | C156: 50 | D156: 0 | E156: 100 | F156: 1 | G156: 1000 | H156: 0 | K156: 0 | L156: 0 | M156: 0 | N156: 0 | O156: 3 | P156: 0 | Q156: 0 | R156: -15 | S156: 390 | T156: 600 | U156: 0 | W156: 0 | X156: 0 | Y156: 0 | Z156: 0 | AA156: 0 | AB156: 0 | AC156: 0 | AD156: 0
A157: 85 | B157: VITAMIN PREMIX | C157: 3600 | D157: 0 | E157: 100 | F157: 1 | G157: 1000 | H157: 0 | K157: 0 | L157: 0 | M157: 0 | N157: 0 | O157: 0 | P157: 0 | Q157: 0 | R157: 0 | S157: 0 | T157: 0 | U157: 880 | W157: 0 | X157: 0 | Y157: 0 | Z157: 0 | AA157: 0 | AB157: 0 | AC157: 0 | AD157: 0
A158: 86 | B158: MINERAL PREMIX | C158: 1060 | D158: 0 | E158: 100 | F158: 1 | G158: 1000 | H158: 0 | K158: 0 | L158: 0 | M158: 0 | N158: 0 | O158: 0 | P158: 0 | Q158: 0 | R158: 0 | S158: 0 | T158: 0 | U158: 0 | W158: 0 | X158: 0 | Y158: 0 | Z158: 0 | AA158: 0 | AB158: 0 | AC158: 0 | AD158: 0
A159: 87 | B159: CHOLINE CL -70% | C159: 2240 | D159: 0 | E159: 100 | F159: 1 | G159: 1000 | H159: 0 | K159: 0 | L159: 0 | M159: 0 | N159: 0 | O159: 0 | P159: 0 | Q159: 0 | R159: 0 | S159: 0 | T159: 0 | U159: 6075 | W159: 0 | X159: 0 | Y159: 0 | Z159: 0 | AA159: 0 | AB159: 0 | AC159: 0 | AD159: 0
A160: 88 | B160: Cupric Sulfate Pentahydrate | C160: 1000 | D160: 0 | E160: 100 | F160: 1 | G160: 1000 | H160: 0 | K160: 0 | L160: 0 | M160: 0 | N160: 0 | O160: 0 | P160: 0 | Q160: 0 | R160: 0 | S160: 0 | T160: 0 | U160: 0 | W160: 0 | X160: 0 | Y160: 0 | Z160: 0 | AA160: 0 | AB160: 0 | AC160: 0 | AD160: 0
A161: 89 | B161: COCCIDIOSTAT | C161: 9700 | D161: 0 | E161: 100 | F161: 1 | G161: 1000 | H161: 0 | K161: 0 | L161: 0 | M161: 0 | N161: 0 | O161: 0 | P161: 0 | Q161: 0 | R161: 0 | S161: 0 | T161: 0 | U161: 0 | W161: 0 | X161: 0 | Y161: 0 | Z161: 0 | AA161: 0 | AB161: 0 | AC161: 0 | AD161: 0
A162: 90 | B162: ANTIBIOTIC | C162: 8220 | D162: 0 | E162: 100 | F162: 1 | G162: 1000 | H162: 0 | K162: 0 | L162: 0 | M162: 0 | N162: 0 | O162: 0 | P162: 0 | Q162: 0 | R162: 0 | S162: 0 | T162: 0 | U162: 0 | W162: 0 | X162: 0 | Y162: 0 | Z162: 0 | AA162: 0 | AB162: 0 | AC162: 0 | AD162: 0
A163: 91
B168: New Ingredients | Q168: =P168-(1/$P$2*N168) -> 
AD169: =W169-(1/#REF!*#REF!) -> 
AD170: =W170-(1/#REF!*#REF!) -> 
AD171: =W171-(1/#REF!*#REF!) -> 
AD172: =W172-(1/#REF!*#REF!) -> 
AD173: =W173-(1/#REF!*#REF!) -> 
AD174: =W174-(1/#REF!*#REF!) -> 
AD175: =W175-(1/#REF!*#REF!) -> 
AD176: =W176-(1/#REF!*#REF!) -> 
AD177: =W177-(1/#REF!*#REF!) -> 
AD178: =W178-(1/#REF!*#REF!) -> 
AD179: =W179-(1/#REF!*#REF!) -> 
AD180: =W180-(1/#REF!*#REF!) -> 
AD181: =W181-(1/#REF!*#REF!) -> 
AD182: =W182-(1/#REF!*#REF!) -> 
AD183: =W183-(1/#REF!*#REF!) -> 
AD184: =W184-(1/#REF!*#REF!) -> 
AD185: =W185-(1/#REF!*#REF!) -> 
AD186: =W186-(1/#REF!*#REF!) -> 
AD187: =W187-(1/#REF!*#REF!) -> 
AD188: =W188-(1/#REF!*#REF!) -> 
AD189: =W189-(1/#REF!*#REF!) -> 
AD190: =W190-(1/#REF!*#REF!) -> 
AD191: =W191-(1/#REF!*#REF!) -> 
AD192: =W192-(1/#REF!*#REF!) -> 
AD193: =W193-(1/#REF!*#REF!) -> 
AD194: =W194-(1/#REF!*#REF!) -> 
AD195: =W195-(1/#REF!*#REF!) -> 
AD196: =W196-(1/#REF!*#REF!) -> 
AD197: =W197-(1/#REF!*#REF!) -> 
AD198: =W198-(1/#REF!*#REF!) -> 
AD199: =W199-(1/#REF!*#REF!) -> 
AD200: =W200-(1/#REF!*#REF!) -> 
AD201: =W201-(1/#REF!*#REF!) -> 
AD202: =W202-(1/#REF!*#REF!) -> 
AD203: =W203-(1/#REF!*#REF!) -> 
AD204: =W204-(1/#REF!*#REF!) -> 
AD205: =W205-(1/#REF!*#REF!) -> 
AD206: =W206-(1/#REF!*#REF!) -> 
AD207: =W207-(1/#REF!*#REF!) -> 
AD208: =W208-(1/#REF!*#REF!) -> 
AD209: =W209-(1/#REF!*#REF!) -> 
AD210: =W210-(1/#REF!*#REF!) -> 
AD211: =W211-(1/#REF!*#REF!) -> 
AD212: =W212-(1/#REF!*#REF!) -> 
AD213: =W213-(1/#REF!*#REF!) -> 
AD214: =W214-(1/#REF!*#REF!) -> 
AD215: =W215-(1/#REF!*#REF!) -> 
AD216: =W216-(1/#REF!*#REF!) -> 
AD217: =W217-(1/#REF!*#REF!) -> 
... 90 more rows

Sheet Nutrients
B1: UffdAu 3.0 | AE1: =6.3/AF1 -> 0.3409090909 | AF1: =AE10*105/1000 -> 18.48 | AG1: =AG10*120 -> 18480
C2: Current Specification | G2: Stored Specidications
C4: Broiler Starter, 0 to 10 Days | G4: Broiler Starter, 0 to 10 Days | I4: Broiler Grower, 11 to 24 Days | K4: Broiler Grower, 25 Days to Mkt. | M4: Pullet Starter | O4: Pullet Grower | Q4: Pullet Pre-Lay | S4: Turkey Starter (Standard) | U4: Turkey Starter (HD) | W4: Turkey Grower (Standard) | Y4: Turkey Grower (HD) | AA4: Turkey Finisher (Standard) | AC4: Turkey Finisher (HD) | AE4: Layer Phase 1 (105g) | AG4: Layer Phase 1 (120g) | AI4: Layer Phase 3 (105g) | AK4: Layer Phase 3 (120g) | AM4: Broiler Breeder Starter | AO4: Broiler Breeder Grower | AQ4: Broiler Breeder Developer | AS4: Broiler Breeder Layer I | AU4: Broiler Breeder Layer II | AW4: Broiler Breeder Roosters
C5: Minimum | D5: Maximum | E5: Units | G5: Minimum | H5: Maximum | I5: Minimum | J5: Maximum | K5: Minimum | L5: Maximum | M5: Minimum | N5: Maximum | O5: Minimum | P5: Maximum | Q5: Minimum | R5: Maximum | S5: Minimum | T5: Maximum | U5: Minimum | V5: Maximum | W5: Minimum | X5: Maximum | Y5: Minimum | Z5: Maximum | AA5: Minimum | AB5: Maximum | AC5: Minimum | AD5: Maximum | AE5: Minimum | AF5: Maximum | AG5: Minimum | AH5: Maximum | AI5: Minimum | AJ5: Maximum | AK5: Minimum | AL5: Maximum | AM5: Minimum | AN5: Maximum | AO5: Minimum | AP5: Maximum | AQ5: Minimum | AR5: Maximum | AS5: Minimum | AT5: Maximum | AU5: Minimum | AV5: Maximum | AW5: Minimum | AX5: Maximum
B6: =Ingredients!G$1 -> Dry Matter | C6: 0 | D6: 1000 | E6: % | G6: 0 | H6: 1000 | I6: 0 | J6: 1000 | K6: 0 | L6: 1000 | M6: 0 | N6: 1000 | O6: 0 | P6: 1000 | Q6: 0 | R6: 1000 | S6: 0 | T6: 1000 | U6: 0 | V6: 1000 | W6: 0 | X6: 1000 | Y6: 0 | Z6: 1000 | AA6: 0 | AB6: 1000 | AC6: 0 | AD6: 1000 | AE6: 0 | AF6: 1000 | AG6: 0 | AH6: 1000 | AI6: 0 | AJ6: 1000 | AK6: 0 | AL6: 1000 | AM6: 0 | AN6: 1000 | AO6: 0 | AP6: 1000 | AQ6: 0 | AR6: 1000 | AS6: 0 | AT6: 1000 | AU6: 0 | AV6: 1000 | AW6: 0 | AX6: 1000
B7: =Ingredients!H$1 -> AMEn | C7: 12.4 | D7: 100 | E7: MJ/Kg | G7: 12.4 | H7: 100 | I7: 12.8 | J7: 100 | K7: 13 | L7: 100 | M7: 12 | N7: 100 | O7: 11.72 | P7: 100 | Q7: 11.62 | R7: 100 | S7: =4.184*(1403/454) -> 12.92985022 | T7: 100 | U7: =4.184*(1403/454) -> 12.92985022 | V7: 100 | W7: =4.184*(1.434/0.454) -> 13.21554185 | X7: 100 | Y7: 13.21554185 | Z7: 100 | AA7: =4.184*(1403/454) -> 12.92985022 | AB7: 100 | AC7: =4.184*(1542/454) -> 14.21085463 | AD7: 100 | AE7: 11.6 | AF7: 100 | AG7: 11.6 | AH7: 100 | AI7: 11.4 | AJ7: 100 | AK7: 11.4 | AL7: 100 | AM7: 11.92 | AN7: 100 | AO7: 11.3 | AP7: 100 | AQ7: 11.72 | AR7: 100 | AS7: 11.72 | AT7: 100 | AU7: 11.72 | AV7: 100 | AW7: 11.3 | AX7: 100
B8: =Ingredients!I$1 -> Metabolisable Energy | C8: 0 | D8: 100 | E8: MJ/Kg | G8: 0 | H8: 100 | I8: 0 | J8: 100 | K8: 0 | L8: 100 | M8: 0 | N8: 100 | O8: 0 | P8: 100 | Q8: 0 | R8: 100 | S8: 0 | T8: 100 | U8: 0 | V8: 100 | W8: 0 | X8: 100 | Y8: 0 | Z8: 100 | AA8: 0 | AB8: 100 | AC8: 0 | AD8: 100 | AE8: 0 | AF8: 100 | AG8: 0 | AH8: 100 | AI8: 0 | AJ8: 100 | AK8: 0 | AL8: 100 | AM8: 0 | AN8: 100 | AO8: 0 | AP8: 100 | AQ8: 0 | AR8: 100 | AS8: 0 | AT8: 100 | AU8: 0 | AV8: 100 | AW8: 0 | AX8: 100
B9: =Ingredients!J$1 -> Net Energy | C9: 0 | D9: 100 | E9: MJ/Kg | G9: 0 | H9: 100 | I9: 0 | J9: 100 | K9: 0 | L9: 100 | M9: 0 | N9: 100 | O9: 0 | P9: 100 | Q9: 0 | R9: 100 | S9: 0 | T9: 100 | U9: 0 | V9: 100 | W9: 0 | X9: 100 | Y9: 0 | Z9: 100 | AA9: 0 | AB9: 100 | AC9: 0 | AD9: 100 | AE9: 0 | AF9: 100 | AG9: 0 | AH9: 100 | AI9: 0 | AJ9: 100 | AK9: 0 | AL9: 100 | AM9: 0 | AN9: 100 | AO9: 0 | AP9: 100 | AQ9: 0 | AR9: 100 | AS9: 0 | AT9: 100 | AU9: 0 | AV9: 100 | AW9: 0 | AX9: 100
B10: =Ingredients!K$1 -> Crude Protein | C10: 230 | D10: 1000 | E10: g/Kg | G10: 230 | H10: 1000 | I10: 212.5 | J10: 1000 | K10: 195 | L10: 1000 | M10: 200 | N10: 1000 | O10: 175 | P10: 1000 | Q10: 165 | R10: 1000 | S10: 296.5 | T10: 1000 | U10: 323.4 | V10: 1000 | W10: 265.5 | X10: 1000 | Y10: 290.4 | Z10: 1000 | AA10: 201.3 | AB10: 1000 | AC10: 220 | AD10: 1000 | AE10: 176 | AF10: 1000 | AG10: 154 | AH10: 1000 | AI10: 162 | AJ10: 1000 | AK10: 142 | AL10: 1000 | AM10: 190 | AN10: 1000 | AO10: 145 | AP10: 1000 | AQ10: 150 | AR10: 1000 | AS10: 150 | AT10: 1000 | AU10: 145 | AV10: 1000 | AW10: 130 | AX10: 1000
B11: =Ingredients!L$1 -> True Protein | C11: 0 | D11: 1000 | E11: g/Kg | G11: =0.16*G10*5.61 -> 206.448 | H11: 1000 | I11: =0.16*I10*5.61 -> 190.74 | J11: 1000 | K11: =0.16*K10*5.61 -> 175.032 | L11: 1000 | M11: =0.16*M10*5.61 -> 179.52 | N11: 1000 | O11: =0.16*O10*5.61 -> 157.08 | P11: 1000 | Q11: =0.16*Q10*5.61 -> 148.104 | R11: 1000 | S11: =0.16*S10*5.61 -> 266.1384 | T11: 1000 | U11: =0.16*U10*5.61 -> 290.28384 | V11: 1000 | W11: =0.16*W10*5.61 -> 238.3128 | X11: 1000 | Y11: =0.16*Y10*5.61 -> 260.66304 | Z11: 1000 | AA11: =0.16*AA10*5.61 -> 180.68688 | AB11: 1000 | AC11: =0.16*AC10*5.61 -> 197.472 | AD11: 1000 | AE11: =0.16*AE10*5.61 -> 157.9776 | AF11: 1000 | AG11: =0.16*AG10*5.61 -> 138.2304 | AH11: 1000 | AI11: =0.16*AI10*5.61 -> 145.4112 | AJ11: 1000 | AK11: =0.16*AK10*5.61 -> 127.4592 | AL11: 1000 | AM11: =0.16*AM10*5.61 -> 170.544 | AN11: 1000 | AO11: =0.16*AO10*5.61 -> 130.152 | AP11: 1000 | AQ11: =0.16*AQ10*5.61 -> 134.64 | AR11: 1000 | AS11: =0.16*AS10*5.61 -> 134.64 | AT11: 1000 | AU11: =0.16*AU10*5.61 -> 130.152 | AV11: 1000 | AW11: =0.16*AW10*5.61 -> 116.688 | AX11: 1000
B12: =Ingredients!M$1 -> Lipids | C12: 0 | D12: 1000 | E12: g/Kg | G12: 0 | H12: 1000 | I12: 0 | J12: 1000 | K12: 0 | L12: 1000 | M12: 0 | N12: 1000 | O12: 0 | P12: 1000 | Q12: 0 | R12: 1000 | S12: 0 | T12: 1000 | U12: 0 | V12: 1000 | W12: 0 | X12: 1000 | Y12: 0 | Z12: 1000 | AA12: 0 | AB12: 1000 | AC12: 0 | AD12: 1000 | AE12: 0 | AF12: 1000 | AG12: 0 | AH12: 1000 | AI12: 0 | AJ12: 1000 | AK12: 0 | AL12: 1000 | AM12: 0 | AN12: 1000 | AO12: 0 | AP12: 1000 | AQ12: 0 | AR12: 1000 | AS12: 0 | AT12: 1000 | AU12: 0 | AV12: 1000 | AW12: 0 | AX12: 1000
B13: =Ingredients!N$1 -> Crude Fibre | C13: 0 | D13: 1000 | E13: g/Kg | G13: 0 | H13: 1000 | I13: 0 | J13: 1000 | K13: 0 | L13: 1000 | M13: 0 | N13: 1000 | O13: 0 | P13: 1000 | Q13: 0 | R13: 1000 | S13: 0 | T13: 1000 | U13: 0 | V13: 1000 | W13: 0 | X13: 1000 | Y13: 0 | Z13: 1000 | AA13: 0 | AB13: 1000 | AC13: 0 | AD13: 1000 | AE13: 0 | AF13: 1000 | AG13: 0 | AH13: 1000 | AI13: 0 | AJ13: 1000 | AK13: 0 | AL13: 1000 | AM13: 0 | AN13: 1000 | AO13: 0 | AP13: 1000 | AQ13: 0 | AR13: 1000 | AS13: 0 | AT13: 1000 | AU13: 0 | AV13: 1000 | AW13: 0 | AX13: 1000
B14: =Ingredients!O$1 -> Calcium | C14: 9.5 | D14: 1000 | E14: g/Kg | G14: 9.5 | H14: 1000 | I14: 7.5 | J14: 1000 | K14: 6.5 | L14: 1000 | M14: 10 | N14: 1000 | O14: 10 | P14: 1000 | Q14: 27 | R14: 1000 | S14: 14.9 | T14: 1000 | U14: 14.9 | V14: 1000 | W14: 12.4 | X14: 1000 | Y14: 12.4 | Z14: 1000 | AA14: 10 | AB14: 1000 | AC14: 10 | AD14: 1000 | AE14: 39 | AF14: 1000 | AG14: 34.2 | AH14: 1000 | AI14: 42.9 | AJ14: 1000 | AK14: 37.5 | AL14: 1000 | AM14: 9.5 | AN14: 1000 | AO14: 9.5 | AP14: 1000 | AQ14: 12 | AR14: 1000 | AS14: 30 | AT14: 1000 | AU14: 32 | AV14: 1000 | AW14: 9.5 | AX14: 1000
B15: =Ingredients!P$1 -> Total Phosphorous | C15: 0 | D15: 100 | E15: g/Kg | G15: 0 | H15: 100 | I15: 0 | J15: 100 | K15: 0 | L15: 100 | M15: 0 | N15: 100 | O15: 0 | P15: 100 | Q15: 0 | R15: 100 | S15: 0 | T15: 100 | U15: 0 | V15: 100 | W15: 0 | X15: 100 | Y15: 0 | Z15: 100 | AA15: 0 | AB15: 100 | AC15: 0 | AD15: 100 | AE15: 0 | AF15: 100 | AG15: 0 | AH15: 100 | AI15: 0 | AJ15: 100 | AK15: 0 | AL15: 100 | AM15: 0 | AN15: 100 | AO15: 0 | AP15: 100 | AQ15: 0 | AR15: 100 | AS15: 0 | AT15: 100 | AU15: 0 | AV15: 100 | AW15: 0 | AX15: 100
B16: =Ingredients!Q$1 -> Available Phosphorous | C16: 5 | D16: 100 | E16: g/Kg | G16: 5 | H16: 100 | I16: 4.2 | J16: 100 | K16: 3.6 | L16: 100 | M16: 4.5 | N16: 100 | O16: 4.3 | P16: 100 | Q16: 4.8 | R16: 100 | S16: 7.6 | T16: 100 | U16: 7.6 | V16: 100 | W16: 6.2 | X16: 100 | Y16: 6.2 | Z16: 100 | AA16: 5 | AB16: 100 | AC16: 5 | AD16: 100 | AE16: 4 | AF16: 100 | AG16: 3.5 | AH16: 100 | AI16: 3.6 | AJ16: 100 | AK16: 3.2 | AL16: 100 | AM16: 4.5 | AN16: 100 | AO16: 4.2 | AP16: 100 | AQ16: 4.2 | AR16: 100 | AS16: 4.2 | AT16: 100 | AU16: 3.8 | AV16: 100 | AW16: 4.2 | AX16: 100
B17: =Ingredients!R$1 -> Ca:aP | C17: -100 | D17: 100 | E17: g/Kg | G17: -100 | H17: 100 | I17: -100 | J17: 100 | K17: -100 | L17: 100 | M17: -100 | N17: 100 | O17: -100 | P17: 100 | Q17: -100 | R17: 100 | S17: -100 | T17: 100 | U17: -100 | V17: 100 | W17: -100 | X17: 100 | Y17: -100 | Z17: 100 | AA17: -100 | AB17: 100 | AC17: -100 | AD17: 100 | AE17: -100 | AF17: 100 | AG17: -100 | AH17: 100 | AI17: -100 | AJ17: 100 | AK17: -100 | AL17: 100 | AM17: -100 | AN17: 100 | AO17: -100 | AP17: 100 | AQ17: -100 | AR17: 100 | AS17: -100 | AT17: 100 | AU17: -100 | AV17: 100 | AW17: -100 | AX17: 100
B18: =Ingredients!S$1 -> Na | C18: 1.8 | D18: 100 | E18: mg/g | G18: 1.8 | H18: 100 | I18: 1.8 | J18: 100 | K18: 1.8 | L18: 100 | M18: 1.8 | N18: 100 | O18: 1.7 | P18: 100 | Q18: 1.8 | R18: 100 | S18: 1.7 | T18: 100 | U18: 1.7 | V18: 100 | W18: 1.6 | X18: 100 | Y18: 1.6 | Z18: 100 | AA18: 1.5 | AB18: 100 | AC18: 1.5 | AD18: 100 | AE18: 1.7 | AF18: 100 | AG18: 1.5 | AH18: 100 | AI18: 1.7 | AJ18: 100 | AK18: 1.5 | AL18: 100 | AM18: 1.5 | AN18: 100 | AO18: 1.5 | AP18: 100 | AQ18: 1.5 | AR18: 100 | AS18: 1.5 | AT18: 100 | AU18: 1.5 | AV18: 100 | AW18: 1.5 | AX18: 100
B19: =Ingredients!T$1 -> Cl | C19: 1.8 | D19: 100 | E19: mg/Kg | G19: 1.8 | H19: 100 | I19: 1.8 | J19: 100 | K19: 1.8 | L19: 100 | M19: 1.8 | N19: 100 | O19: 1.7 | P19: 100 | Q19: 1.8 | R19: 100 | S19: 2 | T19: 100 | U19: 2 | V19: 100 | W19: 1.9 | X19: 100 | Y19: 1.9 | Z19: 100 | AA19: 1.9 | AB19: 100 | AC19: 1.9 | AD19: 100 | AE19: 1.7 | AF19: 100 | AG19: 1.5 | AH19: 100 | AI19: 1.7 | AJ19: 100 | AK19: 1.5 | AL19: 100 | AM19: 1.5 | AN19: 100 | AO19: 1.5 | AP19: 100 | AQ19: 1.5 | AR19: 100 | AS19: 1.5 | AT19: 100 | AU19: 1.5 | AV19: 100 | AW19: 1.5 | AX19: 100
B20: =Ingredients!U$1 -> Choline | C20: 1700 | D20: 10000 | E20: mg/Kg | F20: Amino acids as % of the diet | G20: 1700 | H20: 10000 | I20: 1600 | J20: 10000 | K20: 1500 | L20: 10000 | M20: 1300 | N20: 10000 | O20: 1300 | P20: 10000 | Q20: 1300 | R20: 10000 | S20: 1600 | T20: 10000 | U20: 1600 | V20: 10000 | W20: 600 | X20: 10000 | Y20: 600 | Z20: 10000 | AA20: 300 | AB20: 10000 | AC20: 300 | AD20: 10000 | AE20: 400 | AF20: 10000 | AG20: 400 | AH20: 10000 | AI20: 400 | AJ20: 10000 | AK20: 400 | AL20: 10000 | AM20: 500 | AN20: 10000 | AO20: 500 | AP20: 10000 | AQ20: 500 | AR20: 10000 | AS20: 500 | AT20: 10000 | AU20: 500 | AV20: 10000 | AW20: 500 | AX20: 10000
B21: =Ingredients!V$1 -> Betaine | C21: 0 | D21: 10000 | E21: mg/Kg | G21: 0 | H21: 10000 | I21: 0 | J21: 10000 | K21: 0 | L21: 10000 | M21: 0 | N21: 10000 | O21: 0 | P21: 10000 | Q21: 0 | R21: 10000 | S21: 0 | T21: 10000 | U21: 0 | V21: 10000 | W21: 0 | X21: 10000 | Y21: 0 | Z21: 10000 | AA21: 0 | AB21: 10000 | AC21: 0 | AD21: 10000 | AE21: 0 | AF21: 10000 | AG21: 0 | AH21: 10000 | AI21: 0 | AJ21: 10000 | AK21: 0 | AL21: 10000 | AM21: 0 | AN21: 10000 | AO21: 0 | AP21: 10000 | AQ21: 0 | AR21: 10000 | AS21: 0 | AT21: 10000 | AU21: 0 | AV21: 10000 | AW21: 0 | AX21: 10000
B22: =Ingredients!W$1 -> dLYS | C22: 0 | D22: 1000 | E22: g/Kg | G22: 13.2 | H22: 1000 | I22: 11.8 | J22: 1000 | K22: 11.8 | L22: 1000 | M22: 10.1 | N22: 1000 | O22: 8.2 | P22: 1000 | Q22: 7.2 | R22: 1000 | S22: 17.5 | T22: 1000 | U22: 19.3 | V22: 1000 | W22: 15.2 | X22: 1000 | Y22: 16.7 | Z22: 1000 | AA22: 11 | AB22: 1000 | AC22: 12.1 | AD22: 1000 | AE22: 7.8 | AF22: 1000 | AG22: 6.8 | AH22: 1000 | AI22: 7.3 | AJ22: 1000 | AK22: 6.4 | AL22: 1000 | AM22: 9.3 | AN22: 1000 | AO22: 6 | AP22: 1000 | AQ22: 6.3 | AR22: 1000 | AS22: 6.3 | AT22: 1000 | AU22: 6 | AV22: 1000 | AW22: 5 | AX22: 1000
B23: =Ingredients!X$1 -> dMET | C23: 5.5 | D23: 1000 | E23: g/Kg | G23: 5.5 | H23: 1000 | I23: 5.1 | J23: 1000 | K23: 5.1 | L23: 1000 | M23: 4.5 | N23: 1000 | O23: 3.9 | P23: 1000 | Q23: 3.5 | R23: 1000 | S23: 7.9 | T23: 1000 | U23: 8.8 | V23: 1000 | W23: 7.1 | X23: 1000 | Y23: 7.8 | Z23: 1000 | AA23: 5.3 | AB23: 1000 | AC23: 5.9 | AD23: 1000 | AE23: 3.9 | AF23: 1000 | AG23: 3.4 | AH23: 1000 | AI23: 3.7 | AJ23: 1000 | AK23: 3.2 | AL23: 1000 | AM23: 4.2 | AN23: 1000 | AO23: 3.1 | AP23: 1000 | AQ23: 3.3 | AR23: 1000 | AS23: 3.3 | AT23: 1000 | AU23: 3.1 | AV23: 1000 | AW23: 2.8 | AX23: 1000
B24: =Ingredients!Y$1 -> dTSAA | C24: 10 | D24: 1000 | E24: g/Kg | G24: 10 | H24: 1000 | I24: 9.2 | J24: 1000 | K24: 9.2 | L24: 1000 | M24: 7.7 | N24: 1000 | O24: 6.6 | P24: 1000 | Q24: 6.2 | R24: 1000 | S24: 11.4 | T24: 1000 | U24: 12.5 | V24: 1000 | W24: 10.2 | X24: 1000 | Y24: 11.2 | Z24: 1000 | AA24: 7.6 | AB24: 1000 | AC24: 8.5 | AD24: 1000 | AE24: 7 | AF24: 1000 | AG24: 6.1 | AH24: 1000 | AI24: 6.6 | AJ24: 1000 | AK24: 5.8 | AL24: 1000 | AM24: 7 | AN24: 1000 | AO24: 5.1 | AP24: 1000 | AQ24: 5.4 | AR24: 1000 | AS24: 5.4 | AT24: 1000 | AU24: 5.2 | AV24: 1000 | AW24: 4.8 | AX24: 1000
B25: =Ingredients!Z$1 -> dTHR | C25: 8.8 | D25: 1000 | E25: g/Kg | G25: 8.8 | H25: 1000 | I25: 7.4 | J25: 1000 | K25: 7.4 | L25: 1000 | M25: 6.5 | N25: 1000 | O25: 5.5 | P25: 1000 | Q25: 5 | R25: 1000 | S25: 12.1 | T25: 1000 | U25: 13.2 | V25: 1000 | W25: 10.9 | X25: 1000 | Y25: 12 | Z25: 1000 | AA25: 8.3 | AB25: 1000 | AC25: 9.1 | AD25: 1000 | AE25: 5.5 | AF25: 1000 | AG25: 4.8 | AH25: 1000 | AI25: 5.1 | AJ25: 1000 | AK25: 4.5 | AL25: 1000 | AM25: 6.5 | AN25: 1000 | AO25: 4.5 | AP25: 1000 | AQ25: 4.7 | AR25: 1000 | AS25: 4.7 | AT25: 1000 | AU25: 4.5 | AV25: 1000 | AW25: 4.4 | AX25: 1000
B26: =Ingredients!AA$1 -> dTRP | C26: 2.1 | D26: 1000 | E26: g/Kg | G26: 2.1 | H26: 1000 | I26: 1.9 | J26: 1000 | K26: 1.9 | L26: 1000 | M26: 1.8 | N26: 1000 | O26: 1.7 | P26: 1000 | Q26: 1.6 | R26: 1000 | S26: 2.6 | T26: 1000 | U26: 2.6 | V26: 1000 | W26: 2.2 | X26: 1000 | Y26: 2.2 | Z26: 1000 | AA26: 1.8 | AB26: 1000 | AC26: 1.8 | AD26: 1000 | AE26: 1.7 | AF26: 1000 | AG26: 1.5 | AH26: 1000 | AI26: 1.6 | AJ26: 1000 | AK26: 1.4 | AL26: 1000 | AM26: 2 | AN26: 1000 | AO26: 1.3 | AP26: 1000 | AQ26: 1.4 | AR26: 1000 | AS26: 1.4 | AT26: 1000 | AU26: 1.3 | AV26: 1000 | AW26: 1.2 | AX26: 1000
B27: =Ingredients!AB$1 -> dARG | C27: 14 | D27: 1000 | E27: g/Kg | G27: 14 | H27: 1000 | I27: 12.7 | J27: 1000 | K27: 12.7 | L27: 1000 | M27: 10.5 | N27: 1000 | O27: 8.5 | P27: 1000 | Q27: 7.5 | R27: 1000 | S27: 11.86 | T27: 1000 | U27: 11.86 | V27: 1000 | W27: 13.5 | X27: 1000 | Y27: 13.5 | Z27: 1000 | AA27: 9.5 | AB27: 1000 | AC27: 9.5 | AD27: 1000 | AE27: 8.1 | AF27: 1000 | AG27: 7.1 | AH27: 1000 | AI27: 7.6 | AJ27: 1000 | AK27: 6.7 | AL27: 1000 | AM27: 9.8 | AN27: 1000 | AO27: 6.6 | AP27: 1000 | AQ27: 6.9 | AR27: 1000 | AS27: 6.9 | AT27: 1000 | AU27: 6.6 | AV27: 1000 | AW27: 5.5 | AX27: 1000
B28: =Ingredients!AC$1 -> dVAL | C28: 10 | D28: 1000 | E28: g/Kg | G28: 10 | H28: 1000 | I28: 9.1 | J28: 1000 | K28: 9.1 | L28: 1000 | M28: 7.3 | N28: 1000 | O28: 6.4 | P28: 1000 | Q28: 6.1 | R28: 1000 | S28: 12.2 | T28: 1000 | U28: 12.2 | V28: 1000 | W28: 9.2 | X28: 1000 | Y28: 9.2 | Z28: 1000 | AA28: 6.7 | AB28: 1000 | AC28: 6.7 | AD28: 1000 | AE28: 6.8 | AF28: 1000 | AG28: 6 | AH28: 1000 | AI28: 6.4 | AJ28: 1000 | AK28: 5.6 | AL28: 1000 | AM28: 6.7 | AN28: 1000 | AO28: 4.5 | AP28: 1000 | AQ28: 4.7 | AR28: 1000 | AS28: 4.7 | AT28: 1000 | AU28: 4.5 | AV28: 1000 | AW28: 3.8 | AX28: 1000
B29: =Ingredients!AD$1 -> TP:dLYS | C29: 0 | D29: 100 | E29: g/g | G29: -100 | H29: 100 | I29: -100 | J29: 100 | K29: -100 | L29: 100 | M29: -100 | N29: 100 | O29: -100 | P29: 100 | Q29: -100 | R29: 100 | S29: -100 | T29: 100 | U29: -100 | V29: 100 | W29: -100 | X29: 100 | Y29: -100 | Z29: 100 | AA29: -100 | AB29: 100 | AC29: -100 | AD29: 100 | AE29: -100 | AF29: 100 | AG29: -100 | AH29: 100 | AI29: -100 | AJ29: 100 | AK29: -100 | AL29: 100 | AM29: -100 | AN29: 100 | AO29: -100 | AP29: 100 | AQ29: -100 | AR29: 100 | AS29: -100 | AT29: 100 | AU29: -100 | AV29: 100 | AW29: -100 | AX29: 100
B30: =Ingredients!AE$1 -> Total NSP | C30: 0 | D30: 1000 | E30: g/Kg | G30: 0 | H30: 1000 | I30: 0 | J30: 1000 | K30: 0 | L30: 1000 | M30: 0 | N30: 1000 | O30: 0 | P30: 1000 | Q30: 0 | R30: 1000 | S30: 0 | T30: 1000 | U30: 0 | V30: 1000 | W30: 0 | X30: 1000 | Y30: 0 | Z30: 1000 | AA30: 0 | AB30: 1000 | AC30: 0 | AD30: 1000 | AE30: 0 | AF30: 1000 | AG30: 0 | AH30: 1000 | AI30: 0 | AJ30: 1000 | AK30: 0 | AL30: 1000 | AM30: 0 | AN30: 1000 | AO30: 0 | AP30: 1000 | AQ30: 0 | AR30: 1000 | AS30: 0 | AT30: 1000 | AU30: 0 | AV30: 1000 | AW30: 0 | AX30: 1000
B31: =Ingredients!AF$1 -> Soluble NSP | C31: 0 | D31: 1000 | E31: g/Kg | G31: 0 | H31: 1000 | I31: 0 | J31: 1000 | K31: 0 | L31: 1000 | M31: 0 | N31: 1000 | O31: 0 | P31: 1000 | Q31: 0 | R31: 1000 | S31: 0 | T31: 1000 | U31: 0 | V31: 1000 | W31: 0 | X31: 1000 | Y31: 0 | Z31: 1000 | AA31: 0 | AB31: 1000 | AC31: 0 | AD31: 1000 | AE31: 0 | AF31: 1000 | AG31: 0 | AH31: 1000 | AI31: 0 | AJ31: 1000 | AK31: 0 | AL31: 1000 | AM31: 0 | AN31: 1000 | AO31: 0 | AP31: 1000 | AQ31: 0 | AR31: 1000 | AS31: 0 | AT31: 1000 | AU31: 0 | AV31: 1000 | AW31: 0 | AX31: 1000
B32: =Ingredients!AG$1 -> Insoluble NSP | C32: 0 | D32: 1000 | E32: g/Kg | G32: 0 | H32: 1000 | I32: 0 | J32: 1000 | K32: 0 | L32: 1000 | M32: 0 | N32: 1000 | O32: 0 | P32: 1000 | Q32: 0 | R32: 1000 | S32: 0 | T32: 1000 | U32: 0 | V32: 1000 | W32: 0 | X32: 1000 | Y32: 0 | Z32: 1000 | AA32: 0 | AB32: 1000 | AC32: 0 | AD32: 1000 | AE32: 0 | AF32: 1000 | AG32: 0 | AH32: 1000 | AI32: 0 | AJ32: 1000 | AK32: 0 | AL32: 1000 | AM32: 0 | AN32: 1000 | AO32: 0 | AP32: 1000 | AQ32: 0 | AR32: 1000 | AS32: 0 | AT32: 1000 | AU32: 0 | AV32: 1000 | AW32: 0 | AX32: 1000
B33: =Ingredients!AH$1 -> Lignin | C33: 0 | D33: 1000 | E33: g/Kg | G33: 0 | H33: 1000 | I33: 0 | J33: 1000 | K33: 0 | L33: 1000 | M33: 0 | N33: 1000 | O33: 0 | P33: 1000 | Q33: 0 | R33: 1000 | S33: 0 | T33: 1000 | U33: 0 | V33: 1000 | W33: 0 | X33: 1000 | Y33: 0 | Z33: 1000 | AA33: 0 | AB33: 1000 | AC33: 0 | AD33: 1000 | AE33: 0 | AF33: 1000 | AG33: 0 | AH33: 1000 | AI33: 0 | AJ33: 1000 | AK33: 0 | AL33: 1000 | AM33: 0 | AN33: 1000 | AO33: 0 | AP33: 1000 | AQ33: 0 | AR33: 1000 | AS33: 0 | AT33: 1000 | AU33: 0 | AV33: 1000 | AW33: 0 | AX33: 1000
B34: =Ingredients!AI$1 -> 18:2 | C34: 12.5 | D34: 1000 | E34: g/Kg | G34: 12.5 | H34: 1000 | I34: 12 | J34: 1000 | K34: 12 | L34: 1000 | M34: 12 | N34: 1000 | O34: 12 | P34: 1000 | Q34: 12 | R34: 1000 | S34: 12.5 | T34: 1000 | U34: 12.5 | V34: 1000 | W34: 10 | X34: 1000 | Y34: 10 | Z34: 1000 | AA34: 9 | AB34: 1000 | AC34: 9 | AD34: 1000 | AE34: 19 | AF34: 1000 | AG34: 19 | AH34: 1000 | AI34: 12.4 | AJ34: 1000 | AK34: 10.8 | AL34: 1000 | AM34: 10 | AN34: 1000 | AO34: 10 | AP34: 1000 | AQ34: 10 | AR34: 1000 | AS34: 12.5 | AT34: 1000 | AU34: 12.5 | AV34: 1000 | AW34: 10 | AX34: 1000
B35: =Ingredients!AJ$1 -> Nutrient | C35: 0 | D35: 100 | G35: 0 | H35: 100 | I35: 0 | J35: 100 | K35: 0 | L35: 100 | M35: 0 | N35: 100 | O35: 0 | P35: 100 | Q35: 0 | R35: 100 | S35: 0 | T35: 100 | U35: 0 | V35: 100 | W35: 0 | X35: 100 | Y35: 0 | Z35: 100 | AA35: 0 | AB35: 100 | AC35: 0 | AD35: 100 | AE35: 0 | AF35: 100 | AG35: 0 | AH35: 100 | AI35: 0 | AJ35: 100 | AK35: 0 | AL35: 100 | AM35: 0 | AN35: 100 | AO35: 0 | AP35: 100 | AQ35: 0 | AR35: 100 | AS35: 0 | AT35: 100 | AU35: 0 | AV35: 100 | AW35: 0 | AX35: 100
B36: =Ingredients!AK$1 -> Nutrient | C36: 0 | D36: 100 | G36: 0 | H36: 100 | I36: 0 | J36: 100 | K36: 0 | L36: 100 | M36: 0 | N36: 100 | O36: 0 | P36: 100 | Q36: 0 | R36: 100 | S36: 0 | T36: 100 | U36: 0 | V36: 100 | W36: 0 | X36: 100 | Y36: 0 | Z36: 100 | AA36: 0 | AB36: 100 | AC36: 0 | AD36: 100 | AE36: 0 | AF36: 100 | AG36: 0 | AH36: 100 | AI36: 0 | AJ36: 100 | AK36: 0 | AL36: 100 | AM36: 0 | AN36: 100 | AO36: 0 | AP36: 100 | AQ36: 0 | AR36: 100 | AS36: 0 | AT36: 100 | AU36: 0 | AV36: 100 | AW36: 0 | AX36: 100
B37: =Ingredients!AL$1 -> Nutrient | C37: 0 | D37: 100 | G37: 0 | H37: 100 | I37: 0 | J37: 100 | K37: 0 | L37: 100 | M37: 0 | N37: 100 | O37: 0 | P37: 100 | Q37: 0 | R37: 100 | S37: 0 | T37: 100 | U37: 0 | V37: 100 | W37: 0 | X37: 100 | Y37: 0 | Z37: 100 | AA37: 0 | AB37: 100 | AC37: 0 | AD37: 100 | AE37: 0 | AF37: 100 | AG37: 0 | AH37: 100 | AI37: 0 | AJ37: 100 | AK37: 0 | AL37: 100 | AM37: 0 | AN37: 100 | AO37: 0 | AP37: 100 | AQ37: 0 | AR37: 100 | AS37: 0 | AT37: 100 | AU37: 0 | AV37: 100 | AW37: 0 | AX37: 100
B38: =Ingredients!AM$1 -> Nutrient | C38: 0 | D38: 100 | G38: 0 | H38: 100 | I38: 0 | J38: 100 | K38: 0 | L38: 100 | M38: 0 | N38: 100 | O38: 0 | P38: 100 | Q38: 0 | R38: 100 | S38: 0 | T38: 100 | U38: 0 | V38: 100 | W38: 0 | X38: 100 | Y38: 0 | Z38: 100 | AA38: 0 | AB38: 100 | AC38: 0 | AD38: 100 | AE38: 0 | AF38: 100 | AG38: 0 | AH38: 100 | AI38: 0 | AJ38: 100 | AK38: 0 | AL38: 100 | AM38: 0 | AN38: 100 | AO38: 0 | AP38: 100 | AQ38: 0 | AR38: 100 | AS38: 0 | AT38: 100 | AU38: 0 | AV38: 100 | AW38: 0 | AX38: 100
B39: =Ingredients!AN$1 -> Nutrient | C39: 0 | D39: 100 | G39: 0 | H39: 100 | I39: 0 | J39: 100 | K39: 0 | L39: 100 | M39: 0 | N39: 100 | O39: 0 | P39: 100 | Q39: 0 | R39: 100 | S39: 0 | T39: 100 | U39: 0 | V39: 100 | W39: 0 | X39: 100 | Y39: 0 | Z39: 100 | AA39: 0 | AB39: 100 | AC39: 0 | AD39: 100 | AE39: 0 | AF39: 100 | AG39: 0 | AH39: 100 | AI39: 0 | AJ39: 100 | AK39: 0 | AL39: 100 | AM39: 0 | AN39: 100 | AO39: 0 | AP39: 100 | AQ39: 0 | AR39: 100 | AS39: 0 | AT39: 100 | AU39: 0 | AV39: 100 | AW39: 0 | AX39: 100
G42: Broiler Starter, 0 to 10 Days | I42: Broiler Grower, 11 to 24 Days | K42: Broiler Grower, 25 Days to Mkt. | M42: Pullet Starter | O42: Pullet Grower | Q42: Pullet Pre-Lay | S42: Turkey Starter (Standard) | U42: Turkey Starter (HD) | W42: Turkey Grower (Standard) | Y42: Turkey Grower (Standard) | AA42: Turkey Finisher (Standard) | AC42: Turkey Finisher (Standard) | AE42: Layer Phase 1 (105g) | AG42: Layer Phase 1 (120g) | AI42: Layer Phase 3 (105g) | AK42: Layer Phase 3 (120g) | AM42: Broiler Breeder Starter | AO42: Broiler Breeder Grower | AQ42: Broiler Breeder Developer | AS42: Broiler Breeder Layer I | AU42: Broiler Breeder Layer II | AW42: Broiler Breeder Roosters
G43: Minimum | H43: Maximum | I43: Minimum | J43: Maximum | K43: Minimum | L43: Maximum | M43: Minimum | N43: Maximum | O43: Minimum | P43: Maximum | Q43: Minimum | R43: Maximum | S43: Minimum | T43: Maximum | U43: Minimum | V43: Maximum | W43: Minimum | X43: Maximum | Y43: Minimum | Z43: Maximum | AA43: Minimum | AB43: Maximum | AC43: Minimum | AD43: Maximum | AE43: Minimum | AF43: Maximum | AG43: Minimum | AH43: Maximum | AI43: Minimum | AJ43: Maximum | AK43: Minimum | AL43: Maximum | AM43: Minimum | AN43: Maximum | AO43: Minimum | AP43: Maximum | AQ43: Minimum | AR43: Maximum | AS43: Minimum | AT43: Maximum | AU43: Minimum | AV43: Maximum | AW43: Minimum | AX43: Maximum
D44: =B6 -> Dry Matter | E44: =E6 -> % | G44: =G6 -> 0 | H44: =H6 -> 1000 | I44: 0 | J44: 1000 | K44: 0 | L44: 1000 | M44: 0 | N44: 1000 | O44: 0 | P44: 1000 | Q44: 0 | R44: 1000 | S44: 0 | T44: 1000 | U44: 0 | V44: 1000 | W44: 0 | X44: 1000 | Y44: 0 | Z44: 1000 | AA44: 0 | AB44: 1000 | AC44: 0 | AD44: 1000 | AE44: 0 | AF44: 1000 | AG44: 0 | AH44: 1000 | AI44: 0 | AJ44: 1000 | AK44: 0 | AL44: 1000 | AM44: 0 | AN44: 1000 | AO44: 0 | AP44: 1000 | AQ44: 0 | AR44: 1000 | AS44: 0 | AT44: 1000 | AU44: 0 | AV44: 1000 | AW44: 0 | AX44: 1000
D45: =B7 -> AMEn | E45: =E7 -> MJ/Kg | G45: 12.4 | H45: =H7 -> 100 | I45: 12.8 | J45: 100 | K45: 13 | L45: 100 | M45: 12 | N45: 100 | O45: 11.72 | P45: 100 | Q45: 11.62 | R45: 100 | S45: 12.92985022 | T45: 100 | U45: 12.92985022 | V45: 100 | W45: 13.21554185 | X45: 100 | Y45: 13.21554185 | Z45: 100 | AA45: 12.92985022 | AB45: 100 | AC45: 14.21085463 | AD45: 100 | AE45: 11.6 | AF45: 100 | AG45: 11.6 | AH45: 100 | AI45: 11.4 | AJ45: 100 | AK45: 11.4 | AL45: 100 | AM45: 11.92 | AN45: 100 | AO45: 11.3 | AP45: 100 | AQ45: 11.72 | AR45: 100 | AS45: 11.72 | AT45: 100 | AU45: 11.72 | AV45: 100 | AW45: 11.3 | AX45: 100
D46: Metabolisable Energy | E46: MJ/Kg | G46: 0 | H46: =H8 -> 100 | I46: 0 | J46: 100 | K46: 0 | L46: 100 | M46: 0 | N46: 100 | O46: 0 | P46: 100 | Q46: 0 | R46: 100 | S46: 0 | T46: 100 | U46: 0 | V46: 100 | W46: 0 | X46: 100 | Y46: 0 | Z46: 100 | AA46: 0 | AB46: 100 | AC46: 0 | AD46: 100 | AE46: 0 | AF46: 100 | AG46: 0 | AH46: 100 | AI46: 0 | AJ46: 100 | AK46: 0 | AL46: 100 | AM46: 0 | AN46: 100 | AO46: 0 | AP46: 100 | AQ46: 0 | AR46: 100 | AS46: 0 | AT46: 100 | AU46: 0 | AV46: 100 | AW46: 0 | AX46: 100
D47: Net Energy | E47: MJ/Kg | G47: 0 | H47: =H9 -> 100 | I47: 0 | J47: 100 | K47: 0 | L47: 100 | M47: 0 | N47: 100 | O47: 0 | P47: 100 | Q47: 0 | R47: 100 | S47: 0 | T47: 100 | U47: 0 | V47: 100 | W47: 0 | X47: 100 | Y47: 0 | Z47: 100 | AA47: 0 | AB47: 100 | AC47: 0 | AD47: 100 | AE47: 0 | AF47: 100 | AG47: 0 | AH47: 100 | AI47: 0 | AJ47: 100 | AK47: 0 | AL47: 100 | AM47: 0 | AN47: 100 | AO47: 0 | AP47: 100 | AQ47: 0 | AR47: 100 | AS47: 0 | AT47: 100 | AU47: 0 | AV47: 100 | AW47: 0 | AX47: 100
D48: Crude Protein | E48: g/Kg | G48: 230 | H48: =H10 -> 1000 | I48: 212.5 | J48: 1000 | K48: 195 | L48: 1000 | M48: 200 | N48: 1000 | O48: 175 | P48: 1000 | Q48: 165 | R48: 1000 | S48: 296.5 | T48: 1000 | U48: 323.4 | V48: 1000 | W48: 265.5 | X48: 1000 | Y48: 290.4 | Z48: 1000 | AA48: 201.3 | AB48: 1000 | AC48: 220 | AD48: 1000 | AE48: 176 | AF48: 1000 | AG48: 154 | AH48: 1000 | AI48: 162 | AJ48: 1000 | AK48: 142 | AL48: 1000 | AM48: 190 | AN48: 1000 | AO48: 145 | AP48: 1000 | AQ48: 150 | AR48: 1000 | AS48: 150 | AT48: 1000 | AU48: 145 | AV48: 1000 | AW48: 130 | AX48: 1000
D49: True Protein | E49: g/Kg | G49: 206.448 | H49: =H11 -> 1000 | I49: 190.74 | J49: 1000 | K49: 175.032 | L49: 1000 | M49: 179.52 | N49: 1000 | O49: 157.08 | P49: 1000 | Q49: 148.104 | R49: 1000 | S49: 266.1384 | T49: 1000 | U49: 290.28384 | V49: 1000 | W49: 238.3128 | X49: 1000 | Y49: 260.66304 | Z49: 1000 | AA49: 180.68688 | AB49: 1000 | AC49: 197.472 | AD49: 1000 | AE49: 157.9776 | AF49: 1000 | AG49: 138.2304 | AH49: 1000 | AI49: 145.4112 | AJ49: 1000 | AK49: 127.4592 | AL49: 1000 | AM49: 170.544 | AN49: 1000 | AO49: 130.152 | AP49: 1000 | AQ49: 134.64 | AR49: 1000 | AS49: 134.64 | AT49: 1000 | AU49: 130.152 | AV49: 1000 | AW49: 116.688 | AX49: 1000
D50: Lipids | E50: g/Kg | G50: 0 | H50: =H12 -> 1000 | I50: 0 | J50: 1000 | K50: 0 | L50: 1000 | M50: 0 | N50: 1000 | O50: 0 | P50: 1000 | Q50: 0 | R50: 1000 | S50: 0 | T50: 1000 | U50: 0 | V50: 1000 | W50: 0 | X50: 1000 | Y50: 0 | Z50: 1000 | AA50: 0 | AB50: 1000 | AC50: 0 | AD50: 1000 | AE50: 0 | AF50: 1000 | AG50: 0 | AH50: 1000 | AI50: 0 | AJ50: 1000 | AK50: 0 | AL50: 1000 | AM50: 0 | AN50: 1000 | AO50: 0 | AP50: 1000 | AQ50: 0 | AR50: 1000 | AS50: 0 | AT50: 1000 | AU50: 0 | AV50: 1000 | AW50: 0 | AX50: 1000
D51: Crude Fibre | E51: g/Kg | G51: 0 | H51: =H13 -> 1000 | I51: 0 | J51: 1000 | K51: 0 | L51: 1000 | M51: 0 | N51: 1000 | O51: 0 | P51: 1000 | Q51: 0 | R51: 1000 | S51: 0 | T51: 1000 | U51: 0 | V51: 1000 | W51: 0 | X51: 1000 | Y51: 0 | Z51: 1000 | AA51: 0 | AB51: 1000 | AC51: 0 | AD51: 1000 | AE51: 0 | AF51: 1000 | AG51: 0 | AH51: 1000 | AI51: 0 | AJ51: 1000 | AK51: 0 | AL51: 1000 | AM51: 0 | AN51: 1000 | AO51: 0 | AP51: 1000 | AQ51: 0 | AR51: 1000 | AS51: 0 | AT51: 1000 | AU51: 0 | AV51: 1000 | AW51: 0 | AX51: 1000
D52: Calcium | E52: g/Kg | G52: 9.5 | H52: =H14 -> 1000 | I52: 7.5 | J52: 1000 | K52: 6.5 | L52: 1000 | M52: 10 | N52: 1000 | O52: 10 | P52: 1000 | Q52: 27 | R52: 1000 | S52: 14.9 | T52: 1000 | U52: 14.9 | V52: 1000 | W52: 12.4 | X52: 1000 | Y52: 12.4 | Z52: 1000 | AA52: 10 | AB52: 1000 | AC52: 10 | AD52: 1000 | AE52: 39 | AF52: 1000 | AG52: 34.2 | AH52: 1000 | AI52: 42.9 | AJ52: 1000 | AK52: 37.5 | AL52: 1000 | AM52: 9.5 | AN52: 1000 | AO52: 9.5 | AP52: 1000 | AQ52: 12 | AR52: 1000 | AS52: 30 | AT52: 1000 | AU52: 32 | AV52: 1000 | AW52: 9.5 | AX52: 1000
D53: Total Phosphorous | E53: g/Kg | G53: 0 | H53: =H15 -> 100 | I53: 0 | J53: 100 | K53: 0 | L53: 100 | M53: 0 | N53: 100 | O53: 0 | P53: 100 | Q53: 0 | R53: 100 | S53: 0 | T53: 100 | U53: 0 | V53: 100 | W53: 0 | X53: 100 | Y53: 0 | Z53: 100 | AA53: 0 | AB53: 100 | AC53: 0 | AD53: 100 | AE53: 0 | AF53: 100 | AG53: 0 | AH53: 100 | AI53: 0 | AJ53: 100 | AK53: 0 | AL53: 100 | AM53: 0 | AN53: 100 | AO53: 0 | AP53: 100 | AQ53: 0 | AR53: 100 | AS53: 0 | AT53: 100 | AU53: 0 | AV53: 100 | AW53: 0 | AX53: 100
D54: Available Phosphorous | E54: g/Kg | G54: 5 | H54: =H16 -> 100 | I54: 4.2 | J54: 100 | K54: 3.6 | L54: 100 | M54: 4.5 | N54: 100 | O54: 4.3 | P54: 100 | Q54: 4.8 | R54: 100 | S54: 7.6 | T54: 100 | U54: 7.6 | V54: 100 | W54: 6.2 | X54: 100 | Y54: 6.2 | Z54: 100 | AA54: 5 | AB54: 100 | AC54: 5 | AD54: 100 | AE54: 4 | AF54: 100 | AG54: 3.5 | AH54: 100 | AI54: 3.6 | AJ54: 100 | AK54: 3.2 | AL54: 100 | AM54: 4.5 | AN54: 100 | AO54: 4.2 | AP54: 100 | AQ54: 4.2 | AR54: 100 | AS54: 4.2 | AT54: 100 | AU54: 3.8 | AV54: 100 | AW54: 4.2 | AX54: 100
D55: Ca:aP | E55: g/Kg | G55: -100 | H55: =H17 -> 100 | I55: -100 | J55: 100 | K55: -100 | L55: 100 | M55: -100 | N55: 100 | O55: -100 | P55: 100 | Q55: -100 | R55: 100 | S55: -100 | T55: 100 | U55: -100 | V55: 100 | W55: -100 | X55: 100 | Y55: -100 | Z55: 100 | AA55: -100 | AB55: 100 | AC55: -100 | AD55: 100 | AE55: -100 | AF55: 100 | AG55: -100 | AH55: 100 | AI55: -100 | AJ55: 100 | AK55: -100 | AL55: 100 | AM55: -100 | AN55: 100 | AO55: -100 | AP55: 100 | AQ55: -100 | AR55: 100 | AS55: -100 | AT55: 100 | AU55: -100 | AV55: 100 | AW55: -100 | AX55: 100
D56: Na | E56: mg/g | G56: 1.8 | H56: =H18 -> 100 | I56: 1.8 | J56: 100 | K56: 1.8 | L56: 100 | M56: 1.8 | N56: 100 | O56: 1.7 | P56: 100 | Q56: 1.8 | R56: 100 | S56: 1.7 | T56: 100 | U56: 1.7 | V56: 100 | W56: 1.6 | X56: 100 | Y56: 1.6 | Z56: 100 | AA56: 1.5 | AB56: 100 | AC56: 1.5 | AD56: 100 | AE56: 1.7 | AF56: 100 | AG56: 1.5 | AH56: 100 | AI56: 1.7 | AJ56: 100 | AK56: 1.5 | AL56: 100 | AM56: 1.5 | AN56: 100 | AO56: 1.5 | AP56: 100 | AQ56: 1.5 | AR56: 100 | AS56: 1.5 | AT56: 100 | AU56: 1.5 | AV56: 100 | AW56: 1.5 | AX56: 100
D57: Cl | E57: mg/Kg | G57: 1.8 | H57: =H19 -> 100 | I57: 1.8 | J57: 100 | K57: 1.8 | L57: 100 | M57: 1.8 | N57: 100 | O57: 1.7 | P57: 100 | Q57: 1.8 | R57: 100 | S57: 2 | T57: 100 | U57: 2 | V57: 100 | W57: 1.9 | X57: 100 | Y57: 1.9 | Z57: 100 | AA57: 1.9 | AB57: 100 | AC57: 1.9 | AD57: 100 | AE57: 1.7 | AF57: 100 | AG57: 1.5 | AH57: 100 | AI57: 1.7 | AJ57: 100 | AK57: 1.5 | AL57: 100 | AM57: 1.5 | AN57: 100 | AO57: 1.5 | AP57: 100 | AQ57: 1.5 | AR57: 100 | AS57: 1.5 | AT57: 100 | AU57: 1.5 | AV57: 100 | AW57: 1.5 | AX57: 100
D58: Choline | E58: mg/Kg | F58: Amino acids referenced to dLys | G58: 1700 | H58: =H20 -> 10000 | I58: 1600 | J58: 10000 | K58: 1500 | L58: 10000 | M58: 1300 | N58: 10000 | O58: 1300 | P58: 10000 | Q58: 1300 | R58: 10000 | S58: 1600 | T58: 10000 | U58: 1600 | V58: 10000 | W58: 600 | X58: 10000 | Y58: 600 | Z58: 10000 | AA58: 300 | AB58: 10000 | AC58: 300 | AD58: 10000 | AE58: 400 | AF58: 10000 | AG58: 400 | AH58: 10000 | AI58: 400 | AJ58: 10000 | AK58: 400 | AL58: 10000 | AM58: 500 | AN58: 10000 | AO58: 500 | AP58: 10000 | AQ58: 500 | AR58: 10000 | AS58: 500 | AT58: 10000 | AU58: 500 | AV58: 10000 | AW58: 500 | AX58: 10000
D59: Betaine | E59: mg/Kg | G59: 0 | H59: =H21 -> 10000 | I59: 0 | J59: 10000 | K59: 0 | L59: 10000 | M59: 0 | N59: 10000 | O59: 0 | P59: 10000 | Q59: 0 | R59: 10000 | S59: 0 | T59: 10000 | U59: 0 | V59: 10000 | W59: 0 | X59: 10000 | Y59: 0 | Z59: 10000 | AA59: 0 | AB59: 10000 | AC59: 0 | AD59: 10000 | AE59: 0 | AF59: 10000 | AG59: 0 | AH59: 10000 | AI59: 0 | AJ59: 10000 | AK59: 0 | AL59: 10000 | AM59: 0 | AN59: 10000 | AO59: 0 | AP59: 10000 | AQ59: 0 | AR59: 10000 | AS59: 0 | AT59: 10000 | AU59: 0 | AV59: 10000 | AW59: 0 | AX59: 10000
D60: dLYS | E60: g/Kg | G60: 13.2 | H60: =H22 -> 1000 | I60: 11.8 | J60: 1000 | K60: 11.8 | L60: 1000 | M60: 10.1 | N60: 1000 | O60: 8.2 | P60: 1000 | Q60: 7.2 | R60: 1000 | S60: 17.5 | T60: 1000 | U60: 19.3 | V60: 1000 | W60: 15.2 | X60: 1000 | Y60: 16.7 | Z60: 1000 | AA60: 11 | AB60: 1000 | AC60: 12.1 | AD60: 1000 | AE60: 7.8 | AF60: 1000 | AG60: 6.8 | AH60: 1000 | AI60: 7.3 | AJ60: 1000 | AK60: 6.4 | AL60: 1000 | AM60: 9.3 | AN60: 1000 | AO60: 6 | AP60: 1000 | AQ60: 6.3 | AR60: 1000 | AS60: 6.3 | AT60: 1000 | AU60: 6 | AV60: 1000 | AW60: 5 | AX60: 1000
D61: dMET | E61: g/Kg | G61: =G60*0.416666666666667 -> 5.5 | H61: 100 | I61: =I60*0.432203389830508 -> 5.1 | J61: 100 | K61: =K60*0.432203389830508 -> 5.1 | L61: 100 | M61: =M60*0.445544554455446 -> 4.5 | N61: 100 | O61: =O60*0.475609756097561 -> 3.9 | P61: 100 | Q61: =Q60*0.486111111111111 -> 3.5 | R61: 100 | S61: =S60*0.451428571428571 -> 7.9 | T61: 100 | U61: =U60*0.455958549222798 -> 8.8 | V61: 100 | W61: =W60*0.464566929133858 -> 7.061417323 | X61: 100 | Y61: =Y60*0.421428571428571 -> 7.037857143 | Z61: 100 | AA61: =AA60*0.504854368932039 -> 5.553398058 | AB61: 100 | AC61: =AC60*0.743362831858407 -> 8.994690265 | AD61: 100 | AE61: =AE60*0.5 -> 3.9 | AF61: 100 | AG61: =AG60*0.5 -> 3.4 | AH61: 100 | AI61: =AI60*0.506849315068493 -> 3.7 | AJ61: 100 | AK61: =AK60*0.5 -> 3.2 | AL61: 100 | AM61: =AM60*0.451612903225806 -> 4.2 | AN61: 100 | AO61: =AO60*0.516666666666667 -> 3.1 | AP61: 100 | AQ61: =AQ60*0.523809523809524 -> 3.3 | AR61: 100 | AS61: =AS60*0.523809523809524 -> 3.3 | AT61: 100 | AU61: =AU60*0.516666666666667 -> 3.1 | AV61: 100 | AW61: =AW60*0.56 -> 2.8 | AX61: 100
D62: dTSAA | E62: g/Kg | G62: =G60*0.757575757575758 -> 10 | H62: 100 | I62: =I60*0.779661016949152 -> 9.2 | J62: 100 | K62: =K60*0.779661016949152 -> 9.2 | L62: 100 | M62: =M60*0.762376237623762 -> 7.7 | N62: 100 | O62: =O60*0.804878048780488 -> 6.6 | P62: 100 | Q62: =Q60*0.861111111111111 -> 6.2 | R62: 100 | S62: =S60*0.651428571428571 -> 11.4 | T62: 100 | U62: =U60*0.647668393782383 -> 12.5 | V62: 100 | W62: =W60*0.677165354330709 -> 10.29291339 | X62: 100 | Y62: =Y60*0.614285714285714 -> 10.25857143 | Z62: 100 | AA62: =AA60*0.737864077669903 -> 8.116504854 | AB62: 100 | AC62: =AC60*0.752212389380531 -> 9.101769912 | AD62: 100 | AE62: =AE60*0.897435897435897 -> 7 | AF62: 100 | AG62: =AG60*0.897058823529412 -> 6.1 | AH62: 100 | AI62: =AI60*0.904109589041096 -> 6.6 | AJ62: 100 | AK62: =AK60*0.90625 -> 5.8 | AL62: 100 | AM62: =AM60*0.752688172043011 -> 7 | AN62: 100 | AO62: =AO60*0.85 -> 5.1 | AP62: 100 | AQ62: =AQ60*0.857142857142857 -> 5.4 | AR62: 100 | AS62: =AS60*0.857142857142857 -> 5.4 | AT62: 100 | AU62: =AU60*0.866666666666667 -> 5.2 | AV62: 100 | AW62: =AW60*0.96 -> 4.8 | AX62: 100
D63: dTHR | E63: g/Kg | G63: =G60*0.666666666666667 -> 8.8 | H63: 100 | I63: =I60*0.627118644067797 -> 7.4 | J63: 100 | K63: =K60*0.627118644067797 -> 7.4 | L63: 100 | M63: =M60*0.643564356435644 -> 6.5 | N63: 100 | O63: =O60*0.670731707317073 -> 5.5 | P63: 100 | Q63: =Q60*0.694444444444444 -> 5 | R63: 100 | S63: =S60*0.691428571428571 -> 12.1 | T63: 100 | U63: =U60*0.683937823834197 -> 13.2 | V63: 100 | W63: =W60*0.732283464566929 -> 11.13070866 | X63: 100 | Y63: =Y60*0.728571428571429 -> 12.16714286 | Z63: 100 | AA63: =AA60*0.757281553398058 -> 8.330097087 | AB63: 100 | AC63: =AC60*0.690265486725664 -> 8.352212389 | AD63: 100 | AE63: =AE60*0.705128205128205 -> 5.5 | AF63: 100 | AG63: =AG60*0.705882352941177 -> 4.8 | AH63: 100 | AI63: =AI60*0.698630136986301 -> 5.1 | AJ63: 100 | AK63: =AK60*0.703125 -> 4.5 | AL63: 100 | AM63: =AM60*0.698924731182796 -> 6.5 | AN63: 100 | AO63: =AO60*0.75 -> 4.5 | AP63: 100 | AQ63: =AQ60*0.746031746031746 -> 4.7 | AR63: 100 | AS63: =AS60*0.746031746031746 -> 4.7 | AT63: 100 | AU63: =AU60*0.75 -> 4.5 | AV63: 100 | AW63: =AW60*0.88 -> 4.4 | AX63: 100
D64: dTRP | E64: g/Kg | G64: =G60*0.159090909090909 -> 2.1 | H64: 100 | I64: =I60*0.161016949152542 -> 1.9 | J64: 100 | K64: =K60*0.161016949152542 -> 1.9 | L64: 100 | M64: =M60*0.178217821782178 -> 1.8 | N64: 100 | O64: =O60*0.207317073170732 -> 1.7 | P64: 100 | Q64: =Q60*0.222222222222222 -> 1.6 | R64: 100 | S64: =S60*0.148571428571429 -> 2.6 | T64: 100 | U64: =U60*0.134715025906736 -> 2.6 | V64: 100 | W64: =W60*0.173228346456693 -> 2.633070866 | X64: 100 | Y64: =Y60*0.157142857142857 -> 2.624285714 | Z64: 100 | AA64: =AA60*0.174757281553398 -> 1.922330097 | AB64: 100 | AC64: =AC60*0.15929203539823 -> 1.927433628 | AD64: 100 | AE64: =AE60*0.217948717948718 -> 1.7 | AF64: 100 | AG64: =AG60*0.220588235294118 -> 1.5 | AH64: 100 | AI64: =AI60*0.219178082191781 -> 1.6 | AJ64: 100 | AK64: =AK60*0.21875 -> 1.4 | AL64: 100 | AM64: =AM60*0.21505376344086 -> 2 | AN64: 100 | AO64: 0.2166666667 | AP64: 100 | AQ64: =AQ60*0.222222222222222 -> 1.4 | AR64: 100 | AS64: =AS60*0.222222222222222 -> 1.4 | AT64: 100 | AU64: =AU60*1.88333333333333 -> 11.3 | AV64: 100 | AW64: =AW60*0.24 -> 1.2 | AX64: 100
D65: dARG | E65: g/Kg | G65: =G60*1.06060606060606 -> 14 | H65: 100 | I65: =I60*1.07627118644068 -> 12.7 | J65: 100 | K65: =K60*1.07627118644068 -> 12.7 | L65: 100 | M65: =M60*1.03960396039604 -> 10.5 | N65: 100 | O65: =O60*1.03658536585366 -> 8.5 | P65: 100 | Q65: =Q60*1.04166666666667 -> 7.5 | R65: 100 | S65: =S60*0.677714285714286 -> 11.86 | T65: 100 | U65: =U60*0.614507772020725 -> 11.86 | V65: 100 | W65: =W60*1.06299212598425 -> 16.15748031 | X65: 100 | Y65: =Y60*0.964285714285714 -> 16.10357143 | Z65: 100 | AA65: =AA60*0.922330097087379 -> 10.14563107 | AB65: 100 | AC65: =AC60*0.84070796460177 -> 10.17256637 | AD65: 100 | AE65: =AE60*1.03846153846154 -> 8.1 | AF65: 100 | AG65: =AG60*1.04411764705882 -> 7.1 | AH65: 100 | AI65: =AI60*1.04109589041096 -> 7.6 | AJ65: 100 | AK65: =AK60*1.046875 -> 6.7 | AL65: 100 | AM65: =AM60*1.05376344086022 -> 9.8 | AN65: 100 | AO65: =AO60*1.1 -> 6.6 | AP65: 100 | AQ65: =AQ60*1.0952380952381 -> 6.9 | AR65: 100 | AS65: =AS60*1.0952380952381 -> 6.9 | AT65: 100 | AU65: =AU60*1.1 -> 6.6 | AV65: 100 | AW65: =AW60*1.1 -> 5.5 | AX65: 100
D66: dVAL | E66: g/Kg | G66: =G60*0.757575757575758 -> 10 | H66: 100 | I66: =I60*0.771186440677966 -> 9.1 | J66: 100 | K66: =K60*0.771186440677966 -> 9.1 | L66: 100 | M66: =M60*0.722772277227723 -> 7.3 | N66: 100 | O66: 0.7804878049 | P66: 100 | Q66: =Q60*0.847222222222222 -> 6.1 | R66: 100 | S66: =S60*0.697142857142857 -> 12.2 | T66: 100 | U66: =U60*0.632124352331606 -> 12.2 | V66: 100 | W66: =W60*0.724409448818898 -> 11.01102362 | X66: 100 | Y66: =Y60*0.657142857142857 -> 10.97428571 | Z66: 100 | AA66: =AA60*0.650485436893204 -> 7.155339806 | AB66: 100 | AC66: =AC60*0.592920353982301 -> 7.174336283 | AD66: 100 | AE66: =AE60*0.871794871794872 -> 6.8 | AF66: 100 | AG66: =AG60*0.882352941176471 -> 6 | AH66: 100 | AI66: =AI60*0.876712328767123 -> 6.4 | AJ66: 100 | AK66: =AK60*0.875 -> 5.6 | AL66: 100 | AM66: =AM60*0.720430107526882 -> 6.7 | AN66: 100 | AO66: =AO60*0.75 -> 4.5 | AP66: 100 | AQ66: =AQ60*0.746031746031746 -> 4.7 | AR66: 100 | AS66: =AS60*0.746031746031746 -> 4.7 | AT66: 100 | AU66: =AU60*0.75 -> 4.5 | AV66: 100 | AW66: =AW60*0.76 -> 3.8 | AX66: 100
D67: TP:dLYS | E67: g/g | G67: =G29 -> -100 | H67: =H29 -> 100 | I67: -100 | J67: 100 | K67: -100 | L67: 100 | M67: -100 | N67: 100 | O67: -100 | P67: 100 | Q67: -100 | R67: 100 | S67: -100 | T67: 100 | U67: -100 | V67: 100 | W67: -100 | X67: 100 | Y67: -100 | Z67: 100 | AA67: -100 | AB67: 100 | AC67: -100 | AD67: 100 | AE67: -100 | AF67: 100 | AG67: -100 | AH67: 100 | AI67: -100 | AJ67: 100 | AK67: -100 | AL67: 100 | AM67: -100 | AN67: 100 | AO67: -100 | AP67: 100 | AQ67: -100 | AR67: 100 | AS67: -100 | AT67: 100 | AU67: -100 | AV67: 100 | AW67: -100 | AX67: 100
D68: Total NSP | E68: g/Kg | G68: 0 | H68: =H30 -> 1000 | I68: 0 | J68: 1000 | K68: 0 | L68: 1000 | M68: 0 | N68: 1000 | O68: 0 | P68: 1000 | Q68: 0 | R68: 1000 | S68: 0 | T68: 1000 | U68: 0 | V68: 1000 | W68: 0 | X68: 1000 | Y68: 0 | Z68: 1000 | AA68: 0 | AB68: 1000 | AC68: 0 | AD68: 1000 | AE68: 0 | AF68: 1000 | AG68: 0 | AH68: 1000 | AI68: 0 | AJ68: 1000 | AK68: 0 | AL68: 1000 | AM68: 0 | AN68: 1000 | AO68: 0 | AP68: 1000 | AQ68: 0 | AR68: 1000 | AS68: 0 | AT68: 1000 | AU68: 0 | AV68: 1000 | AW68: 0 | AX68: 1000
D69: Soluble NSP | E69: g/Kg | G69: 0 | H69: 1000 | I69: 0 | J69: 1000 | K69: 0 | L69: 1000 | M69: 0 | N69: 1000 | O69: 0 | P69: 1000 | Q69: 0 | R69: 1000 | S69: 0 | T69: 1000 | U69: 0 | V69: 1000 | W69: 0 | X69: 1000 | Y69: 0 | Z69: 1000 | AA69: 0 | AB69: 1000 | AC69: 0 | AD69: 1000 | AE69: 0 | AF69: 1000 | AG69: 0 | AH69: 1000 | AI69: 0 | AJ69: 1000 | AK69: 0 | AL69: 1000 | AM69: 0 | AN69: 1000 | AO69: 0 | AP69: 1000 | AQ69: 0 | AR69: 1000 | AS69: 0 | AT69: 1000 | AU69: 0 | AV69: 1000 | AW69: 0 | AX69: 1000
D70: Insoluble NSP | E70: g/Kg | G70: 0 | H70: 1000 | I70: 0 | J70: 1000 | K70: 0 | L70: 1000 | M70: 0 | N70: 1000 | O70: 0 | P70: 1000 | Q70: 0 | R70: 1000 | S70: 0 | T70: 1000 | U70: 0 | V70: 1000 | W70: 0 | X70: 1000 | Y70: 0 | Z70: 1000 | AA70: 0 | AB70: 1000 | AC70: 0 | AD70: 1000 | AE70: 0 | AF70: 1000 | AG70: 0 | AH70: 1000 | AI70: 0 | AJ70: 1000 | AK70: 0 | AL70: 1000 | AM70: 0 | AN70: 1000 | AO70: 0 | AP70: 1000 | AQ70: 0 | AR70: 1000 | AS70: 0 | AT70: 1000 | AU70: 0 | AV70: 1000 | AW70: 0 | AX70: 1000
D71: Lignin | E71: g/Kg | G71: 0 | H71: 1000 | I71: 0 | J71: 1000 | K71: 0 | L71: 1000 | M71: 0 | N71: 1000 | O71: 0 | P71: 1000 | Q71: 0 | R71: 1000 | S71: 0 | T71: 1000 | U71: 0 | V71: 1000 | W71: 0 | X71: 1000 | Y71: 0 | Z71: 1000 | AA71: 0 | AB71: 1000 | AC71: 0 | AD71: 1000 | AE71: 0 | AF71: 1000 | AG71: 0 | AH71: 1000 | AI71: 0 | AJ71: 1000 | AK71: 0 | AL71: 1000 | AM71: 0 | AN71: 1000 | AO71: 0 | AP71: 1000 | AQ71: 0 | AR71: 1000 | AS71: 0 | AT71: 1000 | AU71: 0 | AV71: 1000 | AW71: 0 | AX71: 1000
D72: 18:2 | E72: g/Kg | G72: 12.5 | H72: 1000 | I72: 12 | J72: 1000 | K72: 12 | L72: 1000 | M72: 12 | N72: 1000 | O72: 12 | P72: 1000 | Q72: 12 | R72: 1000 | S72: 12.5 | T72: 1000 | U72: 12.5 | V72: 1000 | W72: 10 | X72: 1000 | Y72: 10 | Z72: 1000 | AA72: 9 | AB72: 1000 | AC72: 9 | AD72: 1000 | AE72: 19 | AF72: 1000 | AG72: 19 | AH72: 1000 | AI72: 12.4 | AJ72: 1000 | AK72: 10.8 | AL72: 1000 | AM72: 10 | AN72: 1000 | AO72: 10 | AP72: 1000 | AQ72: 10 | AR72: 1000 | AS72: 12.5 | AT72: 1000 | AU72: 12.5 | AV72: 1000 | AW72: 10 | AX72: 1000
D73: Nutrient | G73: 0 | H73: 100 | I73: 0 | J73: 100 | K73: 0 | L73: 100 | M73: 0 | N73: 100 | O73: 0 | P73: 100 | Q73: 0 | R73: 100 | S73: 0 | T73: =T35 -> 100 | U73: 0 | V73: 100 | W73: 0 | X73: 100 | Y73: 0 | Z73: 100 | AA73: 0 | AB73: 100 | AC73: 0 | AD73: 100 | AE73: 0 | AF73: 100 | AG73: 0 | AH73: 100 | AI73: 0 | AJ73: 100 | AK73: 0 | AL73: 100 | AM73: 0 | AN73: 100 | AO73: 0 | AP73: 100 | AQ73: 0 | AR73: 100 | AS73: 0 | AT73: 100 | AU73: 0 | AV73: 100 | AW73: 0 | AX73: 100
D74: Nutrient | G74: 0 | H74: 100 | I74: 0 | J74: 100 | K74: 0 | L74: 100 | M74: 0 | N74: 100 | O74: 0 | P74: 100 | Q74: 0 | R74: 100 | S74: 0 | T74: 100 | U74: 0 | V74: 100 | W74: 0 | X74: 100 | Y74: 0 | Z74: 100 | AA74: 0 | AB74: 100 | AC74: 0 | AD74: 100 | AE74: 0 | AF74: 100 | AG74: 0 | AH74: 100 | AI74: 0 | AJ74: 100 | AK74: 0 | AL74: 100 | AM74: 0 | AN74: 100 | AO74: 0 | AP74: 100 | AQ74: 0 | AR74: 100 | AS74: 0 | AT74: 100 | AU74: 0 | AV74: 100 | AW74: 0 | AX74: 100
D75: Nutrient | G75: 0 | H75: 100 | I75: 0 | J75: 100 | K75: 0 | L75: 100 | M75: 0 | N75: 100 | O75: 0 | P75: 100 | Q75: 0 | R75: 100 | S75: 0 | T75: 100 | U75: 0 | V75: 100 | W75: 0 | X75: 100 | Y75: 0 | Z75: 100 | AA75: 0 | AB75: 100 | AC75: 0 | AD75: 100 | AE75: 0 | AF75: 100 | AG75: 0 | AH75: 100 | AI75: 0 | AJ75: 100 | AK75: 0 | AL75: 100 | AM75: 0 | AN75: 100 | AO75: 0 | AP75: 100 | AQ75: 0 | AR75: 100 | AS75: 0 | AT75: 100 | AU75: 0 | AV75: 100 | AW75: 0 | AX75: 100
D76: Nutrient | G76: 0 | H76: 100 | I76: 0 | J76: 100 | K76: 0 | L76: 100 | M76: 0 | N76: 100 | O76: 0 | P76: 100 | Q76: 0 | R76: 100 | S76: 0 | T76: 100 | U76: 0 | V76: 100 | W76: 0 | X76: 100 | Y76: 0 | Z76: 100 | AA76: 0 | AB76: 100 | AC76: 0 | AD76: 100 | AE76: 0 | AF76: 100 | AG76: 0 | AH76: 100 | AI76: 0 | AJ76: 100 | AK76: 0 | AL76: 100 | AM76: 0 | AN76: 100 | AO76: 0 | AP76: 100 | AQ76: 0 | AR76: 100 | AS76: 0 | AT76: 100 | AU76: 0 | AV76: 100 | AW76: 0 | AX76: 100
D77: Nutrient | G77: 0 | H77: 100 | I77: 0 | J77: 100 | K77: 0 | L77: 100 | M77: 0 | N77: 100 | O77: 0 | P77: 100 | Q77: 0 | R77: 100 | S77: 0 | T77: 100 | U77: 0 | V77: 100 | W77: 0 | X77: 100 | Y77: 0 | Z77: 100 | AA77: 0 | AB77: 100 | AC77: 0 | AD77: 100 | AE77: 0 | AF77: 100 | AG77: 0 | AH77: 100 | AI77: 0 | AJ77: 100 | AK77: 0 | AL77: 100 | AM77: 0 | AN77: 100 | AO77: 0 | AP77: 100 | AQ77: 0 | AR77: 100 | AS77: 0 | AT77: 100 | AU77: 0 | AV77: 100 | AW77: 0 | AX77: 100

Sheet Formulate
B1: UffdAu 3.0 | F1: Formula Cost = | I1: =K1/100 -> 707.2910124 | K1: =SUMPRODUCT($E$8:$E$32,AJ7:AJ31) -> 70729.10124
B4: Feed Name: | D4: =Nutrients!C4 -> Broiler Starter, 0 to 10 Days
AH5: $/Ingred. | AJ5: =Ingredients!C1 -> Cost | AK5: =Ingredients!F1 -> Weight | AL5: =Ingredients!G1 -> Dry Matter | AM5: =Ingredients!H1 -> AMEn | AN5: =Ingredients!I1 -> Metabolisable Energy | AO5: =Ingredients!J1 -> Net Energy | AP5: =Ingredients!K1 -> Crude Protein | AQ5: =Ingredients!L1 -> True Protein | AR5: =Ingredients!M1 -> Lipids | AS5: =Ingredients!N1 -> Crude Fibre | AT5: =Ingredients!O1 -> Calcium | AU5: =Ingredients!P1 -> Total Phosphorous | AV5: =Ingredients!Q1 -> Available Phosphorous | AW5: =Ingredients!R1 -> Ca:aP | AX5: =Ingredients!S1 -> Na | AY5: =Ingredients!T1 -> Cl | AZ5: =Ingredients!U1 -> Choline | BA5: =Ingredients!V1 -> Betaine | BB5: =Ingredients!W1 -> dLYS | BC5: =Ingredients!X1 -> dMET | BD5: =Ingredients!Y1 -> dTSAA | BE5: =Ingredients!Z1 -> dTHR | BF5: =Ingredients!AA1 -> dTRP | BG5: =Ingredients!AB1 -> dARG | BH5: =Ingredients!AC1 -> dVAL | BI5: =Ingredients!AD1 -> TP:dLYS | BJ5: =Ingredients!AE1 -> Total NSP | BK5: =Ingredients!AF1 -> Soluble NSP | BL5: =Ingredients!AG1 -> Insoluble NSP | BM5: =Ingredients!AH1 -> Lignin | BN5: =Ingredients!AI1 -> 18:2 | BO5: =Ingredients!AJ1 -> Nutrient | BP5: =Ingredients!AK1 -> Nutrient | BQ5: =Ingredients!AL1 -> Nutrient | BR5: =Ingredients!AM1 -> Nutrient | BS5: =Ingredients!AN1 -> Nutrient
B6: Ingredient | C6: Cost | D6: Min. | E6: Amount | F6: Max. | H6: Nutrient | I6: Required | J6: Supplied | K6: Max. | L6: Units
C7: $/Ton | D7: % | E7: % | F7: % | AH7: =E8*AJ7 -> 19508.74096 | AI7: =Ingredients!B4 -> Wheat | AJ7: =Ingredients!C4 -> 380 | AK7: =Ingredients!F4 -> 1 | AL7: =Ingredients!G4/100 -> 9.04 | AM7: =Ingredients!H4/100 -> 0.1329 | AN7: =Ingredients!I4/100 -> 0.1489397442 | AO7: =Ingredients!J4/100 -> 0.09249509484 | AP7: =Ingredients!K4/100 -> 1.008638 | AQ7: =Ingredients!L4/100 -> 0.9095494029 | AR7: =Ingredients!M4/100 -> 0.1808 | AS7: =Ingredients!N4/100 -> 0.19888 | AT7: =Ingredients!O4/100 -> 0.005424 | AU7: =Ingredients!P4/100 -> 0.026216 | AV7: =Ingredients!Q4/100 -> 0.006328 | AW7: =Ingredients!R4/100 -> 0.003616 | AX7: =Ingredients!S4/100 -> 0.001808 | AY7: =Ingredients!T4/100 -> 0.007232 | AZ7: =Ingredients!U4/100 -> 8.89 | BA7: =Ingredients!V4/100 -> 30.6 | BB7: =Ingredients!W4/100 -> 0.02455866667 | BC7: =Ingredients!X4/100 -> 0.01386133333 | BD7: =Ingredients!Y4/100 -> 0.03148933333 | BE7: =Ingredients!Z4/100 -> 0.02546266667 | BF7: =Ingredients!AA4/100 -> 0.008437333333 | BG7: =Ingredients!AB4/100 -> 0.043844 | BH7: =Ingredients!AC4/100 -> 0.03902266667 | BI7: =Ingredients!AD4/100 -> -0.03256103583 | BJ7: =Ingredients!AE4/100 -> 1.047124973 | BK7: =Ingredients!AF4/100 -> 0.2028686832 | BL7: =Ingredients!AG4/100 -> 0.851218326 | BM7: =Ingredients!AH4/100 -> 0.098648 | BN7: =Ingredients!AI4/100 -> 0.08136 | BO7: =Ingredients!AJ4/100 -> 0 | BP7: =Ingredients!AK4/100 -> 0 | BQ7: =Ingredients!AL4/100 -> 0 | BR7: =Ingredients!AM4/100 -> 0 | BS7: =Ingredients!AN4/100 -> 0
B8: =Ingredients!B4 -> Wheat | C8: =Ingredients!C4 -> 380 | D8: =Ingredients!D4 -> 0 | E8: 51.338792 | F8: =Ingredients!E4 -> 100 | H8: =Nutrients!B6 -> Dry Matter | I8: =Nutrients!C6 -> 0 | J8: =SUMPRODUCT($E$8:$E$32,AL7:AL31) -> 902.5775267 | K8: =Nutrients!D6 -> 1000 | L8: =Nutrients!E6 -> % | N8: THESE BUTTONS ARE NOT WORKING IN THIS VERSION | AH8: 35139.09521 | AI8: =Ingredients!B5 -> Soybean Meal (local) | AJ8: =Ingredients!C5 -> 875 | AK8: =Ingredients!F5 -> 1 | AL8: =Ingredients!G5/100 -> 8.85 | AM8: =Ingredients!H5/100 -> 0.1045 | AN8: =Ingredients!I5/100 -> 0.1344141474 | AO8: =Ingredients!J5/100 -> 0.06086238655 | AP8: =Ingredients!K5/100 -> 4.043565 | AQ8: =Ingredients!L5/100 -> 3.646325174 | AR8: =Ingredients!M5/100 -> 0.17235375 | AS8: =Ingredients!N5/100 -> 0.28651875 | AT8: =Ingredients!O5/100 -> 0.022125 | AU8: =Ingredients!P5/100 -> 0.06195 | AV8: =Ingredients!Q5/100 -> 0.022125 | AW8: =Ingredients!R5/100 -> 0.0110625 | AX8: =Ingredients!S5/100 -> 0.00177 | AY8: =Ingredients!T5/100 -> 0.007965 | AZ8: =Ingredients!U5/100 -> 33.6 | BA8: =Ingredients!V5/100 -> 0 | BB8: =Ingredients!W5/100 -> 0.229215 | BC8: =Ingredients!X5/100 -> 0.050445 | BD8: =Ingredients!Y5/100 -> 0.098235 | BE8: =Ingredients!Z5/100 -> 0.133635 | BF8: =Ingredients!AA5/100 -> 0.04956 | BG8: =Ingredients!AB5/100 -> 0.27612 | BH8: =Ingredients!AC5/100 -> 0.17346 | BI8: =Ingredients!AD5/100 -> 0.0002257790477 | BJ8: =Ingredients!AE5/100 -> 1.505480238 | BK8: =Ingredients!AF5/100 -> 0.2952656644 | BL8: =Ingredients!AG5/100 -> 1.209953136 | BM8: =Ingredients!AH5/100 -> 0.005379 | BN8: =Ingredients!AI5/100 -> 0.04425 | BO8: =Ingredients!AJ5/100 -> 0 | BP8: =Ingredients!AK5/100 -> 0 | BQ8: =Ingredients!AL5/100 -> 0 | BR8: =Ingredients!AM5/100 -> 0 | BS8: =Ingredients!AN5/100 -> 0
B9: =Ingredients!B5 -> Soybean Meal (local) | C9: =Ingredients!C5 -> 875 | D9: =Ingredients!D5 -> 0 | E9: 40.15896595 | F9: =Ingredients!E5 -> 100 | H9: =Nutrients!B7 -> AMEn | I9: =Nutrients!C7 -> 12.4 | J9: =SUMPRODUCT($E$8:$E$32,AM7:AM31) -> 12.4 | K9: =Nutrients!D7 -> 100 | L9: =Nutrients!E7 -> MJ/Kg | AH9: 1600 | AI9: =Ingredients!B6 -> Meat and Bone Meal | AJ9: =Ingredients!C6 -> 800 | AK9: =Ingredients!F6 -> 1 | AL9: =Ingredients!G6/100 -> 9.4 | AM9: =Ingredients!H6/100 -> 0.090690825 | AN9: =Ingredients!I6/100 -> 0.1420255458 | AO9: =Ingredients!J6/100 -> 0.06073347295 | AP9: =Ingredients!K6/100 -> 4.60083 | AQ9: =Ingredients!L6/100 -> 4.148844461 | AR9: =Ingredients!M6/100 -> 0.835425 | AS9: =Ingredients!N6/100 -> 0 | AT9: =Ingredients!O6/100 -> 1.1374 | AU9: =Ingredients!P6/100 -> 0.35908 | AV9: =Ingredients!Q6/100 -> 0.44932 | AW9: =Ingredients!R6/100 -> -0.11938 | AX9: =Ingredients!S6/100 -> 0.06204 | AY9: =Ingredients!T6/100 -> 0.0564 | AZ9: =Ingredients!U6/100 -> 17.51 | BA9: =Ingredients!V6/100 -> 0 | BB9: =Ingredients!W6/100 -> 0.1646566667 | BC9: =Ingredients!X6/100 -> 0.04997666667 | BD9: =Ingredients!Y6/100 -> 0.06959916667 | BE9: =Ingredients!Z6/100 -> 0.102695 | BF9: =Ingredients!AA6/100 -> 0.019035 | BG9: =Ingredients!AB6/100 -> 0.2591266667 | BH9: =Ingredients!AC6/100 -> 0.14429 | BI9: =Ingredients!AD6/100 -> -0.09589076547 | BJ9: =Ingredients!AE6/100 -> 0 | BK9: =Ingredients!AF6/100 -> 0 | BL9: =Ingredients!AG6/100 -> 0 | BM9: =Ingredients!AH6/100 -> 0 | BN9: =Ingredients!AI6/100 -> 0.329 | BO9: =Ingredients!AJ6/100 -> 0 | BP9: =Ingredients!AK6/100 -> 0 | BQ9: =Ingredients!AL6/100 -> 0 | BR9: =Ingredients!AM6/100 -> 0 | BS9: =Ingredients!AN6/100 -> 0
B10: =Ingredients!B6 -> Meat and Bone Meal | C10: =Ingredients!C6 -> 800 | D10: =Ingredients!D6 -> 0 | E10: 2 | F10: =Ingredients!E6 -> 2 | H10: =Nutrients!B8 -> Metabolisable Energy | I10: =Nutrients!C8 -> 0 | J10: =SUMPRODUCT($E$8:$E$32,AN7:AN31) -> 14.42307575 | K10: =Nutrients!D8 -> 100 | L10: =Nutrients!E8 -> MJ/Kg | AH10: 3486.858794 | AI10: =Ingredients!B7 -> Mixed Recycled Vegetable Oil | AJ10: =Ingredients!C7 -> 1240 | AK10: =Ingredients!F7 -> 1 | AL10: =Ingredients!G7/100 -> 9.85 | AM10: =Ingredients!H7/100 -> 0.366 | AN10: =Ingredients!I7/100 -> 0.3893 | AO10: =Ingredients!J7/100 -> 0.2555 | AP10: =Ingredients!K7/100 -> 0 | AQ10: =Ingredients!L7/100 -> 0 | AR10: =Ingredients!M7/100 -> 0.985 | AS10: =Ingredients!N7/100 -> 0 | AT10: =Ingredients!O7/100 -> 0 | AU10: =Ingredients!P7/100 -> 0 | AV10: =Ingredients!Q7/100 -> 0 | AW10: =Ingredients!R7/100 -> 0 | AX10: =Ingredients!S7/100 -> 0 | AY10: =Ingredients!T7/100 -> 0 | AZ10: =Ingredients!U7/100 -> 0 | BA10: =Ingredients!V7/100 -> 0 | BB10: =Ingredients!W7/100 -> 0 | BC10: =Ingredients!X7/100 -> 0 | BD10: =Ingredients!Y7/100 -> 0 | BE10: =Ingredients!Z7/100 -> 0 | BF10: =Ingredients!AA7/100 -> 0 | BG10: =Ingredients!AB7/100 -> 0 | BH10: =Ingredients!AC7/100 -> 0 | BI10: =Ingredients!AD7/100 -> 0 | BJ10: =Ingredients!AE7/100 -> 0 | BK10: =Ingredients!AF7/100 -> 0 | BL10: =Ingredients!AG7/100 -> 0 | BM10: =Ingredients!AH7/100 -> 0 | BN10: =Ingredients!AI7/100 -> 1.5 | BO10: =Ingredients!AJ7/100 -> 0 | BP10: =Ingredients!AK7/100 -> 0 | BQ10: =Ingredients!AL7/100 -> 0 | BR10: =Ingredients!AM7/100 -> 0 | BS10: =Ingredients!AN7/100 -> 0
B11: =Ingredients!B7 -> Mixed Recycled Vegetable Oil | C11: =Ingredients!C7 -> 1240 | D11: =Ingredients!D7 -> 0 | E11: 2.811982899 | F11: =Ingredients!E7 -> 100 | H11: =Nutrients!B9 -> Net Energy | I11: =Nutrients!C9 -> 0 | J11: =SUMPRODUCT($E$8:$E$32,AO7:AO31) -> 8.03268552 | K11: =Nutrients!D9 -> 100 | L11: =Nutrients!E9 -> MJ/Kg | AH11: 46.8 | AI11: =Ingredients!B8 -> Salt | AJ11: =Ingredients!C8 -> 117 | AK11: =Ingredients!F8 -> 1 | AL11: =Ingredients!G8/100 -> 9.9 | AM11: =Ingredients!H8/100 -> 0 | AN11: =Ingredients!I8/100 -> 0 | AO11: =Ingredients!J8/100 -> 0 | AP11: =Ingredients!K8/100 -> 0 | AQ11: =Ingredients!L8/100 -> 0 | AR11: =Ingredients!M8/100 -> 0 | AS11: =Ingredients!N8/100 -> 0 | AT11: =Ingredients!O8/100 -> 0 | AU11: =Ingredients!P8/100 -> 0 | AV11: =Ingredients!Q8/100 -> 0 | AW11: =Ingredients!R8/100 -> 0 | AX11: =Ingredients!S8/100 -> 3.93 | AY11: =Ingredients!T8/100 -> 6.07 | AZ11: =Ingredients!U8/100 -> 0 | BA11: =Ingredients!V8/100 -> 0 | BB11: =Ingredients!W8/100 -> 0 | BC11: =Ingredients!X8/100 -> 0 | BD11: =Ingredients!Y8/100 -> 0 | BE11: =Ingredients!Z8/100 -> 0 | BF11: =Ingredients!AA8/100 -> 0 | BG11: =Ingredients!AB8/100 -> 0 | BH11: =Ingredients!AC8/100 -> 0 | BI11: =Ingredients!AD8/100 -> 0 | BJ11: =Ingredients!AE8/100 -> 0 | BK11: =Ingredients!AF8/100 -> 0 | BL11: =Ingredients!AG8/100 -> 0 | BM11: =Ingredients!AH8/100 -> 0 | BN11: =Ingredients!AI8/100 -> 0 | BO11: =Ingredients!AJ8/100 -> 0 | BP11: =Ingredients!AK8/100 -> 0 | BQ11: =Ingredients!AL8/100 -> 0 | BR11: =Ingredients!AM8/100 -> 0 | BS11: =Ingredients!AN8/100 -> 0
B12: =Ingredients!B8 -> Salt | C12: =Ingredients!C8 -> 117 | D12: =Ingredients!D8 -> 0.4 | E12: 0.4 | F12: =Ingredients!E8 -> 0.4 | H12: =Nutrients!B10 -> Crude Protein | I12: =Nutrients!C10 -> 230 | J12: =SUMPRODUCT($E$8:$E$32,AP7:AP31) -> 230 | K12: =Nutrients!D10 -> 1000 | L12: =Nutrients!E10 -> g/Kg | N12: CHOOSE DATA AND THEN SOLVER | AH12: 360 | AI12: =Ingredients!B9 -> Vitamin Premix | AJ12: =Ingredients!C9 -> 7200 | AK12: =Ingredients!F9 -> 1 | AL12: =Ingredients!G9/100 -> 9.9 | AM12: =Ingredients!H9/100 -> 0 | AN12: =Ingredients!I9/100 -> 0 | AO12: =Ingredients!J9/100 -> 0 | AP12: =Ingredients!K9/100 -> 0 | AQ12: =Ingredients!L9/100 -> 0 | AR12: =Ingredients!M9/100 -> 0 | AS12: =Ingredients!N9/100 -> 0 | AT12: =Ingredients!O9/100 -> 0 | AU12: =Ingredients!P9/100 -> 0 | AV12: =Ingredients!Q9/100 -> 0 | AW12: =Ingredients!R9/100 -> 0 | AX12: =Ingredients!S9/100 -> 0 | AY12: =Ingredients!T9/100 -> 0 | AZ12: =Ingredients!U9/100 -> 0 | BA12: =Ingredients!V9/100 -> 0 | BB12: =Ingredients!W9/100 -> 0 | BC12: =Ingredients!X9/100 -> 0 | BD12: =Ingredients!Y9/100 -> 0 | BE12: =Ingredients!Z9/100 -> 0 | BF12: =Ingredients!AA9/100 -> 0 | BG12: =Ingredients!AB9/100 -> 0 | BH12: =Ingredients!AC9/100 -> 0 | BI12: =Ingredients!AD9/100 -> 0 | BJ12: =Ingredients!AE9/100 -> 0 | BK12: =Ingredients!AF9/100 -> 0 | BL12: =Ingredients!AG9/100 -> 0 | BM12: =Ingredients!AH9/100 -> 0 | BN12: =Ingredients!AI9/100 -> 0 | BO12: =Ingredients!AJ9/100 -> 0 | BP12: =Ingredients!AK9/100 -> 0 | BQ12: =Ingredients!AL9/100 -> 0 | BR12: =Ingredients!AM9/100 -> 0 | BS12: =Ingredients!AN9/100 -> 0
B13: =Ingredients!B9 -> Vitamin Premix | C13: =Ingredients!C9 -> 7200 | D13: =Ingredients!D9 -> 0.05 | E13: 0.05 | F13: =Ingredients!E9 -> 0.05 | H13: =Nutrients!B11 -> True Protein | I13: =Nutrients!C11 -> 0 | J13: =SUMPRODUCT($E$8:$E$32,AQ7:AQ31) -> 207.4047695 | K13: =Nutrients!D11 -> 1000 | L13: =Nutrients!E11 -> g/Kg | AH13: 159 | AI13: =Ingredients!B10 -> Trace Mineral Premix | AJ13: =Ingredients!C10 -> 2120 | AK13: =Ingredients!F10 -> 1 | AL13: =Ingredients!G10/100 -> 9.9 | AM13: =Ingredients!H10/100 -> 0 | AN13: =Ingredients!I10/100 -> 0 | AO13: =Ingredients!J10/100 -> 0 | AP13: =Ingredients!K10/100 -> 0 | AQ13: =Ingredients!L10/100 -> 0 | AR13: =Ingredients!M10/100 -> 0 | AS13: =Ingredients!N10/100 -> 0 | AT13: =Ingredients!O10/100 -> 0 | AU13: =Ingredients!P10/100 -> 0 | AV13: =Ingredients!Q10/100 -> 0 | AW13: =Ingredients!R10/100 -> 0 | AX13: =Ingredients!S10/100 -> 0 | AY13: =Ingredients!T10/100 -> 0 | AZ13: =Ingredients!U10/100 -> 0 | BA13: =Ingredients!V10/100 -> 0 | BB13: =Ingredients!W10/100 -> 0 | BC13: =Ingredients!X10/100 -> 0 | BD13: =Ingredients!Y10/100 -> 0 | BE13: =Ingredients!Z10/100 -> 0 | BF13: =Ingredients!AA10/100 -> 0 | BG13: =Ingredients!AB10/100 -> 0 | BH13: =Ingredients!AC10/100 -> 0 | BI13: =Ingredients!AD10/100 -> 0 | BJ13: =Ingredients!AE10/100 -> 0 | BK13: =Ingredients!AF10/100 -> 0 | BL13: =Ingredients!AG10/100 -> 0 | BM13: =Ingredients!AH10/100 -> 0 | BN13: =Ingredients!AI10/100 -> 0 | BO13: =Ingredients!AJ10/100 -> 0 | BP13: =Ingredients!AK10/100 -> 0 | BQ13: =Ingredients!AL10/100 -> 0 | BR13: =Ingredients!AM10/100 -> 0 | BS13: =Ingredients!AN10/100 -> 0
B14: =Ingredients!B10 -> Trace Mineral Premix | C14: =Ingredients!C10 -> 2120 | D14: =Ingredients!D10 -> 0.075 | E14: 0.075 | F14: =Ingredients!E10 -> 0.075 | H14: =Nutrients!B12 -> Lipids | I14: =Nutrients!C12 -> 0 | J14: =SUMPRODUCT($E$8:$E$32,AR7:AR31) -> 20.64425513 | K14: =Nutrients!D12 -> 1000 | L14: =Nutrients!E12 -> g/Kg | AH14: 61.92385074 | AI14: =Ingredients!B11 -> Limestone, Fine | AJ14: =Ingredients!C11 -> 104 | AK14: =Ingredients!F11 -> 1 | AL14: =Ingredients!G11/100 -> 9.9 | AM14: =Ingredients!H11/100 -> 0 | AN14: =Ingredients!I11/100 -> 0 | AO14: =Ingredients!J11/100 -> 0 | AP14: =Ingredients!K11/100 -> 0 | AQ14: =Ingredients!L11/100 -> 0 | AR14: =Ingredients!M11/100 -> 0 | AS14: =Ingredients!N11/100 -> 0 | AT14: =Ingredients!O11/100 -> 3.8 | AU14: =Ingredients!P11/100 -> 0 | AV14: =Ingredients!Q11/100 -> 0 | AW14: =Ingredients!R11/100 -> -1.9 | AX14: =Ingredients!S11/100 -> 0 | AY14: =Ingredients!T11/100 -> 0 | AZ14: =Ingredients!U11/100 -> 0 | BA14: =Ingredients!V11/100 -> 0 | BB14: =Ingredients!W11/100 -> 0 | BC14: =Ingredients!X11/100 -> 0 | BD14: =Ingredients!Y11/100 -> 0 | BE14: =Ingredients!Z11/100 -> 0 | BF14: =Ingredients!AA11/100 -> 0 | BG14: =Ingredients!AB11/100 -> 0 | BH14: =Ingredients!AC11/100 -> 0 | BI14: =Ingredients!AD11/100 -> 0 | BJ14: =Ingredients!AE11/100 -> 0 | BK14: =Ingredients!AF11/100 -> 0 | BL14: =Ingredients!AG11/100 -> 0 | BM14: =Ingredients!AH11/100 -> 0 | BN14: =Ingredients!AI11/100 -> 0 | BO14: =Ingredients!AJ11/100 -> 0 | BP14: =Ingredients!AK11/100 -> 0 | BQ14: =Ingredients!AL11/100 -> 0 | BR14: =Ingredients!AM11/100 -> 0 | BS14: =Ingredients!AN11/100 -> 0
B15: =Ingredients!B11 -> Limestone, Fine | C15: =Ingredients!C11 -> 104 | D15: =Ingredients!D11 -> 0 | E15: 0.5954216417 | F15: =Ingredients!E11 -> 100 | H15: =Nutrients!B13 -> Crude Fibre | I15: =Nutrients!C13 -> 0 | J15: =SUMPRODUCT($E$8:$E$32,AS7:AS31) -> 21.71655568 | K15: =Nutrients!D13 -> 1000 | L15: =Nutrients!E13 -> g/Kg | AH15: 3168.516757 | AI15: =Ingredients!B12 -> Dicalcium Phosphate | AJ15: =Ingredients!C12 -> 1920 | AK15: =Ingredients!F12 -> 1 | AL15: =Ingredients!G12/100 -> 9.9 | AM15: =Ingredients!H12/100 -> 0 | AN15: =Ingredients!I12/100 -> 0 | AO15: =Ingredients!J12/100 -> 0 | AP15: =Ingredients!K12/100 -> 0 | AQ15: =Ingredients!L12/100 -> 0 | AR15: =Ingredients!M12/100 -> 0 | AS15: =Ingredients!N12/100 -> 0 | AT15: =Ingredients!O12/100 -> 2.3 | AU15: =Ingredients!P12/100 -> 1.75 | AV15: =Ingredients!Q12/100 -> 1.75 | AW15: =Ingredients!R12/100 -> 0.6 | AX15: =Ingredients!S12/100 -> 0 | AY15: =Ingredients!T12/100 -> 0 | AZ15: =Ingredients!U12/100 -> 0 | BA15: =Ingredients!V12/100 -> 0 | BB15: =Ingredients!W12/100 -> 0 | BC15: =Ingredients!X12/100 -> 0 | BD15: =Ingredients!Y12/100 -> 0 | BE15: =Ingredients!Z12/100 -> 0 | BF15: =Ingredients!AA12/100 -> 0 | BG15: =Ingredients!AB12/100 -> 0 | BH15: =Ingredients!AC12/100 -> 0 | BI15: =Ingredients!AD12/100 -> 0 | BJ15: =Ingredients!AE12/100 -> 0 | BK15: =Ingredients!AF12/100 -> 0 | BL15: =Ingredients!AG12/100 -> 0 | BM15: =Ingredients!AH12/100 -> 0 | BN15: =Ingredients!AI12/100 -> 0 | BO15: =Ingredients!AJ12/100 -> 0 | BP15: =Ingredients!AK12/100 -> 0 | BQ15: =Ingredients!AL12/100 -> 0 | BR15: =Ingredients!AM12/100 -> 0 | BS15: =Ingredients!AN12/100 -> 0
B16: =Ingredients!B12 -> Dicalcium Phosphate | C16: =Ingredients!C12 -> 1920 | D16: =Ingredients!D12 -> 0 | E16: 1.650269144 | F16: =Ingredients!E12 -> 100 | H16: =Nutrients!B14 -> Calcium | I16: =Nutrients!C14 -> 9.5 | J16: =SUMPRODUCT($E$8:$E$32,AT7:AT31) -> 9.5 | K16: =Nutrients!D14 -> 1000 | L16: =Nutrients!E14 -> g/Kg | AH16: 4211.423327 | AI16: =Ingredients!B13 -> DL-Methionine | AJ16: =Ingredients!C13 -> 9600 | AK16: =Ingredients!F13 -> 1 | AL16: =Ingredients!G13/100 -> 9.98 | AM16: =Ingredients!H13/100 -> 0.2100368 | AN16: =Ingredients!I13/100 -> 0 | AO16: =Ingredients!J13/100 -> 0 | AP16: =Ingredients!K13/100 -> 5.81 | AQ16: =Ingredients!L13/100 -> 5.2392 | AR16: =Ingredients!M13/100 -> 0 | AS16: =Ingredients!N13/100 -> 0 | AT16: =Ingredients!O13/100 -> 0 | AU16: =Ingredients!P13/100 -> 0 | AV16: =Ingredients!Q13/100 -> 0 | AW16: =Ingredients!R13/100 -> 0 | AX16: =Ingredients!S13/100 -> 0 | AY16: =Ingredients!T13/100 -> 0 | AZ16: =Ingredients!U13/100 -> 0 | BA16: =Ingredients!V13/100 -> 0 | BB16: =Ingredients!W13/100 -> 0 | BC16: =Ingredients!X13/100 -> 9.8 | BD16: =Ingredients!Y13/100 -> 9.8 | BE16: =Ingredients!Z13/100 -> 0 | BF16: =Ingredients!AA13/100 -> 0 | BG16: =Ingredients!AB13/100 -> 0 | BH16: =Ingredients!AC13/100 -> 0 | BI16: =Ingredients!AD13/100 -> -0.32902176 | BJ16: =Ingredients!AE13/100 -> 0 | BK16: =Ingredients!AF13/100 -> 0 | BL16: =Ingredients!AG13/100 -> 0 | BM16: =Ingredients!AH13/100 -> 0 | BN16: =Ingredients!AI13/100 -> 0 | BO16: =Ingredients!AJ13/100 -> 0 | BP16: =Ingredients!AK13/100 -> 0 | BQ16: =Ingredients!AL13/100 -> 0 | BR16: =Ingredients!AM13/100 -> 0 | BS16: =Ingredients!AN13/100 -> 0
B17: =Ingredients!B13 -> DL-Methionine | C17: =Ingredients!C13 -> 9600 | D17: =Ingredients!D13 -> 0 | E17: 0.4386899298 | F17: =Ingredients!E13 -> 100 | H17: =Nutrients!B15 -> Total Phosphorous | I17: =Nutrients!C15 -> 0 | J17: =SUMPRODUCT($E$8:$E$32,AU7:AU31) -> 7.439876714 | K17: =Nutrients!D15 -> 100 | L17: =Nutrients!E15 -> g/Kg | AH17: 1543.746831 | AI17: =Ingredients!B14 -> L-LysineHCl | AJ17: =Ingredients!C14 -> 5400 | AK17: =Ingredients!F14 -> 1 | AL17: =Ingredients!G14/100 -> 9.85 | AM17: =Ingredients!H14/100 -> 0.1723808 | AN17: =Ingredients!I14/100 -> 0 | AO17: =Ingredients!J14/100 -> 0 | AP17: =Ingredients!K14/100 -> 9.34 | AQ17: =Ingredients!L14/100 -> 8.4224 | AR17: =Ingredients!M14/100 -> 0 | AS17: =Ingredients!N14/100 -> 0 | AT17: =Ingredients!O14/100 -> 0 | AU17: =Ingredients!P14/100 -> 0 | AV17: =Ingredients!Q14/100 -> 0 | AW17: =Ingredients!R14/100 -> 0 | AX17: =Ingredients!S14/100 -> 0 | AY17: =Ingredients!T14/100 -> 1.94 | AZ17: =Ingredients!U14/100 -> 0 | BA17: =Ingredients!V14/100 -> 0 | BB17: =Ingredients!W14/100 -> 7.8 | BC17: =Ingredients!X14/100 -> 0 | BD17: =Ingredients!Y14/100 -> 0 | BE17: =Ingredients!Z14/100 -> 0 | BF17: =Ingredients!AA14/100 -> 0 | BG17: =Ingredients!AB14/100 -> 0 | BH17: =Ingredients!AC14/100 -> 0 | BI17: =Ingredients!AD14/100 -> 7.27107328 | BJ17: =Ingredients!AE14/100 -> 0 | BK17: =Ingredients!AF14/100 -> 0 | BL17: =Ingredients!AG14/100 -> 0 | BM17: =Ingredients!AH14/100 -> 0 | BN17: =Ingredients!AI14/100 -> 0 | BO17: =Ingredients!AJ14/100 -> 0 | BP17: =Ingredients!AK14/100 -> 0 | BQ17: =Ingredients!AL14/100 -> 0 | BR17: =Ingredients!AM14/100 -> 0 | BS17: =Ingredients!AN14/100 -> 0
B18: =Ingredients!B14 -> L-LysineHCl | C18: =Ingredients!C14 -> 5400 | D18: =Ingredients!D14 -> 0 | E18: 0.2858790427 | F18: =Ingredients!E14 -> 100 | H18: =Nutrients!B16 -> Available Phosphorous | I18: =Nutrients!C16 -> 5 | J18: =SUMPRODUCT($E$8:$E$32,AV7:AV31) -> 5 | K18: =Nutrients!D16 -> 100 | L18: =Nutrients!E16 -> g/Kg | AH18: 1442.995521 | AI18: =Ingredients!B15 -> L-Threonine | AJ18: =Ingredients!C15 -> 7400 | AK18: =Ingredients!F15 -> 1 | AL18: =Ingredients!G15/100 -> 9.98 | AM18: =Ingredients!H15/100 -> 0.1460216 | AN18: =Ingredients!I15/100 -> 0 | AO18: =Ingredients!J15/100 -> 0 | AP18: =Ingredients!K15/100 -> 7.24 | AQ18: =Ingredients!L15/100 -> 6.5287 | AR18: =Ingredients!M15/100 -> 0 | AS18: =Ingredients!N15/100 -> 0 | AT18: =Ingredients!O15/100 -> 0 | AU18: =Ingredients!P15/100 -> 0 | AV18: =Ingredients!Q15/100 -> 0 | AW18: =Ingredients!R15/100 -> 0 | AX18: =Ingredients!S15/100 -> 0 | AY18: =Ingredients!T15/100 -> 0 | AZ18: =Ingredients!U15/100 -> 0 | BA18: =Ingredients!V15/100 -> 0 | BB18: =Ingredients!W15/100 -> 0 | BC18: =Ingredients!X15/100 -> 0 | BD18: =Ingredients!Y15/100 -> 0 | BE18: =Ingredients!Z15/100 -> 9.85 | BF18: =Ingredients!AA15/100 -> 0 | BG18: =Ingredients!AB15/100 -> 0 | BH18: =Ingredients!AC15/100 -> 0 | BI18: =Ingredients!AD15/100 -> -0.41000236 | BJ18: =Ingredients!AE15/100 -> 0 | BK18: =Ingredients!AF15/100 -> 0 | BL18: =Ingredients!AG15/100 -> 0 | BM18: =Ingredients!AH15/100 -> 0 | BN18: =Ingredients!AI15/100 -> 0 | BO18: =Ingredients!AJ15/100 -> 0 | BP18: =Ingredients!AK15/100 -> 0 | BQ18: =Ingredients!AL15/100 -> 0 | BR18: =Ingredients!AM15/100 -> 0 | BS18: =Ingredients!AN15/100 -> 0
B19: =Ingredients!B15 -> L-Threonine | C19: =Ingredients!C15 -> 7400 | D19: =Ingredients!D15 -> 0 | E19: 0.1949993947 | F19: =Ingredients!E15 -> 100 | H19: =Nutrients!B17 -> Ca:aP | I19: =Nutrients!C17 -> -100 | J19: =SUMPRODUCT($E$8:$E$32,AW7:AW31) -> 0.25 | K19: =Nutrients!D17 -> 100 | L19: =Nutrients!E17 -> g/Kg | AH19: 0 | AI19: =Ingredients!B16 -> L-Tryptophan | AJ19: =Ingredients!C16 -> 30000 | AK19: =Ingredients!F16 -> 1 | AL19: =Ingredients!G16/100 -> 9.9 | AM19: =Ingredients!H16/100 -> 0.2389064 | AN19: =Ingredients!I16/100 -> 0 | AO19: =Ingredients!J16/100 -> 0 | AP19: =Ingredients!K16/100 -> 8.4 | AQ19: =Ingredients!L16/100 -> 7.5748 | AR19: =Ingredients!M16/100 -> 0 | AS19: =Ingredients!N16/100 -> 0 | AT19: =Ingredients!O16/100 -> 0 | AU19: =Ingredients!P16/100 -> 0 | AV19: =Ingredients!Q16/100 -> 0 | AW19: =Ingredients!R16/100 -> 0 | AX19: =Ingredients!S16/100 -> 0 | AY19: =Ingredients!T16/100 -> 0 | AZ19: =Ingredients!U16/100 -> 0 | BA19: =Ingredients!V16/100 -> 0 | BB19: =Ingredients!W16/100 -> 0 | BC19: =Ingredients!X16/100 -> 0 | BD19: =Ingredients!Y16/100 -> 0 | BE19: =Ingredients!Z16/100 -> 0 | BF19: =Ingredients!AA16/100 -> 9.8 | BG19: =Ingredients!AB16/100 -> 0 | BH19: =Ingredients!AC16/100 -> 0 | BI19: =Ingredients!AD16/100 -> -0.47569744 | BJ19: =Ingredients!AE16/100 -> 0 | BK19: =Ingredients!AF16/100 -> 0 | BL19: =Ingredients!AG16/100 -> 0 | BM19: =Ingredients!AH16/100 -> 0 | BN19: =Ingredients!AI16/100 -> 0 | BO19: =Ingredients!AJ16/100 -> 0 | BP19: =Ingredients!AK16/100 -> 0 | BQ19: =Ingredients!AL16/100 -> 0 | BR19: =Ingredients!AM16/100 -> 0 | BS19: =Ingredients!AN16/100 -> 0
B20: =Ingredients!B16 -> L-Tryptophan | C20: =Ingredients!C16 -> 30000 | D20: =Ingredients!D16 -> 0 | E20: 0 | F20: =Ingredients!E16 -> 100 | H20: =Nutrients!B18 -> Na | I20: =Nutrients!C18 -> 1.8 | J20: =SUMPRODUCT($E$8:$E$32,AX7:AX31) -> 1.859981906 | K20: =Nutrients!D18 -> 100 | L20: =Nutrients!E18 -> mg/g | AH20: 0 | AI20: =Ingredients!B17 -> 0 | AJ20: =Ingredients!C17 -> 0 | AK20: =Ingredients!F17 -> 0 | AL20: =Ingredients!G17/100 -> 0 | AM20: =Ingredients!H17/100 -> 0 | AN20: =Ingredients!I17/100 -> 0 | AO20: =Ingredients!J17/100 -> 0 | AP20: =Ingredients!K17/100 -> 0 | AQ20: =Ingredients!L17/100 -> 0 | AR20: =Ingredients!M17/100 -> 0 | AS20: =Ingredients!N17/100 -> 0 | AT20: =Ingredients!O17/100 -> 0 | AU20: =Ingredients!P17/100 -> 0 | AV20: =Ingredients!Q17/100 -> 0 | AW20: =Ingredients!R17/100 -> 0 | AX20: =Ingredients!S17/100 -> 0 | AY20: =Ingredients!T17/100 -> 0 | AZ20: =Ingredients!U17/100 -> 0 | BA20: =Ingredients!V17/100 -> 0 | BB20: =Ingredients!W17/100 -> 0 | BC20: =Ingredients!X17/100 -> 0 | BD20: =Ingredients!Y17/100 -> 0 | BE20: =Ingredients!Z17/100 -> 0 | BF20: =Ingredients!AA17/100 -> 0 | BG20: =Ingredients!AB17/100 -> 0 | BH20: =Ingredients!AC17/100 -> 0 | BI20: =Ingredients!AD17/100 -> 0 | BJ20: =Ingredients!AE17/100 -> 0 | BK20: =Ingredients!AF17/100 -> 0 | BL20: =Ingredients!AG17/100 -> 0 | BM20: =Ingredients!AH17/100 -> 0 | BN20: =Ingredients!AI17/100 -> 0 | BO20: =Ingredients!AJ17/100 -> 0 | BP20: =Ingredients!AK17/100 -> 0 | BQ20: =Ingredients!AL17/100 -> 0 | BR20: =Ingredients!AM17/100 -> 0 | BS20: =Ingredients!AN17/100 -> 0
B21: =Ingredients!B17 -> 0 | C21: =Ingredients!C17 -> 0 | D21: =Ingredients!D17 -> 0 | E21: 0 | F21: =Ingredients!E17 -> 0 | H21: =Nutrients!B19 -> Cl | I21: =Nutrients!C19 -> 1.8 | J21: =SUMPRODUCT($E$8:$E$32,AY7:AY31) -> 3.78655365 | K21: =Nutrients!D19 -> 100 | L21: =Nutrients!E19 -> mg/Kg | AH21: 0 | AI21: =Ingredients!B18 -> 0 | AJ21: =Ingredients!C18 -> 0 | AK21: =Ingredients!F18 -> 0 | AL21: =Ingredients!G18/100 -> 0 | AM21: =Ingredients!H18/100 -> 0 | AN21: =Ingredients!I18/100 -> 0 | AO21: =Ingredients!J18/100 -> 0 | AP21: =Ingredients!K18/100 -> 0 | AQ21: =Ingredients!L18/100 -> 0 | AR21: =Ingredients!M18/100 -> 0 | AS21: =Ingredients!N18/100 -> 0 | AT21: =Ingredients!O18/100 -> 0 | AU21: =Ingredients!P18/100 -> 0 | AV21: =Ingredients!Q18/100 -> 0 | AW21: =Ingredients!R18/100 -> 0 | AX21: =Ingredients!S18/100 -> 0 | AY21: =Ingredients!T18/100 -> 0 | AZ21: =Ingredients!U18/100 -> 0 | BA21: =Ingredients!V18/100 -> 0 | BB21: =Ingredients!W18/100 -> 0 | BC21: =Ingredients!X18/100 -> 0 | BD21: =Ingredients!Y18/100 -> 0 | BE21: =Ingredients!Z18/100 -> 0 | BF21: =Ingredients!AA18/100 -> 0 | BG21: =Ingredients!AB18/100 -> 0 | BH21: =Ingredients!AC18/100 -> 0 | BI21: =Ingredients!AD18/100 -> 0 | BJ21: =Ingredients!AE18/100 -> 0 | BK21: =Ingredients!AF18/100 -> 0 | BL21: =Ingredients!AG18/100 -> 0 | BM21: =Ingredients!AH18/100 -> 0 | BN21: =Ingredients!AI18/100 -> 0 | BO21: =Ingredients!AJ18/100 -> 0 | BP21: =Ingredients!AK18/100 -> 0 | BQ21: =Ingredients!AL18/100 -> 0 | BR21: =Ingredients!AM18/100 -> 0 | BS21: =Ingredients!AN18/100 -> 0
B22: =Ingredients!B18 -> 0 | C22: =Ingredients!C18 -> 0 | D22: =Ingredients!D18 -> 0 | E22: 0 | F22: =Ingredients!E18 -> 0 | H22: =Nutrients!B20 -> Choline | I22: =Nutrients!C20 -> 1700 | J22: =SUMPRODUCT($E$8:$E$32,AZ7:AZ31) -> 1840.763117 | K22: =Nutrients!D20 -> 10000 | L22: =Nutrients!E20 -> mg/Kg | AH22: 0 | AI22: =Ingredients!B19 -> 0 | AJ22: =Ingredients!C19 -> 0 | AK22: =Ingredients!F19 -> 0 | AL22: =Ingredients!G19/100 -> 0 | AM22: =Ingredients!H19/100 -> 0 | AN22: =Ingredients!I19/100 -> 0 | AO22: =Ingredients!J19/100 -> 0 | AP22: =Ingredients!K19/100 -> 0 | AQ22: =Ingredients!L19/100 -> 0 | AR22: =Ingredients!M19/100 -> 0 | AS22: =Ingredients!N19/100 -> 0 | AT22: =Ingredients!O19/100 -> 0 | AU22: =Ingredients!P19/100 -> 0 | AV22: =Ingredients!Q19/100 -> 0 | AW22: =Ingredients!R19/100 -> 0 | AX22: =Ingredients!S19/100 -> 0 | AY22: =Ingredients!T19/100 -> 0 | AZ22: =Ingredients!U19/100 -> 0 | BA22: =Ingredients!V19/100 -> 0 | BB22: =Ingredients!W19/100 -> 0 | BC22: =Ingredients!X19/100 -> 0 | BD22: =Ingredients!Y19/100 -> 0 | BE22: =Ingredients!Z19/100 -> 0 | BF22: =Ingredients!AA19/100 -> 0 | BG22: =Ingredients!AB19/100 -> 0 | BH22: =Ingredients!AC19/100 -> 0 | BI22: =Ingredients!AD19/100 -> 0 | BJ22: =Ingredients!AE19/100 -> 0 | BK22: =Ingredients!AF19/100 -> 0 | BL22: =Ingredients!AG19/100 -> 0 | BM22: =Ingredients!AH19/100 -> 0 | BN22: =Ingredients!AI19/100 -> 0 | BO22: =Ingredients!AJ19/100 -> 0 | BP22: =Ingredients!AK19/100 -> 0 | BQ22: =Ingredients!AL19/100 -> 0 | BR22: =Ingredients!AM19/100 -> 0 | BS22: =Ingredients!AN19/100 -> 0
B23: =Ingredients!B19 -> 0 | C23: =Ingredients!C19 -> 0 | D23: =Ingredients!D19 -> 0 | E23: 0 | F23: =Ingredients!E19 -> 0 | H23: =Nutrients!B21 -> Betaine | I23: =Nutrients!C21 -> 0 | J23: =SUMPRODUCT($E$8:$E$32,BA7:BA31) -> 1570.967035 | K23: =Nutrients!D21 -> 10000 | L23: =Nutrients!E21 -> mg/Kg | AH23: 0 | AI23: =Ingredients!B20 -> 0 | AJ23: =Ingredients!C20 -> 0 | AK23: =Ingredients!F20 -> 0 | AL23: =Ingredients!G20/100 -> 0 | AM23: =Ingredients!H20/100 -> 0 | AN23: =Ingredients!I20/100 -> 0 | AO23: =Ingredients!J20/100 -> 0 | AP23: =Ingredients!K20/100 -> 0 | AQ23: =Ingredients!L20/100 -> 0 | AR23: =Ingredients!M20/100 -> 0 | AS23: =Ingredients!N20/100 -> 0 | AT23: =Ingredients!O20/100 -> 0 | AU23: =Ingredients!P20/100 -> 0 | AV23: =Ingredients!Q20/100 -> 0 | AW23: =Ingredients!R20/100 -> 0 | AX23: =Ingredients!S20/100 -> 0 | AY23: =Ingredients!T20/100 -> 0 | AZ23: =Ingredients!U20/100 -> 0 | BA23: =Ingredients!V20/100 -> 0 | BB23: =Ingredients!W20/100 -> 0 | BC23: =Ingredients!X20/100 -> 0 | BD23: =Ingredients!Y20/100 -> 0 | BE23: =Ingredients!Z20/100 -> 0 | BF23: =Ingredients!AA20/100 -> 0 | BG23: =Ingredients!AB20/100 -> 0 | BH23: =Ingredients!AC20/100 -> 0 | BI23: =Ingredients!AD20/100 -> 0 | BJ23: =Ingredients!AE20/100 -> 0 | BK23: =Ingredients!AF20/100 -> 0 | BL23: =Ingredients!AG20/100 -> 0 | BM23: =Ingredients!AH20/100 -> 0 | BN23: =Ingredients!AI20/100 -> 0 | BO23: =Ingredients!AJ20/100 -> 0 | BP23: =Ingredients!AK20/100 -> 0 | BQ23: =Ingredients!AL20/100 -> 0 | BR23: =Ingredients!AM20/100 -> 0 | BS23: =Ingredients!AN20/100 -> 0
B24: =Ingredients!B20 -> 0 | C24: =Ingredients!C20 -> 0 | D24: =Ingredients!D20 -> 0 | E24: 0 | F24: =Ingredients!E20 -> 0 | H24: =Nutrients!B22 -> dLYS | I24: =Nutrients!C22 -> 0 | J24: =SUMPRODUCT($E$8:$E$32,BB7:BB31) -> 13.02501953 | K24: =Nutrients!D22 -> 1000 | L24: =Nutrients!E22 -> g/Kg | AH24: 0 | AI24: =Ingredients!B21 -> 0 | AJ24: =Ingredients!C21 -> 0 | AK24: =Ingredients!F21 -> 0 | AL24: =Ingredients!G21/100 -> 0 | AM24: =Ingredients!H21/100 -> 0 | AN24: =Ingredients!I21/100 -> 0 | AO24: =Ingredients!J21/100 -> 0 | AP24: =Ingredients!K21/100 -> 0 | AQ24: =Ingredients!L21/100 -> 0 | AR24: =Ingredients!M21/100 -> 0 | AS24: =Ingredients!N21/100 -> 0 | AT24: =Ingredients!O21/100 -> 0 | AU24: =Ingredients!P21/100 -> 0 | AV24: =Ingredients!Q21/100 -> 0 | AW24: =Ingredients!R21/100 -> 0 | AX24: =Ingredients!S21/100 -> 0 | AY24: =Ingredients!T21/100 -> 0 | AZ24: =Ingredients!U21/100 -> 0 | BA24: =Ingredients!V21/100 -> 0 | BB24: =Ingredients!W21/100 -> 0 | BC24: =Ingredients!X21/100 -> 0 | BD24: =Ingredients!Y21/100 -> 0 | BE24: =Ingredients!Z21/100 -> 0 | BF24: =Ingredients!AA21/100 -> 0 | BG24: =Ingredients!AB21/100 -> 0 | BH24: =Ingredients!AC21/100 -> 0 | BI24: =Ingredients!AD21/100 -> 0 | BJ24: =Ingredients!AE21/100 -> 0 | BK24: =Ingredients!AF21/100 -> 0 | BL24: =Ingredients!AG21/100 -> 0 | BM24: =Ingredients!AH21/100 -> 0 | BN24: =Ingredients!AI21/100 -> 0 | BO24: =Ingredients!AJ21/100 -> 0 | BP24: =Ingredients!AK21/100 -> 0 | BQ24: =Ingredients!AL21/100 -> 0 | BR24: =Ingredients!AM21/100 -> 0 | BS24: =Ingredients!AN21/100 -> 0
B25: =Ingredients!B21 -> 0 | C25: =Ingredients!C21 -> 0 | D25: =Ingredients!D21 -> 0 | E25: 0 | F25: =Ingredients!E21 -> 0 | H25: =Nutrients!B23 -> dMET | I25: =Nutrients!C23 -> 5.5 | J25: =SUMPRODUCT($E$8:$E$32,BC7:BC31) -> 7.136557792 | K25: =Nutrients!D23 -> 1000 | L25: =Nutrients!E23 -> g/Kg | AH25: 0 | AI25: =Ingredients!B22 -> 0 | AJ25: =Ingredients!C22 -> 0 | AK25: =Ingredients!F22 -> 0 | AL25: =Ingredients!G22/100 -> 0 | AM25: =Ingredients!H22/100 -> 0 | AN25: =Ingredients!I22/100 -> 0 | AO25: =Ingredients!J22/100 -> 0 | AP25: =Ingredients!K22/100 -> 0 | AQ25: =Ingredients!L22/100 -> 0 | AR25: =Ingredients!M22/100 -> 0 | AS25: =Ingredients!N22/100 -> 0 | AT25: =Ingredients!O22/100 -> 0 | AU25: =Ingredients!P22/100 -> 0 | AV25: =Ingredients!Q22/100 -> 0 | AW25: =Ingredients!R22/100 -> 0 | AX25: =Ingredients!S22/100 -> 0 | AY25: =Ingredients!T22/100 -> 0 | AZ25: =Ingredients!U22/100 -> 0 | BA25: =Ingredients!V22/100 -> 0 | BB25: =Ingredients!W22/100 -> 0 | BC25: =Ingredients!X22/100 -> 0 | BD25: =Ingredients!Y22/100 -> 0 | BE25: =Ingredients!Z22/100 -> 0 | BF25: =Ingredients!AA22/100 -> 0 | BG25: =Ingredients!AB22/100 -> 0 | BH25: =Ingredients!AC22/100 -> 0 | BI25: =Ingredients!AD22/100 -> 0 | BJ25: =Ingredients!AE22/100 -> 0 | BK25: =Ingredients!AF22/100 -> 0 | BL25: =Ingredients!AG22/100 -> 0 | BM25: =Ingredients!AH22/100 -> 0 | BN25: =Ingredients!AI22/100 -> 0 | BO25: =Ingredients!AJ22/100 -> 0 | BP25: =Ingredients!AK22/100 -> 0 | BQ25: =Ingredients!AL22/100 -> 0 | BR25: =Ingredients!AM22/100 -> 0 | BS25: =Ingredients!AN22/100 -> 0
B26: =Ingredients!B22 -> 0 | C26: =Ingredients!C22 -> 0 | D26: =Ingredients!D22 -> 0 | E26: 0 | F26: =Ingredients!E22 -> 0 | H26: =Nutrients!B24 -> dTSAA | I26: =Nutrients!C24 -> 10 | J26: =SUMPRODUCT($E$8:$E$32,BD7:BD31) -> 10 | K26: =Nutrients!D24 -> 1000 | L26: =Nutrients!E24 -> g/Kg | AH26: 0 | AI26: =Ingredients!B23 -> 0 | AJ26: =Ingredients!C23 -> 0 | AK26: =Ingredients!F23 -> 0 | AL26: =Ingredients!G23/100 -> 0 | AM26: =Ingredients!H23/100 -> 0 | AN26: =Ingredients!I23/100 -> 0 | AO26: =Ingredients!J23/100 -> 0 | AP26: =Ingredients!K23/100 -> 0 | AQ26: =Ingredients!L23/100 -> 0 | AR26: =Ingredients!M23/100 -> 0 | AS26: =Ingredients!N23/100 -> 0 | AT26: =Ingredients!O23/100 -> 0 | AU26: =Ingredients!P23/100 -> 0 | AV26: =Ingredients!Q23/100 -> 0 | AW26: =Ingredients!R23/100 -> 0 | AX26: =Ingredients!S23/100 -> 0 | AY26: =Ingredients!T23/100 -> 0 | AZ26: =Ingredients!U23/100 -> 0 | BA26: =Ingredients!V23/100 -> 0 | BB26: =Ingredients!W23/100 -> 0 | BC26: =Ingredients!X23/100 -> 0 | BD26: =Ingredients!Y23/100 -> 0 | BE26: =Ingredients!Z23/100 -> 0 | BF26: =Ingredients!AA23/100 -> 0 | BG26: =Ingredients!AB23/100 -> 0 | BH26: =Ingredients!AC23/100 -> 0 | BI26: =Ingredients!AD23/100 -> 0 | BJ26: =Ingredients!AE23/100 -> 0 | BK26: =Ingredients!AF23/100 -> 0 | BL26: =Ingredients!AG23/100 -> 0 | BM26: =Ingredients!AH23/100 -> 0 | BN26: =Ingredients!AI23/100 -> 0 | BO26: =Ingredients!AJ23/100 -> 0 | BP26: =Ingredients!AK23/100 -> 0 | BQ26: =Ingredients!AL23/100 -> 0 | BR26: =Ingredients!AM23/100 -> 0 | BS26: =Ingredients!AN23/100 -> 0
B27: =Ingredients!B23 -> 0 | C27: =Ingredients!C23 -> 0 | D27: =Ingredients!D23 -> 0 | E27: 0 | F27: =Ingredients!E23 -> 0 | H27: =Nutrients!B25 -> dTHR | I27: =Nutrients!C25 -> 8.8 | J27: =SUMPRODUCT($E$8:$E$32,BE7:BE31) -> 8.8 | K27: =Nutrients!D25 -> 1000 | L27: =Nutrients!E25 -> g/Kg | AH27: 0 | AI27: =Ingredients!B24 -> 0 | AJ27: =Ingredients!C24 -> 0 | AK27: =Ingredients!F24 -> 0 | AL27: =Ingredients!G24/100 -> 0 | AM27: =Ingredients!H24/100 -> 0 | AN27: =Ingredients!I24/100 -> 0 | AO27: =Ingredients!J24/100 -> 0 | AP27: =Ingredients!K24/100 -> 0 | AQ27: =Ingredients!L24/100 -> 0 | AR27: =Ingredients!M24/100 -> 0 | AS27: =Ingredients!N24/100 -> 0 | AT27: =Ingredients!O24/100 -> 0 | AU27: =Ingredients!P24/100 -> 0 | AV27: =Ingredients!Q24/100 -> 0 | AW27: =Ingredients!R24/100 -> 0 | AX27: =Ingredients!S24/100 -> 0 | AY27: =Ingredients!T24/100 -> 0 | AZ27: =Ingredients!U24/100 -> 0 | BA27: =Ingredients!V24/100 -> 0 | BB27: =Ingredients!W24/100 -> 0 | BC27: =Ingredients!X24/100 -> 0 | BD27: =Ingredients!Y24/100 -> 0 | BE27: =Ingredients!Z24/100 -> 0 | BF27: =Ingredients!AA24/100 -> 0 | BG27: =Ingredients!AB24/100 -> 0 | BH27: =Ingredients!AC24/100 -> 0 | BI27: =Ingredients!AD24/100 -> 0 | BJ27: =Ingredients!AE24/100 -> 0 | BK27: =Ingredients!AF24/100 -> 0 | BL27: =Ingredients!AG24/100 -> 0 | BM27: =Ingredients!AH24/100 -> 0 | BN27: =Ingredients!AI24/100 -> 0 | BO27: =Ingredients!AJ24/100 -> 0 | BP27: =Ingredients!AK24/100 -> 0 | BQ27: =Ingredients!AL24/100 -> 0 | BR27: =Ingredients!AM24/100 -> 0 | BS27: =Ingredients!AN24/100 -> 0
B28: =Ingredients!B24 -> 0 | C28: =Ingredients!C24 -> 0 | D28: =Ingredients!D24 -> 0 | E28: 0 | F28: =Ingredients!E24 -> 0 | H28: =Nutrients!B26 -> dTRP | I28: =Nutrients!C26 -> 2.1 | J28: =SUMPRODUCT($E$8:$E$32,BF7:BF31) -> 2.461510853 | K28: =Nutrients!D26 -> 1000 | L28: =Nutrients!E26 -> g/Kg | AH28: 0 | AI28: =Ingredients!B25 -> 0 | AJ28: =Ingredients!C25 -> 0 | AK28: =Ingredients!F25 -> 0 | AL28: =Ingredients!G25/100 -> 0 | AM28: =Ingredients!H25/100 -> 0 | AN28: =Ingredients!I25/100 -> 0 | AO28: =Ingredients!J25/100 -> 0 | AP28: =Ingredients!K25/100 -> 0 | AQ28: =Ingredients!L25/100 -> 0 | AR28: =Ingredients!M25/100 -> 0 | AS28: =Ingredients!N25/100 -> 0 | AT28: =Ingredients!O25/100 -> 0 | AU28: =Ingredients!P25/100 -> 0 | AV28: =Ingredients!Q25/100 -> 0 | AW28: =Ingredients!R25/100 -> 0 | AX28: =Ingredients!S25/100 -> 0 | AY28: =Ingredients!T25/100 -> 0 | AZ28: =Ingredients!U25/100 -> 0 | BA28: =Ingredients!V25/100 -> 0 | BB28: =Ingredients!W25/100 -> 0 | BC28: =Ingredients!X25/100 -> 0 | BD28: =Ingredients!Y25/100 -> 0 | BE28: =Ingredients!Z25/100 -> 0 | BF28: =Ingredients!AA25/100 -> 0 | BG28: =Ingredients!AB25/100 -> 0 | BH28: =Ingredients!AC25/100 -> 0 | BI28: =Ingredients!AD25/100 -> 0 | BJ28: =Ingredients!AE25/100 -> 0 | BK28: =Ingredients!AF25/100 -> 0 | BL28: =Ingredients!AG25/100 -> 0 | BM28: =Ingredients!AH25/100 -> 0 | BN28: =Ingredients!AI25/100 -> 0 | BO28: =Ingredients!AJ25/100 -> 0 | BP28: =Ingredients!AK25/100 -> 0 | BQ28: =Ingredients!AL25/100 -> 0 | BR28: =Ingredients!AM25/100 -> 0 | BS28: =Ingredients!AN25/100 -> 0
B29: =Ingredients!B25 -> 0 | C29: =Ingredients!C25 -> 0 | D29: =Ingredients!D25 -> 0 | E29: 0 | F29: =Ingredients!E25 -> 0 | H29: =Nutrients!B27 -> dARG | I29: 0 | J29: =SUMPRODUCT($E$8:$E$32,BG7:BG31) -> 13.85784501 | K29: =Nutrients!D27 -> 1000 | L29: =Nutrients!E27 -> g/Kg | AH29: 0 | AI29: =Ingredients!B26 -> 0 | AJ29: =Ingredients!C26 -> 0 | AK29: =Ingredients!F26 -> 0 | AL29: =Ingredients!G26/100 -> 0 | AM29: =Ingredients!H26/100 -> 0 | AN29: =Ingredients!I26/100 -> 0 | AO29: =Ingredients!J26/100 -> 0 | AP29: =Ingredients!K26/100 -> 0 | AQ29: =Ingredients!L26/100 -> 0 | AR29: =Ingredients!M26/100 -> 0 | AS29: =Ingredients!N26/100 -> 0 | AT29: =Ingredients!O26/100 -> 0 | AU29: =Ingredients!P26/100 -> 0 | AV29: =Ingredients!Q26/100 -> 0 | AW29: =Ingredients!R26/100 -> 0 | AX29: =Ingredients!S26/100 -> 0 | AY29: =Ingredients!T26/100 -> 0 | AZ29: =Ingredients!U26/100 -> 0 | BA29: =Ingredients!V26/100 -> 0 | BB29: =Ingredients!W26/100 -> 0 | BC29: =Ingredients!X26/100 -> 0 | BD29: =Ingredients!Y26/100 -> 0 | BE29: =Ingredients!Z26/100 -> 0 | BF29: =Ingredients!AA26/100 -> 0 | BG29: =Ingredients!AB26/100 -> 0 | BH29: =Ingredients!AC26/100 -> 0 | BI29: =Ingredients!AD26/100 -> 0 | BJ29: =Ingredients!AE26/100 -> 0 | BK29: =Ingredients!AF26/100 -> 0 | BL29: =Ingredients!AG26/100 -> 0 | BM29: =Ingredients!AH26/100 -> 0 | BN29: =Ingredients!AI26/100 -> 0 | BO29: =Ingredients!AJ26/100 -> 0 | BP29: =Ingredients!AK26/100 -> 0 | BQ29: =Ingredients!AL26/100 -> 0 | BR29: =Ingredients!AM26/100 -> 0 | BS29: =Ingredients!AN26/100 -> 0
B30: =Ingredients!B26 -> 0 | C30: =Ingredients!C26 -> 0 | D30: =Ingredients!D26 -> 0 | E30: 0 | F30: =Ingredients!E26 -> 0 | H30: =Nutrients!B28 -> dVAL | I30: 0 | J30: =SUMPRODUCT($E$8:$E$32,BH7:BH31) -> 9.257930801 | K30: =Nutrients!D28 -> 1000 | L30: =Nutrients!E28 -> g/Kg | AH30: 0 | AI30: =Ingredients!B27 -> 0 | AJ30: =Ingredients!C27 -> 0 | AK30: =Ingredients!F27 -> 0 | AL30: =Ingredients!G27/100 -> 0 | AM30: =Ingredients!H27/100 -> 0 | AN30: =Ingredients!I27/100 -> 0 | AO30: =Ingredients!J27/100 -> 0 | AP30: =Ingredients!K27/100 -> 0 | AQ30: =Ingredients!L27/100 -> 0 | AR30: =Ingredients!M27/100 -> 0 | AS30: =Ingredients!N27/100 -> 0 | AT30: =Ingredients!O27/100 -> 0 | AU30: =Ingredients!P27/100 -> 0 | AV30: =Ingredients!Q27/100 -> 0 | AW30: =Ingredients!R27/100 -> 0 | AX30: =Ingredients!S27/100 -> 0 | AY30: =Ingredients!T27/100 -> 0 | AZ30: =Ingredients!U27/100 -> 0 | BA30: =Ingredients!V27/100 -> 0 | BB30: =Ingredients!W27/100 -> 0 | BC30: =Ingredients!X27/100 -> 0 | BD30: =Ingredients!Y27/100 -> 0 | BE30: =Ingredients!Z27/100 -> 0 | BF30: =Ingredients!AA27/100 -> 0 | BG30: =Ingredients!AB27/100 -> 0 | BH30: =Ingredients!AC27/100 -> 0 | BI30: =Ingredients!AD27/100 -> 0 | BJ30: =Ingredients!AE27/100 -> 0 | BK30: =Ingredients!AF27/100 -> 0 | BL30: =Ingredients!AG27/100 -> 0 | BM30: =Ingredients!AH27/100 -> 0 | BN30: =Ingredients!AI27/100 -> 0 | BO30: =Ingredients!AJ27/100 -> 0 | BP30: =Ingredients!AK27/100 -> 0 | BQ30: =Ingredients!AL27/100 -> 0 | BR30: =Ingredients!AM27/100 -> 0 | BS30: =Ingredients!AN27/100 -> 0
B31: =Ingredients!B27 -> 0 | C31: =Ingredients!C27 -> 0 | D31: =Ingredients!D27 -> 0 | E31: 0 | F31: =Ingredients!E27 -> 0 | H31: =Nutrients!B29 -> TP:dLYS | I31: =Nutrients!C29 -> 0 | J31: =SUMPRODUCT($E$8:$E$32,BI7:BI31) -> 1.255939797e-14 | K31: =Nutrients!D29 -> 100 | L31: =Nutrients!E29 -> g/g | AH31: 0 | AI31: =Ingredients!B28 -> 0 | AJ31: =Ingredients!C28 -> 0 | AK31: =Ingredients!F28 -> 0 | AL31: =Ingredients!G28/100 -> 0 | AM31: =Ingredients!H28/100 -> 0 | AN31: =Ingredients!I28/100 -> 0 | AO31: =Ingredients!J28/100 -> 0 | AP31: =Ingredients!K28/100 -> 0 | AQ31: =Ingredients!L28/100 -> 0 | AR31: =Ingredients!M28/100 -> 0 | AS31: =Ingredients!N28/100 -> 0 | AT31: =Ingredients!O28/100 -> 0 | AU31: =Ingredients!P28/100 -> 0 | AV31: =Ingredients!Q28/100 -> 0 | AW31: =Ingredients!R28/100 -> 0 | AX31: =Ingredients!S28/100 -> 0 | AY31: =Ingredients!T28/100 -> 0 | AZ31: =Ingredients!U28/100 -> 0 | BA31: =Ingredients!V28/100 -> 0 | BB31: =Ingredients!W28/100 -> 0 | BC31: =Ingredients!X28/100 -> 0 | BD31: =Ingredients!Y28/100 -> 0 | BE31: =Ingredients!Z28/100 -> 0 | BF31: =Ingredients!AA28/100 -> 0 | BG31: =Ingredients!AB28/100 -> 0 | BH31: =Ingredients!AC28/100 -> 0 | BI31: =Ingredients!AD28/100 -> 0 | BJ31: =Ingredients!AE28/100 -> 0 | BK31: =Ingredients!AF28/100 -> 0 | BL31: =Ingredients!AG28/100 -> 0 | BM31: =Ingredients!AH28/100 -> 0 | BN31: =Ingredients!AI28/100 -> 0 | BO31: =Ingredients!AJ28/100 -> 0 | BP31: =Ingredients!AK28/100 -> 0 | BQ31: =Ingredients!AL28/100 -> 0 | BR31: =Ingredients!AM28/100 -> 0 | BS31: =Ingredients!AN28/100 -> 0
B32: =Ingredients!B28 -> 0 | C32: =Ingredients!C28 -> 0 | D32: =Ingredients!D28 -> 0 | E32: 0 | F32: =Ingredients!E28 -> 0 | H32: =Nutrients!B30 -> Total NSP | I32: =Nutrients!C30 -> 0 | J32: =SUMPRODUCT($E$8:$E$32,BJ7:BJ31) -> 114.2166608 | K32: =Nutrients!D30 -> 1000 | L32: =Nutrients!E30 -> g/Kg
H33: =Nutrients!B31 -> Soluble NSP | I33: =Nutrients!C31 -> 0 | J33: =SUMPRODUCT($E$8:$E$32,BK7:BK31) -> 22.27259689 | K33: =Nutrients!D31 -> 1000 | L33: =Nutrients!E31 -> g/Kg | AI33: Final Value | AK33: =SUMPRODUCT($E$8:$E$32,AK7:AK31) -> 100
B34: TOTAL | E34: =SUM(E8:E32) -> 100 | H34: =Nutrients!B32 -> Insoluble NSP | I34: =Nutrients!C32 -> 0 | J34: =SUMPRODUCT($E$8:$E$32,BL7:BL31) -> 92.29098736 | K34: =Nutrients!D32 -> 1000 | L34: =Nutrients!E32 -> g/Kg
H35: =Nutrients!B33 -> Lignin | I35: =Nutrients!C33 -> 0 | J35: =SUMPRODUCT($E$8:$E$32,BM7:BM31) -> 5.280484231 | K35: =Nutrients!D33 -> 1000 | L35: =Nutrients!E33 -> g/Kg
H36: =Nutrients!B34 -> 18:2 | I36: 0 | J36: =SUMPRODUCT($E$8:$E$32,BN7:BN31) -> 10.82993271 | K36: =Nutrients!D34 -> 1000 | L36: =Nutrients!E34 -> g/Kg
H37: =Nutrients!B35 -> Nutrient | I37: =Nutrients!C35 -> 0 | J37: =SUMPRODUCT($E$8:$E$32,BO7:BO31) -> 0 | K37: =Nutrients!D35 -> 100 | L37: =Nutrients!E35 -> 0 | AI37: COST= | AJ37: =SUM(AH7:AH31) -> 70729.10124
H38: =Nutrients!B36 -> Nutrient | I38: =Nutrients!C36 -> 0 | J38: =SUMPRODUCT($E$8:$E$32,BP7:BP31) -> 0 | K38: =Nutrients!D36 -> 100 | L38: =Nutrients!E36 -> 0
H39: =Nutrients!B37 -> Nutrient | I39: =Nutrients!C37 -> 0 | J39: =SUMPRODUCT($E$8:$E$32,BQ7:BQ31) -> 0 | K39: =Nutrients!D37 -> 100 | L39: =Nutrients!E37 -> 0
H40: =Nutrients!B38 -> Nutrient | I40: =Nutrients!C38 -> 0 | J40: =SUMPRODUCT($E$8:$E$32,BR7:BR31) -> 0 | K40: =Nutrients!D38 -> 100 | L40: =Nutrients!E38 -> 0
H41: =Nutrients!B39 -> Nutrient | I41: =Nutrients!C39 -> 0 | J41: =SUMPRODUCT($E$8:$E$32,BS7:BS31) -> 0 | K41: =Nutrients!D39 -> 100 | L41: =Nutrients!E39 -> 0

Sheet Enzymes
B1: UffdAu 3.0 | C1: =Ingredients!C1 -> Cost | D1: =Ingredients!D1 -> Min. | E1: =Ingredients!E1 -> Max. | F1: =Ingredients!F1 -> Weight | G1: =Ingredients!G1 -> Dry Matter | H1: =Ingredients!H1 -> AMEn | I1: =Ingredients!I1 -> Metabolisable Energy | J1: =Ingredients!J1 -> Net Energy | K1: =Ingredients!K1 -> Crude Protein | L1: =Ingredients!L1 -> True Protein | M1: =Ingredients!M1 -> Lipids | N1: =Ingredients!N1 -> Crude Fibre | O1: =Ingredients!O1 -> Calcium | P1: =Ingredients!P1 -> Total Phosphorous | Q1: =Ingredients!Q1 -> Available Phosphorous | R1: =Ingredients!R1 -> Ca:aP | S1: =Ingredients!S1 -> Na | T1: =Ingredients!T1 -> Cl | U1: =Ingredients!U1 -> Choline | V1: =Ingredients!V1 -> Betaine | W1: =Ingredients!W1 -> dLYS | X1: =Ingredients!X1 -> dMET | Y1: =Ingredients!Y1 -> dTSAA | Z1: =Ingredients!Z1 -> dTHR | AA1: =Ingredients!AA1 -> dTRP | AB1: =Ingredients!AB1 -> dARG | AC1: =Ingredients!AC1 -> dVAL | AD1: =Ingredients!AD1 -> TP:dLYS | AE1: =Ingredients!AE1 -> Total NSP | AF1: =Ingredients!AF1 -> Soluble NSP | AG1: =Ingredients!AG1 -> Insoluble NSP | AH1: =Ingredients!AH1 -> Lignin | AI1: =Ingredients!AI1 -> 18:2 | AJ1: =Ingredients!AJ1 -> Nutrient | AK1: =Ingredients!AK1 -> Nutrient | AL1: =Ingredients!AL1 -> Nutrient | AM1: =Ingredients!AM1 -> Nutrient | AN1: =Ingredients!AN1 -> Nutrient
AD2: =Ingredients!AD2 -> 15.92356688
A4: 1 | B4: In Row 8, enter the matrix values for your standard level of phytase | O4: Points Difining L-B Line | T4: Points on L-B Line | Y4: L-B Slope = | AA4: =(V6-V5)/(U6-U5) -> 131.7204301
A5: 2 | B5: Enter the value in Cell M6 for the total amount of phytate P in your diet without any enzymes | P5: Infinity | Q5: =M6 -> 2.48 | U5: 0 | V5: =1/Q5 -> 0.4032258065 | Y5: Km = | AA5: =AA4*Q5 -> 326.6666667
M6: 2.48 | N6: g/kg | P6: =A8 -> 500 | Q6: =Q8 -> 1.5 | U6: =1/P6 -> 0.002 | V6: =1/Q6 -> 0.6666666667
A8: 500 | B8: Phytase 500 | C8: 2000 | D8: 0 | E8: 0.05 | F8: 1 | G8: 998 | H8: 0.222 | I8: 0.222 | K8: 0.365 | L8: =(K8/6.25)*5.636 -> 0.3291424 | O8: 1.65 | P8: 2.65 | Q8: 1.5 | R8: 0.3616 | S8: 0.03 | W8: 0.15 | Y8: 0.33 | Z8: 0.29 | AA8: 0.17 | AB8: 0.11 | AC8: 0.2 | AD8: =W8-(1/AD$2*L8) -> 0.1293298573
A10: 3 | B10: The program solves the Lineweaver-Burk plot for Km, the Michaleas constant
A11: 4 | B11: Observe the Michaelis-Menten plot (below) to be sure the curve is the right shape
A12: 5 | B12: From the Michaelis-Menten plot, choose levels of phytase to consider using.
A13: 6 | B13: Enter possible phytase levels in cells A16 to A21 to update the matrix values based on phytase activity
G15: RESPONSE TO DIFFERENT LEVELS OF PHYTASE
A16: =A8 -> 500 | B16: Phytase 500 | C16: 2000 | D16: 0 | E16: 0.05 | F16: 1 | G16: 998 | H16: =H8 -> 0.222 | I16: 0.222 | J16: 0 | K16: 0.365 | L16: 0.3291424 | M16: 0 | N16: 0 | O16: 1.65 | P16: 0 | Q16: =Q8 -> 1.5 | R16: =R8 -> 0.3616 | S16: 0.03 | T16: 0 | U16: 0 | V16: 0 | W16: 0.15 | X16: 0 | Y16: 0.33 | Z16: 0.29 | AA16: 0.17 | AB16: 0.11 | AC16: 0.2 | AD16: 0.1293298573 | AE16: 0 | AF16: 0 | AG16: 0 | AH16: 0 | AI16: 0 | AJ16: 0 | AK16: 0 | AL16: 0 | AM16: 0 | AN16: 0
A17: 1000 | B17: Phytase 1000 | C17: =C16 -> 2000 | D17: 0 | E17: =E16 -> 0.05 | F17: 1 | G17: 998 | H17: =H16*$D178 -> 0.2766633166 | I17: 0.2766633166 | J17: 0 | K17: 0.4548743719 | L17: 0.4101875136 | M17: 0 | N17: 0 | O17: 2.056281407 | P17: 0 | Q17: 1.869346734 | R17: =R16*$D178 -> 0.4506371859 | S17: 0.03738693467 | T17: 0 | U17: 0 | V17: 0 | W17: 0.1869346734 | X17: 0 | Y17: 0.4112562814 | Z17: 0.3614070352 | AA17: 0.2118592965 | AB17: =AB16*$D178 -> 0.1370854271 | AC17: 0.2492462312 | AD17: 0.1611748975 | AE17: 0 | AF17: 0 | AG17: 0 | AH17: 0 | AI17: 0 | AJ17: 0 | AK17: 0 | AL17: =AL16*$D178 -> 0 | AM17: 0 | AN17: 0
A18: 1500 | B18: Phytase 1500 | C18: =C17 -> 2000 | D18: 0 | E18: =E17 -> 0.05 | F18: 1 | G18: 998 | H18: 0.3014014599 | I18: 0.3014014599 | J18: 0 | K18: 0.4955474453 | L18: 0.4468648642 | M18: 0 | N18: 0 | O18: 2.240145985 | P18: 0 | Q18: 2.03649635 | R18: 0.4909313869 | S18: 0.04072992701 | T18: 0 | U18: 0 | V18: 0 | W18: 0.203649635 | X18: 0 | Y18: 0.4480291971 | Z18: 0.3937226277 | AA18: 0.2308029197 | AB18: 0.1493430657 | AC18: 0.2715328467 | AD18: 0.1755865216 | AE18: 0 | AF18: 0 | AG18: 0 | AH18: 0 | AI18: 0 | AJ18: 0 | AK18: 0 | AL18: 0 | AM18: 0 | AN18: 0
A19: 2000 | B19: Phytase 2000 | C19: =C18 -> 2000 | D19: 0 | E19: =E18 -> 0.05 | F19: 1 | G19: 998 | H19: 0.3155071633 | I19: 0.3155071633 | J19: 0 | K19: 0.518739255 | L19: 0.4677783106 | M19: 0 | N19: 0 | O19: 2.344985673 | P19: 0 | Q19: 2.131805158 | R19: 0.5139071633 | S19: 0.04263610315 | T19: 0 | U19: 0 | V19: 0 | W19: 0.2131805158 | X19: 0 | Y19: 0.4689971347 | Z19: 0.4121489971 | AA19: 0.2416045845 | AB19: 0.1563323782 | AC19: 0.2842406877 | AD19: 0.1838040379 | AE19: 0 | AF19: 0 | AG19: 0 | AH19: 0 | AI19: 0 | AJ19: 0 | AK19: 0 | AL19: 0 | AM19: 0 | AN19: 0
A20: 2500 | B20: Phytase 2500 | C20: =C19 -> 2000 | D20: 0 | E20: =E19 -> 0.05 | F20: 1 | G20: 998 | H20: 0.3246226415 | I20: 0.3246226415 | J20: 0 | K20: 0.5337264151 | L20: 0.4812931321 | M20: 0 | N20: 0 | O20: 2.412735849 | P20: 0 | Q20: 2.193396226 | R20: 0.528754717 | S20: 0.04386792453 | T20: 0 | U20: 0 | V20: 0 | W20: 0.2193396226 | X20: 0 | Y20: 0.4825471698 | Z20: 0.4240566038 | AA20: 0.2485849057 | AB20: 0.1608490566 | AC20: 0.2924528302 | AD20: 0.1891144139 | AE20: 0 | AF20: 0 | AG20: 0 | AH20: 0 | AI20: 0 | AJ20: 0 | AK20: 0 | AL20: 0 | AM20: 0 | AN20: 0
A21: 3000 | B21: Phytase 3000 | C21: =C20 -> 2000 | D21: 0 | E21: =E20 -> 0.05 | F21: 1 | G21: 998 | H21: 0.330997996 | I21: 0.330997996 | J21: 0 | K21: 0.5442084168 | L21: 0.490745382 | M21: 0 | N21: 0 | O21: 2.46012024 | P21: 0 | Q21: 2.236472946 | R21: 0.5391390782 | S21: 0.04472945892 | T21: 0 | U21: 0 | V21: 0 | W21: 0.2236472946 | X21: 0 | Y21: 0.4920240481 | Z21: 0.4323847695 | AA21: 0.2534669339 | AB21: 0.164008016 | AC21: 0.2981963928 | AD21: 0.1928284846 | AE21: 0 | AF21: 0 | AG21: 0 | AH21: 0 | AI21: 0 | AJ21: 0 | AK21: 0 | AL21: 0 | AM21: 0 | AN21: 0
A23: 7 | B23: Notice how the martix values are updated just like the diminishing returns function (green line)
A24: 8 | B24: The values in lines 16 through 21 are for 0.05% phytase. | O24: `
B25: They are adjusted to the standard 1.00 used in the Ingredients data matrix,lines 34 to 39
D27: MARGINAL RESPONSE TO DIFFERENT LEVELS OF PHYTASE ADJUSTD TO WEIGHT = 1.000
A28: =A16 -> 500 | B28: Phytase 500 | C28: 2000 | D28: 0 | E28: 0.05 | F28: 1 | G28: 998 | H28: =H16/($E$8/100) -> 444 | I28: 444 | J28: =J16/($E$8/100) -> 0 | K28: 730 | L28: 658.2848 | M28: 0 | N28: 0 | O28: 3300 | P28: 0 | Q28: 3000 | R28: =R8/($E$8/100) -> 723.2 | S28: 60 | T28: 0 | U28: 0 | V28: 0 | W28: 300 | X28: 0 | Y28: 660 | Z28: 580 | AA28: 340 | AB28: 220 | AC28: 400 | AD28: 258.6597146 | AE28: 0 | AF28: 0 | AG28: 0 | AH28: 0 | AI28: 0 | AJ28: 0 | AK28: 0 | AL28: 0 | AM28: 0 | AN28: 0
A29: 1000 | B29: Phytase 1000 | C29: 2000 | D29: 0 | E29: 0.05 | F29: 1 | G29: 998 | H29: 553.3266332 | I29: 553.3266332 | J29: =J17/($E$8/100) -> 0 | K29: 909.7487437 | L29: 820.3750271 | M29: 0 | N29: 0 | O29: 4112.562814 | P29: 0 | Q29: 3738.693467 | R29: 901.2743719 | S29: 74.77386935 | T29: 0 | U29: 0 | V29: 0 | W29: 373.8693467 | X29: 0 | Y29: 822.5125628 | Z29: 722.8140704 | AA29: 423.718593 | AB29: 274.1708543 | AC29: 498.4924623 | AD29: 322.349795 | AE29: 0 | AF29: 0 | AG29: 0 | AH29: 0 | AI29: 0 | AJ29: 0 | AK29: 0 | AL29: 0 | AM29: 0 | AN29: 0
A30: 1500 | B30: Phytase 1500 | C30: 2000 | D30: 0 | E30: 0.05 | F30: 1 | G30: 998 | H30: 602.8029197 | I30: 602.8029197 | J30: =J18/($E$8/100) -> 0 | K30: 991.0948905 | L30: 893.7297285 | M30: 0 | N30: 0 | O30: 4480.291971 | P30: 0 | Q30: 4072.992701 | R30: 981.8627737 | S30: 81.45985401 | T30: 0 | U30: 0 | V30: 0 | W30: 407.2992701 | X30: 0 | Y30: 896.0583942 | Z30: 787.4452555 | AA30: 461.6058394 | AB30: 298.6861314 | AC30: 543.0656934 | AD30: 351.1730431 | AE30: 0 | AF30: 0 | AG30: 0 | AH30: 0 | AI30: 0 | AJ30: 0 | AK30: 0 | AL30: 0 | AM30: 0 | AN30: 0
A31: 2000 | B31: Phytase 2000 | C31: 2000 | D31: 0 | E31: 0.05 | F31: 1 | G31: 998 | H31: 631.0143266 | I31: 631.0143266 | J31: =J19/($E$8/100) -> 0 | K31: 1037.47851 | L31: 935.5566212 | M31: 0 | N31: 0 | O31: 4689.971347 | P31: 0 | Q31: 4263.610315 | R31: 1027.814327 | S31: 85.2722063 | T31: 0 | U31: 0 | V31: 0 | W31: 426.3610315 | X31: 0 | Y31: 937.9942693 | Z31: 824.2979943 | AA31: 483.2091691 | AB31: 312.6647564 | AC31: 568.4813754 | AD31: 367.6080757 | AE31: 0 | AF31: 0 | AG31: 0 | AH31: 0 | AI31: 0 | AJ31: 0 | AK31: 0 | AL31: 0 | AM31: 0 | AN31: 0
A32: 2500 | B32: Phytase 2500 | C32: 2000 | D32: 0 | E32: 0.05 | F32: 1 | G32: 998 | H32: 649.245283 | I32: 649.245283 | J32: =J20/($E$8/100) -> 0 | K32: 1067.45283 | L32: 962.5862642 | M32: 0 | N32: 0 | O32: 4825.471698 | P32: 0 | Q32: 4386.792453 | R32: 1057.509434 | S32: 87.73584906 | T32: 0 | U32: 0 | V32: 0 | W32: 438.6792453 | X32: 0 | Y32: 965.0943396 | Z32: 848.1132075 | AA32: 497.1698113 | AB32: 321.6981132 | AC32: 584.9056604 | AD32: 378.2288279 | AE32: 0 | AF32: 0 | AG32: 0 | AH32: 0 | AI32: 0 | AJ32: 0 | AK32: 0 | AL32: 0 | AM32: 0 | AN32: 0
A33: 3000 | B33: Phytase 3000 | C33: 2000 | D33: 0 | E33: 0.05 | F33: 1 | G33: 998 | H33: 661.995992 | I33: 661.995992 | J33: =J21/($E$8/100) -> 0 | K33: 1088.416834 | L33: 981.4907639 | M33: 0 | N33: 0 | O33: 4920.240481 | P33: 0 | Q33: 4472.945892 | R33: 1078.278156 | S33: 89.45891784 | T33: 0 | U33: 0 | V33: 0 | W33: 447.2945892 | X33: 0 | Y33: 984.0480962 | Z33: 864.7695391 | AA33: 506.9338677 | AB33: 328.0160321 | AC33: 596.3927856 | AD33: 385.6569692 | AE33: 0 | AF33: 0 | AG33: 0 | AH33: 0 | AI33: 0 | AJ33: 0 | AK33: 0 | AL33: 0 | AM33: 0 | AN33: 0
A34: =A28 -> 500 | B34: Phytase 500 | C34: 2000 | D34: 0 | E34: 0.05 | F34: 1 | G34: =G16 -> 998 | H34: =H28-H27 -> 444 | I34: 444 | J34: =J16 -> 0 | K34: =K28 -> 730 | L34: 658.2848 | M34: 0 | N34: 0 | O34: 3300 | P34: 0 | Q34: 3000 | R34: 723.2 | S34: 60 | T34: 0 | U34: 0 | V34: 0 | W34: 300 | X34: 0 | Y34: 660 | Z34: 580 | AA34: 340 | AB34: 220 | AC34: 400 | AD34: 258.6597146 | AE34: 0 | AF34: 0 | AG34: 0 | AH34: 0 | AI34: 0 | AJ34: 0 | AK34: 0 | AL34: 0 | AM34: 0 | AN34: 0
A35: 1000 | B35: Phytase 1000 | C35: 2000 | D35: 0 | E35: 0.05 | F35: 1 | G35: =G29 -> 998 | H35: 109.3266332 | I35: 109.3266332 | J35: 0 | K35: 179.7487437 | L35: 162.0902271 | M35: 0 | N35: 0 | O35: 812.5628141 | P35: 0 | Q35: 738.6934673 | R35: 178.0743719 | S35: 14.77386935 | T35: 0 | U35: 0 | V35: 0 | W35: 73.86934673 | X35: 0 | Y35: 162.5125628 | Z35: 142.8140704 | AA35: 83.71859296 | AB35: 54.17085427 | AC35: 98.49246231 | AD35: 63.69008047 | AE35: 0 | AF35: 0 | AG35: 0 | AH35: 0 | AI35: 0 | AJ35: 0 | AK35: 0 | AL35: 0 | AM35: 0 | AN35: 0
A36: 1500 | B36: Phytase 1500 | C36: 2000 | D36: 0 | E36: 0.05 | F36: 1 | G36: =G30 -> 998 | H36: 49.47628654 | I36: 49.47628654 | J36: 0 | K36: 81.34614679 | L36: 73.35470133 | M36: 0 | N36: 0 | O36: 367.7291567 | P36: 0 | Q36: 334.2992334 | R36: 80.58840186 | S36: 6.685984668 | T36: 0 | U36: 0 | V36: 0 | W36: 33.42992334 | X36: 0 | Y36: 73.54583135 | Z36: 64.63118512 | AA36: 37.88724645 | AB36: 24.51527712 | AC36: 44.57323112 | AD36: 28.8232481 | AE36: 0 | AF36: 0 | AG36: 0 | AH36: 0 | AI36: 0 | AJ36: 0 | AK36: 0 | AL36: 0 | AM36: 0 | AN36: 0
A37: 2000 | B37: Phytase 2000 | C37: 2000 | D37: 0 | E37: 0.05 | F37: 1 | G37: =G31 -> 998 | H37: 28.21140694 | I37: 28.21140694 | J37: 0 | K37: 46.38361952 | L37: 41.82689274 | M37: 0 | N37: 0 | O37: 209.6793759 | P37: 0 | Q37: 190.6176145 | R37: 45.95155292 | S37: 3.812352289 | T37: 0 | U37: 0 | V37: 0 | W37: 19.06176145 | X37: 0 | Y37: 41.93587518 | Z37: 36.85273879 | AA37: 21.60332964 | AB37: 13.97862506 | AC37: 25.41568193 | AD37: 16.43503258 | AE37: 0 | AF37: 0 | AG37: 0 | AH37: 0 | AI37: 0 | AJ37: 0 | AK37: 0 | AL37: 0 | AM37: 0 | AN37: 0
A38: 2500 | B38: Phytase 2500 | C38: 2000 | D38: 0 | E38: 0.05 | F38: 1 | G38: =G32 -> 998 | H38: 18.23095637 | I38: 18.23095637 | J38: 0 | K38: 29.97432016 | L38: 27.02964295 | M38: 0 | N38: 0 | O38: 135.5003514 | P38: 0 | Q38: 123.1821376 | R38: 29.69510731 | S38: 2.463642753 | T38: 0 | U38: 0 | V38: 0 | W38: 12.31821376 | X38: 0 | Y38: 27.10007028 | Z38: 23.81521328 | AA38: 13.96064227 | AB38: 9.033356761 | AC38: 16.42428502 | AD38: 10.62075219 | AE38: 0 | AF38: 0 | AG38: 0 | AH38: 0 | AI38: 0 | AJ38: 0 | AK38: 0 | AL38: 0 | AM38: 0 | AN38: 0
A39: 3000 | B39: Phytase 3000 | C39: 2000 | D39: 0 | E39: 0.05 | F39: 1 | G39: =G33 -> 998 | H39: 12.75070897 | I39: 12.75070897 | J39: 0 | K39: 20.96400348 | L39: 18.90449978 | M39: 0 | N39: 0 | O39: 94.76878285 | P39: 0 | Q39: 86.15343895 | R39: 20.76872235 | S39: 1.723068779 | T39: 0 | U39: 0 | V39: 0 | W39: 8.615343895 | X39: 0 | Y39: 18.95375657 | Z39: 16.65633153 | AA39: 9.764056415 | AB39: 6.317918857 | AC39: 11.48712519 | AD39: 7.428141309 | AE39: 0 | AF39: 0 | AG39: 0 | AH39: 0 | AI39: 0 | AJ39: 0 | AK39: 0 | AL39: 0 | AM39: 0 | AN39: 0
A41: 9 | B41: Copy the phytase marginal response data in the yellow cells (above) to the ACTIVE INGREDIENT COMPOSITION MATRIX on the Ingredients spreadsheet
B42: Use the "Paste Special" and "Values" options when pasting
A43: 10 | B43: Formulate a diet and observe the usage levels of phytase
B45: Michaelis-Menten Plot of Enzyme Kinetics | V45: Lineweaver-Burk Plot
AI46: =1/2.65 -> 0.3773584906
W120: L-B Plot
B121: M-M Plot
B122: -300 | C122: =($Q$5*B122)/($AA$5+B122) -> -27.9
B123: -200 | C123: -3.915789474 | W123: =1/B122 -> -0.003333333333 | X123: -0.03584229391
B124: -100 | C124: -1.094117647 | W124: -0.005 | X124: -0.2553763441
B125: 0 | C125: 0 | W125: -0.01 | X125: -0.9139784946
B126: 100 | C126: 0.58125 | E126: -0.004 | F126: =1446.5*E126+3.7736 -> -2.0124
B127: =B126+100 -> 200 | C127: 0.9417721519 | E127: =E126+0.0005 -> -0.0035 | F127: -1.28915 | W127: 0.01 | X127: 1.720430108
B128: =B127+100 -> 300 | C128: 1.187234043 | E128: =E127+0.0005 -> -0.003 | F128: -0.5659 | W128: 0.005 | X128: 1.061827957
B129: 400 | C129: 1.365137615 | E129: -0.0025 | F129: 0.15735 | W129: 0.003333333333 | X129: 0.8422939068
B130: 500 | C130: 1.5 | E130: -0.002 | F130: 0.8806 | W130: 0.0025 | X130: 0.7325268817
B131: 600 | C131: 1.605755396 | E131: -0.0015 | F131: 1.60385 | W131: 0.002 | X131: 0.6666666667
B132: 700 | C132: 1.690909091 | E132: -0.001 | F132: 2.3271 | W132: 0.001666666667 | X132: 0.6227598566
B133: 800 | C133: 1.760946746 | E133: -0.0005 | F133: 3.05035 | W133: 0.001428571429 | X133: 0.5913978495
B134: 900 | C134: 1.819565217 | E134: 0 | F134: 3.7736 | W134: 0.00125 | X134: 0.5678763441
B135: 1000 | C135: 1.869346734 | E135: 0.0005 | F135: 4.49685 | W135: 0.001111111111 | X135: 0.5495818399
B136: 1100 | C136: 1.912149533 | E136: 0.001 | F136: 5.2201 | W136: 0.001 | X136: 0.5349462366
B137: 1200 | C137: 1.949344978 | E137: 0.0015 | F137: 5.94335 | W137: 0.0009090909091 | X137: 0.522971652
B138: 1300 | C138: 1.981967213 | E138: 0.002 | F138: =1446.5*E138+3.7736 -> 6.6666 | W138: 0.0008333333333 | X138: 0.5129928315
B139: 1400 | C139: 2.010810811 | E139: 0.0025 | F139: 7.38985 | W139: =1/B138 -> 0.0007692307692 | X139: 0.5045492142
B140: 1500 | C140: 2.03649635 | E140: 0.003 | F140: 8.1131 | W140: 0.0007142857143 | X140: 0.497311828
B141: 1600 | C141: 2.059515571 | E141: 0.0035 | F141: 8.83635 | W141: 0.0006666666667 | X141: 0.4910394265
B142: 1700 | C142: 2.080263158 | E142: 0.004 | F142: 9.5596 | W142: 0.000625 | X142: 0.4855510753
B143: 1800 | C143: 2.099059561 | E143: 0.0045 | F143: 10.28285 | W143: 0.0005882352941 | X143: 0.4807084124
B144: 1900 | C144: 2.116167665 | E144: 0.005 | F144: 11.0061 | W144: 0.0005555555556 | X144: 0.4764038232
B145: 2000 | C145: 2.131805158 | E145: 0.0055 | F145: 11.72935 | W145: 0.0005263157895 | X145: 0.4725523486
B146: 2100 | C146: 2.146153846 | E146: 0.006 | F146: 12.4526 | W146: 0.0005 | X146: 0.4690860215
B147: 2200 | C147: 2.159366755 | E147: 0.0065 | F147: 13.17585 | W147: 0.0004761904762 | X147: 0.4659498208
B148: 2300 | C148: 2.171573604 | E148: 0.007 | F148: 13.8991 | W148: 0.0004545454545 | X148: 0.4630987292
B149: 2400 | C149: 2.182885086 | E149: 0.0075 | F149: 14.62235 | W149: 0.0004347826087 | X149: 0.4604955587
B150: 2500 | C150: 2.193396226 | W150: 0.0004166666667 | X150: 0.458109319
B151: 2600 | C151: 2.203189066 | W151: 0.0004 | X151: 0.4559139785
B152: 2700 | C152: 2.212334802 | W152: 0.0003846153846 | X152: 0.4538875103
B153: 2800 | C153: 2.220895522 | W153: 0.0003703703704 | X153: 0.4520111509
B154: 2900 | C154: 2.22892562 | W154: 0.0003571428571 | X154: 0.4502688172
B155: 3000 | C155: 2.236472946 | W155: 0.0003448275862 | X155: 0.4486466444
B156: 3100 | C156: 2.243579767 | W156: 0.0003333333333 | X156: 0.4471326165
B157: 3200 | C157: 2.250283554 | W157: 0.0003225806452 | X157: 0.4457162678
B158: 3300 | C158: 2.256617647 | W158: 0.0003125 | X158: 0.4443884409
B159: 3400 | C159: 2.262611807 | W159: 0.000303030303 | X159: 0.4431410883
B160: 3500 | C160: 2.268292683 | W160: 0.0002941176471 | X160: 0.4419671094
B161: 3600 | C161: 2.273684211 | W161: 0.0002857142857 | X161: 0.4408602151
B162: 3700 | C162: 2.278807947 | W162: 0.0002777777778 | X162: 0.4398148148
B163: 3800 | C163: 2.28368336 | W163: 0.0002702702703 | X163: 0.4388259227
B164: 3900 | C164: 2.288328076 | W164: 0.0002631578947 | X164: 0.4378890775
B165: 4000 | C165: 2.292758089 | W165: 0.0002564102564 | X165: 0.4370002757
B166: 4100 | C166: 2.296987952 | W166: 0.00025 | X166: 0.436155914
B167: 4200 | C167: 2.301030928 | W167: 0.000243902439 | X167: 0.4353527406
B168: 4300 | C168: 2.304899135 | W168: 0.0002380952381 | X168: 0.4345878136
B169: 4400 | C169: 2.308603667 | W169: 0.0002325581395 | X169: 0.4338584646
B170: 4500 | C170: 2.312154696 | W170: 0.0002272727273 | X170: 0.4331622678
B171: 4600 | C171: 2.31556157 | W171: 0.0002222222222 | X171: 0.4324970131
B172: 4700 | C172: 2.318832891 | W172: 0.0002173913043 | X172: 0.4318606826
B173: 4800 | C173: 2.321976593 | W173: 0.0002127659574 | X173: 0.4312514299
B174: 4900 | C174: 2.325 | W174: 0.0002083333333 | X174: 0.4306675627
B175: 5000 | C175: 2.327909887 | W175: 0.0002040816327 | X175: 0.4301075269
B177: =A16 -> 500 | C177: =($Q$5*B177)/($AA$5+B177) -> 1.5 | E177: = Available P from 500 units
B178: 1000 | C178: 1.869346734 | D178: =C178/C177 -> 1.246231156 | E178: = Marginal increase
B179: 1500 | C179: 2.03649635 | D179: =C179/C178 -> 1.089416058
B180: 2000 | C180: 2.131805158 | D180: =C180/C179 -> 1.046800382
B181: 2500 | C181: 2.193396226 | D181: =C181/C180 -> 1.028891509
B182: 3000 | C182: 2.236472946 | D182: =C182/C181 -> 1.019639279

Sheet Coefficients
A1: Ingredient | B1: Digestibility Coefficients | J1: Total AA contents [Batal A. & N. Dale, 2015 Feedstuffs ingredients analysis] | R1: Total N | S1: Ka
B2: LYS | C2: MET | D2: TSAA | E2: THR | F2: TRP | G2: ARG | H2: VAL | J2: LYS | K2: MET | L2: TSAA | M2: THR | N2: TRP | O2: ARG | P2: VAL
A3: BAKERY MEAL [CR] | B3: 59.06 | C3: 83.4 | D3: 78.43 | E3: 69.01 | F3: 83.97 | G3: 80.46 | H3: 76.66 | J3: 3 | K3: 1.6 | L3: 3.2 | M3: 2.8 | N3: 0.9 | O3: 4 | P3: 4 | R3: 1.6 | S3: 5.73
A4: BARLEY (>10% CP) [CR] | B4: 79.04 | C4: 78.73 | D4: 80.66 | E4: 76.95 | F4: 0 | G4: 84.29 | H4: 81.26 | J4: 5.3 | K4: 1.8 | L4: 4.3 | M4: 3.6 | N4: 1.7 | O4: 5 | P4: 6.2 | R4: 1.84 | S4: 5.72
A5: BLOOD MEAL (Flash Ring) [CR] | B5: 88.48 | C5: 91.57 | D5: 85.56 | E5: 88.91 | F5: 88.82 | G5: 89.36 | H5: 89.82 | J5: 88.5 | K5: 7.5 | L5: 16.1 | M5: 39 | N5: 13 | O5: 38 | P5: 86 | R5: 14.224 | S5: 5.49
A6: BLOOD MEAL (Vat) [CR] | B6: 58.12 | C6: 67.43 | D6: 50.09 | E6: 59.34 | F6: 66.8 | G6: 66.52 | H6: 55.71 | J6: 69 | K6: 10 | L6: 24 | M6: 38 | N6: 10 | O6: 23.5 | P6: 52 | R6: 12.8 | S6: 5.49
A7: BREWERS GRAINS [CR] | B7: 61.86 | C7: 77.62 | D7: 76.11 | E7: 72.53 | F7: 0 | G7: 63.17 | H7: 78.12 | J7: 9 | K7: 6 | L7: 15 | M7: 10 | N7: 4 | O7: 13 | P7: 16.9 | R7: 4.464 | S7: 5.55
A8: CAMELINA MEAL [CR] | B8: 91.41 | C8: 94.61 | D8: 90.1 | E8: 84.91 | F8: 91.23 | G8: 95.37 | H8: 89.31 | J8: 15.4 | K8: 6.1 | L8: 12.7 | M8: 13 | N8: 4.2 | O8: 26.2 | P8: 16.1 | R8: 5.424 | S8: 5.54
A9: CANOLA MEAL [CR] | B9: 78.8 | C9: 88.79 | D9: 80.6 | E9: 77.75 | F9: 83.1 | G9: 88.46 | H9: 83.15 | J9: 20.2 | K9: 7.7 | L9: 17.4 | M9: 15 | N9: 4.6 | O9: 23 | P9: 19.4 | R9: 6.08 | S9: 5.53
A10: CASEIN [CR] | B10: 92.79 | C10: 93.81 | D10: 92.87 | E10: 92.76 | F10: 91.14 | G10: 95.65 | H10: 93.72 | J10: 70 | K10: 27 | L10: 30 | M10: 38 | N10: 10 | O10: 34 | P10: 68 | R10: 12.8 | S10: 6.15
A11: CORN [CR] | B11: 82.67 | C11: 92.08 | D11: 87.54 | E11: 83.95 | F11: 81.36 | G11: 90.98 | H11: 88.27 | J11: 2.4 | K11: 1.8 | L11: 3.6 | M11: 2.9 | N11: 0.7 | O11: 4 | P11: 4.2 | R11: 1.2 | S11: 5.68
A12: Corn DDGS [CR] | B12: 70 | C12: 85.7 | D12: 80.2 | E12: 71.92 | F12: 76.23 | G12: 79.49 | H12: 80.04 | J12: 8 | K12: 5.1 | L12: 11.3 | M12: 9.2 | N12: 2 | O12: 11 | P12: 13.3 | R12: 4.32 | S12: 5.74
A13: CORN GLUTEN FEED [CR] | B13: 70.23 | C13: 83.92 | D13: 72.84 | E13: 75.2 | F13: 0 | G13: 88.1 | H13: 81.73 | J13: 6 | K13: 5 | L13: 11 | M13: 9 | N13: 1 | O13: 10 | P13: 10.4 | R13: 3.36 | S13: 5.59
A14: CORN GLUTEN MEAL [CR] | B14: 88.13 | C14: 95.81 | D14: 91.71 | E14: 91.3 | F14: 84.85 | G14: 94.5 | H14: 94.15 | J14: 10 | K14: 19 | L14: 29 | M14: 20 | N14: 3 | O14: 19 | P14: 27 | R14: 9.6 | S14: 5.5
A15: COTTONSEED MEAL [CR] | B15: 62.81 | C15: 71.89 | D15: 71.4 | E15: 67.16 | F15: 80.26 | G15: 85.29 | H15: 76.29 | J15: 17 | K15: 5.1 | L15: 11.3 | M15: 13.4 | N15: 5.2 | O15: 46.6 | P15: 18.2 | R15: 6.56 | S15: 5.52
A16: FEATHER MEAL [CR] | B16: 65.61 | C16: 74.31 | D16: 62.98 | E16: 73.54 | F16: 81.85 | G16: 83.38 | H16: 82.28 | J16: 20.5 | K16: 6.5 | L16: 46.5 | M16: 38 | N16: 5 | O16: 57.5 | P16: 57.5 | R16: 13.6 | S16: 5.49
A17: FISH MEAL, Menhaden [CR] | B17: 90.21 | C17: 92.86 | D17: 89.08 | E17: 91.19 | F17: 88.34 | G17: 92.57 | H17: 92.37 | J17: 47 | K17: 17 | L17: 22 | M17: 27.5 | N17: 5 | O17: 36.5 | P17: 28 | R17: 9.92 | S17: 5.5
A18: MEAT & BONE MEAL (High Quality) [CR] | B18: 83.46 | C18: 87.66 | D18: 80.91 | E18: 82.17 | F18: 79.07 | G18: 86.21 | H18: 84.85 | J18: 26 | K18: 6.7 | L18: 10 | M18: 17 | N18: 2.6 | O18: 33.5 | P18: 22.5 | R18: 8 | S18: 5.37
A19: MEAT & BONE MEAL (Low Quality) [CR] | B19: 76.95 | C19: 81.12 | D19: 75.73 | E19: 77.43 | F19: 79.67 | G19: 82 | H19: 78.99 | J19: 22 | K19: 5.3 | L19: 7.9 | M19: 15.8 | N19: 1.8 | O19: 27 | P19: 24 | R19: 7.2 | S19: 5.37
A20: OAT GROATS [CR] | B20: 79.76 | C20: 89.57 | D20: 85.82 | E20: 83.18 | F20: 0 | G20: 91.89 | H20: 87.88 | J20: 4.5 | K20: 2 | L20: 4.6 | M20: 5 | N20: 1.8 | O20: 9 | P20: 6.5 | R20: 2.56 | S20: 5.63
A21: OATS [CR] | B21: 86.66 | C21: 85.92 | D21: 84.44 | E21: 83.05 | F21: 78 | G21: 93.16 | H21: 86.52 | J21: 4 | K21: 2 | L21: 4.1 | M21: 2.8 | N21: 1.8 | O21: 8 | P21: 6.2 | R21: 1.68 | S21: 5.52
A22: PEANUT MEAL [CR] | B22: 77.77 | C22: 85.34 | D22: 81.08 | E22: 83.16 | F22: 80.56 | G22: 89.15 | H22: 88.74 | J22: 15.2 | K22: 5 | L22: 11 | M22: 11.2 | N22: 4.2 | O22: 47.6 | P22: 18 | R22: 7.52 | S22: 5.52
A23: POULTRY BY-PROD, feed grade [CR] | B23: 76.44 | C23: 82.78 | D23: 72.24 | E23: 77.01 | F23: 77.3 | G23: 86.26 | H23: 81.51 | J23: 22.5 | K23: 9.1 | L23: 18.1 | M23: 18.8 | N23: 5 | O23: 35 | P23: 23.2 | R23: 8.48 | S23: 5.45
A24: RAPESEED MEAL [CR] | B24: 79.15 | C24: 93.39 | D24: 81.72 | E24: 78.86 | F24: 80.37 | G24: 85.43 | H24: 83.69 | J24: 21.2 | K24: 6.7 | L24: 12.1 | M24: 16 | N24: 4.6 | O24: 20.4 | P24: 18.1 | R24: 5.76 | S24: 5.35
A25: RICE (Rough) [CR] | B25: 79.65 | C25: 89.58 | D25: 87.32 | E25: 81.66 | F25: 90.8 | G25: 92.36 | H25: 87.16 | J25: 2.4 | K25: 1.4 | L25: 2.2 | M25: 2.7 | N25: 1.2 | O25: 5.9 | P25: 4.6 | R25: 1.168 | S25: 5.37
A26: SOYBEAN MEAL (44% CP) [CR] | B26: 89.15 | C26: 89.35 | D26: 83.77 | E26: 82.48 | F26: 84.5 | G26: 90.02 | H26: 86.52 | J26: 27 | K26: 6.5 | L26: 17.3 | M26: 17 | N26: 6 | O26: 34 | P26: 24 | R26: 7.04 | S26: 5.52
A27: SOYBEAN MEAL (48% CP) [CR] | B27: 90.8 | C27: 92.21 | D27: 87.98 | E27: 88.48 | F27: 88.57 | G27: 92.83 | H27: 90.89 | J27: 30.2 | K27: 7 | L27: 14.1 | M27: 20 | N27: 7 | O27: 36 | P27: 27 | R27: 7.648 | S27: 5.64
A28: SOYBEANS (Full Fat) [CR] | B28: 87.84 | C28: 86.19 | D28: 81.49 | E28: 84.18 | F28: 87.57 | G28: 89.87 | H28: 85.34 | J28: 24 | K28: 5.4 | L28: 10.9 | M28: 16.9 | N28: 5.2 | O28: 28 | P28: 20.2 | R28: 6.08 | S28: 5.53
A29: SESAMESEED MEAL [CR] | B29: 85 | C29: 41.6 | D29: 41.6 | E29: 8.2 | F29: 0 | G29: 48 | H29: 37.1 | J29: 13 | K29: 12 | L29: 17.9 | M29: 16.5 | N29: 8 | O29: 49 | P29: 24.1 | R29: 7.008 | S29: 5.52
A30: SORGHUM [CR] | B30: 72.93 | C30: 84.87 | D30: 80.04 | E30: 76.59 | F30: 79.13 | G30: 80.11 | H30: 82.37 | J30: 2.7 | K30: 1 | L30: 3 | M30: 2.7 | N30: 0.9 | O30: 4 | P30: 5.3 | R30: 1.76 | S30: 5.93
A31: SUNFLOWER MEAL [CR] | B31: 80.37 | C31: 91.15 | D31: 86 | E31: 83.72 | F31: 0 | G31: 93.07 | H31: 85.75 | J31: 17 | K31: 15 | L31: 22 | M31: 15 | N31: 5 | O31: 35 | P31: 23 | R31: 6.72 | S31: 5.54
A32: TRITICALE [CR] | B32: 91.53 | C32: 90.23 | D32: 84.02 | E32: 89.18 | F32: 89.3 | G32: 86.78 | H32: 88.42 | J32: 3.9 | K32: 2.6 | L32: 5.2 | M32: 3.6 | N32: 1.4 | O32: 4.8 | P32: 5.1 | R32: 2 | S32: 5.56
A33: WHEAT, hard, grain [CR] | B33: 81.76 | C33: 87.94 | D33: 88.08 | E33: 83.09 | F33: 88.36 | G33: 87.43 | H33: 86.4 | J33: 4 | K33: 2.5 | L33: 5.5 | M33: 3.5 | N33: 1.8 | O33: 6 | P33: 6.9 | R33: 2.16 | S33: 5.49
A34: WHEAT BRAN [CR] | B34: 74.94 | C34: 78.29 | D34: 76.03 | E34: 74.35 | F34: 82.29 | G34: 84.43 | H34: 76.18 | J34: 6 | K34: 2 | L34: 5 | M34: 4.8 | N34: 3 | O34: 10.7 | P34: 7 | R34: 2.368 | S34: 5.2
A35: WHEAT MIDDLINGS [CR] | B35: 79.41 | C35: 79.86 | D35: 81.2 | E35: 77.87 | F35: 83.92 | G35: 86.51 | H35: 79.49 | J35: 7 | K35: 1.2 | L35: 3.1 | M35: 5 | N35: 2 | O35: 10 | P35: 8 | R35: 2.4 | S35: 5.62
A36: WHEAT SHORTS [CR] | B36: 81.28 | C36: 80.07 | D36: 74.54 | E36: 78.77 | F36: 84.73 | G36: 87.14 | H36: 81.78 | J36: 7.8 | K36: 1.8 | L36: 4.3 | M36: 5 | N36: 2.3 | O36: 9.5 | P36: 7.7 | R36: 2.56 | S36: 5.63
J37: 0 | K37: 0 | L37: 0 | M37: 0 | N37: 0 | O37: 0 | P37: 0
A38: BARLEY [SID] | B38: 88 | C38: 88 | D38: 89 | E38: 85 | F38: 85 | G38: 85 | H38: 85 | J38: 5.3 | K38: 1.8 | L38: 4.3 | M38: 3.6 | N38: 1.7 | O38: 5 | P38: 6.2 | R38: 1.84 | S38: 5.72
A39: BLOOD MEAL CP <80% [SID] | B39: 86 | C39: 91 | D39: 83 | E39: 88 | F39: 85 | G39: 87 | H39: 88 | J39: 69 | K39: 10 | L39: 24 | M39: 38 | N39: 10 | O39: 23.5 | P39: 52 | R39: 12.8 | S39: 5.49
A40: BLOOD MEAL CP >80% [SID] | B40: 86 | C40: 91 | D40: 83 | E40: 88 | F40: 85 | G40: 87 | H40: 88 | J40: 88.5 | K40: 7.5 | L40: 16.1 | M40: 39 | N40: 13 | O40: 38 | P40: 86 | R40: 14.224 | S40: 5.49
A41: BREWERS GRAINS. DRIED [SID] | B41: 62 | C41: 77 | D41: 76 | E41: 63 | F41: 67 | G41: 63 | H41: 78 | J41: 9 | K41: 6 | L41: 15 | M41: 10 | N41: 4 | O41: 13 | P41: 16.9 | R41: 4.464 | S41: 5.55
A42: CASEIN [SID] | B42: 97 | C42: 99 | D42: 95 | E42: 98 | F42: 95 | G42: 97 | H42: 98 | J42: 70 | K42: 27 | L42: 30 | M42: 38 | N42: 10 | O42: 34 | P42: 68 | R42: 12.8 | S42: 6.15
A43: CORN [SID] | B43: 92 | C43: 94 | D43: 90 | E43: 85 | F43: 81 | G43: 93 | H43: 92 | J43: 2.4 | K43: 1.8 | L43: 3.6 | M43: 2.9 | N43: 0.7 | O43: 4 | P43: 4.2 | R43: 1.2 | S43: 5.68
A44: Corn DDGS [SID] | B44: 75 | C44: 86 | D44: 82 | E44: 72 | F44: 80 | G44: 73 | H44: 81 | J44: 8 | K44: 5.1 | L44: 11.3 | M44: 9.2 | N44: 2 | O44: 11 | P44: 13.3 | R44: 4.32 | S44: 5.74
A45: CORN GLUTEN FEED [SID] | B45: 72 | C45: 85 | D45: 75 | E45: 76 | F45: 86 | G45: 88 | H45: 84 | J45: 6 | K45: 5 | L45: 11 | M45: 9 | N45: 1 | O45: 10 | P45: 10.4 | R45: 3.36 | S45: 5.59
A46: CORN GLUTEN MEAL. CP 60% [SID] | B46: 76 | C46: 88 | D46: 83 | E46: 79 | F46: 66 | G46: 86 | H46: 85 | J46: 10 | K46: 19 | L46: 29 | M46: 20 | N46: 3 | O46: 19 | P46: 27 | R46: 9.6 | S46: 5.5
A47: COTTONSEED MEAL | B47: 65 | C47: 72 | D47: 73 | E47: 68 | F47: 80 | G47: 88 | H47: 74 | J47: 17 | K47: 5.1 | L47: 11.3 | M47: 13.4 | N47: 5.2 | O47: 46.6 | P47: 18.2 | R47: 6.56 | S47: 5.52
A48: FEATHER MEAL [SID] | B48: 57 | C48: 61 | D48: 51 | E48: 53 | F48: 46 | G48: 68 | H48: 67 | J48: 20.5 | K48: 6.5 | L48: 46.5 | M48: 38 | N48: 5 | O48: 57.5 | P48: 57.5 | R48: 13.6 | S48: 5.49
A49: FISH MEAL, Menhaden [SID] | B49: 86 | C49: 86 | D49: 82 | E49: 80 | F49: 78 | G49: 82 | H49: 83 | J49: 47 | K49: 17 | L49: 22 | M49: 27.5 | N49: 5 | O49: 36.5 | P49: 28 | R49: 9.92 | S49: 5.5
A50: MEAT & BONE MEAL. CP<45% [SID] | B50: 69 | C50: 72 | D50: 62 | E50: 62 | F50: 53 | G50: 77 | H50: 70 | J50: 22 | K50: 5.3 | L50: 7.9 | M50: 15.8 | N50: 1.8 | O50: 27 | P50: 24 | R50: 7.2 | S50: 5.37
A51: MEAT & BONE MEAL. CP>50% [SID] | B51: 69 | C51: 72 | D51: 62 | E51: 62 | F51: 53 | G51: 77 | H51: 70 | J51: 26 | K51: 6.7 | L51: 10 | M51: 17 | N51: 2.6 | O51: 33.5 | P51: 22.5 | R51: 8 | S51: 5.37
A52: MEAT MEAL [SID] | B52: 84 | C52: 85 | D52: 72 | E52: 80 | F52: 79 | G52: 85 | H52: 84 | J52: 30 | K52: 7.5 | L52: 14.1 | M52: 17.4 | N52: 3.6 | O52: 37 | P52: 23 | R52: 8.704 | S52: 5.51
A53: OATS [SID] | B53: 87 | C53: 87 | D53: 85 | E53: 84 | F53: 80 | G53: 94 | H53: 88 | J53: 4 | K53: 2 | L53: 4.1 | M53: 2.8 | N53: 1.8 | O53: 8 | P53: 6.2 | R53: 1.68 | S53: 5.52
A54: PEANUT MEAL [SID] | B54: 76 | C54: 86 | D54: 82 | E54: 85 | F54: 87 | G54: 91 | H54: 89 | J54: 15.2 | K54: 5 | L54: 11 | M54: 11.2 | N54: 5 | O54: 47.6 | P54: 18 | R54: 7.52 | S54: 5.52
A55: POULTRY BY-PRODUCT MEAL [SID] | B55: 80 | C55: 83 | D55: 75 | E55: 77 | F55: 78 | G55: 84 | H55: 79 | J55: 24.72 | K55: 7.5 | L55: 0 | M55: 16.28 | N55: 3.92 | O55: 31.6 | P55: 23.18 | R55: 8.8 | S55: 5.45
A56: RAPESEED MEAL [SID] | B56: 80 | C56: 84 | D56: 80 | E56: 73 | F56: 80 | G56: 87 | H56: 79 | J56: 21.2 | K56: 6.7 | L56: 12.1 | M56: 16 | N56: 4.6 | O56: 20.4 | P56: 18.1 | R56: 5.76 | S56: 5.35
A57: RICE [SID] | B57: 80 | C57: 87 | D57: 86 | E57: 81 | F57: 86 | G57: 91 | H57: 85 | J57: 2.4 | K57: 1.4 | L57: 2.2 | M57: 2.7 | N57: 1.2 | O57: 5.9 | P57: 4.6 | R57: 1.168 | S57: 5.37
A58: RICE BRAN [SID] | B58: 74 | C58: 77 | D58: 72 | E58: 69 | F58: 79 | G58: 86 | H58: 75 | J58: 5.9 | K58: 2 | L58: 3 | M58: 4.8 | N58: 1.5 | O58: 8.9 | P58: 7.5 | R58: 2.064 | S58: 5.67
A59: SOYBEAN MEAL (44% CP) [SID] | B59: 90 | C59: 91 | D59: 86 | E59: 85 | F59: 89 | G59: 93 | H59: 88 | J59: 27 | K59: 6.5 | L59: 13.2 | M59: 17 | N59: 6 | O59: 34 | P59: 24 | R59: 7.04 | S59: 5.64
A60: SOYBEAN MEAL (48% CP) [SID] | B60: 90 | C60: 91 | D60: 86 | E60: 85 | F60: 89 | G60: 93 | H60: 88 | J60: 30.2 | K60: 7 | L60: 14.1 | M60: 20 | N60: 7 | O60: 36 | P60: 27 | R60: 7.648 | S60: 5.64
A61: SOYBEANS (Full Fat) [SID] | B61: 87 | C61: 88 | D61: 83 | E61: 82 | F61: 86 | G61: 90 | H61: 85 | J61: 24 | K61: 6.4 | L61: 13 | M61: 18.8 | N61: 6.2 | O61: 28 | P61: 20.2 | R61: 6.08 | S61: 5.53
A62: SUNFLOWER MEAL [SID] | B62: 87 | C62: 92 | D62: 87 | E62: 82 | F62: 87 | G62: 93 | H62: 87 | J62: 17 | K62: 15 | L62: 22 | M62: 15 | N62: 5 | O62: 35 | P62: 23 | R62: 6.72 | S62: 5.54
A63: TRITICALE [SID] | B63: 85 | C63: 90 | D63: 88 | E63: 87 | F63: 86 | G63: 83 | H63: 87 | J63: 3.9 | K63: 2.2 | L63: 5.2 | M63: 3.6 | N63: 1.4 | O63: 4.8 | P63: 5.1 | R63: 2 | S63: 5.56
A64: WHEAT [SID] | B64: 86 | C64: 91 | D64: 91 | E64: 87 | F64: 86 | G64: 85 | H64: 90 | J64: 4 | K64: 2.5 | L64: 5.5 | M64: 3.5 | N64: 1.8 | O64: 6 | P64: 6.9 | R64: 2.16 | S64: 5.49
A65: WHEAT BRAN [SID] | B65: 73 | C65: 80 | D65: 76 | E65: 74 | F65: 82 | G65: 82 | H65: 77 | J65: 6 | K65: 2 | L65: 5 | M65: 4.8 | N65: 3 | O65: 10.7 | P65: 7 | R65: 2.368 | S65: 5.2
A66: WHEAT MIDDLINGS [SID] | B66: 80 | C66: 83 | D66: 78 | E66: 73 | F66: 79 | G66: 80 | H66: 77 | J66: 7 | K66: 1.2 | L66: 3.1 | M66: 5 | N66: 2 | O66: 10 | P66: 8 | R66: 2.4 | S66: 5.62
A68: BIOLYS® | R68: 12 | S68: =R68/R71*S71 -> 3.677730193
A69: DL-METHIONINE | R69: 9.296 | S69: 6.25
A70: METHIONINE MHA | R70: 7.888 | S70: 9.37
A71: L-LYSINE HCL | R71: 14.944 | S71: 4.58
A72: L-THREONINE | R72: 11.584 | S72: 7.22
A73: L-TRYPTOPHAN | R73: 13.44 | S73: 6.65
A74: L-VALINE | R74: 11.5408 | S74: 7.08
A79: =Ingredients!B149 -> FAT, VEGETABLE | R79: 13.44 | S79: 6.25
A80: =Ingredients!B150 -> DICAL. PHOS. | R80: 11.5408 | S80: 6.25

Sheet Feed Spec
B1: UffdAu 3.0 | H1: =NOW() -> 2024-01-15T14:00:06.910 | K1: Instructions | P1: =C4 -> Broiler Starter, 0 to 10 Days | Z1: Broiler Starter, 0 to 10 Days | AA1: Broiler Grower, 11 to 24 Days | AB1: Broiler Grower, 25 Days to Mkt. | AC1: Pullet Starter | AD1: Pullet Grower | AE1: Pullet Pre-Lay | AF1: Turkey Starter (Standard) | AG1: Turkey Starter (HD) | AH1: Turkey Grower (Standard) | AI1: Turkey Grower (HD) | AJ1: Turkey Finisher (Standard) | AK1: Turkey Finisher (HD) | AL1: Layer Phase 1 (105g) | AM1: Layer Phase 1 (120g) | AN1: Layer Phase 3 (105g) | AO1: Layer Phase 3 (120g) | AP1: Broiler Breeder Starter | AQ1: Broiler Breeder Grower | AR1: Broiler Breeder Developer | AS1: Broiler Breeder Layer I | AT1: Broiler Breeder Layer II | AU1: Broiler Breeder Roosters
O2: =B10 -> Wheat | P2: =E10 -> 51.338792 | Z2: 48.9089865 | AA2: 54.88292717 | AB2: 60.90680111 | AC2: 63.09406653 | AD2: 67.31859359 | AE2: 68.9358278 | AF2: 16.09745694 | AG2: 5.824583207 | AH2: 28.35671114 | AI2: 18.87378664 | AJ2: 56.4731368 | AK2: 41.76189946 | AL2: 58.37844295 | AM2: 69.67679973 | AN2: 62.78504159 | AO2: 72.24284152 | AP2: 65.4447362 | AQ2: 70.87095924 | AR2: 73.53671878 | AS2: 72.62236351 | AT2: 73.58017527 | AU2: 74.44940101
O3: =B11 -> Soybean Meal (local) | P3: =E11 -> 40.15896595 | Z3: 42.4048773 | AA3: 36.58685692 | AB3: 30.75638105 | AC3: 31.44731615 | AD3: 24.2108754 | AE3: 21.33440282 | AF3: 67.03535945 | AG3: 76.25039885 | AH3: 56.31087508 | AI3: 64.83425432 | AJ3: 33.42035759 | AK3: 41.71460116 | AL3: 26.68823775 | AM3: 18.42920098 | AN3: 22.12675231 | AO3: 14.82144217 | AP3: 28.3878934 | AQ3: 15.90556784 | AR3: 16.47714604 | AS3: 16.70522534 | AT3: 15.22977352 | AU3: 11.30335362
C4: =Formulate!D4 -> Broiler Starter, 0 to 10 Days | O4: Meat and Bone Meal | P4: 2 | Z4: 2 | AA4: 2 | AB4: 2 | AC4: 2 | AD4: 2 | AE4: 2 | AF4: 2 | AG4: 2 | AH4: 2 | AI4: 2 | AJ4: 2 | AK4: 2 | AL4: 2 | AM4: 2 | AN4: 2 | AO4: 2 | AP4: 2 | AQ4: 2 | AR4: 2 | AS4: 2 | AT4: 2 | AU4: 2
B5: Feed Name: | H5: Feed Cost: | J5: =Formulate!I1 -> 707.2910124 | O5: Mixed Recycled Vegetable Oil | P5: 2.811982899 | Z5: 3.088036038 | AA5: 3.741501691 | AB5: 3.645761817 | AC5: 0.175769804 | AD5: 0 | AE5: 0 | AF5: 9.413647216 | AG5: 10.47733797 | AH5: 8.841697818 | AI5: 9.833122418 | AJ5: 4.436810114 | AK5: 10.91182943 | AL5: 2.229960654 | AM5: 0.4744799866 | AN5: 1.365612273 | AO5: 0 | AP5: 0 | AQ5: 0 | AR5: 0 | AS5: 0.2689188231 | AT5: 0.3486405158 | AU5: 0
O6: Salt | P6: 0.4 | Z6: 0.4 | AA6: 0.4 | AB6: 0.4 | AC6: 0.4 | AD6: 0.4 | AE6: 0.4 | AF6: 0.4 | AG6: 0.4 | AH6: 0.4 | AI6: 0.4 | AJ6: 0.4 | AK6: 0.4 | AL6: 0.4 | AM6: 0.4 | AN6: 0.4 | AO6: 0.4 | AP6: 0.4 | AQ6: 0.4 | AR6: 0.4 | AS6: 0.4 | AT6: 0.4 | AU6: 0.4
O7: Vitamin Premix | P7: 0.05 | Z7: 0.05 | AA7: 0.05 | AB7: 0.05 | AC7: 0.05 | AD7: 0.05 | AE7: 0.05 | AF7: 0.05 | AG7: 0.05 | AH7: 0.05 | AI7: 0.05 | AJ7: 0.05 | AK7: 0.05 | AL7: 0.05 | AM7: 0.05 | AN7: 0.05 | AO7: 0.05 | AP7: 0.05 | AQ7: 0.05 | AR7: 0.05 | AS7: 0.05 | AT7: 0.05 | AU7: 0.05
B8: =Formulate!B6 -> Ingredient | C8: =Formulate!C6 -> Cost | D8: =Formulate!D6 -> Min. | E8: =Formulate!E6 -> Amount | F8: =Formulate!F6 -> Max. | H8: =Formulate!H6 -> Nutrient | I8: =Formulate!L6 -> Units | J8: Min. | K8: Amount | L8: Max. | O8: Trace Mineral Premix | P8: 0.075 | Z8: 0.075 | AA8: 0.075 | AB8: 0.075 | AC8: 0.075 | AD8: 0.075 | AE8: 0.075 | AF8: 0.075 | AG8: 0.075 | AH8: 0.075 | AI8: 0.075 | AJ8: 0.075 | AK8: 0.075 | AL8: 0.075 | AM8: 0.075 | AN8: 0.075 | AO8: 0.075 | AP8: 0.075 | AQ8: 0.075 | AR8: 0.075 | AS8: 0.075 | AT8: 0.075 | AU8: 0.075
C9: =Formulate!C7 -> $/Ton | D9: =Formulate!D7 -> % | E9: =Formulate!E7 -> % | F9: =Formulate!F7 -> % | O9: Limestone, Fine | P9: 0.5954216417 | Z9: 0.5976816848 | AA9: 0.3419590445 | AB9: 0.2802365867 | AC9: 0.8929404407 | AD9: 4.230480966 | AE9: 5.25534968 | AF9: 1.139578992 | AG9: 1.148621114 | AH9: 0.9556027031 | AI9: 0.9639805248 | AJ9: 0.7185782833 | AK9: 0.7225566906 | AL9: 8.685153312 | AM9: 7.588415665 | AN9: 9.844822543 | AO9: 9.182065868 | AP9: 1.779935974 | AQ9: 9.071863367 | AR9: 5.818765479 | AS9: 6.240134912 | AT9: 6.902825802 | AU9: 10.01252952
B10: =Formulate!B8 -> Wheat | C10: =Formulate!C8 -> 380 | D10: =Formulate!D8 -> 0 | E10: =Formulate!E8 -> 51.338792 | F10: =Formulate!F8 -> 100 | H10: =Formulate!H8 -> Dry Matter | I10: =Formulate!L8 -> % | J10: =Formulate!I8 -> 0 | K10: =Formulate!J8 -> 902.5775267 | L10: =Formulate!K8 -> 1000 | O10: Dicalcium Phosphate | P10: 1.650269144 | Z10: 1.630660585 | AA10: 1.225472359 | AB10: 0.934546761 | AC10: 1.43218793 | AD10: 1.394115612 | AE10: 1.710348811 | AF10: 2.923621694 | AG10: 2.844263979 | AH10: 2.214880355 | AI10: 2.141410744 | AJ10: 1.716898616 | AK10: 1.665231514 | AL10: 1.223693687 | AM10: 1.001542365 | AN10: 1.036858207 | AO10: 0.8664473662 | AP10: 1.462367753 | AQ10: 1.429130218 | AR10: 1.41226445 | AS10: 1.412687185 | AT10: 1.199306235 | AU10: 1.47437571
B11: =Formulate!B9 -> Soybean Meal (local) | C11: =Formulate!C9 -> 875 | D11: =Formulate!D9 -> 0 | E11: =Formulate!E9 -> 40.15896595 | F11: =Formulate!F9 -> 100 | H11: =Formulate!H9 -> AMEn | I11: =Formulate!L9 -> MJ/Kg | J11: =Formulate!I9 -> 12.4 | K11: =Formulate!J9 -> 12.4 | L11: =Formulate!K9 -> 100 | O11: DL-Methionine | P11: 0.4386899298 | Z11: 0.4239844047 | AA11: 0.3814760193 | AB11: 0.4205646951 | AC11: 0.253549436 | AD11: 0.2002682335 | AE11: 0.1830891169 | AF11: 0.4280934431 | AG11: 0.4870264089 | AH11: 0.3843247702 | AI11: 0.4252925367 | AJ11: 0.2787105872 | AK11: 0.3180487757 | AL11: 0.2449779982 | AM11: 0.1996258302 | AN11: 0.2357266378 | AO11: 0.1969324875 | AP11: 0.2052352904 | AQ11: 0.1240126844 | AR11: 0.1377081697 | AS11: 0.1378274272 | AT11: 0.1273177754 | AU11: 0.1230668081
B12: =Formulate!B10 -> Meat and Bone Meal | C12: =Formulate!C10 -> 800 | D12: =Formulate!D10 -> 0 | E12: =Formulate!E10 -> 2 | F12: =Formulate!F10 -> 2 | H12: =Formulate!H10 -> Metabolisable Energy | I12: =Formulate!L10 -> MJ/Kg | J12: =Formulate!I10 -> 0 | K12: =Formulate!J10 -> 14.42307575 | L12: =Formulate!K10 -> 100 | O12: L-LysineHCl | P12: 0.2858790427 | Z12: 0.2499632334 | AA12: 0.2226383004 | AB12: 0.3750093536 | AC12: 0.1298697368 | AD12: 0.0856328155 | AE12: 0.03686532168 | AF12: 0.1807493169 | AG12: 0.1730650636 | AH12: 0.1624341562 | AI12: 0.1341266701 | AJ12: 0.2081198024 | AK12: 0.1517253581 | AL12: 0 | AM12: 0.0686241108 | AN12: 0.04576746499 | AO12: 0.1152822994 | AP12: 0.1098102846 | AQ12: 0.03646098339 | AR12: 0.04973254768 | AS12: 0.04590897713 | AT12: 0.04779014497 | AU12: 0.03223210829
B13: =Formulate!B11 -> Mixed Recycled Vegetable Oil | C13: =Formulate!C11 -> 1240 | D13: =Formulate!D11 -> 0 | E13: =Formulate!E11 -> 2.811982899 | F13: =Formulate!F11 -> 100 | H13: =Formulate!H11 -> Net Energy | I13: =Formulate!L11 -> MJ/Kg | J13: =Formulate!I11 -> 0 | K13: =Formulate!J11 -> 8.03268552 | L13: =Formulate!K11 -> 100 | O13: L-Threonine | P13: 0.1949993947 | Z13: 0.170810254 | AA13: 0.09216849697 | AB13: 0.1556986238 | AC13: 0.04929997175 | AD13: 0.0350333763 | AE13: 0.01911645433 | AF13: 0.2564929502 | AG13: 0.2697034039 | AH13: 0.2484739823 | AI13: 0.2690261406 | AJ13: 0.2223882087 | AK13: 0.229107609 | AL13: 0.02453365639 | AM13: 0.03631133002 | AN13: 0.03441897146 | AO13: 0.04816763276 | AP13: 0.08473059521 | AQ13: 0.03700566807 | AR13: 0.042664531 | AS13: 0.04193382504 | AT13: 0.03917073493 | AU13: 0.08004122417
B14: =Formulate!B12 -> Salt | C14: =Formulate!C12 -> 117 | D14: =Formulate!D12 -> 0.4 | E14: =Formulate!E12 -> 0.4 | F14: =Formulate!F12 -> 0.4 | H14: =Formulate!H12 -> Crude Protein | I14: =Formulate!L12 -> g/Kg | J14: =Formulate!I12 -> 230 | K14: =Formulate!J12 -> 230 | L14: =Formulate!K12 -> 1000 | O14: L-Tryptophan | P14: 0 | Z14: 0 | AA14: 0 | AB14: 0 | AC14: 0 | AD14: 0 | AE14: 0 | AF14: 0 | AG14: 0 | AH14: 0 | AI14: 0 | AJ14: 0 | AK14: 0 | AL14: 0 | AM14: 0 | AN14: 0 | AO14: 0.001820652156 | AP14: 0.0002905049952 | AQ14: 0 | AR14: 0 | AS14: 0 | AT14: 0 | AU14: 0
B15: =Formulate!B13 -> Vitamin Premix | C15: =Formulate!C13 -> 7200 | D15: =Formulate!D13 -> 0.05 | E15: =Formulate!E13 -> 0.05 | F15: =Formulate!F13 -> 0.05 | H15: =Formulate!H13 -> True Protein | I15: =Formulate!L13 -> g/Kg | J15: =Formulate!I13 -> 0 | K15: =Formulate!J13 -> 207.4047695 | L15: =Formulate!K13 -> 1000 | O15: 0 | P15: 0 | Z15: 0 | AA15: 0 | AB15: 0 | AC15: 0 | AD15: 0 | AE15: 0 | AF15: 0 | AG15: 0 | AH15: 0 | AI15: 0 | AJ15: 0 | AK15: 0 | AL15: 0 | AM15: 0 | AN15: 0 | AO15: 0 | AP15: 0 | AQ15: 0 | AR15: 0 | AS15: 0 | AT15: 0 | AU15: 0
B16: =Formulate!B14 -> Trace Mineral Premix | C16: =Formulate!C14 -> 2120 | D16: =Formulate!D14 -> 0.075 | E16: =Formulate!E14 -> 0.075 | F16: =Formulate!F14 -> 0.075 | H16: =Formulate!H14 -> Lipids | I16: =Formulate!L14 -> g/Kg | J16: =Formulate!I14 -> 0 | K16: =Formulate!J14 -> 20.64425513 | L16: =Formulate!K14 -> 1000 | O16: 0 | P16: 0 | Z16: 0 | AA16: 0 | AB16: 0 | AC16: 0 | AD16: 0 | AE16: 0 | AF16: 0 | AG16: 0 | AH16: 0 | AI16: 0 | AJ16: 0 | AK16: 0 | AL16: 0 | AM16: 0 | AN16: 0 | AO16: 0 | AP16: 0 | AQ16: 0 | AR16: 0 | AS16: 0 | AT16: 0 | AU16: 0
B17: =Formulate!B15 -> Limestone, Fine | C17: =Formulate!C15 -> 104 | D17: =Formulate!D15 -> 0 | E17: =Formulate!E15 -> 0.5954216417 | F17: =Formulate!F15 -> 100 | H17: =Formulate!H15 -> Crude Fibre | I17: =Formulate!L15 -> g/Kg | J17: =Formulate!I15 -> 0 | K17: =Formulate!J15 -> 21.71655568 | L17: =Formulate!K15 -> 1000 | O17: 0 | P17: 0 | Z17: 0 | AA17: 0 | AB17: 0 | AC17: 0 | AD17: 0 | AE17: 0 | AF17: 0 | AG17: 0 | AH17: 0 | AI17: 0 | AJ17: 0 | AK17: 0 | AL17: 0 | AM17: 0 | AN17: 0 | AO17: 0 | AP17: 0 | AQ17: 0 | AR17: 0 | AS17: 0 | AT17: 0 | AU17: 0
B18: =Formulate!B16 -> Dicalcium Phosphate | C18: =Formulate!C16 -> 1920 | D18: =Formulate!D16 -> 0 | E18: =Formulate!E16 -> 1.650269144 | F18: =Formulate!F16 -> 100 | H18: =Formulate!H16 -> Calcium | I18: =Formulate!L16 -> g/Kg | J18: =Formulate!I16 -> 9.5 | K18: =Formulate!J16 -> 9.5 | L18: =Formulate!K16 -> 1000 | O18: 0 | P18: 0 | Z18: 0 | AA18: 0 | AB18: 0 | AC18: 0 | AD18: 0 | AE18: 0 | AF18: 0 | AG18: 0 | AH18: 0 | AI18: 0 | AJ18: 0 | AK18: 0 | AL18: 0 | AM18: 0 | AN18: 0 | AO18: 0 | AP18: 0 | AQ18: 0 | AR18: 0 | AS18: 0 | AT18: 0 | AU18: 0
B19: =Formulate!B17 -> DL-Methionine | C19: =Formulate!C17 -> 9600 | D19: =Formulate!D17 -> 0 | E19: =Formulate!E17 -> 0.4386899298 | F19: =Formulate!F17 -> 100 | H19: =Formulate!H17 -> Total Phosphorous | I19: =Formulate!L17 -> g/Kg | J19: =Formulate!I17 -> 0 | K19: =Formulate!J17 -> 7.439876714 | L19: =Formulate!K17 -> 100 | O19: 0 | P19: 0 | Z19: 0 | AA19: 0 | AB19: 0 | AC19: 0 | AD19: 0 | AE19: 0 | AF19: 0 | AG19: 0 | AH19: 0 | AI19: 0 | AJ19: 0 | AK19: 0 | AL19: 0 | AM19: 0 | AN19: 0 | AO19: 0 | AP19: 0 | AQ19: 0 | AR19: 0 | AS19: 0 | AT19: 0 | AU19: 0
B20: =Formulate!B18 -> L-LysineHCl | C20: =Formulate!C18 -> 5400 | D20: =Formulate!D18 -> 0 | E20: =Formulate!E18 -> 0.2858790427 | F20: =Formulate!F18 -> 100 | H20: =Formulate!H18 -> Available Phosphorous | I20: =Formulate!L18 -> g/Kg | J20: =Formulate!I18 -> 5 | K20: =Formulate!J18 -> 5 | L20: =Formulate!K18 -> 100 | O20: 0 | P20: 0 | Z20: 0 | AA20: 0 | AB20: 0 | AC20: 0 | AD20: 0 | AE20: 0 | AF20: 0 | AG20: 0 | AH20: 0 | AI20: 0 | AJ20: 0 | AK20: 0 | AL20: 0 | AM20: 0 | AN20: 0 | AO20: 0 | AP20: 0 | AQ20: 0 | AR20: 0 | AS20: 0 | AT20: 0 | AU20: 0
B21: =Formulate!B19 -> L-Threonine | C21: =Formulate!C19 -> 7400 | D21: =Formulate!D19 -> 0 | E21: =Formulate!E19 -> 0.1949993947 | F21: =Formulate!F19 -> 100 | H21: =Formulate!H19 -> Ca:aP | I21: =Formulate!L19 -> g/Kg | J21: =Formulate!I19 -> -100 | K21: =Formulate!J19 -> 0.25 | L21: =Formulate!K19 -> 100 | O21: 0 | P21: 0 | Z21: 0 | AA21: 0 | AB21: 0 | AC21: 0 | AD21: 0 | AE21: 0 | AF21: 0 | AG21: 0 | AH21: 0 | AI21: 0 | AJ21: 0 | AK21: 0 | AL21: 0 | AM21: 0 | AN21: 0 | AO21: 0 | AP21: 0 | AQ21: 0 | AR21: 0 | AS21: 0 | AT21: 0 | AU21: 0
B22: =Formulate!B20 -> L-Tryptophan | C22: =Formulate!C20 -> 30000 | D22: =Formulate!D20 -> 0 | E22: =Formulate!E20 -> 0 | F22: =Formulate!F20 -> 100 | H22: =Formulate!H20 -> Na | I22: =Formulate!L20 -> mg/g | J22: =Formulate!I20 -> 1.8 | K22: =Formulate!J20 -> 1.859981906 | L22: =Formulate!K20 -> 100 | O22: 0 | P22: 0 | Z22: 0 | AA22: 0 | AB22: 0 | AC22: 0 | AD22: 0 | AE22: 0 | AF22: 0 | AG22: 0 | AH22: 0 | AI22: 0 | AJ22: 0 | AK22: 0 | AL22: 0 | AM22: 0 | AN22: 0 | AO22: 0 | AP22: 0 | AQ22: 0 | AR22: 0 | AS22: 0 | AT22: 0 | AU22: 0
B23: =Formulate!B21 -> 0 | C23: =Formulate!C21 -> 0 | D23: =Formulate!D21 -> 0 | E23: =Formulate!E21 -> 0 | F23: =Formulate!F21 -> 0 | H23: =Formulate!H21 -> Cl | I23: =Formulate!L21 -> mg/Kg | J23: =Formulate!I21 -> 1.8 | K23: =Formulate!J21 -> 3.78655365 | L23: =Formulate!K21 -> 100 | O23: 0 | P23: 0 | Z23: 0 | AA23: 0 | AB23: 0 | AC23: 0 | AD23: 0 | AE23: 0 | AF23: 0 | AG23: 0 | AH23: 0 | AI23: 0 | AJ23: 0 | AK23: 0 | AL23: 0 | AM23: 0 | AN23: 0 | AO23: 0 | AP23: 0 | AQ23: 0 | AR23: 0 | AS23: 0 | AT23: 0 | AU23: 0
B24: =Formulate!B22 -> 0 | C24: =Formulate!C22 -> 0 | D24: =Formulate!D22 -> 0 | E24: =Formulate!E22 -> 0 | F24: =Formulate!F22 -> 0 | H24: =Formulate!H22 -> Choline | I24: =Formulate!L22 -> mg/Kg | J24: =Formulate!I22 -> 1700 | K24: =Formulate!J22 -> 1840.763117 | L24: =Formulate!K22 -> 10000 | O24: 0 | P24: 0 | Z24: 0 | AA24: 0 | AB24: 0 | AC24: 0 | AD24: 0 | AE24: 0 | AF24: 0 | AG24: 0 | AH24: 0 | AI24: 0 | AJ24: 0 | AK24: 0 | AL24: 0 | AM24: 0 | AN24: 0 | AO24: 0 | AP24: 0 | AQ24: 0 | AR24: 0 | AS24: 0 | AT24: 0 | AU24: 0
B25: =Formulate!B23 -> 0 | C25: =Formulate!C23 -> 0 | D25: =Formulate!D23 -> 0 | E25: =Formulate!E23 -> 0 | F25: =Formulate!F23 -> 0 | H25: =Formulate!H23 -> Betaine | I25: =Formulate!L23 -> mg/Kg | J25: =Formulate!I23 -> 0 | K25: =Formulate!J23 -> 1570.967035 | L25: =Formulate!K23 -> 10000 | O25: 0 | P25: 0 | Z25: 0 | AA25: 0 | AB25: 0 | AC25: 0 | AD25: 0 | AE25: 0 | AF25: 0 | AG25: 0 | AH25: 0 | AI25: 0 | AJ25: 0 | AK25: 0 | AL25: 0 | AM25: 0 | AN25: 0 | AO25: 0 | AP25: 0 | AQ25: 0 | AR25: 0 | AS25: 0 | AT25: 0 | AU25: 0
B26: =Formulate!B24 -> 0 | C26: =Formulate!C24 -> 0 | D26: =Formulate!D24 -> 0 | E26: =Formulate!E24 -> 0 | F26: =Formulate!F24 -> 0 | H26: =Formulate!H24 -> dLYS | I26: =Formulate!L24 -> g/Kg | J26: =Formulate!I24 -> 0 | K26: =Formulate!J24 -> 13.02501953 | L26: =Formulate!K24 -> 1000 | O26: 0 | P26: 0 | Z26: 0 | AA26: 0 | AB26: 0 | AC26: 0 | AD26: 0 | AE26: 0 | AF26: 0 | AG26: 0 | AH26: 0 | AI26: 0 | AJ26: 0 | AK26: 0 | AL26: 0 | AM26: 0 | AN26: 0 | AO26: 0 | AP26: 0 | AQ26: 0 | AR26: 0 | AS26: 0 | AT26: 0 | AU26: 0
B27: =Formulate!B25 -> 0 | C27: =Formulate!C25 -> 0 | D27: =Formulate!D25 -> 0 | E27: =Formulate!E25 -> 0 | F27: =Formulate!F25 -> 0 | H27: =Formulate!H25 -> dMET | I27: =Formulate!L25 -> g/Kg | J27: =Formulate!I25 -> 5.5 | K27: =Formulate!J25 -> 7.136557792 | L27: =Formulate!K25 -> 1000 | O27: =H10 -> Dry Matter | P27: =K10 -> 902.5775267 | Z27: 902.2938341 | AA27: 903.2241674 | AB27: 904.1710134 | AC27: 901.7283668 | AD27: 905.6991328 | AE27: 907.3283983 | AF27: 904.3441067 | AG27: 903.4559579 | AH27: 905.0872269 | AI27: 904.2497595 | AJ27: 905.1495683 | AK27: 908.77503 | AL27: 910.6819523 | AM27: 909.719011 | AN27: 911.722817 | AO27: 911.3224859 | AP27: 902.9279456 | AQ27: 911.3611872 | AR27: 908.4693617 | AS27: 909.0029203 | AT27: 909.7232846 | AU27: 913.1196309
B28: =Formulate!B26 -> 0 | C28: =Formulate!C26 -> 0 | D28: =Formulate!D26 -> 0 | E28: =Formulate!E26 -> 0 | F28: =Formulate!F26 -> 0 | H28: =Formulate!H26 -> dTSAA | I28: =Formulate!L26 -> g/Kg | J28: =Formulate!I26 -> 10 | K28: =Formulate!J26 -> 10 | L28: =Formulate!K26 -> 1000 | O28: AMEn | P28: =K11 -> 12.4 | Z28: 12.4 | AA28: 12.8 | AB28: 13 | AC28: 12 | AD28: 11.72 | AE28: 11.62 | AF28: 12.92985022 | AG28: 12.92985022 | AH28: 13.21554185 | AI28: 13.21554185 | AJ28: 12.92985022 | AK28: 14.21085463 | AL28: 11.6 | AM28: 11.6 | AN28: 11.4 | AO28: 11.4 | AP28: 11.92 | AQ28: 11.3 | AR28: 11.72 | AS28: 11.72 | AT28: 11.72 | AU28: 11.3
B29: =Formulate!B27 -> 0 | C29: =Formulate!C27 -> 0 | D29: =Formulate!D27 -> 0 | E29: =Formulate!E27 -> 0 | F29: =Formulate!F27 -> 0 | H29: =Formulate!H27 -> dTHR | I29: =Formulate!L27 -> g/Kg | J29: =Formulate!I27 -> 8.8 | K29: =Formulate!J27 -> 8.8 | L29: =Formulate!K27 -> 1000 | O29: Metabolisable Energy | P29: 14.42307575 | Z29: 14.47053089 | AA29: 14.83265801 | AB29: 14.90888228 | AC29: 13.97665659 | AD29: 13.56474937 | AE29: 13.41898121 | AF29: 15.35683576 | AG29: 15.47952304 | AH29: 15.51854362 | AI29: 15.63778362 | AJ29: 14.91456469 | AK29: 16.35906546 | AL29: 13.43432185 | AM29: 13.32355621 | AN29: 13.14102053 | AO29: 13.03609294 | AP29: 13.84710785 | AQ29: 12.97748697 | AR29: 13.45135271 | AS29: 13.45051605 | AT29: 13.42588635 | AU29: 12.89185647
B30: =Formulate!B28 -> 0 | C30: =Formulate!C28 -> 0 | D30: =Formulate!D28 -> 0 | E30: =Formulate!E28 -> 0 | F30: =Formulate!F28 -> 0 | H30: =Formulate!H28 -> dTRP | I30: =Formulate!L28 -> g/Kg | J30: =Formulate!I28 -> 2.1 | K30: =Formulate!J28 -> 2.461510853 | L30: =Formulate!K28 -> 1000 | O30: Net Energy | P30: 8.03268552 | Z30: 8.015163532 | AA30: 8.38058561 | AB30: 8.558446188 | AC30: 7.91622651 | AD30: 7.821638302 | AE30: 7.796155547 | AF30: 8.095521575 | AG30: 7.977953423 | AH30: 8.43059167 | AI30: 8.325529857 | AJ30: 8.512602796 | AK30: 9.311060396 | AL30: 7.715251352 | AM30: 7.809103935 | AN30: 7.62437621 | AO30: 7.705643766 | AP30: 7.902538969 | AQ30: 7.64473386 | AR30: 7.926091155 | AS30: 7.924107987 | AT30: 7.94327025 | AU30: 7.69562043
B31: =Formulate!B29 -> 0 | C31: =Formulate!C29 -> 0 | D31: =Formulate!D29 -> 0 | E31: =Formulate!E29 -> 0 | F31: =Formulate!F29 -> 0 | H31: =Formulate!H29 -> dARG | I31: =Formulate!L29 -> g/Kg | J31: =Formulate!I29 -> 0 | K31: =Formulate!J29 -> 13.85784501 | L31: =Formulate!K29 -> 1000 | O31: Crude Protein | P31: 230 | Z31: 230 | AA31: 212.5 | AB31: 195 | AC31: 200 | AD31: 175 | AE31: 165 | AF31: 296.5 | AG31: 323.4 | AH31: 265.5 | AI31: 290.4 | AJ31: 201.3 | AK31: 220 | AL31: 176 | AM31: 154 | AN31: 162 | AO31: 142 | AP31: 190 | AQ31: 145 | AR31: 150 | AS31: 150 | AT31: 145 | AU31: 130
B32: =Formulate!B30 -> 0 | C32: =Formulate!C30 -> 0 | D32: =Formulate!D30 -> 0 | E32: =Formulate!E30 -> 0 | F32: =Formulate!F30 -> 0 | H32: =Formulate!H30 -> dVAL | I32: =Formulate!L30 -> g/Kg | J32: =Formulate!I30 -> 0 | K32: =Formulate!J30 -> 9.257930801 | L32: =Formulate!K30 -> 1000 | O32: True Protein | P32: 207.4047695 | Z32: 207.4130493 | AA32: 191.636833 | AB32: 175.8606432 | AC32: 180.3702041 | AD32: 157.8304608 | AE32: 148.8145249 | AF32: 267.3572953 | AG32: 291.6070139 | AH32: 239.4117466 | AI32: 261.858526 | AJ32: 181.5388672 | AK32: 198.3924533 | AL32: 158.7273868 | AM32: 138.8964435 | AN32: 146.1062157 | AO32: 128.0776529 | AP32: 171.3546582 | AQ32: 130.7819622 | AR32: 135.2917775 | AS32: 135.2912913 | AT32: 130.7834027 | AU32: 117.2586711
B33: =Formulate!B31 -> 0 | C33: =Formulate!C31 -> 0 | D33: =Formulate!D31 -> 0 | E33: =Formulate!E31 -> 0 | F33: =Formulate!F31 -> 0 | H33: =Formulate!H31 -> TP:dLYS | I33: =Formulate!L31 -> g/g | J33: =Formulate!I31 -> 0 | K33: =Formulate!J31 -> 1.255939797e-14 | L33: =Formulate!K31 -> 100 | O33: Lipids | P33: 20.64425513 | Z33: 20.86394988 | AA33: 21.58494439 | AB33: 21.57485264 | AC33: 18.67145335 | AD33: 18.01488689 | AE33: 17.811512 | AF33: 25.40750831 | AG33: 26.18615472 | AH33: 25.21220621 | AI33: 25.94328307 | AJ33: 22.01157505 | AK33: 27.15922135 | AL33: 19.02200159 | AM33: 17.91212008 | AN33: 18.18114234 | AO33: 17.28688689 | AP33: 18.39601819 | AQ33: 17.22570369 | AR33: 17.80618667 | AS33: 17.9450666 | AT33: 17.94246517 | AU33: 17.07947709
B34: =Formulate!B32 -> 0 | C34: =Formulate!C32 -> 0 | D34: =Formulate!D32 -> 0 | E34: =Formulate!E32 -> 0 | F34: =Formulate!F32 -> 0 | H34: =Formulate!H32 -> Total NSP | I34: =Formulate!L32 -> g/Kg | J34: =Formulate!I32 -> 0 | K34: =Formulate!J32 -> 114.2166608 | L34: =Formulate!K32 -> 1000 | O34: Crude Fibre | P34: 21.71655568 | Z34: 21.87681167 | AA34: 21.39793707 | AB34: 20.92542446 | AC34: 21.55839367 | AD34: 20.32519165 | AE34: 19.82266386 | AF34: 22.40834963 | AG34: 23.00556207 | AH34: 21.77370425 | AI34: 22.32984819 | AJ34: 20.80693653 | AK34: 20.25762195 | AL34: 19.25698525 | AM34: 19.13763356 | AN34: 18.82641849 | AO34: 18.61427741 | AP34: 21.14931287 | AQ34: 18.65205979 | AR34: 19.34599392 | AS34: 19.22949594 | AT34: 18.99724093 | AU34: 18.04511962
B35: =Formulate!B34 -> TOTAL | E35: =Formulate!E34 -> 100 | H35: =Formulate!H33 -> Soluble NSP | I35: =Formulate!L33 -> g/Kg | J35: =Formulate!I33 -> 0 | K35: =Formulate!J33 -> 22.27259689 | L35: =Formulate!K33 -> 1000 | O35: Calcium | P35: 9.5 | Z35: 9.5 | AA35: 7.5 | AB35: 6.5 | AC35: 10 | AD35: 22.45789525 | AE35: 27.02486264 | AF35: 14.9 | AG35: 14.9 | AH35: 12.4 | AI35: 12.4 | AJ35: 10 | AK35: 10 | AL35: 39 | AM35: 34.2 | AN35: 42.9 | AO35: 39.87924882 | AP35: 13.38505692 | AQ35: 40.77119507 | AR35: 28.39773707 | AS35: 30 | AT35: 32 | AU35: 44.36737657
H36: =Formulate!H34 -> Insoluble NSP | I36: =Formulate!L34 -> g/Kg | J36: =Formulate!I34 -> 0 | K36: =Formulate!J34 -> 92.29098736 | L36: =Formulate!K34 -> 1000 | O36: Total Phosphorous | P36: 7.439876714 | Y36: =R36-X36 -> 0 | Z36: 7.480996162 | AA36: 6.568103232 | AB36: 5.855707336 | AC36: 6.826724161 | AD36: 6.422550302 | AE36: 6.840158335 | AF36: 10.40934941 | AG36: 10.57203145 | AH36: 8.826058871 | AI36: 8.976906047 | AJ36: 7.273623486 | AK36: 7.311364648 | AL36: 6.043409542 | AM36: 5.439195122 | AN36: 5.549386818 | AO36: 5.046549567 | AP36: 6.751632768 | AQ36: 6.062440877 | AR36: 6.138220604 | AS36: 6.129119165 | AT36: 5.689408256 | AU36: 5.950325745
H37: =Formulate!H35 -> Lignin | I37: =Formulate!L35 -> g/Kg | J37: =Formulate!I35 -> 0 | K37: =Formulate!J35 -> 5.280484231 | L37: =Formulate!K35 -> 1000 | O37: Available Phosphorous | P37: 5 | Z37: 5 | AA37: 4.2 | AB37: 3.6 | AC37: 4.5 | AD37: 4.3 | AE37: 4.8 | AF37: 7.6 | AG37: 7.6 | AH37: 6.2 | AI37: 6.2 | AJ37: 5 | AK37: 5 | AL37: 4 | AM37: 3.5 | AN37: 3.6 | AO37: 3.2 | AP37: 4.5 | AQ37: 4.2 | AR37: 4.2 | AS37: 4.2 | AT37: 3.8 | AU37: 4.2
H38: =Formulate!H36 -> 18:2 | I38: =Formulate!L36 -> g/Kg | J38: =Formulate!I36 -> 0 | K38: =Formulate!J36 -> 10.82993271 | L38: =Formulate!K36 -> 1000 | O38: Ca:aP | P38: 0.25 | Z38: 0.4071988503 | AA38: 0.3644387693 | AB38: 0.3217214582 | AC38: 0.3372740795 | AD38: 0.2724968436 | AE38: 0.2465237845 | AF38: 0.5610270682 | AG38: 0.6258217302 | AH38: 0.486716923 | AI38: 0.546716551 | AJ38: 0.3351595685 | AK38: 0.3737188038 | AL38: 0.2675750798 | AM38: 0.2170643437 | AN38: 0.2330479079 | AO38: 0.186432319 | AP38: 0.3119292368 | AQ38: 0.1934647328 | AR38: 0.2094272032 | AS38: 0.2086440218 | AT38: 0.1957852834 | AU38: 0.1554923834
H39: =Formulate!H37 -> Nutrient | I39: =Formulate!L37 -> 0 | J39: =Formulate!I37 -> 0 | K39: =Formulate!J37 -> 0 | L39: =Formulate!K37 -> 100 | O39: Na | P39: 1.859981906 | Z39: 1.85956408 | AA39: 1.860067069 | AB39: 1.860638291 | AC39: 1.865815822 | AD39: 1.860645267 | AE39: 1.85847787 | AF39: 1.843836788 | AG39: 1.841574052 | AH39: 1.847019183 | AI39: 1.844960436 | AJ39: 1.857337464 | AK39: 1.845420358 | AL39: 1.848866406 | AM39: 1.85467534 | AN39: 1.848759707 | AO39: 1.85292901 | AP39: 1.864650654 | AQ39: 1.852367549 | AR39: 1.858198936 | AS39: 1.856949482 | AT39: 1.856069656 | AU39: 1.850691453
H40: =Formulate!H38 -> Nutrient | I40: =Formulate!L38 -> 0 | J40: =Formulate!I38 -> 0 | K40: =Formulate!J38 -> 0 | L40: =Formulate!K38 -> 100 | O40: Cl | P40: 3.78655365 | Z40: 3.717193311 | AA40: 3.661045948 | AB40: 3.953770707 | AC40: 3.499521452 | AD40: 3.386615354 | AE40: 3.280791149 | AF40: 3.541807121 | AG40: 3.526004036 | AH40: 3.509514118 | AI40: 3.453905801 | AJ40: 3.61915929 | AK40: 3.46942605 | AL40: 3.175564713 | AM40: 3.324621976 | AN40: 3.259889885 | AO40: 3.404960678 | AP40: 3.453237855 | AQ40: 3.250760933 | AR40: 3.300339161 | AS40: 3.288125468 | AT40: 3.286949855 | AU40: 3.23177957
H41: =Formulate!H39 -> Nutrient | I41: =Formulate!L39 -> 0 | J41: =Formulate!I39 -> 0 | K41: =Formulate!J39 -> 0 | L41: =Formulate!K39 -> 100 | O41: Choline | P41: 1840.763117 | Z41: 1894.624767 | AA41: 1752.247615 | AB41: 1609.895865 | AC41: 1652.556074 | AD41: 1446.967711 | AE41: 1364.695444 | AF41: 2430.51447 | AG41: 2648.813946 | AH41: 2179.156565 | AI41: 2381.238909 | AJ41: 1659.990201 | AK41: 1807.893885 | AL41: 1450.729146 | AM41: 1273.667903 | AN41: 1336.637897 | AO41: 1175.259318 | AP41: 1570.656923 | AQ41: 1199.489907 | AR41: 1242.393537 | AS41: 1241.928383 | AT41: 1200.868149 | AU41: 1076.667856
H42: =Formulate!H40 -> Nutrient | I42: =Formulate!L40 -> 0 | J42: =Formulate!I40 -> 0 | K42: =Formulate!J40 -> 0 | L42: =Formulate!K40 -> 100 | O42: Betaine | P42: 1570.967035 | Z42: 1496.614987 | AA42: 1679.417571 | AB42: 1863.748114 | AC42: 1930.678436 | AD42: 2059.948964 | AE42: 2109.436331 | AF42: 492.5821824 | AG42: 178.2322461 | AH42: 867.7153607 | AI42: 577.5378712 | AJ42: 1728.077986 | AK42: 1277.914124 | AL42: 1786.380354 | AM42: 2132.110072 | AN42: 1921.222273 | AO42: 2210.630951 | AP42: 2002.608928 | AQ42: 2168.651353 | AR42: 2250.223595 | AS42: 2222.244323 | AT42: 2251.553363 | AU42: 2278.151671
H43: =Formulate!H41 -> Nutrient | I43: =Formulate!L41 -> 0 | J43: =Formulate!I41 -> 0 | K43: =Formulate!J41 -> 0 | L43: =Formulate!K41 -> 100 | O43: dLYS | P43: 13.02501953 | Z43: 13.2 | AA43: 11.8 | AB43: 11.8 | AC43: 10.1 | AD43: 8.2 | AE43: 7.2 | AF43: 17.5 | AG43: 19.3 | AH43: 15.2 | AI43: 16.7 | AJ43: 11 | AK43: 12.1 | AL43: 7.880354469 | AM43: 6.8 | AN43: 7.3 | AO43: 6.4 | AP43: 9.3 | AQ43: 6 | AR43: 6.3 | AS43: 6.3 | AT43: 6 | AU43: 5
O44: dMET | P44: 7.136557792 | Z44: 7.0720583 | AA44: 6.444792868 | AB44: 6.61724246 | AC44: 5.045665556 | AD44: 4.217025097 | AE44: 3.925983117 | AF44: 7.9 | AG44: 8.8 | AH44: 7.1 | AI44: 7.8 | AJ44: 5.3 | AK44: 5.9 | AL44: 4.656228926 | AM44: 3.951760859 | AN44: 4.396542794 | AO44: 3.778941468 | AP44: 4.450437765 | AQ44: 3.1 | AR44: 3.3 | AS44: 3.3 | AT44: 3.135852794 | AU44: 2.90817369
O45: dTSAA | P45: 10 | Z45: 10 | AA45: 9.2 | AB45: 9.2 | AC45: 7.7 | AD45: 6.6 | AE45: 6.2 | AF45: 11.4266308 | AG45: 12.58592731 | AH45: 10.33021382 | AI45: 11.27038113 | AJ45: 7.931912345 | AK45: 8.668964553 | AL45: 7 | AM45: 6.1 | AN45: 6.6 | AO45: 5.8 | AP45: 7 | AQ45: 5.148685356 | AR45: 5.422993088 | AS45: 5.417774743 | AT45: 5.2 | AU45: 4.8
O46: dTHR | P46: 8.8 | Z46: 8.8 | AA46: 7.4 | AB46: 7.4 | AC46: 6.5 | AD46: 5.5 | AE46: 5 | AF46: 12.1 | AG46: 13.2 | AH46: 10.9 | AI46: 12 | AJ46: 8.3 | AK46: 9.1 | AL46: 5.5 | AM46: 4.8 | AN46: 5.1 | AO46: 4.5 | AP46: 6.5 | AQ46: 4.5 | AR46: 4.7 | AS46: 4.7 | AT46: 4.5 | AU46: 4.4
O47: dTRP | P47: 2.461510853 | Z47: 2.552317141 | AA47: 2.31438018 | AB47: 2.076247228 | AC47: 2.128944659 | AD47: 1.805950399 | AE47: 1.677037561 | AF47: 3.496162024 | AG47: 3.866183717 | AH47: 3.068091993 | AI47: 3.410500074 | AJ47: 2.170865602 | AK47: 2.4578047 | AL47: 1.853297445 | AM47: 1.539307586 | AN47: 1.664410169 | AO47: 1.4 | AP47: 2 | AQ47: 1.424311849 | AR47: 1.475131167 | AS47: 1.478720056 | AT47: 1.413678041 | AU47: 1.226418618
O48: dARG | P48: 13.85784501 | Z48: 14.37145366 | AA48: 13.02690333 | AB48: 11.68110306 | AC48: 11.96778252 | AD48: 10.15487667 | AE48: 9.431531073 | AF48: 19.73383369 | AG48: 21.82788649 | AH48: 17.3100838 | AI48: 19.24778994 | AJ48: 12.22229068 | AK48: 13.86749773 | AL48: 10.44695399 | AM48: 8.661833916 | AN48: 9.380639546 | AO48: 7.778165089 | AP48: 11.22607747 | AQ48: 8.017365062 | AR48: 8.292066797 | AS48: 8.314955061 | AT48: 7.949547603 | AU48: 6.903494872
O49: dVAL | P49: 9.257930801 | Z49: 9.552689093 | AA49: 8.776614374 | AB49: 8.000327654 | AC49: 8.205530186 | AD49: 7.115149486 | AE49: 6.679305342 | AF49: 12.54469915 | AG49: 13.74226495 | AH49: 11.16281888 | AI49: 12.27123524 | AJ49: 8.289407621 | AK49: 9.1540554 | AL49: 7.196004239 | AM49: 6.204283733 | AN49: 6.576726206 | AO49: 5.678615683 | AP49: 7.766572115 | AQ49: 5.813133616 | AR49: 6.016304618 | AS49: 6.020186672 | AT49: 5.801631168 | AU49: 5.154473877
O50: TP:dLYS | P50: 1.255939797e-14 | Z50: -1.192007717 | AA50: -1.43248954 | AB50: -1.674601647 | AC50: -1.733032186 | AD50: -1.935870023 | AE50: -2.014635585 | AF50: 0.05192525733 | AG50: 0.4571702569 | AH50: -0.428818848 | AI50: -0.05455791477 | AJ50: -1.513488459 | AK50: -0.9846247559 | AL50: -1.641384393 | AM50: -2.067388248 | AN50: -1.821606245 | AO50: -2.182324483 | AP50: -1.835743867 | AQ50: -2.129744331 | AR50: -2.203797344 | AS50: -2.17394433 | AT50: -2.218198205 | AU50: -2.285523889
O51: Total NSP | P51: 114.2166608 | Z51: 115.053526 | AA51: 112.5500737 | AB51: 110.0801563 | AC51: 113.4106857 | AD51: 106.939975 | AE51: 104.3029487 | AF51: 117.7764581 | AG51: 120.8925352 | AH51: 114.46793 | AI51: 117.369902 | AJ51: 109.4481198 | AK51: 106.5304355 | AL51: 101.30814 | AM51: 100.7051149 | AN51: 99.05517332 | AO51: 97.96067177 | AP51: 111.2662301 | AQ51: 98.15626934 | AR51: 101.8081524 | AS51: 101.1940771 | AT51: 99.97576211 | AU51: 94.97480251
O52: Soluble NSP | P52: 22.27259689 | Z52: 22.44280596 | AA52: 21.93686978 | AB52: 21.43738583 | AC52: 22.08512289 | AD52: 20.80547465 | AE52: 20.28423724 | AF52: 23.05890984 | AG52: 23.6957502 | AH52: 22.37935659 | AI52: 22.97222942 | AJ52: 21.32451499 | AK52: 20.78907098 | AL52: 19.7232781 | AM52: 19.57675089 | AN52: 19.27038894 | AO52: 19.0320731 | AP52: 21.65865766 | AQ52: 19.07386624 | AR52: 19.78343278 | AS52: 19.66528272 | AT52: 19.42394247 | AU52: 18.44094417
O53: Insoluble NSP | P53: 92.29098736 | Z53: 92.94013988 | AA53: 90.98573565 | AB53: 89.05876498 | AC53: 91.75660448 | AD53: 86.59684516 | AE53: 84.49306753 | AF53: 94.81209372 | AG53: 97.21740116 | AH53: 92.27127206 | AI53: 94.51212239 | AJ53: 88.50803544 | AK53: 86.02120664 | AL53: 81.98431743 | AM53: 81.60863835 | AN53: 80.21611135 | AO53: 79.42768106 | AP53: 90.05577943 | AQ53: 79.57165097 | AR53: 82.53237719 | AS53: 82.03002649 | AT53: 81.06010585 | AU53: 77.04922266
O54: Lignin | P54: 5.280484231 | Z54: 5.052869535 | AA54: 5.610891703 | AB54: 6.17377269 | AC54: 6.393258589 | AD54: 6.77107492 | AE54: 6.915139294 | AF54: 1.948565131 | AG54: 0.9847343797 | AH54: 3.100229037 | AI54: 2.210604759 | AJ54: 5.750730102 | AK54: 4.344110698 | AL54: 5.902472671 | AM54: 6.972607612 | AN54: 6.312638583 | AO54: 7.206336368 | AP54: 6.608690815 | AQ54: 7.076834437 | AR54: 7.342880803 | AS54: 7.253908322 | AT54: 7.340458082 | AU54: 7.40508525
O55: 18:2 | P55: 10.82993271 | Z55: 11.14570502 | AA55: 12.35449591 | AB55: 12.44298993 | AC55: 7.446531699 | AD55: 7.206372011 | AE55: 7.210666274 | AF55: 19.05447458 | AG55: 20.22197519 | AH55: 18.71940497 | AI55: 19.81217066 | AJ55: 13.3867204 | AK55: 22.26936338 | AL55: 9.93356562 | AM55: 7.854116549 | AN55: 8.793718183 | AO55: 7.191526402 | AP55: 7.23874802 | AQ55: 7.127882621 | AR55: 7.370061152 | AS55: 7.709139951 | AT55: 7.841361312 | AU55: 7.215376664
O56: Nutrient | P56: 0 | Z56: 0 | AA56: 0 | AB56: 0 | AC56: 0 | AD56: 0 | AE56: 0 | AF56: 0 | AG56: 0 | AH56: 0 | AI56: 0 | AJ56: 0 | AK56: 0 | AL56: 0 | AM56: 0 | AN56: 0 | AO56: 0 | AP56: 0 | AQ56: 0 | AR56: 0 | AS56: 0 | AT56: 0 | AU56: 0
O57: Nutrient | P57: 0 | Z57: 0 | AA57: 0 | AB57: 0 | AC57: 0 | AD57: 0 | AE57: 0 | AF57: 0 | AG57: 0 | AH57: 0 | AI57: 0 | AJ57: 0 | AK57: 0 | AL57: 0 | AM57: 0 | AN57: 0 | AO57: 0 | AP57: 0 | AQ57: 0 | AR57: 0 | AS57: 0 | AT57: 0 | AU57: 0
O58: Nutrient | P58: 0 | Z58: 0 | AA58: 0 | AB58: 0 | AC58: 0 | AD58: 0 | AE58: 0 | AF58: 0 | AG58: 0 | AH58: 0 | AI58: 0 | AJ58: 0 | AK58: 0 | AL58: 0 | AM58: 0 | AN58: 0 | AO58: 0 | AP58: 0 | AQ58: 0 | AR58: 0 | AS58: 0 | AT58: 0 | AU58: 0
O59: Nutrient | P59: 0 | Z59: 0 | AA59: 0 | AB59: 0 | AC59: 0 | AD59: 0 | AE59: 0 | AF59: 0 | AG59: 0 | AH59: 0 | AI59: 0 | AJ59: 0 | AK59: 0 | AL59: 0 | AM59: 0 | AN59: 0 | AO59: 0 | AP59: 0 | AQ59: 0 | AR59: 0 | AS59: 0 | AT59: 0 | AU59: 0
O60: Nutrient | P60: 0 | Z60: 0 | AA60: 0 | AB60: 0 | AC60: 0 | AD60: 0 | AE60: 0 | AF60: 0 | AG60: 0 | AH60: 0 | AI60: 0 | AJ60: 0 | AK60: 0 | AL60: 0 | AM60: 0 | AN60: 0 | AO60: 0 | AP60: 0 | AQ60: 0 | AR60: 0 | AS60: 0 | AT60: 0 | AU60: 0
O61: =H5 -> Feed Cost: | P61: =J5 -> 707.2910124 | Z61: 715.6172204 | AA61: 676.0920838 | AB61: 657.8107828 | AC61: 602.1875906 | AD61: 546.9229277 | AE61: 529.5763313 | AF61: 913.2735677 | AG61: 972.7639319 | AH61: 839.3439389 | AI61: 892.7053167 | AJ61: 671.8636822 | AK61: 769.0663819 | AL61: 562.5305322 | AM61: 506.2472852 | AN61: 528.5783302 | AO61: 481.2949182 | AP61: 580.6602179 | AQ61: 483.627932 | AR61: 497.5022699 | AS61: 499.5552516 | AT61: 486.7537539 | AU61: 461.6691103
Z64: 12.4 | AA64: 12.8 | AB64: 13 | AC64: 12 | AD64: 11.72 | AE64: 11.62 | AF64: 12.92985022 | AG64: 12.92985022 | AH64: 13.21554185 | AI64: 13.21554185 | AJ64: 12.92985022 | AK64: 14.21085463 | AL64: 11.6 | AM64: 11.6 | AN64: 11.4 | AO64: 11.4 | AP64: 11.92 | AQ64: 11.3 | AR64: 11.72 | AS64: 11.72 | AT64: 11.72 | AU64: 11.3
Z65: 8.015163532 | AA65: 8.38058561 | AB65: 8.558446188 | AC65: 7.91622651 | AD65: 7.821638302 | AE65: 7.796155547 | AF65: 8.095521575 | AG65: 7.977953423 | AH65: 8.43059167 | AI65: 8.325529857 | AJ65: 8.512602796 | AK65: 9.311060396 | AL65: 7.715251352 | AM65: 7.809103935 | AN65: 7.62437621 | AO65: 7.705643766 | AP65: 7.902538969 | AQ65: 7.64473386 | AR65: 7.926091155 | AS65: 7.924107987 | AT65: 7.94327025 | AU65: 7.69562043
Z67: 11.72 | AA67: 11.72 | AB67: 11.72 | AC67: 11.72 | AD67: 11.72 | AE67: 11.72 | AF67: 11.72 | AG67: 11.72 | AH67: 11.72 | AI67: 11.72 | AJ67: 11.72 | AK67: 11.72 | AL67: 11.72 | AM67: 11.72 | AN67: 11.72 | AO67: 11.72 | AP67: 11.72 | AQ67: 11.72 | AR67: 11.72 | AS67: 11.72 | AT67: 11.72 | AU67: 11.72
Z68: 8.588765234 | AA68: 8.588765234 | AB68: 8.588765234 | AC68: 8.588765234 | AD68: 8.588765234 | AE68: 8.588765234 | AF68: 8.588765234 | AG68: 8.588765234 | AH68: 8.588765234 | AI68: 8.588765234 | AJ68: 8.588765234 | AK68: 8.588765234 | AL68: 8.588765234 | AM68: 8.588765234 | AN68: 8.588765234 | AO68: 8.588765234 | AP68: 8.588765234 | AQ68: 8.588765234 | AR68: 8.588765234 | AS68: 8.588765234 | AT68: 8.588765234 | AU68: 8.588765234

Sheet Mixing Sheet
B1: UffdAu 3.0 | D1: Feed Name = | F1: ='Feed Spec'!C4 -> Broiler Starter, 0 to 10 Days
C2: =NOW() -> 2024-01-15T14:00:06.910
C5: Amount to Mix = | D5: 1000 | E5: Kg
C7: CHECK OFF EACH INGREDIENT AS IT IS ADDED TO THE MIXER
B10: % | C10: Ingredient | D10: =E5 -> Kg | E10: Grams | H10: Date Mixed
F11: / / | G11: / / | H11: / / | I11: / / | J11: / /
B12: 69.32993841 | C12: Sorghum | D12: =$D$5*B12*0.01 -> 693.2993841 | E12: =IF(AK12=0,"",AK12) ->  | AK12: =IF(D12<9.999,D12*1000,"") -> 
B13: 17.65059968 | C13: Soybean Meal (local) | D13: =$D$5*B13*0.01 -> 176.5059968 | E13: =IF(AK13=0,"",AK13) -> 
B14: 6.53698397 | C14: Limestone, Fine | D14: 65.3698397
B15: 3.651999017 | C15: Fat, Vegetable | D15: 36.51999017
B16: 1.870528822 | C16: Dicalcium Phosphate | D16: 18.70528822
B17: 0.3374144844 | C17: Salt | D17: 3.374144844 | E17: 3374.144844 | AK17: 3374.144844
B18: 0.25 | C18: Vitamin Premix | D18: 2.5 | E18: 2500 | AK18: 2500
B19: 0.1666424269 | C19: DL-Methionine | D19: 1.666424269 | E19: 1666.424269 | AK19: 1666.424269
B20: 0.08151340713 | C20: L-Lysine | D20: 0.8151340713 | E20: 815.1340713 | AK20: 815.1340713
B21: 0.075 | C21: Trace Mineral Premix | D21: 0.75 | E21: 750 | AK21: 750
B22: 0.04937977909 | C22: L-Threonine | D22: 0.4937977909 | E22: 493.7977909 | AK22: 493.7977909
B23: 0 | C23: Wheat | D23: 0 | AK23: 0
B24: 0 | C24: Corn | D24: 0 | AK24: 0
B25: 0 | C25: Canola Meal (Solvent Extracted) | D25: 0 | AK25: 0
B26: 0 | C26: Meat Meal | D26: 0 | AK26: 0
B27: 0 | C27: Tallow | D27: 0 | AK27: 0
B28: 0 | C28: CHOLINE CL -70% | D28: 0 | AK28: 0
B29: 0 | C29: 0 | D29: 0 | AK29: 0
B30: 0 | C30: 0 | D30: 0 | AK30: 0
B31: 0 | C31: 0 | D31: 0 | AK31: 0
B32: 0 | C32: 0 | D32: 0 | AK32: 0
B33: 0 | C33: 0 | D33: 0 | AK33: 0
B34: 0 | C34: 0 | D34: 0 | AK34: 0
B35: 0 | C35: 0 | D35: 0 | AK35: 0
B36: 0 | C36: 0 | D36: 0
B38: =SUM(B12:B37) -> 100 | C38: TOTAL | D38: =SUM(D12:D37) -> 1000 | E38: =D10 -> Kg

Sheet Graphs
H4: WUFFDA 3.0 | AL4: Percent
AL5: Min. | AM5: Actual | AN5: Min.
AK6: =Formulate!H8 -> Dry Matter | AL6: =AM6/AN6*100 ->  | AM6: =Formulate!J8 -> 902.5775267 | AN6: =Formulate!I8 -> 0
AK7: =Formulate!H9 -> AMEn | AL7: 100 | AM7: =Formulate!J9 -> 12.4 | AN7: =Formulate!I9 -> 12.4
AK8: =Formulate!H10 -> Metabolisable Energy | AM8: =Formulate!J10 -> 14.42307575 | AN8: =Formulate!I10 -> 0
AK9: =Formulate!H11 -> Net Energy | AM9: =Formulate!J11 -> 8.03268552 | AN9: =Formulate!I11 -> 0
AK10: =Formulate!H12 -> Crude Protein | AL10: 100 | AM10: =Formulate!J12 -> 230 | AN10: =Formulate!I12 -> 230
AK11: =Formulate!H13 -> True Protein | AM11: =Formulate!J13 -> 207.4047695 | AN11: =Formulate!I13 -> 0
AK12: =Formulate!H14 -> Lipids | AM12: =Formulate!J14 -> 20.64425513 | AN12: =Formulate!I14 -> 0
AK13: =Formulate!H15 -> Crude Fibre | AM13: =Formulate!J15 -> 21.71655568 | AN13: =Formulate!I15 -> 0
AK14: =Formulate!H16 -> Calcium | AL14: 100 | AM14: =Formulate!J16 -> 9.5 | AN14: =Formulate!I16 -> 9.5
AK15: =Formulate!H17 -> Total Phosphorous | AM15: =Formulate!J17 -> 7.439876714 | AN15: =Formulate!I17 -> 0
AK16: =Formulate!H18 -> Available Phosphorous | AL16: 100 | AM16: =Formulate!J18 -> 5 | AN16: =Formulate!I18 -> 5
AK17: =Formulate!H19 -> Ca:aP | AL17: -0.25 | AM17: =Formulate!J19 -> 0.25 | AN17: =Formulate!I19 -> -100
AK18: =Formulate!H20 -> Na | AL18: 103.3323281 | AM18: =Formulate!J20 -> 1.859981906 | AN18: =Formulate!I20 -> 1.8
AK19: =Formulate!H21 -> Cl | AL19: 210.3640917 | AM19: =Formulate!J21 -> 3.78655365 | AN19: =Formulate!I21 -> 1.8
AK20: =Formulate!H22 -> Choline | AL20: 108.2801833 | AM20: =Formulate!J22 -> 1840.763117 | AN20: =Formulate!I22 -> 1700
AK21: =Formulate!H23 -> Betaine | AM21: =Formulate!J23 -> 1570.967035 | AN21: =Formulate!I23 -> 0
AK22: =Formulate!H24 -> dLYS | AM22: =Formulate!J24 -> 13.02501953 | AN22: =Formulate!I24 -> 0
AK23: =Formulate!H25 -> dMET | AL23: 129.7555962 | AM23: =Formulate!J25 -> 7.136557792 | AN23: =Formulate!I25 -> 5.5
AK24: =Formulate!H26 -> dTSAA | AL24: 100 | AM24: =Formulate!J26 -> 10 | AN24: =Formulate!I26 -> 10
AK25: =Formulate!H27 -> dTHR | AL25: 100 | AM25: =Formulate!J27 -> 8.8 | AN25: =Formulate!I27 -> 8.8
AK26: =Formulate!H28 -> dTRP | AL26: 117.2148025 | AM26: =Formulate!J28 -> 2.461510853 | AN26: =Formulate!I28 -> 2.1
AK27: =Formulate!H29 -> dARG | AM27: =Formulate!J29 -> 13.85784501 | AN27: =Formulate!I29 -> 0
AK28: =Formulate!H30 -> dVAL | AM28: =Formulate!J30 -> 9.257930801 | AN28: =Formulate!I30 -> 0
AK29: =Formulate!H31 -> TP:dLYS | AM29: =Formulate!J31 -> 1.255939797e-14 | AN29: =Formulate!I31 -> 0
AK30: =Formulate!H32 -> Total NSP | AM30: =Formulate!J32 -> 114.2166608 | AN30: =Formulate!I32 -> 0
AK31: =Formulate!H33 -> Soluble NSP | AM31: =Formulate!J33 -> 22.27259689 | AN31: =Formulate!I33 -> 0
AK32: =Formulate!H34 -> Insoluble NSP | AM32: =Formulate!J34 -> 92.29098736 | AN32: =Formulate!I34 -> 0
AK33: =Formulate!H35 -> Lignin | AM33: =Formulate!J35 -> 5.280484231 | AN33: =Formulate!I35 -> 0
AK34: =Formulate!H36 -> 18:2 | AM34: =Formulate!J36 -> 10.82993271 | AN34: =Formulate!I36 -> 0
AK35: =Formulate!H37 -> Nutrient | AM35: =Formulate!J37 -> 0 | AN35: =Formulate!I37 -> 0
AK36: =Formulate!H38 -> Nutrient | AM36: =Formulate!J38 -> 0 | AN36: =Formulate!I38 -> 0
AK37: =Formulate!H39 -> Nutrient | AM37: =Formulate!J39 -> 0 | AN37: =Formulate!I39 -> 0
AK38: =Formulate!H40 -> Nutrient | AM38: =Formulate!J40 -> 0 | AN38: =Formulate!I40 -> 0
AK39: =Formulate!H41 -> Nutrient | AM39: =Formulate!J41 -> 0 | AN39: =Formulate!I41 -> 0

Sheet Digestibility
E1: TOTAL AMINO ACIDS (G/KG) | Z1: DIGESTIBLE AMINO ACIDS (G/KG) | AV1: AMINO ACID (% DIGESTIBILITY)
C2: AVG | E2: Ala | F2: Arg | G2: AsX | H2: Cys | I2: Glx | J2: Gly | K2: His | L2: Ile | M2: Leu | N2: Lys | O2: Met | P2: Phe | Q2: Pro | R2: Ser | S2: Thr | T2: Trp | U2: Tyr | V2: Val | Z2: AlaD | AA2: ArgD | AB2: AsXD | AC2: CysD | AD2: GlxD | AE2: GlyD | AF2: HisD | AG2: IleD | AH2: LeuD | AI2: LysD | AJ2: MetD | AK2: PheD | AL2: ProD | AM2: SerD | AN2: ThrD | AO2: TrpD | AP2: TyrD | AQ2: ValD | AR2: TOTAL | AV2: Ala | AW2: Arg | AX2: AsX | AY2: Cys | AZ2: Glx | BA2: Gly | BB2: His | BC2: Ile | BD2: Leu | BE2: Lys | BF2: Met | BG2: Phe | BH2: Pro | BI2: Ser | BJ2: Thr | BK2: Trp | BL2: Tyr | BM2: Val | BN2: Average | BR2: NSPTot | BS2: NSPSol | BT2: NSPInSol | BU2: NSPTotRhamnose | BV2: NSPTotFucose | BW2: NSPTotRibose | BX2: NSPTotArabinose | BY2: NSPTotXylose | BZ2: NSPTotMannose | CA2: NSPTotGalactose | CB2: NSPTotGlucose | CC2: NSPSolRhamnose | CD2: NSPSolFucose | CE2: NSPSolRibose | CF2: NSPSolArabinose | CG2: NSPSolXylose | CH2: NSPSolMannose | CI2: NSPSolGalactose | CJ2: NSPSolGlucose | CK2: NSPInSolRhamnose | CL2: NSPInSolFucose | CM2: NSPInSolRibose | CN2: NSPInSolArabinose | CO2: NSPInSolXylose | CP2: NSPInSolMannose | CQ2: NSPInSolGalactose | CR2: NSPInSolGlucose | CS2: ONSPRhamnose | CT2: ONSPFucose | CU2: ONSPRibose | CV2: ONSPArabinose | CW2: ONSPXylose | CX2: ONSPMannose | CY2: ONSPGalactose | CZ2: ONSPGlucose
A4: Wheat | C4: =BN4 -> 84.94570205 | E4: 4.45 | F4: 5.583333333 | G4: 6.15 | H4: 2.475 | I4: 35.05 | J4: 5.1 | K4: 2.766666667 | L4: 4.05 | M4: 7.833333333 | N4: 3.383333333 | O4: 1.716666667 | P4: 5.65 | Q4: 11.5 | R4: 5.85 | S4: 3.483333333 | T4: 1.466666667 | U4: 5.125700202 | V4: 5.1 | Z4: 3.8 | AA4: 4.85 | AB4: 5 | AC4: 1.95 | AD4: 34.6 | AE4: 4.3 | AF4: 2.383333333 | AG4: 3.583333333 | AH4: 7.016666667 | AI4: 2.716666667 | AJ4: 1.533333333 | AK4: 5 | AM4: 5.4 | AN4: 2.816666667 | AO4: 0.9333333333 | AQ4: 4.316666667 | AV4: =(Z4/E4)*100 -> 85.39325843 | AW4: =(AA4/F4)*100 -> 86.86567164 | AX4: =(AB4/G4)*100 -> 81.30081301 | AY4: =(AC4/H4)*100 -> 78.78787879 | AZ4: =(AD4/I4)*100 -> 98.71611983 | BA4: =(AE4/J4)*100 -> 84.31372549 | BB4: =(AF4/K4)*100 -> 86.14457831 | BC4: =(AG4/L4)*100 -> 88.47736626 | BD4: =(AH4/M4)*100 -> 89.57446809 | BE4: =(AI4/N4)*100 -> 80.2955665 | BF4: =(AJ4/O4)*100 -> 89.32038835 | BG4: =(AK4/P4)*100 -> 88.49557522 | BI4: =(AM4/R4)*100 -> 92.30769231 | BJ4: =(AN4/S4)*100 -> 80.86124402 | BK4: =(AO4/T4)*100 -> 63.63636364 | BM4: =(AQ4/V4)*100 -> 84.64052288 | BN4: =AVERAGE(AV4:BM4) -> 84.94570205 | BR4: 104.7124973 | BS4: 20.28686832 | BT4: 85.1218326 | BU4: 0.05675441977 | BV4: 0.009074321271 | BW4: 0.2288782351 | BX4: 20.71287343 | BY4: 34.89392255 | BZ4: 3.6712192 | CA4: 4.152424357 | CB4: 26.62398104 | CC4: 0.004568893383 | CD4: 0.009074321271 | CE4: 0.1306626398 | CF4: 4.407199562 | CG4: 7.042711831 | CH4: 1.096251732 | CI4: 1.717819597 | CJ4: 4.267467647 | CK4: 0.07179336952 | CM4: 0.0982155953 | CN4: 16.32528171 | CO4: 27.91003425 | CP4: 2.574967468 | CQ4: 2.434604761 | CR4: 22.43494477 | CS4: 0.06638406434 | CU4: 0.03097011017 | CV4: 0.2814629654 | CW4: 0.09309234846 | CX4: 3.133931199 | CY4: 1.996572632 | CZ4: 14.3289998
A5: Sorghum | C5: =BN5 -> 78.130243 | E5: 7.45 | F5: 3.3 | G5: 5.4 | H5: 1.75 | I5: 16.9 | J5: 2.6 | K5: 2.066666667 | L5: 3.533333333 | M5: 12.03333333 | N5: 1.933333333 | O5: 1.4 | P5: 4.2 | Q5: 7.1 | R5: 3.95 | S5: 2.9 | T5: 1.15 | U5: 1.752125741 | V5: 4.433333333 | Z5: 5.7 | AA5: 1.933333333 | AB5: 3.7 | AC5: 1.35 | AD5: 13.5 | AE5: 1.6 | AF5: 1.633333333 | AG5: 3.033333333 | AH5: 10.6 | AI5: 1.566666667 | AJ5: 1.233333333 | AK5: 3.6 | AM5: 2.9 | AN5: 2.233333333 | AO5: 1 | AQ5: 3.666666667 | AV5: 76.51006711 | AW5: 58.58585859 | AX5: 68.51851852 | AY5: 77.14285714 | AZ5: 79.8816568 | BA5: 61.53846154 | BB5: 79.03225806 | BC5: 85.8490566 | BD5: 88.08864266 | BE5: 81.03448276 | BF5: 88.0952381 | BG5: 85.71428571 | BI5: 73.41772152 | BJ5: 77.01149425 | BK5: 86.95652174 | BM5: 82.70676692 | BN5: =AVERAGE(AV5:BM5) -> 78.130243 | BR5: 53.94368354 | BS5: 5.425409233 | BT5: 49.48032876 | BU5: 0.09911036988 | BV5: 0.004552846548 | BW5: 2.56678985 | BX5: 11.85702425 | BY5: 11.56735312 | BZ5: 2.325021479 | CA5: 2.985195316 | CB5: 24.25549079 | CC5: 0.08815851083 | CD5: 0.004552846548 | CE5: 0.1265054768 | CF5: 0.8040056202 | CG5: 0.6014674054 | CH5: 1.03558795 | CI5: 0.7971140385 | CJ5: 1.932863168 | CK5: 0.03872963683 | CM5: 2.440284373 | CN5: 11.10857418 | CO5: 10.96588572 | CP5: 1.233877973 | CQ5: 2.188081277 | CR5: 22.29484984 | CS5: 0.0744952769 | CV5: 0.2132594602 | CW5: 0.04927407326 | CX5: 1.071393444 | CY5: 0.6658066075 | CZ5: 7.377999906
A6: Barley | C6: 75.70909089 | E6: 3.95 | F6: 4.733333333 | G6: 5.65 | H6: 2.05 | I6: 20.95 | J6: 3.85 | K6: 2.1 | L6: 3.333333333 | M6: 6.533333333 | N6: 3.5 | O6: 1.466666667 | P6: 4.5 | Q6: 9 | R6: 4.1 | S6: 3.1 | T6: 1.266666667 | U6: 4.123527312 | V6: 4.633333333 | Z6: 2.7 | AA6: 3.8 | AB6: 3.4 | AC6: 1.7 | AD6: 18.8 | AE6: 2.3 | AF6: 1.633333333 | AG6: 2.666666667 | AH6: 5.366666667 | AI6: 2.7 | AJ6: 1.266666667 | AK6: 3.5 | AM6: 2.7 | AN6: 2.2 | AO6: 0.9333333333 | AQ6: 3.633333333 | AV6: 68.35443038 | AW6: 80.28169014 | AX6: 60.17699115 | AY6: 82.92682927 | AZ6: 89.73747017 | BA6: 59.74025974 | BB6: 77.77777778 | BC6: 80 | BD6: 82.14285714 | BE6: 77.14285714 | BF6: 86.36363636 | BG6: 77.77777778 | BI6: 65.85365854 | BJ6: 70.96774194 | BK6: 73.68421053 | BM6: 78.41726619 | BN6: 75.70909089 | BR6: 154.3594745 | BS6: 41.7200294 | BT6: 112.6365039 | BU6: 0.3357357969 | BV6: 0.08150687549 | BW6: 0.6930523615 | BX6: 20.5307366 | BY6: 51.66677088 | BZ6: 6.399910032 | CA6: 4.982035375 | CB6: 70.49656898 | CC6: 0.1876804242 | CD6: 0.08150687549 | CE6: 0.7290744506 | CF6: 4.23671447 | CG6: 4.768268771 | CH6: 2.419032725 | CI6: 2.535007687 | CJ6: 33.13646785 | CK6: 0.1480553727 | CM6: 0.03328314703 | CN6: 16.24640308 | CO6: 46.80326402 | CP6: 3.933258259 | CQ6: 2.447027687 | CR6: 37.36010112 | CS6: 0.1389509653 | CT6: 0.05702477412 | CU6: 0.02160190761 | CV6: 0.09002709785 | CW6: 0.1104417939 | CX6: 3.152289102 | CY6: 2.207093644 | CZ6: 15.16919187
A7: Corn | C7: 85.11198198 | E7: 6.8 | F7: 4.15 | G7: 5.85 | H7: 2.1 | I7: 16.95 | J7: 3.35 | K7: 2.5 | L7: 3.2 | M7: 11.4 | N7: 2.55 | O7: 1.65 | P7: 4.55 | Q7: 8.8 | R7: 4.35 | S7: 3.3 | T7: 0.65 | U7: 3.766763848 | V7: 4.25 | Z7: 5.9 | AA7: 3.65 | AB7: 4.5 | AC7: 1.8 | AD7: 14.8 | AE7: 2.6 | AF7: 2.3 | AG7: 2.9 | AH7: 10.45 | AI7: 2.15 | AJ7: 1.5 | AK7: 4.05 | AM7: 3.3 | AN7: 2.6 | AO7: 0.5 | AQ7: 3.8 | AV7: 86.76470588 | AW7: 87.95180723 | AX7: 76.92307692 | AY7: 85.71428571 | AZ7: 87.31563422 | BA7: 77.6119403 | BB7: 92 | BC7: 90.625 | BD7: 91.66666667 | BE7: 84.31372549 | BF7: 90.90909091 | BG7: 89.01098901 | BI7: 75.86206897 | BJ7: 78.78787879 | BK7: 76.92307692 | BM7: 89.41176471 | BN7: 85.11198198 | BR7: 70.3217452 | BS7: 8.669617979 | BT7: 61.62908188 | BU7: 0.4927140041 | BV7: 0.01215678245 | BW7: 0.1963486029 | BX7: 16.34282877 | BY7: 22.54824924 | BZ7: 2.382780239 | CA7: 5.503705284 | CB7: 21.15626955 | CC7: 0.06200077694 | CD7: 0.01886819185 | CE7: 0.1963486029 | CF7: 1.285504139 | CG7: 1.168250739 | CH7: 1.275194266 | CI7: 1.162673727 | CJ7: 2.903979525 | CK7: 0.4307132272 | CN7: 15.14457295 | CO7: 21.33973005 | CP7: 1.087451745 | CQ7: 4.31418592 | CR7: 18.25229003 | CS7: 0.1647914236 | CZ7: 0.5074983976
A8: Soybean Meal (Brazil) | C8: 82.70957264 | E8: 19.8 | F8: 35.15 | G8: 52.4 | H8: 6.925 | I8: 85.2 | J8: 19.2 | K8: 12.5875 | L8: 21.7875 | M8: 36.375 | N8: 29.775 | O8: 6.1875 | P8: 22.3 | Q8: 24.79973736 | R8: 28.1 | S8: 19.05 | T8: 12.0125 | U8: 19.61874504 | V8: 22.55 | Z8: 16.4 | AA8: 32.2875 | AB8: 41.6 | AC8: 5.675 | AD8: 74.7 | AE8: 15.7 | AF8: 10.675 | AG8: 19.1875 | AH8: 31.8625 | AI8: 25.825 | AJ8: 5.55 | AK8: 19.3 | AM8: 22.8 | AN8: 15.4625 | AO8: 5.7375 | AQ8: 19.025 | AV8: 82.82828283 | AW8: 91.85633001 | AX8: 79.38931298 | AY8: 81.94945848 | AZ8: 87.67605634 | BA8: 81.77083333 | BB8: 84.80635551 | BC8: 88.06655192 | BD8: 87.59450172 | BE8: 86.73383711 | BF8: 89.6969697 | BG8: 86.5470852 | BI8: 81.13879004 | BJ8: 81.167979 | BK8: 47.76274714 | BM8: 84.36807095 | BN8: 82.70957264 | BR8: 150.5480238 | BS8: 29.52656644 | BT8: 120.9953136 | BU8: 1.845523656 | BV8: 2.376638078 | BW8: 0.9524133488 | BX8: 24.56764239 | BY8: 13.22891796 | BZ8: 8.626435687 | CA8: 42.32156746 | CB8: 39.3700369 | CC8: 0.399900463 | CD8: 0.605036535 | CE8: 0.6335358133 | CF8: 4.780451085 | CG8: 1.479086273 | CH8: 3.571801094 | CI8: 8.265089587 | CJ8: 2.507684308 | CK8: 1.424042508 | CL8: 1.788236087 | CM8: 0.4038994235 | CN8: 20.44817158 | CO8: 12.15193305 | CP8: 4.907698335 | CQ8: 34.67970144 | CR8: 36.14724412 | CS8: 0.4369725337 | CT8: 0.08202594485 | CU8: 0.1106607597 | CV8: 0.8009852388 | CW8: 0.1020616216 | CX8: 3.981156827 | CY8: 19.89018327 | CZ8: 44.46990552
A9: Soybean Meal (local) | C9: 85.84128773 | E9: 20.2 | F9: 34 | G9: 53.4 | H9: 6.8 | I9: 83.6 | J9: 19.7 | K9: 12.2 | L9: 21.2 | M9: 35.6 | N9: 29.1 | O9: 6.4 | P9: 23.5 | Q9: 24 | R9: 23.3 | S9: 18.2 | T9: 6.3 | U9: 20.27248851 | V9: 22.5 | Z9: 15.87113582 | AA9: 31.2 | AB9: 40.25849087 | AC9: 5.4 | AD9: 72.29108817 | AE9: 15.19370929 | AF9: 10.9 | AG9: 18.4 | AH9: 31.3 | AI9: 25.9 | AJ9: 5.7 | AK9: 20.9 | AM9: 22.0647498 | AN9: 15.1 | AO9: 5.6 | AQ9: 19.6 | AV9: 78.56997932 | AW9: 91.76470588 | AX9: 75.39043233 | AY9: 79.41176471 | AZ9: 86.4725935 | BA9: 77.12542788 | BB9: 89.3442623 | BC9: 86.79245283 | BD9: 87.92134831 | BE9: 89.00343643 | BF9: 89.0625 | BG9: 88.93617021 | BI9: 94.698497 | BJ9: 82.96703297 | BK9: 88.88888889 | BM9: 87.11111111 | BN9: 85.84128773 | BR9: 150.5480238 | BS9: 29.52656644 | BT9: 120.9953136 | BU9: 1.845523656 | BV9: 2.376638078 | BW9: 0.9524133488 | BX9: 24.56764239 | BY9: 13.22891796 | BZ9: 8.626435687 | CA9: 42.32156746 | CB9: 39.3700369 | CC9: 0.399900463 | CD9: 0.605036535 | CE9: 0.6335358133 | CF9: 4.780451085 | CG9: 1.479086273 | CH9: 3.571801094 | CI9: 8.265089587 | CJ9: 2.507684308 | CK9: 1.424042508 | CL9: 1.788236087 | CM9: 0.4038994235 | CN9: 20.44817158 | CO9: 12.15193305 | CP9: 4.907698335 | CQ9: 34.67970144 | CR9: 36.14724412 | CS9: 0.4369725337 | CT9: 0.08202594485 | CU9: 0.1106607597 | CV9: 0.8009852388 | CW9: 0.1020616216 | CX9: 3.981156827 | CY9: 19.89018327 | CZ9: 44.46990552
A10: Canola meal (solvent) | C10: 76.10377347 | E10: 15.3 | F10: 21.8975 | G10: 24.4 | H10: 8.2225 | I10: 60.8 | J10: 17.8 | K10: 10.53625 | L10: 15.1375 | M10: 25.3725 | N10: 19.995 | O10: 6.495 | P10: 14.2 | Q10: 21.5 | R10: 18.2 | S10: 16.22875 | T10: 4.7525 | U10: 1.132254703 | V10: 19.0325 | Z10: 11.1 | AA10: 18.5075 | AB10: 16.4 | AC10: 5.605 | AD10: 50.1 | AE10: 12.7 | AF10: 8.57375 | AG10: 11.81625 | AH10: 20.09625 | AI10: 15.52625 | AJ10: 5.6775 | AK10: 11 | AM10: 11.8 | AN10: 11.50625 | AO10: 3.80375 | AQ10: 14.18375 | AV10: 72.54901961 | AW10: 84.51878068 | AX10: 67.21311475 | AY10: 68.16661599 | AZ10: 82.40131579 | BA10: 71.34831461 | BB10: 81.37382845 | BC10: 78.059455 | BD10: 79.20484777 | BE10: 77.65066267 | BF10: 87.41339492 | BG10: 77.46478873 | BI10: 64.83516484 | BJ10: 70.90040823 | BK10: 80.03682272 | BM10: 74.5238408 | BN10: 76.10377347 | BR10: 111.9 | BS10: 10.8 | BT10: 101.1 | BU10: 1.789402044 | BV10: 1.896486173 | BW10: 0.8243057265 | BX10: 43.66610477 | BY10: 16.53078973 | BZ10: 4.087051661 | CA10: 17.03231305 | CB10: 37.38092599 | CC10: 0.09172413415 | CD10: 0.1188274638 | CE10: 0.4602993536 | CF10: 5.585265003 | CG10: 0.7520345796 | CH10: 1.464356712 | CI10: 2.28664812 | CJ10: 0.7649309991 | CK10: 1.697677909 | CL10: 1.777658709 | CM10: 0.3640063729 | CN10: 38.08083977 | CO10: 15.77875515 | CP10: 2.622694949 | CQ10: 14.74566493 | CR10: 36.61599499
A11: Canola meal (pressed) | C11: 75.18546901 | E11: 15.3 | F11: 20.4 | G11: 24.4 | H11: 8.75 | I11: 60.8 | J11: 17.8 | K11: 9.8 | L11: 13.65 | M11: 23.1 | N11: 20.91666667 | O11: 6.125 | P11: 14.2 | Q11: 20.7 | R11: 18.2 | S11: 14.925 | T11: 4.6 | U11: 1.131900164 | V11: 17.775 | Z11: 11.1 | AA11: 17.1 | AB11: 16.4 | AC11: 5.5 | AD11: 50.1 | AE11: 12.7 | AF11: 7.95 | AG11: 10.55 | AH11: 17.95 | AI11: 15.425 | AJ11: 5.35 | AK11: 11 | AM11: 11.8 | AN11: 10.525 | AO11: 3.675 | AQ11: 12.95 | AV11: 72.54901961 | AW11: 83.82352941 | AX11: 67.21311475 | AY11: 62.85714286 | AZ11: 82.40131579 | BA11: 71.34831461 | BB11: 81.12244898 | BC11: 77.28937729 | BD11: 77.70562771 | BE11: 73.74501992 | BF11: 87.34693878 | BG11: 77.46478873 | BI11: 64.83516484 | BJ11: 70.51926298 | BK11: 79.89130435 | BM11: 72.85513361 | BN11: 75.18546901 | BR11: 154.8 | BS11: 14.9 | BT11: 139.9 | BU11: 1.603203645 | BV11: 1.420365195 | BW11: 1.438011011 | BX11: 42.78752041 | BY11: 16.57561355 | BZ11: 5.322795483 | CA11: 16.89848352 | CB11: 63.99565471 | CC11: 0.09719830369 | CD11: 0.1405834281 | CE11: 0.5825320075 | CF11: 6.946684993 | CG11: 1.189457334 | CH11: 2.322939737 | CI11: 2.924935345 | CJ11: 0.9955635385 | CK11: 1.506005341 | CL11: 1.279781767 | CM11: 0.8554790031 | CN11: 35.84083542 | CO11: 15.38615621 | CP11: 2.999855746 | CQ11: 13.97354817 | CR11: 63.00009117
A12: Lupins | C12: 83.52713246 | E12: 11.2 | F12: 35.85 | G12: 32 | H12: 4.7 | I12: 67.25 | J12: 13.55 | K12: 8.95 | L12: 13.3 | M12: 22.3 | N12: 16.5 | O12: 2.1 | P12: 12.8 | Q12: 13.2 | R12: 15.5 | S12: 11.05 | T12: 2.8 | U12: 2.470385998 | V12: 13 | Z12: 9.1 | AA12: 32.85 | AB12: 26.1 | AC12: 3.9 | AD12: 56.7 | AE12: 10.9 | AF12: 7.55 | AG12: 11.2 | AH12: 19.2 | AI12: 14.4 | AJ12: 1.75 | AK12: 11.15 | AM12: 12.2 | AN12: 9.05 | AO12: 2.2 | AQ12: 10.75 | AV12: 81.25 | AW12: 91.63179916 | AX12: 81.5625 | AY12: 82.9787234 | AZ12: 84.31226766 | BA12: 80.44280443 | BB12: 84.3575419 | BC12: 84.21052632 | BD12: 86.09865471 | BE12: 87.27272727 | BF12: 83.33333333 | BG12: 87.109375 | BI12: 78.70967742 | BJ12: 81.90045249 | BK12: 78.57142857 | BM12: 82.69230769 | BN12: 83.52713246 | BR12: 273.1680341 | BS12: 25.27991343 | BT12: 247.8885064 | BU12: 2.049202765 | BV12: 2.235823603 | BW12: 0.9979109706 | BX12: 32.56576249 | BY12: 39.61574264 | BZ12: 7.513568257 | CA12: 128.1341782 | CB12: 37.90260521 | CC12: 0.04012833919 | CD12: 0.1957732209 | CE12: 0.5310020138 | CF12: 3.847523759 | CG12: 2.16572714 | CH12: 2.958409277 | CI12: 9.370945274 | CJ12: 4.920387117 | CK12: 3.487045828 | CL12: 2.095474882 | CM12: 0.5321293641 | CN12: 29.60250274 | CO12: 33.51199155 | CP12: 4.457462189 | CQ12: 132.2738166 | CR12: 36.2065844 | CS12: 0.2031832191 | CT12: 0.2444076479 | CU12: 0.06112359542 | CV12: 0.3565757756 | CW12: 0.03922407785 | CX12: 2.426552355 | CY12: 30.41361533 | CZ12: 22.40679886
A13: Peas | C13: 74.61687892 | E13: 9.55 | F13: 21.8 | G13: 25.05 | H13: 3 | I13: 36.35 | J13: 9.65 | K13: 5.55 | L13: 9.2 | M13: 15.75 | N13: 15.45 | O13: 1.8 | P13: 10.4 | Q13: 8.3 | R13: 10.05 | S13: 8.05 | T13: 1.9 | U13: 1.20478601 | V13: 10.55 | Z13: 7 | AA13: 18.45 | AB13: 19.1 | AC13: 2.1 | AD13: 28.9 | AE13: 7 | AF13: 4.25 | AG13: 6.65 | AH13: 11.35 | AI13: 12.6 | AJ13: 1.35 | AK13: 7.65 | AM13: 7.1 | AN13: 5.8 | AO13: 1.4 | AQ13: 7.45 | AV13: =(Z13/E13)*100 -> 73.29842932 | AW13: 84.63302752 | AX13: 76.24750499 | AY13: 70 | AZ13: 79.50481431 | BA13: 72.5388601 | BB13: 76.57657658 | BC13: 72.2826087 | BD13: 72.06349206 | BE13: 81.55339806 | BG13: =(AK13/P13)*100 -> 73.55769231 | BI13: 70.64676617 | BJ13: 72.04968944 | BK13: 73.68421053 | BM13: 70.61611374 | BN13: 74.61687892 | BR13: 110.4369192 | BS13: 24.01822297 | BT13: 80.0340808 | BU13: 2.288334596 | BV13: 0.5962778165 | BW13: 0.5393179697 | BX13: 39.07205047 | BY13: 16.23370052 | BZ13: 4.355495354 | CA13: 7.043332758 | CB13: 28.99335908 | CC13: 0.7509168008 | CD13: 0.1278091308 | CE13: 0.4116469797 | CF13: 6.908802935 | CG13: 1.757458241 | CH13: 1.256886947 | CI13: 1.787464701 | CJ13: 5.724659644 | CK13: 1.383777768 | CL13: 0.3833796326 | CM13: 0.1694980424 | CN13: 27.16769267 | CO13: 11.81537552 | CP13: 2.700668663 | CQ13: 4.496920746 | CR13: 23.88571798 | CS13: 1.050636662 | CT13: 1.906272057 | CU13: 1.533180353 | CV13: 2.203623463 | CW13: 1.847025438 | CX13: 4.524853552 | CY13: 16.51468386 | CZ13: 17.89935415
A14: Meat Meal | C14: 67.97639083 | E14: 37.2 | F14: 35.4 | G14: 36.9 | H14: 5 | I14: 59.7 | J14: 67.3 | K14: 8.5 | L14: 13.9 | M14: 30.4 | N14: 24.8 | O14: 6.8 | P14: 16.7 | Q14: 41.2 | R14: 20.2 | S14: 16.5 | T14: 3.3 | U14: 8.914553258 | V14: 20.9 | AA14: 26.9 | AF14: 6 | AG14: 9.6 | AH14: 21.3 | AI14: 16.9 | AJ14: 4.8 | AK14: 11.7 | AN14: 10.2 | AO14: 1.8 | AQ14: 14.4 | AW14: =(AA14/F14)*100 -> 75.98870056 | BB14: =(AF14/K14)*100 -> 70.58823529 | BC14: 69.0647482 | BD14: 70.06578947 | BE14: 68.14516129 | BF14: 70.58823529 | BG14: =(AK14/P14)*100 -> 70.05988024 | BJ14: =(AN14/S14)*100 -> 61.81818182 | BK14: =(AO14/T14)*100 -> 54.54545455 | BM14: 68.89952153 | BN14: 67.97639083
A15: Meat & Bone Meal | C15: 71.84782519 | E15: 37.1 | F15: 34.96666667 | G15: 36.05 | H15: 4.4875 | I15: 58.75 | J15: 69.05 | K15: 9.35 | L15: 13.35833333 | M15: 29.575 | N15: 23.61666667 | O15: 6.816666667 | P15: 16.1 | Q15: 42.8 | R15: 19 | S15: 15.91666667 | T15: 2.975 | U15: 12.65093472 | V15: 20.68333333 | Z15: 28.3 | AA15: 27.56666667 | AB15: 23.2 | AC15: 2.0875 | AD15: 46.1 | AE15: 49.1 | AF15: 6.983333333 | AG15: 10.175 | AH15: 22.575 | AI15: 17.51666667 | AJ15: 5.316666667 | AK15: 11.7 | AM15: 13.5 | AN15: 10.925 | AO15: 2.025 | AQ15: 15.35 | AV15: =(Z15/E15)*100 -> 76.28032345 | AW15: =(AA15/F15)*100 -> 78.83698761 | AX15: =(AB15/G15)*100 -> 64.35506241 | AY15: =(AC15/H15)*100 -> 46.51810585 | AZ15: =(AD15/I15)*100 -> 78.46808511 | BA15: =(AE15/J15)*100 -> 71.10789283 | BB15: 74.68805704 | BC15: 76.16968185 | BD15: 76.33136095 | BE15: 74.17078335 | BF15: 77.99511002 | BG15: =(AK15/P15)*100 -> 72.67080745 | BI15: =(AM15/R15)*100 -> 71.05263158 | BJ15: =(AN15/S15)*100 -> 68.63874346 | BK15: =(AO15/T15)*100 -> 68.06722689 | BM15: 74.21434327 | BN15: 71.84782519
C16: 78.47544568 | E16: CALCULATIONS USED FOR AMINO ACID AND PROTEIN DIGESTIBILITY | BN16: =AVERAGE(BN4:BN15) -> 78.47544568
Z18: Alanine | AA18: Arginine | AB18: Asparagine | AC18: Asparticacid | AD18: Cysteine | AE18: Glutamicacid | AF18: Glutamine | AG18: Glycine | AH18: Histidine | AI18: Isoleucine | AJ18: Leucine | AK18: Lysine | AL18: Methionine | AM18: Phenylalanine | AN18: Proline | AO18: Serine | AP18: Threonine | AQ18: Tryptophan | AR18: Tyrosine | AS18: Valine
Z19: 10.86890244 | AA19: 8.873239437 | AB19: 5.692090395 | AC19: 6.767605634 | AD19: 6.097560976 | AE19: 9.508122744 | AF19: 8.553345389 | AG19: 5.679065744 | AH19: 8.402489627 | AI19: 18.08035714 | AJ19: 17.54111842 | AK19: 14 | AL19: 8.17251462 | AM19: 12.53481894 | AN19: 15.30660377 | AO19: 15.39864865 | AP19: 10.03058104 | AQ19: 11.05263158 | AR19: 12.3880597 | AS19: 15.97826087

Sheet N to TP Factors
G1: Amino Acid Concentrations (g/kg) | K1: Amino Acid Residue Concentrations (True Protein) | O1: Amino Acid Nitrogen Concentrations
B2: AA* | C2: Molecular Weight | D2: Residue Weight | E2: N | F2: NPCR (Ka) | G2: Wheat | H2: Corn | I2: SBM (Brazil) | J2: M & B Meal | K2: Wheat | L2: Corn | M2: SBM (Brazil) | N2: M & B Meal | O2: Wheat | P2: Corn | Q2: SBM (Brazil) | R2: M & B Meal
A3: 1 | B3: Ala | C3: 89.1 | D3: 71.1 | E3: 1 | F3: =1/(E3*14/D3) -> 5.078571429 | G3: 4.45 | H3: 6.8 | I3: 19.8 | J3: 37.1 | K3: =($D3/$C3*G3) -> 3.551010101 | L3: =($D3/$C3*H3) -> 5.426262626 | M3: 15.8 | N3: 29.60505051 | O3: =$E3*14/$D3*K3 -> 0.6992143659 | P3: =$E3*14/$D3*L3 -> 1.068462402 | Q3: 3.111111111 | R3: 5.829405163
A4: =A3+1 -> 2 | B4: Arg | C4: 174.2 | D4: 156.2 | E4: 4 | F4: =1/(E4*14/D4) -> 2.789285714 | G4: 5.583333333 | H4: 4.15 | I4: 35.15 | J4: 34.96666667 | K4: =($D4/$C4*G4) -> 5.006410256 | L4: 3.721182549 | M4: 31.51796785 | N4: 31.35357826 | O4: 1.794871795 | P4: 1.334098737 | Q4: 11.29965557 | R4: 11.24071948
A5: =A4+1 -> 3 | B5: AsX | C5: 132.6 | D5: 114.6 | E5: 1.5 | F5: 5.457142857 | G5: 6.15 | H5: 5.85 | I5: 52.4 | J5: 36.05 | K5: =($D5/$C5*G5) -> 5.315158371 | L5: 5.055882353 | M5: 45.28687783 | N5: 31.15633484 | O5: 0.9739819005 | P5: 0.9264705882 | Q5: 8.298642534 | R5: 5.709276018
A6: 4 | B6: Cys | C6: 121.2 | D6: 103.2 | E6: 1 | F6: 7.371428571 | G6: 2.475 | H6: 2.1 | I6: 6.925 | J6: 4.4875 | K6: =($D6/$C6*G6) -> 2.107425743 | L6: 1.788118812 | M6: 5.896534653 | N6: 3.821039604 | O6: 0.2858910891 | P6: 0.2425742574 | Q6: 0.7999174917 | R6: 0.5183580858
A7: 5 | B7: GLX | C7: 146.6 | D7: 128.6 | E7: 1.5 | F7: 6.123809524 | G7: 35.05 | H7: 16.95 | I7: 85.2 | J7: 58.75 | K7: =($D7/$C7*G7) -> 30.74645293 | L7: 14.86882674 | M7: 74.73888131 | N7: 51.53649386 | O7: 5.020804911 | P7: 2.428035471 | Q7: 12.20463847 | R7: 8.415757162
A8: 6 | B8: Gly | C8: 75.1 | D8: 57.1 | E8: 1 | F8: 4.078571429 | G8: 5.1 | H8: 3.35 | I8: 19.2 | J8: 69.05 | K8: =($D8/$C8*G8)+K21+K22 -> 4.119373776 | L8: =($D8/$C8*H8) -> 2.547070573 | M8: =($D8/$C8*I8) -> 14.59813582 | N8: =($D8/$C8*J8) -> 52.50006658 | O8: 1.010004078 | P8: 0.6245006658 | Q8: 3.579227696 | R8: 12.87217044
A9: 7 | B9: His | C9: 155.2 | D9: 137.2 | E9: 3 | F9: 3.266666667 | G9: 2.766666667 | H9: 2.5 | I9: 12.5875 | J9: 9.35 | K9: =($D9/$C9*G9) -> 2.445790378 | L9: 2.210051546 | M9: 11.12760954 | N9: 8.265592784 | O9: 0.7487113402 | P9: 0.6765463918 | Q9: 3.406411082 | R9: 2.530283505
A10: 8 | B10: Ile | C10: 131.2 | D10: 113.2 | E10: 1 | F10: 8.085714286 | G10: 4.05 | H10: 3.2 | I10: 21.7875 | J10: 13.35833333 | K10: 3.494359756 | L10: 2.76097561 | M10: 18.79836128 | N10: 11.52563516 | O10: 0.4321646341 | P10: 0.3414634146 | Q10: 2.324885671 | R10: 1.425431911
A11: 9 | B11: Leu | C11: 131.2 | D11: 113.2 | E11: 1 | F11: 8.085714286 | G11: 7.833333333 | H11: 11.4 | I11: 36.375 | J11: 29.575 | K11: 6.758638211 | L11: 9.83597561 | M11: 31.38452744 | N11: 25.51745427 | O11: 0.8358739837 | P11: 1.216463415 | Q11: 3.881478659 | R11: 3.155868902
A12: 10 | B12: Lys | C12: 146.2 | D12: 128.2 | E12: 2 | F12: 4.578571429 | G12: 3.383333333 | H12: 2.55 | I12: 29.775 | J12: 23.61666667 | K12: 2.966780666 | L12: 2.236046512 | M12: 26.10913133 | N12: 20.70900593 | O12: 0.6479708162 | P12: 0.488372093 | Q12: 5.70246238 | R12: 4.523027816
A13: 11 | B13: Met | C13: 149.2 | D13: 131.2 | E13: 1 | F13: 9.371428571 | G13: 1.716666667 | H13: 1.65 | I13: 6.1875 | J13: 6.816666667 | K13: 1.509562109 | L13: 1.450938338 | M13: 5.441018767 | N13: 5.994280608 | O13: 0.1610813226 | P13: 0.1548257373 | Q13: 0.5805965147 | R13: 0.6396336014
A14: 12 | B14: Phe | C14: 165.2 | D14: 147.2 | E14: 1 | F14: 10.51428571 | G14: 5.65 | H14: 4.55 | I14: 22.3 | J14: 16.1 | K14: 5.034382567 | L14: 4.054237288 | M14: 19.87021792 | N14: 14.34576271 | O14: 0.4788135593 | P14: 0.3855932203 | Q14: 1.889830508 | R14: 1.36440678
A15: 13 | B15: Pro | C15: 115.1 | D15: 97.1 | E15: 1 | F15: 6.935714286 | G15: 11.5 | H15: 8.8 | I15: 24.79973736 | J15: 42.8 | K15: 9.701563858 | L15: 7.423805387 | M15: 20.9214118 | N15: 36.10668983 | O15: 1.398783666 | P15: 1.070373588 | Q15: 3.016475439 | R15: 5.205907906
A16: 14 | B16: Ser | C16: 105.1 | D16: 87.1 | E16: 1 | F16: 6.221428571 | G16: 5.85 | H16: 4.35 | I16: 28.1 | J16: 19 | K16: 4.84809705 | L16: 3.604995243 | M16: 23.28744053 | N16: 15.74595623 | O16: 0.7792578497 | P16: 0.5794481446 | Q16: 3.743101808 | R16: 2.530922931
A17: 15 | B17: Thr | C17: 119.1 | D17: 101.1 | E17: 1 | F17: 7.221428571 | G17: 3.483333333 | H17: 3.3 | I17: 19.05 | J17: 15.91666667 | K17: 2.956884971 | L17: 2.801259446 | M17: 16.1709068 | N17: 13.5111251 | O17: 0.4094598377 | P17: 0.3879093199 | Q17: 2.23929471 | R17: 1.87097677
A18: 16 | B18: Trp | C18: 204.2 | D18: 186.2 | E18: 2 | F18: 6.65 | G18: 1.466666667 | H18: 0.65 | I18: 12.0125 | J18: 2.975 | K18: 1.337381652 | L18: 0.5927032321 | M18: 10.95361166 | N18: 2.712757101 | O18: 0.2011100229 | P18: 0.08912830558 | Q18: 1.647159647 | R18: 0.4079333986
A19: 17 | B19: Tyr | C19: 181.2 | D19: 163.2 | E19: 1 | F19: 11.65714286 | G19: 5.125700202 | H19: 3.766763848 | I19: 19.61874504 | J19: 12.65093472 | K19: 4.616524685 | L19: =($D19/$C19*H19) -> 3.392582009 | M19: 17.66986308 | N19: 11.39421935 | O19: 0.3960254019 | P19: =$E19*14/$D19*L19 -> 0.2910303194 | Q19: 1.515797078 | R19: 0.9774452876
A20: =A19+1 -> 18 | B20: Val | C20: 117.1 | D20: 99.1 | E20: 1 | F20: 7.078571429 | G20: 5.1 | H20: 4.25 | I20: 22.55 | J20: 20.68333333 | K20: 4.316054654 | L20: 3.596712212 | M20: 19.08373185 | N20: 17.50399943 | O20: 0.609735269 | P20: 0.5081127242 | Q20: 2.695986336 | R20: 2.472815258
B21: (Choline**) | C21: 104.17 | G21: 0.0889 | H21: 0.053 | I21: 0.336 | J21: 0.1751 | K21: =(G21*($D$8/$C$21)) -> 0.04872986464 | L21: =(H21*($D$8/$C$21)) -> 0.02905155035 | M21: =(I21*($D$8/$C$21)) -> 0.1841758664 | N21: =(J21*($D$8/$C$21)) -> 0.09597974465
B22: (Betaine**) | C22: 117.15 | G22: 0.396 | H22: 0 | I22: 0 | J22: 0.06 | K22: =(G22*($D$8/$C$22)) -> 0.1930140845 | L22: =(H22*($D$8/$C$22)) -> 0 | M22: =(I22*($D$8/$C$22)) -> 0 | N22: =(J22*($D$8/$C$22)) -> 0.02924455826
B23: Total | K23: =SUM(K3:K20) -> 100.8318517 | L23: =SUM(L3:L20) -> 77.36762608 | M23: 408.6562294 | N23: 383.3050422 | O23: 16.88375584 | P23: 12.81340879 | Q23: 71.93667271 | R23: 71.69034041
B24: NPCF or Ka | O24: =K23/O23 -> 5.97212212 | P24: =L23/P23 -> 6.038020586 | Q24: =M23/Q23 -> 5.680777468 | R24: =N23/R23 -> 5.346676274
N25: % TP of CP = | O25: =(O24/6.25)*100 -> 95.55395392 | P25: =(P24/6.25)*100 -> 96.60832938 | Q25: =(Q24/6.25)*100 -> 90.89243949 | R25: =(R24/6.25)*100 -> 85.54682039
A26: =A20+1 -> 19 | B26: MHA | C26: 150.2 | D26: 131.2 | E26: 1 | F26: 9.371428571
A27: =A26+1 -> 20 | B27: Ca(MHA)2 | C27: 338.45 | D27: 262.4 | E27: 2 | F27: 9.371428571 | H27: *Assumes total Glu and Gln, and total Asp and Asn, are measured together as GlX and AsX, respectively. Their molecular weights are very similar. Average N concentration is used, assuming a 50/50 mixture.
W28: 17.6
A29: =A27+1 -> 21 | B29: Asn | C29: 132.1 | D29: 114.1 | E29: 2 | F29: 4.075 | H29: **Metabolically, choline is oxidized to betaine and beatine is oxidized to glycine. The efficiency of these conversions is not known and assumed to be 100%. | W29: 6.25
A30: =A29+1 -> 22 | B30: ASP | C30: 133.1 | D30: 115.1 | E30: 1 | F30: 8.221428571 | W30: =W28/W29 -> 2.816
A31: =A30+1 -> 23 | B31: Gln | C31: 146.1 | D31: 128.1 | E31: 2 | F31: 4.575 | H31: This spreadsheet automatically adds the glycine from choline and betaine in calculating GLY residue concentrations. | W31: 5.636
A32: =A31+1 -> 24 | B32: Glu | C32: 147.1 | D32: 129.1 | E32: 1 | F32: 9.221428571 | W32: =W30*W31 -> 15.870976
B33: LysHCl | C33: 182.65 | D33: 128.2 | E33: 2 | F33: =1/(E33*14/D33) -> 4.578571429
A34: =A32+1 -> 25 | B34: CholineCl | C34: 187.16 | D34: 57.1 | E34: 1 | F34: =1/(E34*14/D34) -> 4.078571429

Sheet AMEn Calc
B2: Moisture | C2: Dry Matter | E2: Crude Protein | G2: Ether Extract | I2: Ash | K2: Crude Fiber | L2: Nitrogen-free Extract | N2: Starch | P2: AMEn
B3: g/kg | C3: g/kg | D3: WPSA '89 Factor | E3: g/kg | F3: WPSA '89 Factor | G3: g/kg | H3: WPSA '89 Factor | I3: g/kg | J3: WPSA '89 Factor | K3: g/kg | L3: g/kg | M3: WPSA '89 Factor | N3: g/kg | O3: WPSA '89 Factor | P3: kJ/g | Q3: kcal/g
A4: Wheat | B4: 103.25 | C4: 896.75 | E4: 111.575 | F4: 14.61 | G4: 20 | H4: 26.4 | I4: 13 | K4: 22 | L4: 730.175 | M4: 15.24 | N4: 632 | P4: =(C4*D4+E4*F4+G4*H4+I4*J4+L4*M4+N4*O4)/1000 -> 13.28597775 | Q4: =P4/4.184 -> 3.175424892
A5: Sorghum | B5: 115.3333333 | C5: 884.6666667 | E5: 97.025 | F5: 9.197 | G5: 35.85 | H5: 22.91 | I5: 14.15 | K5: 22.05 | L5: 715.5916667 | M5: 14.72 | N5: 647.1 | P5: 12.24717176 | Q5: =P5/4.184 -> 2.927144302
A6: Barley | B6: 107.6666667 | C6: 892.3333333 | D6: 9.258 | E6: 93.36666667 | G6: 25.5 | I6: 22 | J6: -9.258 | K6: 57.5 | L6: 693.9666667 | N6: 502 | O6: 7.526 | P6: 11.835598 | Q6: 2.828775813
A7: Corn | B7: 112.5 | C7: 887.5 | E7: 85.75 | F7: 15.15 | G7: 39.7 | H7: 35.75 | I7: 12.5 | K7: 20.9 | L7: 728.65 | M7: 15.59 | N7: 621 | P7: 14.078041 | Q7: 3.364732553
A8: Soybean Meal (Brazil) | B8: 103.5 | C8: 896.5 | E8: 472.125 | F8: 16.23 | G8: 19.475 | H8: 36.5 | I8: 62.125 | K8: 36.125 | L8: 306.65 | M8: 7.622 | N8: 5.5 | P8: 10.71071255 | Q8: 2.559921738
A9: Soybean Meal (local) | B9: 120 | C9: 880 | E9: 456.9 | F9: 16.23 | G9: 19.475 | H9: 36.5 | I9: 62.125 | K9: 36.125 | L9: 305.375 | M9: 7.622 | N9: 5.5 | P9: 10.45389275 | Q9: 2.498540332
A10: Canola meal (solvent) | B10: 91.875 | C10: 908.125 | E10: 365.81875 | F10: 12.62 | G10: 28.675 | H10: 38.05 | I10: 65.6725 | K10: 117.985 | L10: 329.97375 | M10: 3.811 | N10: 51 | P10: 6.965246336 | Q10: 1.664733828
A11: Canola meal (pressed) | B11: 77.55 | C11: 922.45 | E11: 365.9333333 | F11: 12.62 | G11: 125.3 | H11: 38.05 | I11: 68.5 | K11: 104.35 | L11: 258.3666667 | M11: 3.811 | N11: 51 | P11: 10.37037903 | Q11: 2.478580075
A12: Lupins | B12: 98.5 | C12: 901.5 | E12: 319.95 | F12: 16.59 | G12: 63.8 | H12: 33 | I12: 28 | K12: 118.2 | L12: 371.55 | M12: 1.559 | N12: 81 | P12: 7.99261695 | Q12: 1.910281298
A13: Peas | B13: 108 | C13: 892 | E13: 217.3 | F13: 15.51 | G13: 19.3 | H13: 31.06 | I13: 26.3 | K13: 57.713 | L13: 571.387 | M13: 13.34 | N13: 413.3 | P13: 11.59208358 | Q13: 2.770574469
A14: Meat Meal | B14: 90 | C14: 910 | D14: 14.2 | E14: 512.6 | G14: 115.1 | H14: 25.1 | I14: 263.9 | J14: -19.15 | K14: 0 | L14: 18.4 | P14: 10.757325 | Q14: 2.57106238
A15: Meat & Bone Meal | B15: 70 | C15: 930 | D15: 14.2 | E15: 489.45 | G15: 88.875 | H15: 25.1 | I15: 331.65 | J15: -19.2 | K15: 0 | L15: 20.025 | P15: 9.0690825 | Q15: 2.167562739
A16: Tallow* | B16: 2 | C16: 998 | G16: 998 | P16: 29.3 | Q16: 7
A17: Fat, Vegetable* | B17: 2 | C17: 998 | G17: 998 | P17: =(37.65+35.55)/2 -> 36.6 | Q17: 8.75
A18: *Moisture includes insolubles and unsaponifiables
F19: Values to be Measured for each Ingredient
F21: AMEn of Wheat = (D4*E4+F4*G4+H4*I4+J4*K4+M4*N4+O4*P4)/1000

Sheet Composition Charts
B1: Weende Method | C1: Nitrogen-Free Extract | H1: Crude Fibre | J1: NFE | L1: CF | M1: Ash | N1: Ether Ext. | P1: Crude Protein
B2: Common Nomenclature | C2: Carbohydrates
E3: Polysaccharides
F4: Non-starch Polysaccharides
F5: True Fibre
G6: Neutral Detergent Fibre
I7: ADF (Wood)
B8: Armidale Method | C8: Sugars | D8: Oligosac-charides | E8: Starch | F8: Pectin | G8: Hemi-cellulose | I8: Cellulose | K8: Lignin | M8: Ash | N8: Neutral Lipids | O8: Polar Lipids | P8: True Protein | Q8: NPNC
B9: Sugar Units | C9: 1-2 | D9: 3-12 | E9: >12 | G9: >12 | I9: >12 | K9: >12
B10: GE (kcal/g) | C10: 4 | D10: 16.736 | E10: 17.5728 | F10: 15.56448 | G10: 16.736 | I10: 16.736 | K10: 25.50148 | M10: 0 | N10: 39.748 | O10: =0.78*N10 -> 31.00344 | P10: 23.8488 | Q10: =P10/0.97 -> 24.58639175
B11: Potential Digestibility | C11: 1 | D11: 0.9 | E11: 100 | F11: 0.7 | G11: 0.5 | I11: 0.1 | K11: 0 | M11: 0 | N11: 100 | O11: 100 | P11: 100 | Q11: =P11/0.97 -> 103.0927835
B12: Potential ME (MJ/g) | C12: 16.736 | D12: 16.736 | E12: 17.5728 | F12: 10.895136 | G12: 8.368 | I12: 1.6736 | K12: 0 | M12: 0 | N12: 39.748 | O12: =0.78*N12 -> 31.00344 | P12: 23.8488 | Q12: =P12/0.97 -> 24.58639175
B13: NE (based on ATP) | C13: 10.56 | D13: 10.6 | E13: 11.73 | F13: 8.21 | G13: 8.21 | I13: 11.73 | K13: 8.21 | M13: 0 | N13: 25.31 | O13: 20.36 | P13: 11.35 | Q13: 6.33
B15: NPNC = Non-Protein Nitrogenous Compounds, the difference between Crude Protein and True Protein (~12%, TP = 0.88 x CP)

Sheet Weende v Armidale
C1: DM | D1: Crude Protein | E1: Moisture | F1: Total Lipids | G1: Ash | H1: NFE | J1: TOTAL | T1: N | U1: NPCF or Ka | V1: Total NSP | W1: NDF | X1: ADF | Y1: % PL | Z1: Lignin | AA1: Sugars | AR1: Ala | AS1: Arg | AT1: AsX | AU1: Cys | AV1: Glx | AW1: Gly | AX1: His | AY1: Ile | AZ1: Leu | BA1: Lys | BB1: Met | BC1: Phe | BD1: Pro | BE1: Ser | BF1: Thr | BG1: Trp | BH1: Tyr | BI1: Val | BR1: AlaD | BS1: ArgD | BT1: AsXD | BU1: CysD | BV1: GlxD | BW1: GlyD | BX1: HisD | BY1: IleD | BZ1: LeuD | CA1: LysD | CB1: MetD | CC1: PheD | CD1: ProD | CE1: SerD | CF1: ThrD | CG1: TrpD | CH1: TyrD | CI1: ValD | CJ1: TOTAL | CR1: Ala | CS1: Arg | CT1: AsX | CU1: Cys | CV1: Glx | CW1: Gly | CX1: His | CY1: Ile | CZ1: Leu | DA1: Lys | DB1: Met | DC1: Phe | DD1: Pro | DE1: Ser | DF1: Thr | DG1: Trp | DH1: Tyr | DI1: Val | DJ1: Average | DR1: NSPTot | DS1: NSPSol | DT1: NSPInSol | DU1: NSPTotRhamnose | DV1: NSPTotFucose | DW1: NSPTotRibose | DX1: NSPTotArabinose | DY1: NSPTotXylose | DZ1: NSPTotMannose | EA1: NSPTotGalactose | EB1: NSPTotGlucose | EC1: NSPSolRhamnose | ED1: NSPSolFucose | EE1: NSPSolRibose | EF1: NSPSolArabinose | EG1: NSPSolXylose | EH1: NSPSolMannose | EI1: NSPSolGalactose | EJ1: NSPSolGlucose | EK1: NSPInSolRhamnose | EL1: NSPInSolFucose | EM1: NSPInSolRibose | EN1: NSPInSolArabinose | EO1: NSPInSolXylose | EP1: NSPInSolMannose | EQ1: NSPInSolGalactose | ER1: NSPInSolGlucose | ES1: ONSPRhamnose | ET1: ONSPFucose | EU1: ONSPRibose | EV1: ONSPArabinose | EW1: ONSPXylose | EX1: ONSPMannose | EY1: ONSPGalactose | EZ1: ONSPGlucose
A2: Weende Method (Proximate Analysis) | C2: g/kg | D2: g/kg | E2: g/kg | F2: g/kg | G2: g/kg | H2: g/kg | T2: g/kg | U2: g/kg | V2: g/kg | W2: g/kg | X2: g/kg | Y2: g/kg | Z2: g/kg | AA2: g/kg | CJ2: NPCF
B3: Wheat | C3: 896.75 | D3: 111.575 | E3: =1000-C3 -> 103.25 | F3: 20 | G3: 13 | H3: =1000-(SUM(D3:G3)) -> 752.175 | J3: =SUM(D3:H3) -> 1000 | N3: Average Total | T3: =(D3/6.25) -> 17.852 | U3: 5.991300883 | V3: =DR3 -> 104.7124973 | W3: 127.2 | X3: 34.7 | Y3: =AVERAGE(Phospholipids!H29:H32) -> 35.51107143 | Z3: 11 | AA3: 32 | AR3: 4.45 | AS3: 5.583333333 | AT3: 6.15 | AU3: 2.475 | AV3: 35.05 | AW3: 5.1 | AX3: 2.766666667 | AY3: 4.05 | AZ3: 7.833333333 | BA3: 3.383333333 | BB3: 1.716666667 | BC3: 5.65 | BD3: 11.5 | BE3: 5.85 | BF3: 3.483333333 | BG3: 1.466666667 | BH3: 5.125700202 | BI3: 5.1 | BR3: 3.8 | BS3: 4.85 | BT3: 5 | BU3: 1.95 | BV3: 34.6 | BW3: 4.3 | BX3: 2.383333333 | BY3: 3.583333333 | BZ3: 7.016666667 | CA3: 2.716666667 | CB3: 1.533333333 | CC3: 5 | CD3: =BD3*DD3/100 -> 9.768755735 | CE3: 5.4 | CF3: 2.816666667 | CG3: 0.9333333333 | CH3: =BH3*DH3/100 -> 4.354062021 | CI3: 4.316666667 | CJ3: =#REF!/#REF! ->  | CR3: =(BR3/AR3)*100 -> 85.39325843 | CS3: 86.86567164 | CT3: 81.30081301 | CU3: 78.78787879 | CV3: 98.71611983 | CW3: 84.31372549 | CX3: 86.14457831 | CY3: 88.47736626 | CZ3: 89.57446809 | DA3: 80.2955665 | DB3: 89.32038835 | DC3: 88.49557522 | DD3: =$DK3 -> 84.94570205 | DE3: 92.30769231 | DF3: 80.86124402 | DG3: 63.63636364 | DH3: =$DK3 -> 84.94570205 | DI3: =(CI3/BI3)*100 -> 84.64052288 | DJ3: =AVERAGE(CR3:DI3) -> 84.94570205 | DK3: 84.94570205 | DR3: 104.7124973 | DS3: 20.28686832 | DT3: 85.1218326 | DU3: 0.05675441977 | DV3: 0.009074321271 | DW3: 0.2288782351 | DX3: 20.71287343 | DY3: 34.89392255 | DZ3: 3.6712192 | EA3: 4.152424357 | EB3: 26.62398104 | EC3: 0.004568893383 | ED3: 0.009074321271 | EE3: 0.1306626398 | EF3: 4.407199562 | EG3: 7.042711831 | EH3: 1.096251732 | EI3: 1.717819597 | EJ3: 4.267467647 | EK3: 0.07179336952 | EM3: 0.0982155953 | EN3: 16.32528171 | EO3: 27.91003425 | EP3: 2.574967468 | EQ3: 2.434604761 | ER3: 22.43494477 | ES3: 0.06638406434 | EU3: 0.03097011017 | EV3: 0.2814629654 | EW3: 0.09309234846 | EX3: 3.133931199 | EY3: 1.996572632 | EZ3: 14.3289998
B4: Sorghum | C4: 884.6666667 | D4: 97.025 | E4: 115.3333333 | F4: 35.85 | G4: 14.15 | H4: =1000-(SUM(D4:G4)) -> 737.6416667 | J4: =SUM(D4:H4) -> 1000 | N4: =AVERAGE(J3:J14) -> 1000 | O4: g/kg | T4: 15.524 | U4: 6.231103672 | V4: 53.94368354 | W4: 103.3 | X4: 43.5 | Y4: =AVERAGE(Phospholipids!H8:H11,Phospholipids!H18:H32) -> 19.45836251 | Z4: 11 | AA4: 14 | AR4: 7.45 | AS4: 3.3 | AT4: 5.4 | AU4: 1.75 | AV4: 16.9 | AW4: 2.6 | AX4: 2.066666667 | AY4: 3.533333333 | AZ4: 12.03333333 | BA4: 1.933333333 | BB4: 1.4 | BC4: 4.2 | BD4: 7.1 | BE4: 3.95 | BF4: 2.9 | BG4: 1.15 | BH4: 1.752125741 | BI4: 4.433333333 | BR4: 5.7 | BS4: 1.933333333 | BT4: 3.7 | BU4: 1.35 | BV4: 13.5 | BW4: 1.6 | BX4: 1.633333333 | BY4: 3.033333333 | BZ4: 10.6 | CA4: 1.566666667 | CB4: 1.233333333 | CC4: 3.6 | CD4: 5.547247253 | CE4: 2.9 | CF4: 2.233333333 | CG4: 1 | CH4: 1.368940099 | CI4: 3.666666667 | CJ4: =#REF!/#REF! ->  | CR4: 76.51006711 | CS4: 58.58585859 | CT4: 68.51851852 | CU4: 77.14285714 | CV4: 79.8816568 | CW4: 61.53846154 | CX4: 79.03225806 | CY4: 85.8490566 | CZ4: 88.08864266 | DA4: 81.03448276 | DB4: 88.0952381 | DC4: 85.71428571 | DD4: 78.130243 | DE4: 73.41772152 | DF4: 77.01149425 | DG4: 86.95652174 | DH4: 78.130243 | DI4: 82.70676692 | DJ4: =AVERAGE(CR4:DI4) -> 78.130243 | DK4: 78.130243 | DR4: 53.94368354 | DS4: 5.425409233 | DT4: 49.48032876 | DU4: 0.09911036988 | DV4: 0.004552846548 | DW4: 2.56678985 | DX4: 11.85702425 | DY4: 11.56735312 | DZ4: 2.325021479 | EA4: 2.985195316 | EB4: 24.25549079 | EC4: 0.08815851083 | ED4: 0.004552846548 | EE4: 0.1265054768 | EF4: 0.8040056202 | EG4: 0.6014674054 | EH4: 1.03558795 | EI4: 0.7971140385 | EJ4: 1.932863168 | EK4: 0.03872963683 | EM4: 2.440284373 | EN4: 11.10857418 | EO4: 10.96588572 | EP4: 1.233877973 | EQ4: 2.188081277 | ER4: 22.29484984 | ES4: 0.0744952769 | EV4: 0.2132594602 | EW4: 0.04927407326 | EX4: 1.071393444 | EY4: 0.6658066075 | EZ4: 7.377999906
B5: Barley | C5: 892.3333333 | D5: 93.36666667 | E5: 107.6666667 | F5: 25.5 | G5: 22 | H5: 751.4666667 | J5: 1000 | N5: =((N4-1000)/1000)*100 -> 0 | O5: % | T5: 14.93866667 | U5: 5.984496083 | V5: 154.3594745 | W5: 185.3 | X5: 58.1 | Y5: =Phospholipids!H8 -> 16.86666667 | Z5: 11 | AA5: 28 | AR5: 3.95 | AS5: 4.733333333 | AT5: 5.65 | AU5: 2.05 | AV5: 20.95 | AW5: 3.85 | AX5: 2.1 | AY5: 3.333333333 | AZ5: 6.533333333 | BA5: 3.5 | BB5: 1.466666667 | BC5: 4.5 | BD5: 9 | BE5: 4.1 | BF5: 3.1 | BG5: 1.266666667 | BH5: 4.123527312 | BI5: 4.633333333 | BR5: 2.7 | BS5: 3.8 | BT5: 3.4 | BU5: 1.7 | BV5: 18.8 | BW5: 2.3 | BX5: 1.633333333 | BY5: 2.666666667 | BZ5: 5.366666667 | CA5: 2.7 | CB5: 1.266666667 | CC5: 3.5 | CD5: 6.81381818 | CE5: 2.7 | CF5: 2.2 | CG5: 0.9333333333 | CH5: 3.12188504 | CI5: 3.633333333 | CJ5: =#REF!/#REF! ->  | CR5: 68.35443038 | CS5: 80.28169014 | CT5: 60.17699115 | CU5: 82.92682927 | CV5: 89.73747017 | CW5: 59.74025974 | CX5: 77.77777778 | CY5: 80 | CZ5: 82.14285714 | DA5: 77.14285714 | DB5: 86.36363636 | DC5: 77.77777778 | DD5: 75.70909089 | DE5: 65.85365854 | DF5: 70.96774194 | DG5: 73.68421053 | DH5: 75.70909089 | DI5: 78.41726619 | DJ5: 75.70909089 | DK5: 75.70909089 | DR5: 154.3594745 | DS5: 41.7200294 | DT5: 112.6365039 | DU5: 0.3357357969 | DV5: 0.08150687549 | DW5: 0.6930523615 | DX5: 20.5307366 | DY5: 51.66677088 | DZ5: 6.399910032 | EA5: 4.982035375 | EB5: 70.49656898 | EC5: 0.1876804242 | ED5: 0.08150687549 | EE5: 0.7290744506 | EF5: 4.23671447 | EG5: 4.768268771 | EH5: 2.419032725 | EI5: 2.535007687 | EJ5: 33.13646785 | EK5: 0.1480553727 | EM5: 0.03328314703 | EN5: 16.24640308 | EO5: 46.80326402 | EP5: 3.933258259 | EQ5: 2.447027687 | ER5: 37.36010112 | ES5: 0.1389509653 | ET5: 0.05702477412 | EU5: 0.02160190761 | EV5: 0.09002709785 | EW5: 0.1104417939 | EX5: 3.152289102 | EY5: 2.207093644 | EZ5: 15.16919187
B6: Corn | C6: 887.5 | D6: 85.75 | E6: 112.5 | F6: 39.7 | G6: 12.5 | H6: 749.55 | J6: 1000 | N6: Minimum Total | T6: 13.72 | U6: 6.052330953 | V6: 70.3217452 | W6: 111.4 | X6: 28.3 | Y6: =AVERAGE(Phospholipids!H9:H11) -> 5.877252252 | Z6: 6 | AA6: 21 | AR6: 6.8 | AS6: 4.15 | AT6: 5.85 | AU6: 2.1 | AV6: 16.95 | AW6: 3.35 | AX6: 2.5 | AY6: 3.2 | AZ6: 11.4 | BA6: 2.55 | BB6: 1.65 | BC6: 4.55 | BD6: 8.8 | BE6: 4.35 | BF6: 3.3 | BG6: 0.65 | BH6: 3.766763848 | BI6: 4.25 | BR6: 5.9 | BS6: 3.65 | BT6: 4.5 | BU6: 1.8 | BV6: 14.8 | BW6: 2.6 | BX6: 2.3 | BY6: 2.9 | BZ6: 10.45 | CA6: 2.15 | CB6: 1.5 | CC6: 4.05 | CD6: 7.489854414 | CE6: 3.3 | CF6: 2.6 | CG6: 0.5 | CH6: 3.205967368 | CI6: 3.8 | CJ6: =#REF!/#REF! ->  | CR6: 86.76470588 | CS6: 87.95180723 | CT6: 76.92307692 | CU6: 85.71428571 | CV6: 87.31563422 | CW6: 77.6119403 | CX6: 92 | CY6: 90.625 | CZ6: 91.66666667 | DA6: 84.31372549 | DB6: 90.90909091 | DC6: 89.01098901 | DD6: 85.11198198 | DE6: 75.86206897 | DF6: 78.78787879 | DG6: 76.92307692 | DH6: 85.11198198 | DI6: 89.41176471 | DJ6: 85.11198198 | DK6: 85.11198198 | DR6: 70.3217452 | DS6: 8.669617979 | DT6: 61.62908188 | DU6: 0.4927140041 | DV6: 0.01215678245 | DW6: 0.1963486029 | DX6: 16.34282877 | DY6: 22.54824924 | DZ6: 2.382780239 | EA6: 5.503705284 | EB6: 21.15626955 | EC6: 0.06200077694 | ED6: 0.01886819185 | EE6: 0.1963486029 | EF6: 1.285504139 | EG6: 1.168250739 | EH6: 1.275194266 | EI6: 1.162673727 | EJ6: 2.903979525 | EK6: 0.4307132272 | EN6: 15.14457295 | EO6: 21.33973005 | EP6: 1.087451745 | EQ6: 4.31418592 | ER6: 18.25229003 | ES6: 0.1647914236 | EZ6: 0.5074983976
B7: Soybean Meal (Brazil) | C7: 896.5 | D7: 472.125 | E7: 103.5 | F7: 19.475 | G7: 62.125 | H7: 342.775 | J7: 1000 | N7: =MIN(J3:J14) -> 1000 | O7: g/kg | T7: 75.54 | U7: 5.641930103 | V7: 150.5480238 | W7: 119.4 | X7: 196.1 | Y7: 100 | Z7: 4 | AA7: 108 | AR7: 19.8 | AS7: 35.15 | AT7: 52.4 | AU7: 6.925 | AV7: 85.2 | AW7: 19.2 | AX7: 12.5875 | AY7: 21.7875 | AZ7: 36.375 | BA7: 29.775 | BB7: 6.1875 | BC7: 22.3 | BD7: 24.79973736 | BE7: 28.1 | BF7: 19.05 | BG7: 12.0125 | BH7: 19.61874504 | BI7: 22.55 | BR7: 16.4 | BS7: 32.2875 | BT7: 41.6 | BU7: 5.675 | BV7: 74.7 | BW7: 15.7 | BX7: 10.675 | BY7: 19.1875 | BZ7: 31.8625 | CA7: 25.825 | CB7: 5.55 | CC7: 19.3 | CD7: 20.51175679 | CE7: 22.8 | CF7: 15.4625 | CG7: 5.7375 | CH7: 16.22658018 | CI7: 19.025 | CJ7: =#REF!/#REF! ->  | CR7: 82.82828283 | CS7: 91.85633001 | CT7: 79.38931298 | CU7: 81.94945848 | CV7: 87.67605634 | CW7: 81.77083333 | CX7: 84.80635551 | CY7: 88.06655192 | CZ7: 87.59450172 | DA7: 86.73383711 | DB7: 89.6969697 | DC7: 86.5470852 | DD7: 82.70957264 | DE7: 81.13879004 | DF7: 81.167979 | DG7: 47.76274714 | DH7: 82.70957264 | DI7: 84.36807095 | DJ7: 82.70957264 | DK7: 82.70957264 | DR7: 150.5480238 | DS7: 29.52656644 | DT7: 120.9953136 | DU7: 1.845523656 | DV7: 2.376638078 | DW7: 0.9524133488 | DX7: 24.56764239 | DY7: 13.22891796 | DZ7: 8.626435687 | EA7: 42.32156746 | EB7: 39.3700369 | EC7: 0.399900463 | ED7: 0.605036535 | EE7: 0.6335358133 | EF7: 4.780451085 | EG7: 1.479086273 | EH7: 3.571801094 | EI7: 8.265089587 | EJ7: 2.507684308 | EK7: 1.424042508 | EL7: 1.788236087 | EM7: 0.4038994235 | EN7: 20.44817158 | EO7: 12.15193305 | EP7: 4.907698335 | EQ7: 34.67970144 | ER7: 36.14724412 | ES7: 0.4369725337 | ET7: 0.08202594485 | EU7: 0.1106607597 | EV7: 0.8009852388 | EW7: 0.1020616216 | EX7: 3.981156827 | EY7: 19.89018327 | EZ7: 44.46990552
B8: Soybean Meal (local) | C8: 880 | D8: 456.9 | E8: 120 | F8: 19.475 | G8: 62.125 | H8: 341.5 | J8: 1000 | N8: =((N7-1000)/1000)*100 -> 0 | O8: % | T8: 73.104 | U8: 5.670760694 | V8: 150.5480238 | W8: 119.4 | X8: 196.1 | Y8: 100 | Z8: 4 | AA8: 108 | AR8: 20.2 | AS8: 34 | AT8: 53.4 | AU8: 6.8 | AV8: 83.6 | AW8: 19.7 | AX8: 12.2 | AY8: 21.2 | AZ8: 35.6 | BA8: 29.1 | BB8: 6.4 | BC8: 23.5 | BD8: 24 | BE8: 23.3 | BF8: 18.2 | BG8: 6.3 | BH8: 20.27248851 | BI8: 22.5 | BR8: 15.87113582 | BS8: 31.2 | BT8: 40.25849087 | BU8: 5.4 | BV8: 72.29108817 | BW8: 15.19370929 | BX8: 10.9 | BY8: 18.4 | BZ8: 31.3 | CA8: 25.9 | CB8: 5.7 | CC8: 20.9 | CD8: 20.60190906 | CE8: 22.0647498 | CF8: 15.1 | CG8: 5.6 | CH8: 17.40216519 | CI8: 19.6 | CJ8: =#REF!/#REF! ->  | CR8: 78.56997932 | CS8: 91.76470588 | CT8: 75.39043233 | CU8: 79.41176471 | CV8: 86.4725935 | CW8: 77.12542788 | CX8: 89.3442623 | CY8: 86.79245283 | CZ8: 87.92134831 | DA8: 89.00343643 | DB8: 89.0625 | DC8: 88.93617021 | DD8: 85.84128773 | DE8: 94.698497 | DF8: 82.96703297 | DG8: 88.88888889 | DH8: 85.84128773 | DI8: 87.11111111 | DJ8: 85.84128773 | DK8: 85.84128773 | DR8: 150.5480238 | DS8: 29.52656644 | DT8: 120.9953136 | DU8: 1.845523656 | DV8: 2.376638078 | DW8: 0.9524133488 | DX8: 24.56764239 | DY8: 13.22891796 | DZ8: 8.626435687 | EA8: 42.32156746 | EB8: 39.3700369 | EC8: 0.399900463 | ED8: 0.605036535 | EE8: 0.6335358133 | EF8: 4.780451085 | EG8: 1.479086273 | EH8: 3.571801094 | EI8: 8.265089587 | EJ8: 2.507684308 | EK8: 1.424042508 | EL8: 1.788236087 | EM8: 0.4038994235 | EN8: 20.44817158 | EO8: 12.15193305 | EP8: 4.907698335 | EQ8: 34.67970144 | ER8: 36.14724412 | ES8: 0.4369725337 | ET8: 0.08202594485 | EU8: 0.1106607597 | EV8: 0.8009852388 | EW8: 0.1020616216 | EX8: 3.981156827 | EY8: 19.89018327 | EZ8: 44.46990552
B9: Canola meal (solvent) | C9: 908.125 | D9: 365.81875 | E9: 91.875 | F9: 28.675 | G9: 65.6725 | H9: 447.95875 | J9: 1000 | N9: Maximum Total | T9: 58.531 | U9: 5.578628211 | V9: 111.9 | W9: 289.5 | X9: 171.7 | Y9: 100 | Z9: 97 | AA9: 105 | AR9: 15.3 | AS9: 21.8975 | AT9: 24.4 | AU9: 8.2225 | AV9: 60.8 | AW9: 17.8 | AX9: 10.53625 | AY9: 15.1375 | AZ9: 25.3725 | BA9: 19.995 | BB9: 6.495 | BC9: 14.2 | BD9: 21.5 | BE9: 18.2 | BF9: 16.22875 | BG9: 4.7525 | BH9: 1.132254703 | BI9: 19.0325 | BR9: 11.1 | BS9: 18.5075 | BT9: 16.4 | BU9: 5.605 | BV9: 50.1 | BW9: 12.7 | BX9: 8.57375 | BY9: 11.81625 | BZ9: 20.09625 | CA9: 15.52625 | CB9: 5.6775 | CC9: 11 | CD9: 16.3623113 | CE9: 11.8 | CF9: 11.50625 | CG9: 3.80375 | CH9: 0.861688554 | CI9: 14.18375 | CJ9: =#REF!/#REF! ->  | CR9: 72.54901961 | CS9: 84.51878068 | CT9: 67.21311475 | CU9: 68.16661599 | CV9: 82.40131579 | CW9: 71.34831461 | CX9: 81.37382845 | CY9: 78.059455 | CZ9: 79.20484777 | DA9: 77.65066267 | DB9: 87.41339492 | DC9: 77.46478873 | DD9: 76.10377347 | DE9: 64.83516484 | DF9: 70.90040823 | DG9: 80.03682272 | DH9: 76.10377347 | DI9: 74.5238408 | DJ9: 76.10377347 | DK9: 76.10377347 | DR9: 111.9 | DS9: 10.8 | DT9: 101.1 | DU9: 1.789402044 | DV9: 1.896486173 | DW9: 0.8243057265 | DX9: 43.66610477 | DY9: 16.53078973 | DZ9: 4.087051661 | EA9: 17.03231305 | EB9: 37.38092599 | EC9: 0.09172413415 | ED9: 0.1188274638 | EE9: 0.4602993536 | EF9: 5.585265003 | EG9: 0.7520345796 | EH9: 1.464356712 | EI9: 2.28664812 | EJ9: 0.7649309991 | EK9: 1.697677909 | EL9: 1.777658709 | EM9: 0.3640063729 | EN9: 38.08083977 | EO9: 15.77875515 | EP9: 2.622694949 | EQ9: 14.74566493 | ER9: 36.61599499
B10: Canola meal (pressed) | C10: 922.45 | D10: 365.9333333 | E10: 77.55 | F10: 125.3 | G10: 68.5 | H10: 362.7166667 | J10: 1000 | N10: =MAX(J3:J14) -> 1000 | O10: g/kg | T10: 58.54933333 | U10: 5.580110419 | V10: 154.8 | W10: 281.6 | X10: 167.8 | Y10: =Phospholipids!H59 -> 3.449438202 | Z10: 97 | AA10: 105 | AR10: 15.3 | AS10: 20.4 | AT10: 24.4 | AU10: 8.75 | AV10: 60.8 | AW10: 17.8 | AX10: 9.8 | AY10: 13.65 | AZ10: 23.1 | BA10: 20.91666667 | BB10: 6.125 | BC10: 14.2 | BD10: 20.7 | BE10: 18.2 | BF10: 14.925 | BG10: 4.6 | BH10: 1.131900164 | BI10: 17.775 | BR10: 11.1 | BS10: 17.1 | BT10: 16.4 | BU10: 5.5 | BV10: 50.1 | BW10: 12.7 | BX10: 7.95 | BY10: 10.55 | BZ10: 17.95 | CA10: 15.425 | CB10: 5.35 | CC10: 11 | CD10: 15.56339209 | CE10: 11.8 | CF10: 10.525 | CG10: 3.675 | CH10: 0.851024447 | CI10: 12.95 | CJ10: =#REF!/#REF! ->  | CR10: 72.54901961 | CS10: 83.82352941 | CT10: 67.21311475 | CU10: 62.85714286 | CV10: 82.40131579 | CW10: 71.34831461 | CX10: 81.12244898 | CY10: 77.28937729 | CZ10: 77.70562771 | DA10: 73.74501992 | DB10: 87.34693878 | DC10: 77.46478873 | DD10: 75.18546901 | DE10: 64.83516484 | DF10: 70.51926298 | DG10: 79.89130435 | DH10: 75.18546901 | DI10: 72.85513361 | DJ10: 75.18546901 | DK10: 75.18546901 | DR10: 154.8 | DS10: 14.9 | DT10: 139.9 | DU10: 1.603203645 | DV10: 1.420365195 | DW10: 1.438011011 | DX10: 42.78752041 | DY10: 16.57561355 | DZ10: 5.322795483 | EA10: 16.89848352 | EB10: 63.99565471 | EC10: 0.09719830369 | ED10: 0.1405834281 | EE10: 0.5825320075 | EF10: 6.946684993 | EG10: 1.189457334 | EH10: 2.322939737 | EI10: 2.924935345 | EJ10: 0.9955635385 | EK10: 1.506005341 | EL10: 1.279781767 | EM10: 0.8554790031 | EN10: 35.84083542 | EO10: 15.38615621 | EP10: 2.999855746 | EQ10: 13.97354817 | ER10: 63.00009117
B11: Lupins | C11: 901.5 | D11: 319.95 | E11: 98.5 | F11: 63.8 | G11: 28 | H11: 489.75 | J11: 1000 | N11: =((N10-1000)/1000)*100 -> 0 | O11: % | T11: 51.192 | U11: 5.22537693 | V11: 273.1680341 | W11: 198.7 | X11: 150.7 | Y11: =Phospholipids!H60 -> 71.875 | Z11: 12 | AA11: 58 | AR11: 11.2 | AS11: 35.85 | AT11: 32 | AU11: 4.7 | AV11: 67.25 | AW11: 13.55 | AX11: 8.95 | AY11: 13.3 | AZ11: 22.3 | BA11: 16.5 | BB11: 2.1 | BC11: 12.8 | BD11: 13.2 | BE11: 15.5 | BF11: 11.05 | BG11: 2.8 | BH11: 2.470385998 | BI11: 13 | BR11: 9.1 | BS11: 32.85 | BT11: 26.1 | BU11: 3.9 | BV11: 56.7 | BW11: 10.9 | BX11: 7.55 | BY11: 11.2 | BZ11: 19.2 | CA11: 14.4 | CB11: 1.75 | CC11: 11.15 | CD11: 11.02558148 | CE11: 12.2 | CF11: 9.05 | CG11: 2.2 | CH11: 2.063442585 | CI11: 10.75 | CJ11: =#REF!/#REF! ->  | CR11: 81.25 | CS11: 91.63179916 | CT11: 81.5625 | CU11: 82.9787234 | CV11: 84.31226766 | CW11: 80.44280443 | CX11: 84.3575419 | CY11: 84.21052632 | CZ11: 86.09865471 | DA11: 87.27272727 | DB11: 83.33333333 | DC11: 87.109375 | DD11: 83.52713246 | DE11: 78.70967742 | DF11: 81.90045249 | DG11: 78.57142857 | DH11: 83.52713246 | DI11: 82.69230769 | DJ11: 83.52713246 | DK11: 83.52713246 | DR11: 273.1680341 | DS11: 25.27991343 | DT11: 247.8885064 | DU11: 2.049202765 | DV11: 2.235823603 | DW11: 0.9979109706 | DX11: 32.56576249 | DY11: 39.61574264 | DZ11: 7.513568257 | EA11: 128.1341782 | EB11: 37.90260521 | EC11: 0.04012833919 | ED11: 0.1957732209 | EE11: 0.5310020138 | EF11: 3.847523759 | EG11: 2.16572714 | EH11: 2.958409277 | EI11: 9.370945274 | EJ11: 4.920387117 | EK11: 3.487045828 | EL11: 2.095474882 | EM11: 0.5321293641 | EN11: 29.60250274 | EO11: 33.51199155 | EP11: 4.457462189 | EQ11: 132.2738166 | ER11: 36.2065844 | ES11: 0.2031832191 | ET11: 0.2444076479 | EU11: 0.06112359542 | EV11: 0.3565757756 | EW11: 0.03922407785 | EX11: 2.426552355 | EY11: 30.41361533 | EZ11: 22.40679886
B12: Peas | C12: 892 | D12: 217.3 | E12: 108 | F12: 19.3 | G12: 26.3 | H12: 629.1 | J12: 1000 | T12: 34.768 | U12: 5.242248429 | V12: 110.4369192 | W12: 140.1 | X12: 79.4 | Y12: =Phospholipids!H61 -> 42.83333333 | Z12: 4 | AA12: 49 | AR12: 9.55 | AS12: 21.8 | AT12: 25.05 | AU12: 3 | AV12: 36.35 | AW12: 9.65 | AX12: 5.55 | AY12: 9.2 | AZ12: 15.75 | BA12: 15.45 | BB12: 1.8 | BC12: 10.4 | BD12: 8.3 | BE12: 10.05 | BF12: 8.05 | BG12: 1.9 | BH12: 1.20478601 | BI12: 10.55 | BR12: 7 | BS12: 18.45 | BT12: 19.1 | BU12: 2.1 | BV12: 28.9 | BW12: 7 | BX12: 4.25 | BY12: 6.65 | BZ12: 11.35 | CA12: 12.6 | CB12: 1.35 | CC12: 7.65 | CD12: 6.19320095 | CE12: 7.1 | CF12: 5.8 | CG12: 1.4 | CH12: 0.8989737184 | CI12: 7.45 | CJ12: =#REF!/#REF! ->  | CR12: 73.29842932 | CS12: 84.63302752 | CT12: 76.24750499 | CU12: 70 | CV12: 79.50481431 | CW12: 72.5388601 | CX12: 76.57657658 | CY12: 72.2826087 | CZ12: 72.06349206 | DA12: 81.55339806 | DB12: =$DK12 -> 74.61687892 | DC12: 73.55769231 | DD12: 74.61687892 | DE12: 70.64676617 | DF12: 72.04968944 | DG12: 73.68421053 | DH12: 74.61687892 | DI12: 70.61611374 | DJ12: 74.61687892 | DK12: 74.61687892 | DR12: 110.4369192 | DS12: 24.01822297 | DT12: 80.0340808 | DU12: 2.288334596 | DV12: 0.5962778165 | DW12: 0.5393179697 | DX12: 39.07205047 | DY12: 16.23370052 | DZ12: 4.355495354 | EA12: 7.043332758 | EB12: 28.99335908 | EC12: 0.7509168008 | ED12: 0.1278091308 | EE12: 0.4116469797 | EF12: 6.908802935 | EG12: 1.757458241 | EH12: 1.256886947 | EI12: 1.787464701 | EJ12: 5.724659644 | EK12: 1.383777768 | EL12: 0.3833796326 | EM12: 0.1694980424 | EN12: 27.16769267 | EO12: 11.81537552 | EP12: 2.700668663 | EQ12: 4.496920746 | ER12: 23.88571798 | ES12: 1.050636662 | ET12: 1.906272057 | EU12: 1.533180353 | EV12: 2.203623463 | EW12: 1.847025438 | EX12: 4.524853552 | EY12: 16.51468386 | EZ12: 17.89935415
B13: Meat Meal | C13: 910 | D13: 512.6 | E13: 90 | F13: 115.1 | G13: 263.9 | H13: 18.4 | J13: 1000 | T13: 82.016 | U13: 5.288147953 | V13: 0 | W13: 0 | X13: 0 | Y13: =Phospholipids!H62 -> 9.798076923 | Z13: 0 | AA13: 0 | AR13: 37.2 | AS13: 35.4 | AT13: 36.9 | AU13: 5 | AV13: 59.7 | AW13: 67.3 | AX13: 8.5 | AY13: 13.9 | AZ13: 30.4 | BA13: 24.8 | BB13: 6.8 | BC13: 16.7 | BD13: 41.2 | BE13: 20.2 | BF13: 16.5 | BG13: 3.3 | BH13: 8.914553258 | BI13: 20.9 | BR13: =AR13*CR13/100 -> 23.93528853 | BS13: 26.9 | BT13: =AT13*CT13/100 -> 23.74226201 | BU13: =AU13*CU13/100 -> 3.217108674 | BV13: =AV13*CV13/100 -> 38.41227757 | BW13: =AW13*CW13/100 -> 43.30228275 | BX13: 6 | BY13: 9.6 | BZ13: 21.3 | CA13: 16.9 | CB13: 4.8 | CC13: 11.7 | CD13: 26.50897547 | CE13: 12.99711904 | CF13: 10.2 | CG13: 1.8 | CH13: 5.735817322 | CI13: 14.4 | CJ13: =#REF!/#REF! ->  | CR13: =$DK13 -> 64.34217348 | CS13: =(BS13/AS13)*100 -> 75.98870056 | CT13: =$DK13 -> 64.34217348 | CU13: =$DK13 -> 64.34217348 | CV13: =$DK13 -> 64.34217348 | CW13: =$DK13 -> 64.34217348 | CX13: 70.58823529 | CY13: 69.0647482 | CZ13: 70.06578947 | DA13: 68.14516129 | DB13: 70.58823529 | DC13: 70.05988024 | DD13: 64.34217348 | DE13: =$DK13 -> 64.34217348 | DF13: 61.81818182 | DG13: 54.54545455 | DH13: 64.34217348 | DI13: 68.89952153 | DJ13: 66.36118312 | DK13: 64.34217348
B14: Meat & Bone Meal | C14: 930 | D14: 489.45 | E14: 70 | F14: 88.875 | G14: 331.65 | H14: 20.025 | J14: 1000 | T14: 78.312 | U14: 5.321239039 | V14: 0 | W14: 0 | X14: 0 | Y14: =Phospholipids!H63 -> 1.902439024 | Z14: 0 | AA14: 0 | AR14: 37.1 | AS14: 34.96666667 | AT14: 36.05 | AU14: 4.4875 | AV14: 58.75 | AW14: 69.05 | AX14: 9.35 | AY14: 13.35833333 | AZ14: 29.575 | BA14: 23.61666667 | BB14: 6.816666667 | BC14: 16.1 | BD14: 42.8 | BE14: 19 | BF14: 15.91666667 | BG14: 2.975 | BH14: 12.65093472 | BI14: 20.68333333 | BR14: 28.3 | BS14: 27.56666667 | BT14: 23.2 | BU14: 2.0875 | BV14: 46.1 | BW14: 49.1 | BX14: 6.983333333 | BY14: 10.175 | BZ14: 22.575 | CA14: 17.51666667 | CB14: 5.316666667 | CC14: 11.7 | CD14: 30.75086918 | CE14: 13.5 | CF14: 10.925 | CG14: 2.025 | CH14: 9.089421465 | CI14: 15.35 | CJ14: =#REF!/#REF! ->  | CR14: =(BR14/AR14)*100 -> 76.28032345 | CS14: =(BS14/AS14)*100 -> 78.83698761 | CT14: =(BT14/AT14)*100 -> 64.35506241 | CU14: =(BU14/AU14)*100 -> 46.51810585 | CV14: =(BV14/AV14)*100 -> 78.46808511 | CW14: =(BW14/AW14)*100 -> 71.10789283 | CX14: 74.68805704 | CY14: 76.16968185 | CZ14: 76.33136095 | DA14: 74.17078335 | DB14: 77.99511002 | DC14: 72.67080745 | DD14: 71.84782519 | DE14: 71.05263158 | DF14: 68.63874346 | DG14: 68.06722689 | DH14: 71.84782519 | DI14: 74.21434327 | DJ14: 71.84782519 | DK14: 71.84782519
T15: Other measurements used in the calculations | AR15: CALCULATIONS USED FOR AMINO ACID AND PROTEIN DIGESTIBILITY | CH15: Average = | CI15: =AVERAGE(CJ3:CJ14) -> 
T16: From: https://www.feedipedia.org/node/23099
C17: =C1 -> DM | D17: =E1 -> Moisture | E17: =G1 -> Ash | F17: Neutral Lipids | G17: Polar Lipids | H17: True Protein | I17: Sugars | J17: Oligos | K17: Starch | L17: Lignin | M17: Pectins | N17: Hemi-cellulose | O17: Cellulose | P17: NPNC | R17: TOTAL
A18: Armidale Method (Astute Analysis) | C18: =C2 -> g/kg | D18: =E2 -> g/kg | E18: =G2 -> g/kg | F18: g/kg | G18: g/kg | H18: g/kg | I18: g/kg | J18: g/kg | K18: g/kg | L18: g/kg | M18: g/kg | N18: g/kg | O18: g/kg | P18: g/kg | R18: g/kg | U18: Average Total
B19: Wheat | C19: 896.75 | D19: 103.25 | E19: 13 | F19: =F3-G19 -> 12.89778571 | G19: =(((Y3)/100)*F3) -> 7.102214286 | H19: =T3*U3 -> 106.9567034 | I19: =AA3 -> 32 | J19: 19.93141311 | K19: 632 | L19: =Z3 -> 11 | M19: =IF(DR3-N19-O19<0,0,DR3-N19-O19) -> 0 | N19: =IF(W3-X3<0,0,W3-X3) -> 92.5 | O19: =X3-L19 -> 23.7 | P19: =T3*(6.25-U3) -> 4.618296631 | R19: =E3+F19+G3+H19+I19+J19+K19+M19+N19+O19+L19+P19 -> 1051.854199 | U19: =AVERAGE(R19:R30) -> 1008.319482 | V19: g/kg
B20: Sorghum | C20: 884.6666667 | D20: 115.3333333 | E20: 14.15 | F20: 28.87417704 | G20: 6.97582296 | H20: 96.73165341 | I20: =AA4 -> 14 | J20: 9.452228768 | K20: 647.1 | L20: =Z4 -> 11 | M20: 0 | N20: 59.8 | O20: =X4-L20 -> 32.5 | P20: 0.2933465949 | R20: 1029.234739 | U20: =((U19-1000)/1000)*100 -> 0.8319481817 | V20: %
B21: Barley | C21: 892.3333333 | D21: 107.6666667 | E21: 22 | F21: 21.199 | G21: 4.301 | H21: 89.40039215 | I21: 28 | J21: 20.94662115 | K21: 502 | L21: 11 | M21: 0 | N21: 127.2 | O21: =X5-L21 -> 47.1 | P21: 3.966274513 | R21: 980.4789545 | U21: =STDEV(R19:R30)/(COUNT(R19:R30)-1)^0.5 -> 12.07353444 | V21: SEM | CZ21: =#REF!+#REF! ->  | DB21: =(DB19*DB20)/1000 -> 0
B22: Corn | C22: 887.5 | D22: 112.5 | E22: 12.5 | F22: 37.36673086 | G22: 2.333269144 | H22: 83.03798067 | I22: 21 | J22: 0.6868224553 | K22: 621 | L22: 6 | M22: 0 | N22: 83.1 | O22: =X6-L23 -> 24.3 | P22: 2.712019331 | R22: 1004.203553 | U22: Minimum Total
B23: Soybean Meal (Brazil) | C23: 896.5 | D23: 103.5 | E23: 62.125 | F23: 0 | G23: 19.475 | H23: 426.1914 | I23: 108 | J23: 78.48157684 | K23: 5.5 | L23: 4 | M23: 0 | N23: 0 | O23: =X7-L24 -> 192.1 | P23: 45.93360003 | R23: 1025.831577 | U23: =MIN(R19:R30) -> 944.713265 | V23: g/kg
B24: Soybean Meal (local) | C24: 880 | D24: 120 | E24: 62.125 | F24: 0 | G24: 19.475 | H24: 414.5552898 | I24: 108 | J24: 78.48157684 | K24: 5.5 | L24: 4 | M24: 0 | N24: 0 | O24: =X8-L24 -> 192.1 | P24: 42.3447102 | R24: 1027.106577 | U24: =((U23-1000)/1000)*100 -> -5.528673499 | V24: %
B25: Canola meal (solvent) | C25: 908.125 | D25: 91.875 | E25: 65.6725 | F25: 0 | G25: 28.675 | H25: 326.5226878 | I25: 105 | J25: 22.3 | K25: 51 | L25: 97 | M25: 0 | N25: 117.8 | O25: 74.7 | P25: 39.29606219 | R25: 991.16625 | U25: Maximum Total
B26: Canola meal (pressed) | C26: 922.45 | D26: 77.55 | E26: 68.5 | F26: 120.9778539 | G26: 4.322146067 | H26: 326.711745 | I26: 105 | J26: 22.3 | K26: 51 | L26: 97 | M26: 0 | N26: 113.8 | O26: 70.8 | P26: 39.22158837 | R26: 1092.861187 | U26: =MAX(R19:R30) -> 1092.861187 | V26: g/kg
B27: Lupins | C27: 901.5 | D27: 98.5 | E27: 28 | F27: 17.94375 | G27: 45.85625 | H27: 267.4974958 | I27: 58 | J27: 56.15148086 | K27: 81 | L27: 12 | M27: 86.46803415 | N27: 48 | O27: 138.7 | P27: 52.4525042 | R27: 944.713265 | U27: =((U26-1000)/1000)*100 -> 9.286118727 | V27: %
B28: Peas | C28: 892 | D28: 108 | E28: 26.3 | F28: 11.03316667 | G28: 8.266833333 | H28: 182.2624934 | I28: 49 | J28: 38.74369263 | K28: 413.3 | L28: 4 | M28: 0 | N28: 60.7 | O28: 75.4 | P28: 35.03750663 | R28: 1003.776859
B29: Meat Meal | C29: 910 | D29: 90 | E29: 263.9 | F29: 103.8224135 | G29: 11.27758654 | H29: 433.7127425 | I29: 0 | J29: 0 | K29: 0 | L29: 0 | M29: 0 | N29: 0 | O29: 0 | P29: 78.88725746 | R29: 970.3224135
B30: Meat & Bone Meal | C30: 930 | D30: 70 | E30: 331.65 | F30: 87.18420732 | G30: 1.690792683 | H30: 416.7168716 | I30: 0 | J30: 0 | K30: 0 | L30: 0 | M30: 0 | N30: 0 | O30: 0 | P30: 72.73312838 | R30: 978.2842073

Sheet ME Calc
C1: Neutral Lipids | F1: Polar Lipids | I1: Oligosacchrides | L1: Starch | O1: Hemi-Cellulose | R1: Cellulose
B2: Dry Matter | C2: Content | D2: Digestible | E2: Gross Energy | F2: Content | G2: Digestible | H2: Gross Energy | I2: Content | J2: Digestible | K2: Gross Energy | L2: Content | M2: Digestible | N2: Gross Energy | O2: Content | P2: Digestible | Q2: Gross Energy | R2: Content | S2: Digestible | T2: Gross Energy
B3: g/kg | C3: g/kg | D3: /1.00 | E3: kj/g | F3: g/kg | G3: /1.00 | H3: kj/g | I3: g/kg | J3: /1.00 | K3: kj/g | L3: g/kg | M3: /1.00 | N3: kj/g | O3: g/kg | P3: /1.00 | Q3: kj/g | R3: g/kg | S3: /1.00 | T3: kj/g
A4: Wheat | B4: ='Weende v Armidale'!C3/('Weende v Armidale'!R19/1000) -> 852.5421118 | C4: ='Weende v Armidale'!F19/('Weende v Armidale'!R19/1000) -> 12.26195202 | D4: 1 | E4: 39.748 | F4: ='Weende v Armidale'!G19/('Weende v Armidale'!R19/1000) -> 6.752090065 | G4: 1 | H4: 35.1456 | I4: ='Weende v Armidale'!J19/('Weende v Armidale'!R19/1000) -> 18.94883639 | J4: 0.9 | K4: 16.736 | L4: ='Weende v Armidale'!K19/('Weende v Armidale'!R19/1000) -> 600.8437298 | M4: 1 | N4: 17.5728 | O4: ='Weende v Armidale'!N19/('Weende v Armidale'!R19/1000) -> 87.93994463 | P4: 0.5 | Q4: 16.736 | R4: ='Weende v Armidale'!O19/('Weende v Armidale'!R19/1000) -> 22.53163987 | S4: 0.1 | T4: 16.736
A5: Sorghum | B5: ='Weende v Armidale'!C4/('Weende v Armidale'!R20/1000) -> 859.538289 | C5: ='Weende v Armidale'!F20/('Weende v Armidale'!R20/1000) -> 28.05402494 | D5: 1 | E5: 39.748 | F5: ='Weende v Armidale'!G20/('Weende v Armidale'!R20/1000) -> 6.777679274 | G5: 1 | H5: 35.1456 | I5: ='Weende v Armidale'!J20/('Weende v Armidale'!R20/1000) -> 9.183744397 | J5: 0.9 | K5: 16.736 | L5: ='Weende v Armidale'!K20/('Weende v Armidale'!R20/1000) -> 628.719548 | M5: 1 | N5: 17.5728 | O5: ='Weende v Armidale'!N20/('Weende v Armidale'!R20/1000) -> 58.10142014 | P5: 0.5 | Q5: 16.736 | R5: ='Weende v Armidale'!O20 -> 32.5 | S5: 0.1 | T5: 16.736
A6: Barley | B6: ='Weende v Armidale'!C5/('Weende v Armidale'!R21/1000) -> 910.0994256 | C6: ='Weende v Armidale'!F21/('Weende v Armidale'!R21/1000) -> 21.62106581 | D6: 1 | E6: 39.748 | F6: ='Weende v Armidale'!G21/('Weende v Armidale'!R21/1000) -> 4.386631636 | G6: 1 | H6: 35.1456 | I6: ='Weende v Armidale'!J21/('Weende v Armidale'!R21/1000) -> 21.36366217 | J6: 0.9 | K6: 16.736 | L6: ='Weende v Armidale'!K21/('Weende v Armidale'!R21/1000) -> 511.9946713 | M6: 1 | N6: 17.5728 | O6: ='Weende v Armidale'!N21/('Weende v Armidale'!R21/1000) -> 129.7325143 | P6: 0.5 | Q6: 16.736 | R6: ='Weende v Armidale'!O21 -> 47.1 | S6: 0.1 | T6: 16.736 | CF6: =#REF!+#REF! ->  | CH6: =(CH4*CH5)/1000 -> 0
A7: Corn | B7: ='Weende v Armidale'!C6/('Weende v Armidale'!R22/1000) -> 883.7849628 | C7: ='Weende v Armidale'!F22/('Weende v Armidale'!R22/1000) -> 37.21031531 | D7: 1 | E7: 39.14132 | F7: ='Weende v Armidale'!G22/('Weende v Armidale'!R22/1000) -> 2.323502179 | G7: 1 | H7: 35.1456 | I7: ='Weende v Armidale'!J22/('Weende v Armidale'!R22/1000) -> 0.6839474458 | J7: 0.9 | K7: 16.736 | L7: ='Weende v Armidale'!K22/('Weende v Armidale'!R22/1000) -> 618.4005204 | M7: 1 | N7: 17.5728 | O7: ='Weende v Armidale'!N22/('Weende v Armidale'!R22/1000) -> 82.75214694 | P7: 0.5 | Q7: 16.736 | R7: ='Weende v Armidale'!O22 -> 24.3 | S7: 0.1 | T7: 16.736
A8: Soybean Meal (Brazil) | B8: ='Weende v Armidale'!C7/('Weende v Armidale'!R23/1000) -> 873.9251357 | C8: ='Weende v Armidale'!F23/('Weende v Armidale'!R23/1000) -> 0 | D8: 1 | E8: 39.41328 | F8: ='Weende v Armidale'!G23/('Weende v Armidale'!R23/1000) -> 18.9845979 | G8: 1 | H8: 35.1456 | I8: ='Weende v Armidale'!J23/('Weende v Armidale'!R23/1000) -> 76.5053237 | J8: 0.9 | K8: 16.736 | L8: ='Weende v Armidale'!K23/('Weende v Armidale'!R23/1000) -> 5.3615039 | M8: 1 | N8: 17.5728 | O8: ='Weende v Armidale'!N23/('Weende v Armidale'!R23/1000) -> 0 | P8: 0.5 | Q8: 16.736 | R8: ='Weende v Armidale'!O23 -> 192.1 | S8: 0.1 | T8: 16.736
A9: Soybean Meal (local) | B9: ='Weende v Armidale'!C8/('Weende v Armidale'!R24/1000) -> 856.7757425 | C9: ='Weende v Armidale'!F24/('Weende v Armidale'!R24/1000) -> 0 | D9: 1 | E9: 39.41328 | F9: ='Weende v Armidale'!G24/('Weende v Armidale'!R24/1000) -> 18.96103135 | G9: 1 | H9: 35.1456 | I9: ='Weende v Armidale'!J24/('Weende v Armidale'!R24/1000) -> 76.41035372 | J9: 0.9 | K9: 16.736 | L9: ='Weende v Armidale'!K24/('Weende v Armidale'!R24/1000) -> 5.354848391 | M9: 1 | N9: 17.5728 | O9: ='Weende v Armidale'!N24/('Weende v Armidale'!R24/1000) -> 0 | P9: 0.5 | Q9: 16.736 | R9: ='Weende v Armidale'!O24 -> 192.1 | S9: 0.1 | T9: 16.736
A10: Canola meal (solvent) | B10: ='Weende v Armidale'!C9/('Weende v Armidale'!R25/1000) -> 916.2186465 | C10: ='Weende v Armidale'!F25/('Weende v Armidale'!R25/1000) -> 0 | D10: 1 | E10: 39.41328 | F10: ='Weende v Armidale'!G25/('Weende v Armidale'!R25/1000) -> 28.93056538 | G10: 1 | H10: 35.1456 | I10: ='Weende v Armidale'!J25/('Weende v Armidale'!R25/1000) -> 22.49874832 | J10: 0.9 | K10: 16.736 | L10: ='Weende v Armidale'!K25/('Weende v Armidale'!R25/1000) -> 51.45453651 | M10: 1 | N10: 17.5728 | O10: ='Weende v Armidale'!N25/('Weende v Armidale'!R25/1000) -> 118.8498902 | P10: 0.5 | Q10: 16.736 | R10: ='Weende v Armidale'!O25 -> 74.7 | S10: 0.1 | T10: 16.736
A11: Canola meal (pressed) | B11: ='Weende v Armidale'!C10/('Weende v Armidale'!R26/1000) -> 844.0687717 | C11: ='Weende v Armidale'!F26/('Weende v Armidale'!R26/1000) -> 110.6982802 | D11: 1 | E11: 39.41328 | F11: ='Weende v Armidale'!G26/('Weende v Armidale'!R26/1000) -> 3.954890262 | G11: 1 | H11: 35.1456 | I11: ='Weende v Armidale'!J26/('Weende v Armidale'!R26/1000) -> 20.40515324 | J11: 0.9 | K11: 16.736 | L11: ='Weende v Armidale'!K26/('Weende v Armidale'!R26/1000) -> 46.66649396 | M11: 1 | N11: 17.5728 | O11: ='Weende v Armidale'!N26/('Weende v Armidale'!R26/1000) -> 104.1303336 | P11: 0.5 | Q11: 16.736 | R11: ='Weende v Armidale'!O26 -> 70.8 | S11: 0.1 | T11: 16.736
A12: Lupins | B12: ='Weende v Armidale'!C11/('Weende v Armidale'!R27/1000) -> 954.257798 | C12: ='Weende v Armidale'!F27/('Weende v Armidale'!R27/1000) -> 18.99385842 | D12: 1 | E12: 39.748 | F12: ='Weende v Armidale'!G27/('Weende v Armidale'!R27/1000) -> 48.5398604 | G12: 1 | H12: 35.1456 | I12: ='Weende v Armidale'!J27/('Weende v Armidale'!R27/1000) -> 59.43759121 | J12: 0.9 | K12: 16.736 | L12: ='Weende v Armidale'!K27/('Weende v Armidale'!R27/1000) -> 85.74030132 | M12: 1 | N12: 17.5728 | O12: ='Weende v Armidale'!N27/('Weende v Armidale'!R27/1000) -> 50.80906745 | P12: 0.5 | Q12: 16.736 | R12: ='Weende v Armidale'!O27 -> 138.7 | S12: 0.1 | T12: 16.736
A13: Peas | B13: ='Weende v Armidale'!C12/('Weende v Armidale'!R28/1000) -> 888.6437177 | C13: ='Weende v Armidale'!F28/('Weende v Armidale'!R28/1000) -> 10.99165274 | D13: 1 | E13: 39.748 | F13: ='Weende v Armidale'!G28/('Weende v Armidale'!R28/1000) -> 8.235728147 | G13: 1 | H13: 35.1456 | I13: ='Weende v Armidale'!J28/('Weende v Armidale'!R28/1000) -> 38.59791375 | J13: 0.9 | K13: 16.736 | L13: ='Weende v Armidale'!K28/('Weende v Armidale'!R28/1000) -> 411.7448975 | M13: 1 | N13: 17.5728 | O13: ='Weende v Armidale'!N28/('Weende v Armidale'!R28/1000) -> 60.47160725 | P13: 0.5 | Q13: 16.736 | R13: ='Weende v Armidale'!O28 -> 75.4 | S13: 0.1 | T13: 16.736
A14: Meat Meal | B14: ='Weende v Armidale'!C13/('Weende v Armidale'!R29/1000) -> 937.8326084 | C14: ='Weende v Armidale'!F29/('Weende v Armidale'!R29/1000) -> 106.9978515 | D14: 1 | E14: 39.748 | F14: ='Weende v Armidale'!G29/('Weende v Armidale'!R29/1000) -> 11.62251473 | G14: 1 | H14: 35.1456 | I14: ='Weende v Armidale'!J29/('Weende v Armidale'!R29/1000) -> 0 | J14: 0.9 | K14: 16.736 | L14: ='Weende v Armidale'!K29/('Weende v Armidale'!R29/1000) -> 0 | M14: 1 | N14: 17.5728 | O14: ='Weende v Armidale'!N29/('Weende v Armidale'!R29/1000) -> 0 | P14: 0.5 | Q14: 16.736 | R14: ='Weende v Armidale'!O29 -> 0 | S14: 0.1 | T14: 16.736
A15: Meat & Bone Meal | B15: ='Weende v Armidale'!C14/('Weende v Armidale'!R30/1000) -> 950.6439878 | C15: ='Weende v Armidale'!F30/('Weende v Armidale'!R30/1000) -> 89.11950808 | D15: 1 | E15: 39.748 | F15: ='Weende v Armidale'!G30/('Weende v Armidale'!R30/1000) -> 1.728324622 | G15: 1 | H15: 35.1456 | I15: ='Weende v Armidale'!J30/('Weende v Armidale'!R30/1000) -> 0 | J15: 0.9 | K15: 16.736 | L15: ='Weende v Armidale'!K30/('Weende v Armidale'!R30/1000) -> 0 | M15: 1 | N15: 17.5728 | O15: ='Weende v Armidale'!N30/('Weende v Armidale'!R30/1000) -> 0 | P15: 0.5 | Q15: 16.736 | R15: ='Weende v Armidale'!O30 -> 0 | S15: 0.1 | T15: 16.736
A16: Tallow* | B16: 980 | C16: 975 | D16: 1 | E16: 39.748 | F16: 5 | G16: 1 | H16: 35.1456 | I16: 0 | J16: 0.9 | K16: 16.736 | L16: 0 | M16: 1 | N16: 17.5728 | O16: 0 | P16: 0.5 | Q16: 16.736 | R16: ='Weende v Armidale'!O31 -> 0 | S16: 0.1 | T16: 16.736
A17: Fat, Vegetable* | B17: 980 | C17: 975 | D17: 1 | E17: 39.748 | F17: 5 | G17: 1 | H17: 35.1456 | I17: 0 | J17: 0.9 | K17: 16.736 | L17: 0 | M17: 1 | N17: 17.5728 | O17: 0 | P17: 0.5 | Q17: 16.736 | R17: ='Weende v Armidale'!O32 -> 0 | S17: 0.1 | T17: 16.736
A18: *Moisture includes insolubles and unsaponifiables
B19: True Protein | E19: Sugars | H19: Lignin | K19: Pectins | N19: NPNC | R19: Metabolizable Energy
B20: Content | C20: Digestible | D20: Gross Energy | E20: Content | F20: Digestible | G20: Gross Energy | H20: Content | I20: Digestible | J20: Gross Energy | K20: Content | L20: Digestible | M20: Gross Energy | N20: Content | O20: Digestible | P20: Gross Energy
B21: g/kg | C21: /1.00 | D21: kj/g | E21: g/kg | F21: /1.00 | G21: kj/g | H21: g/kg | I21: /1.00 | J21: kj/g | K21: g/kg | L21: /1.00 | M21: kj/g | N21: g/kg | O21: /1.00 | P21: kj/g | R21: kj/g | S21: kcal/g
A22: =A4 -> Wheat | B22: ='Weende v Armidale'!H19/('Weende v Armidale'!R19/1000) -> 101.6839629 | C22: =Digestibility!C4/100 -> 0.8494570205 | D22: 23.8488 | E22: ='Weende v Armidale'!I19/('Weende v Armidale'!R19/1000) -> 30.42246733 | F22: 1 | G22: 16.736 | H22: ='Weende v Armidale'!L19/('Weende v Armidale'!R19/1000) -> 10.45772314 | I22: 0 | J22: 25.50148 | K22: ='Weende v Armidale'!M19/('Weende v Armidale'!R19/1000) -> 0 | L22: 0.7 | M22: 15.56448 | N22: ='Weende v Armidale'!P19/('Weende v Armidale'!R19/1000) -> 4.390624324 | O22: 1 | P22: 23.8488 | R22: =(E4*D4*C4+F4*G4*H4+D22*C22*B22+G22*F22*E22+K4*J4*I4+N4*M4*L4+J22*I22*H22+M22*L22*K22+Q4*P4*O4+T4*S4*R4+P22*O22*N22)/1000 -> 15.01603559 | S22: =R22/4.184 -> 3.58891864
A23: Sorghum | B23: ='Weende v Armidale'!H20/('Weende v Armidale'!R20/1000) -> 93.9840541 | C23: =Digestibility!C5/100 -> 0.78130243 | D23: 23.8488 | E23: ='Weende v Armidale'!I20/('Weende v Armidale'!R20/1000) -> 13.60233916 | F23: 1 | G23: 16.736 | H23: ='Weende v Armidale'!L20/('Weende v Armidale'!R20/1000) -> 10.6875522 | I23: 0 | J23: 25.50148 | K23: ='Weende v Armidale'!M20/('Weende v Armidale'!R20/1000) -> 0 | L23: 0.7 | M23: 15.56448 | N23: ='Weende v Armidale'!P20/('Weende v Armidale'!R20/1000) -> 0.2850142768 | O23: 1 | P23: 23.8488 | R23: 15.06623644 | S23: 3.600916931
A24: Barley | B24: ='Weende v Armidale'!H21/('Weende v Armidale'!R21/1000) -> 91.18032748 | C24: =Digestibility!C6/100 -> 0.7570909089 | D24: 23.8488 | E24: ='Weende v Armidale'!I21/('Weende v Armidale'!R21/1000) -> 28.5574717 | F24: 1 | G24: 16.736 | H24: ='Weende v Armidale'!L21/('Weende v Armidale'!R21/1000) -> 11.21900674 | I24: 0 | J24: 25.50148 | K24: ='Weende v Armidale'!M21/('Weende v Armidale'!R21/1000) -> 0 | L24: 0.7 | M24: 15.56448 | N24: ='Weende v Armidale'!P21/('Weende v Armidale'!R21/1000) -> 4.045241864 | O24: 1 | P24: 23.8488 | R24: 13.71769868 | S24: 3.278608671
A25: Corn | B25: ='Weende v Armidale'!H22/('Weende v Armidale'!R22/1000) -> 82.69038722 | C25: =Digestibility!C7/100 -> 0.8511198198 | D25: 23.8488 | E25: ='Weende v Armidale'!I22/('Weende v Armidale'!R22/1000) -> 20.91209489 | F25: 1 | G25: 16.736 | H25: ='Weende v Armidale'!L22/('Weende v Armidale'!R22/1000) -> 5.974884256 | I25: 0 | J25: 25.50148 | K25: ='Weende v Armidale'!M22/('Weende v Armidale'!R22/1000) -> 0 | L25: 0.7 | M25: 15.56448 | N25: ='Weende v Armidale'!P22/('Weende v Armidale'!R22/1000) -> 2.700666934 | O25: 1 | P25: 23.8488 | R25: 15.24144811 | S25: 3.642793526
A26: Soybean Meal (Brazil) | B26: ='Weende v Armidale'!H23/('Weende v Armidale'!R23/1000) -> 415.4594278 | C26: =Digestibility!C8/100 -> 0.8270957264 | D26: 23.8488 | E26: ='Weende v Armidale'!I23/('Weende v Armidale'!R23/1000) -> 105.2804402 | F26: 1 | G26: 16.736 | H26: ='Weende v Armidale'!L23/('Weende v Armidale'!R23/1000) -> 3.899275564 | I26: 0 | J26: 25.50148 | K26: ='Weende v Armidale'!M23/('Weende v Armidale'!R23/1000) -> 0 | L26: 0.7 | M26: 15.56448 | N26: ='Weende v Armidale'!P23/('Weende v Armidale'!R23/1000) -> 44.77694104 | O26: 1 | P26: 23.8488 | R26: 13.26018098 | S26: 3.169259317
A27: Soybean Meal (local) | B27: ='Weende v Armidale'!H24/('Weende v Armidale'!R24/1000) -> 403.6146775 | C27: =Digestibility!C9/100 -> 0.8584128773 | D27: 23.8488 | E27: ='Weende v Armidale'!I24/('Weende v Armidale'!R24/1000) -> 105.1497502 | F27: 1 | G27: 16.736 | H27: ='Weende v Armidale'!L24/('Weende v Armidale'!R24/1000) -> 3.894435193 | I27: 0 | J27: 25.50148 | K27: ='Weende v Armidale'!M24/('Weende v Armidale'!R24/1000) -> 0 | L27: 0.7 | M27: 15.56448 | N27: ='Weende v Armidale'!P24/('Weende v Armidale'!R24/1000) -> 41.22718241 | O27: 1 | P27: 23.8488 | R27: 13.23877034 | S27: 3.164142049
A28: Canola meal (solvent) | B28: ='Weende v Armidale'!H25/('Weende v Armidale'!R25/1000) -> 329.4328149 | C28: =Digestibility!C10/100 -> 0.7610377347 | D28: 23.8488 | E28: ='Weende v Armidale'!I25/('Weende v Armidale'!R25/1000) -> 105.9358105 | F28: 1 | G28: 16.736 | H28: ='Weende v Armidale'!L25/('Weende v Armidale'!R25/1000) -> 97.86451062 | I28: 0 | J28: 25.50148 | K28: ='Weende v Armidale'!M25/('Weende v Armidale'!R25/1000) -> 0 | L28: 0.7 | M28: 15.56448 | N28: ='Weende v Armidale'!P25/('Weende v Armidale'!R25/1000) -> 39.64628759 | O28: 1 | P28: 23.8488 | R28: 12.07703122 | S28: 2.886479736
A29: Canola meal (pressed) | B29: ='Weende v Armidale'!H26/('Weende v Armidale'!R26/1000) -> 298.9508172 | C29: =Digestibility!C11/100 -> 0.7518546901 | D29: 23.8488 | E29: ='Weende v Armidale'!I26/('Weende v Armidale'!R26/1000) -> 96.07807581 | F29: 1 | G29: 16.736 | H29: ='Weende v Armidale'!L26/('Weende v Armidale'!R26/1000) -> 88.75784146 | I29: 0 | J29: 25.50148 | K29: ='Weende v Armidale'!M26/('Weende v Armidale'!R26/1000) -> 0 | L29: 0.7 | M29: 15.56448 | N29: ='Weende v Armidale'!P26/('Weende v Armidale'!R26/1000) -> 35.88890229 | O29: 1 | P29: 23.8488 | R29: 14.44355121 | S29: 3.452091589
